{"text_format":"1","workbook":"xlsx","n_sheets":9,"sheets":["Weightings","Calculations","Section 1","Sheet1","Post-holder data","Key Ranges - Post holder ","Whole-school data","Key ranges - Whole school","Allocation to scales"],"not_rendered":{"charts":0,"images":0,"macros":1,"external_links":0,"defined_names":63,"comments":0,"pivot_tables":0},"unopened":[],"bounds":{"document_bytes":16777216,"sheet_cells":100000,"rows_first":2000,"rows_last":500,"rows_between":2000,"halvings":0,"cell_chars":16384,"cell_head_chars":4096},"cells_cut":0,"cells_raw":0,"read":"whole","date_system":"1900"}

{"sheet":"Weightings","index":0,"n_rows":1146,"n_cols":29,"rows_kept":1146,"cut":false,"hidden":false,"merged":[[483,4,483,11],[476,4,476,11],[474,4,474,11],[11,4,11,15],[1,0,1,17],[248,8,248,10],[466,4,466,11],[2,27,2,28],[250,18,264,18],[1,24,1,25],[1,20,1,23],[481,4,481,11],[5,1,5,15],[7,4,7,15],[9,4,9,15],[154,0,154,17],[464,4,464,11],[472,4,472,11],[468,4,468,11],[292,3,293,8],[247,5,247,7],[247,9,247,13],[250,5,264,7]]}
[]
["THE WHOLE SCHOOL QUESTIONNAIRE",null,null,null,null,null,null,null,null,null,null,null,null,null,null,null,null,null,null,null,"Job size calculations",null,null,null,"No depute"]
[null,null,null,null,null,null,null,null,null,null,null,null,null,null,null,null,null,null,null," ","HTs","Deputes","SMT members","Others","SMT members","No of SMT members","Additional SMT weighting","Checks"]
[]
[]
[null,"1. WHOLE-SCHOOL INFORMATION ",null,null,null,null,null,null,null,null,null,null,null,null,null,null,null,null,null,null,null,null,null,null,null,null,null,{"$f":"SUM(AB7:AB1633)","v":0},{"$f":"SUM(AC7:AC1633)","v":13.020000000000001}]
[]
[null,"1.1 Local Authority"]
[]
[null,"1.2 Name of Job sizing coordinator"]
[]
[null,"1.3 Name of school(s)"]
[]
[null,null,"Is the post holder responsible for more than one school ?"]
[]
[null,null,"Enter the number of schools",null,null,null,null,null,null,null,null,null,null,null,null,null,null,null,null,null,0.1,0.1,{"$f":"+Y16+AA16","v":0.1},0.1,0.1,{"$f":"IF(ISBLANK('Post-holder data'!$DE$5),0,'Post-holder data'!$DE$5)","v":0},{"$f":"IF(Z16>0,+((V16-Y16)/'Post-holder data'!$DE$5),0)","v":0},{"$f":"+W16-Y16","v":0},{"$f":"+V16-W16","v":0}]
[null,null,null,null,null,null,null,null,null,null,null,null,null,null,null,null,null,null,null,null,null,null,null,null,null,null,null,{"$f":"+W17-Y17","v":0},{"$f":"+V17-W17","v":0}]
[null,"1.4 Type of establishment",null,null,null,null,null,null,null,null,null,null,null,null,null,null,null,null,null,null,null,null,null,null,null,null,null,0,0]
[null,null,null,null,null,null,null,null,null,null,null,null,null,null,null,null,null,null,null,null,null,null,null,null,null,null,null,0,0]
[null,null,null,null,null,null,null,null,null,null,null,null,null,null,null,null,null,null,null,null,null,null,null,null,null,null,null,0,0]
[null,null,"Primary",null,null,null,null,null,null,null,null,null,null,null,null,null,null,null,null,null,1,1,{"$f":"+Y21+AA21","v":1},1,1,{"$f":"IF(ISBLANK('Post-holder data'!$DE$5),0,'Post-holder data'!$DE$5)","v":0},{"$f":"IF(Z21>0,+((V21-Y21)/'Post-holder data'!$DE$5),0)","v":0},0,0]
[null,null,null,null,null,null,null,null,null,null,null,null,null,null,null,null,null,null,null,null,null,null,null,null,null,{"$f":"IF(ISBLANK('Post-holder data'!$DE$5),0,'Post-holder data'!$DE$5)","v":0},{"$f":"IF(Z22>0,+((V22-Y22)/'Post-holder data'!$DE$5),0)","v":0},0,0]
[null,null,"Secondary",null,null,null,null,null,null,null,null,null,null,null,null,null,null,null,null,null,1,1,{"$f":"+Y23+AA23","v":1},1,1,{"$f":"IF(ISBLANK('Post-holder data'!$DE$5),0,'Post-holder data'!$DE$5)","v":0},{"$f":"IF(Z23>0,+((V23-Y23)/'Post-holder data'!$DE$5),0)","v":0},0,0]
[null,null,null,null,null,null,null,null,null,null,null,null,null,null,null,null,null,null,null,null,null,null,null,null,null,{"$f":"IF(ISBLANK('Post-holder data'!$DE$5),0,'Post-holder data'!$DE$5)","v":0},{"$f":"IF(Z24>0,+((V24-Y24)/'Post-holder data'!$DE$5),0)","v":0},0,0]
[null,null,"Special",null,null,null,null,null,null,null,null,null,null,null,null,null,null,null,null,null,1,1,{"$f":"+Y25+AA25","v":1},1,1,{"$f":"IF(ISBLANK('Post-holder data'!$DE$5),0,'Post-holder data'!$DE$5)","v":0},{"$f":"IF(Z25>0,+((V25-Y25)/'Post-holder data'!$DE$5),0)","v":0},0,0]
[null,null,null,null,null,null,null,null,null,null,null,null,null,null,null,null,null,null,null,null,null,null,null,null,null,{"$f":"IF(ISBLANK('Post-holder data'!$DE$5),0,'Post-holder data'!$DE$5)","v":0},{"$f":"IF(Z26>0,+((V26-Y26)/'Post-holder data'!$DE$5),0)","v":0},0,0]
[null,null,"Junior High School",null,null,null,null,null,null,null,null,null,null,null,null,null,null,null,null,null,1,1,{"$f":"+Y27+AA27","v":1},1,1,{"$f":"IF(ISBLANK('Post-holder data'!$DE$5),0,'Post-holder data'!$DE$5)","v":0},{"$f":"IF(Z27>0,+((V27-Y27)/'Post-holder data'!$DE$5),0)","v":0},0,0]
[null,null,null,null,null,null,null,null,null,null,null,null,null,null,null,null,null,null,null,null,null,null,null,null,null,{"$f":"IF(ISBLANK('Post-holder data'!$DE$5),0,'Post-holder data'!$DE$5)","v":0},{"$f":"IF(Z28>0,+((V28-Y28)/'Post-holder data'!$DE$5),0)","v":0},0,0]
[null,null,"Other (please give details)",null,null,null,null,null,null,null,null,null,null,null,null,null,null,null,null,null,1,1,{"$f":"+Y29+AA29","v":1},1,1,{"$f":"IF(ISBLANK('Post-holder data'!$DE$5),0,'Post-holder data'!$DE$5)","v":0},{"$f":"IF(Z29>0,+((V29-Y29)/'Post-holder data'!$DE$5),0)","v":0},0,0]
[null,null,null,null,null,null,null,null,null,null,null,null,null,null,null,null,null,null,null,null,null,null,null,null,null,{"$f":"IF(ISBLANK('Post-holder data'!$DE$5),0,'Post-holder data'!$DE$5)","v":0},{"$f":"IF(Z30>0,+((V30-Y30)/'Post-holder data'!$DE$5),0)","v":0},0,0]
[null,null,null,null,null,null,null,null,null,null,null,null,null,null,null,null,null,null,null,null,null,null,null,null,null,{"$f":"IF(ISBLANK('Post-holder data'!$DE$5),0,'Post-holder data'!$DE$5)","v":0},{"$f":"IF(Z31>0,+((V31-Y31)/'Post-holder data'!$DE$5),0)","v":0},0,0]
[null,null,null,null,null,null,null,null,null,null,null,null,null,null,null,null,null,null,null,null,null,null,null,null,null,{"$f":"IF(ISBLANK('Post-holder data'!$DE$5),0,'Post-holder data'!$DE$5)","v":0},{"$f":"IF(Z32>0,+((V32-Y32)/'Post-holder data'!$DE$5),0)","v":0},0,0]
[null,null,null,null,null,null,null,null,null,null,null,null,null,null,null,null,null,null,null,null,null,null,null,null,null,{"$f":"IF(ISBLANK('Post-holder data'!$DE$5),0,'Post-holder data'!$DE$5)","v":0},{"$f":"IF(Z33>0,+((V33-Y33)/'Post-holder data'!$DE$5),0)","v":0},0,0]
[null,null,null,null,null,null,null,null,null,null,null,null,null,null,null,null,null,null,null,null,null,null,null,null,null,{"$f":"IF(ISBLANK('Post-holder data'!$DE$5),0,'Post-holder data'!$DE$5)","v":0},{"$f":"IF(Z34>0,+((V34-Y34)/'Post-holder data'!$DE$5),0)","v":0},0,0]
[null,null,null,null,null,null,null,null,null,null,null,null,null,null,null,null,null,null,null,null,null,null,null,null,null,{"$f":"IF(ISBLANK('Post-holder data'!$DE$5),0,'Post-holder data'!$DE$5)","v":0},{"$f":"IF(Z35>0,+((V35-Y35)/'Post-holder data'!$DE$5),0)","v":0},0,0]
[null,null,null,null,null,null,null,null,null,null,null,null,null,null,null,null,null,null,null,null,null,null,null,null,null,{"$f":"IF(ISBLANK('Post-holder data'!$DE$5),0,'Post-holder data'!$DE$5)","v":0},{"$f":"IF(Z36>0,+((V36-Y36)/'Post-holder data'!$DE$5),0)","v":0},0,0]
[null,null,"Tick if the school includes ",null,null,null,null,null,null,null,null,null,null,null,null,null,null,null,null,null,null,null,null,null,null,{"$f":"IF(ISBLANK('Post-holder data'!$DE$5),0,'Post-holder data'!$DE$5)","v":0},{"$f":"IF(Z37>0,+((V37-Y37)/'Post-holder data'!$DE$5),0)","v":0},0,0]
[null,null,null,null,null,null,null,null,null,null,null,null,null,null,null,null,null,null,null,null,null,null,null,null,null,{"$f":"IF(ISBLANK('Post-holder data'!$DE$5),0,'Post-holder data'!$DE$5)","v":0},{"$f":"IF(Z38>0,+((V38-Y38)/'Post-holder data'!$DE$5),0)","v":0},0,0]
[null,null,null,"Nursery unit",null,null,null,null,null,null,null,null,null,null,null,null,null,null,null,null,1.1000000000000001,1,{"$f":"+Y39+AA39","v":1},1,1,{"$f":"IF(ISBLANK('Post-holder data'!$DE$5),0,'Post-holder data'!$DE$5)","v":0},{"$f":"IF(Z39>0,+((V39-Y39)/'Post-holder data'!$DE$5),0)","v":0},0,0]
[null,null,null,null,null,null,null,null,null,null,null,null,null,null,null,null,null,null,null,null,null,null,null,null,null,{"$f":"IF(ISBLANK('Post-holder data'!$DE$5),0,'Post-holder data'!$DE$5)","v":0},{"$f":"IF(Z40>0,+((V40-Y40)/'Post-holder data'!$DE$5),0)","v":0},0,0]
[null,null,null,"Special needs unit",null,null,null,null,null,null,null,null,null,null,null,null,null,null,null,null,1.1000000000000001,1,{"$f":"+Y41+AA41","v":1},1,1,{"$f":"IF(ISBLANK('Post-holder data'!$DE$5),0,'Post-holder data'!$DE$5)","v":0},{"$f":"IF(Z41>0,+((V41-Y41)/'Post-holder data'!$DE$5),0)","v":0},0,0]
[null,null,null,null,null,null,null,null,null,null,null,null,null,null,null,null,null,null,null,null,null,null,null,null,null,{"$f":"IF(ISBLANK('Post-holder data'!$DE$5),0,'Post-holder data'!$DE$5)","v":0},{"$f":"IF(Z42>0,+((V42-Y42)/'Post-holder data'!$DE$5),0)","v":0},0,0]
[null,null,null,null,null,null,null,null,null,null,null,null,null,null,null,null,null,null,null,null,null,null,null,null,null,{"$f":"IF(ISBLANK('Post-holder data'!$DE$5),0,'Post-holder data'!$DE$5)","v":0},{"$f":"IF(Z43>0,+((V43-Y43)/'Post-holder data'!$DE$5),0)","v":0},0,0]
[null,null,null,null,null,null,null,null,null,null,null,null,null,null,null,null,null,null,null,null,"HTs","Deputes","SMT members","Others","SMT members",{"$f":"IF(ISBLANK('Post-holder data'!$DE$5),0,'Post-holder data'!$DE$5)","v":0}]
[null,"1.5 School Roll",null,null,null,null,null,null,null,null,null,null,null,null,null,null,null,null,null,null,null,0.55000000000000004,{"$f":"+Y45+AA45","v":0.45},0.3,0.45,{"$f":"IF(ISBLANK('Post-holder data'!$DE$5),0,'Post-holder data'!$DE$5)","v":0},{"$f":"IF(Z45>0,+((V45-Y45)/'Post-holder data'!$DE$5),0)","v":0},0,0.10000000000000003]
[null,null,null,null,null,null,null,null,null,null,null,null,null,null,null,null,null,null,null,null,null,null,null,null,null,{"$f":"IF(ISBLANK('Post-holder data'!$DE$5),0,'Post-holder data'!$DE$5)","v":0},{"$f":"IF(Z46>0,+((V46-Y46)/'Post-holder data'!$DE$5),0)","v":0},0,0]
[null,null,"Up to 50",null,null,null,null,null,null,null,null,null,null,null,null,null,null,null,null,{"$f":"(20-U47)/8","v":1.5},8,4.4000000000000004,{"$f":"+Y47+AA47","v":3.6},2.4,3.6,{"$f":"IF(ISBLANK('Post-holder data'!$DE$5),0,'Post-holder data'!$DE$5)","v":0},{"$f":"IF(Z47>0,+((V47-Y47)/'Post-holder data'!$DE$5),0)","v":0},0,0.80000000000000027]
[null,null,null,null,null,null,null,null,null,null,null,null,null,null,null,null,null,null,null,null,null,null,null,null,null,{"$f":"IF(ISBLANK('Post-holder data'!$DE$5),0,'Post-holder data'!$DE$5)","v":0},{"$f":"IF(Z48>0,+((V48-Y48)/'Post-holder data'!$DE$5),0)","v":0},0,0]
[null,null,"51 to 100",null,null,null,null,null,null,null,null,null,null,null,null,null,null,null,null,null,9.5,5.2249999999999996,{"$f":"+Y49+AA49","v":4.2750000000000004},2.85,4.2750000000000004,{"$f":"IF(ISBLANK('Post-holder data'!$DE$5),0,'Post-holder data'!$DE$5)","v":0},{"$f":"IF(Z49>0,+((V49-Y49)/'Post-holder data'!$DE$5),0)","v":0},0,0.94999999999999929]
[null,null,null,null,null,null,null,null,null,null,null,null,null,null,null,null,null,null,null,null,null,null,null,null,null,{"$f":"IF(ISBLANK('Post-holder data'!$DE$5),0,'Post-holder data'!$DE$5)","v":0},{"$f":"IF(Z50>0,+((V50-Y50)/'Post-holder data'!$DE$5),0)","v":0},0,0]
[null,null,"101 to 250",null,null,null,null,null,null,null,null,null,null,null,null,null,null,null,null,null,11,6.05,{"$f":"+Y51+AA51","v":4.95},3.3,4.95,{"$f":"IF(ISBLANK('Post-holder data'!$DE$5),0,'Post-holder data'!$DE$5)","v":0},{"$f":"IF(Z51>0,+((V51-Y51)/'Post-holder data'!$DE$5),0)","v":0},0,1.0999999999999996]
[null,null,null,null,null,null,null,null,null,null,null,null,null,null,null,null,null,null,null,null,null,null,null,null,null,{"$f":"IF(ISBLANK('Post-holder data'!$DE$5),0,'Post-holder data'!$DE$5)","v":0},{"$f":"IF(Z52>0,+((V52-Y52)/'Post-holder data'!$DE$5),0)","v":0},0,0]
[null,null,"251 to 500",null,null,null,null,null,null,null,null,null,null,null,null,null,null,null,null,null,12.5,6.875,{"$f":"+Y53+AA53","v":5.625},3.75,5.625,{"$f":"IF(ISBLANK('Post-holder data'!$DE$5),0,'Post-holder data'!$DE$5)","v":0},{"$f":"IF(Z53>0,+((V53-Y53)/'Post-holder data'!$DE$5),0)","v":0},0,1.25]
[null,null,null,null,null,null,null,null,null,null,null,null,null,null,null,null,null,null,null,null,null,null,null,null,null,{"$f":"IF(ISBLANK('Post-holder data'!$DE$5),0,'Post-holder data'!$DE$5)","v":0},{"$f":"IF(Z54>0,+((V54-Y54)/'Post-holder data'!$DE$5),0)","v":0},0,0]
[null,null,"501 to 750",null,null,null,null,null,null,null,null,null,null,null,null,null,null,null,null,null,14,7.7,{"$f":"+Y55+AA55","v":6.3},4.2,6.3,{"$f":"IF(ISBLANK('Post-holder data'!$DE$5),0,'Post-holder data'!$DE$5)","v":0},{"$f":"IF(Z55>0,+((V55-Y55)/'Post-holder data'!$DE$5),0)","v":0},0,1.4000000000000004]
[null,null,null,null,null,null,null,null,null,null,null,null,null,null,null,null,null,null,null,null,null,null,null,null,null,{"$f":"IF(ISBLANK('Post-holder data'!$DE$5),0,'Post-holder data'!$DE$5)","v":0},{"$f":"IF(Z56>0,+((V56-Y56)/'Post-holder data'!$DE$5),0)","v":0},0,0]
[null,null,"751 to 1,000",null,null,null,null,null,null,null,null,null,null,null,null,null,null,null,null,null,15.5,8.5250000000000004,{"$f":"+Y57+AA57","v":6.9749999999999996},4.6500000000000004,6.9749999999999996,{"$f":"IF(ISBLANK('Post-holder data'!$DE$5),0,'Post-holder data'!$DE$5)","v":0},{"$f":"IF(Z57>0,+((V57-Y57)/'Post-holder data'!$DE$5),0)","v":0},0,1.5500000000000007]
[null,null,null,null,null,null,null,null,null,null,null,null,null,null,null,null,null,null,null,null,null,null,null,null,null,{"$f":"IF(ISBLANK('Post-holder data'!$DE$5),0,'Post-holder data'!$DE$5)","v":0},{"$f":"IF(Z58>0,+((V58-Y58)/'Post-holder data'!$DE$5),0)","v":0},0,0]
[null,null,"1,001 to 1,250",null,null,null,null,null,null,null,null,null,null,null,null,null,null,null,null,null,17,9.35,{"$f":"+Y59+AA59","v":7.65},5.0999999999999996,7.65,{"$f":"IF(ISBLANK('Post-holder data'!$DE$5),0,'Post-holder data'!$DE$5)","v":0},{"$f":"IF(Z59>0,+((V59-Y59)/'Post-holder data'!$DE$5),0)","v":0},0,1.6999999999999993]
[null,null,null,null,null,null,null,null,null,null,null,null,null,null,null,null,null,null,null,null,null,null,null,null,null,{"$f":"IF(ISBLANK('Post-holder data'!$DE$5),0,'Post-holder data'!$DE$5)","v":0},{"$f":"IF(Z60>0,+((V60-Y60)/'Post-holder data'!$DE$5),0)","v":0},0,0]
[null,null,"Over 1,250 to 1,500",null,null,null,null,null,null,null,null,null,null,null,null,null,null,null,null,null,18.5,10.175000000000001,{"$f":"+Y61+AA61","v":8.3249999999999993},5.55,8.3249999999999993,{"$f":"IF(ISBLANK('Post-holder data'!$DE$5),0,'Post-holder data'!$DE$5)","v":0},{"$f":"IF(Z61>0,+((V61-Y61)/'Post-holder data'!$DE$5),0)","v":0},0,1.8500000000000014]
[null,null,null,null,null,null,null,null,null,null,null,null,null,null,null,null,null,null,null,null,null,null,null,null,null,{"$f":"IF(ISBLANK('Post-holder data'!$DE$5),0,'Post-holder data'!$DE$5)","v":0},{"$f":"IF(Z62>0,+((V62-Y62)/'Post-holder data'!$DE$5),0)","v":0},0,0]
[null,null,"Over 1,500",null,null,null,null,null,null,null,null,null,null,null,null,null,null,null,null,null,20,11,{"$f":"+Y63+AA63","v":9},6,9,{"$f":"IF(ISBLANK('Post-holder data'!$DE$5),0,'Post-holder data'!$DE$5)","v":0},{"$f":"IF(Z63>0,+((V63-Y63)/'Post-holder data'!$DE$5),0)","v":0},0,2]
[null,null,null,null,null,null,null,null,null,null,null,null,null,null,null,null,null,null,null,null,null,null,null,null,null,{"$f":"IF(ISBLANK('Post-holder data'!$DE$5),0,'Post-holder data'!$DE$5)","v":0},{"$f":"IF(Z64>0,+((V64-Y64)/'Post-holder data'!$DE$5),0)","v":0},0,0]
[null,null,null,null,null,null,null,null,null,null,null,null,null,null,null,null,null,null,null,null,0.66666666666666663,0.31,{"$f":"+Y65+AA65","v":0.21},0,0.21,{"$f":"IF(ISBLANK('Post-holder data'!$DE$5),0,'Post-holder data'!$DE$5)","v":0},{"$f":"IF(Z65>0,+((V65-Y65)/'Post-holder data'!$DE$5),0)","v":0},0,0.1]
[null,"1.6 Numbers of staff",null,null,null,null,null,null,null,null,null,null,null,null,null,null,null,null,null,null,"HTs","Deputes","SMT members",null,"SMT members",{"$f":"IF(ISBLANK('Post-holder data'!$DE$5),0,'Post-holder data'!$DE$5)","v":0}]
[null,null,"Promoted posts",null,null,null,null,null,null,null,null,null,null,null,null,null,null,null,null,null,1.6,0.496,{"$f":"+Y67+AA67","v":0.33600000000000002},0,0.33600000000000002,{"$f":"IF(ISBLANK('Post-holder data'!$DE$5),0,'Post-holder data'!$DE$5)","v":0},{"$f":"IF(Z67>0,+((V67-Y67)/'Post-holder data'!$DE$5),0)","v":0},0,0.15999999999999998]
[null,null,null,null,null,null,null,null,null,null,null,null,null,null,null,null,null,null,null,null,null,null,null,null,null,{"$f":"IF(ISBLANK('Post-holder data'!$DE$5),0,'Post-holder data'!$DE$5)","v":0},{"$f":"IF(Z68>0,+((V68-Y68)/'Post-holder data'!$DE$5),0)","v":0},0,0]
[null,null,"Other teaching staff",null,null,null,null,null,null,null,null,null,null,null,null,null,null,null,null,null,1.6,0.496,{"$f":"+Y69+AA69","v":0.33600000000000002},0,0.33600000000000002,{"$f":"IF(ISBLANK('Post-holder data'!$DE$5),0,'Post-holder data'!$DE$5)","v":0},{"$f":"IF(Z69>0,+((V69-Y69)/'Post-holder data'!$DE$5),0)","v":0},0,0.15999999999999998]
[null,null,null,null,null,null,null,null,null,null,null,null,null,null,null,null,null,null,null,null,null,null,null,null,null,{"$f":"IF(ISBLANK('Post-holder data'!$DE$5),0,'Post-holder data'!$DE$5)","v":0},{"$f":"IF(Z70>0,+((V70-Y70)/'Post-holder data'!$DE$5),0)","v":0},0,0]
[null,null,"Other staff",null,null,null,null,null,null,null,null,null,null,null,null,null,null,null,null,null,1,0.31,{"$f":"+Y71+AA71","v":0.21},0,0.21,{"$f":"IF(ISBLANK('Post-holder data'!$DE$5),0,'Post-holder data'!$DE$5)","v":0},{"$f":"IF(Z71>0,+((V71-Y71)/'Post-holder data'!$DE$5),0)","v":0},0,0.1]
[null,null,null,null,null,null,null,null,null,null,null,null,null,null,null,null,null,null,null,null,null,null,null,null,null,{"$f":"IF(ISBLANK('Post-holder data'!$DE$5),0,'Post-holder data'!$DE$5)","v":0},{"$f":"IF(Z72>0,+((V72-Y72)/'Post-holder data'!$DE$5),0)","v":0},0,0]
[null,"1.7 Current post",null,null,null,null,null,null,null,null,null,null,null,null,null,null,null,null,null,null,null,null,null,null,null,{"$f":"IF(ISBLANK('Post-holder data'!$DE$5),0,'Post-holder data'!$DE$5)","v":0},{"$f":"IF(Z73>0,+((V73-Y73)/'Post-holder data'!$DE$5),0)","v":0},0,0]
[null,null,null,null,null,null,null,null,null,null,null,null,null,null,null,null,null,null,null,null,null,null,null,null,null,{"$f":"IF(ISBLANK('Post-holder data'!$DE$5),0,'Post-holder data'!$DE$5)","v":0},{"$f":"IF(Z74>0,+((V74-Y74)/'Post-holder data'!$DE$5),0)","v":0},0,0]
[null,null,"Head Teacher",null,null,null,null,null,null,null,null,null,null,null,null,null,null,null,null,null,null,null,null,null,null,{"$f":"IF(ISBLANK('Post-holder data'!$DE$5),0,'Post-holder data'!$DE$5)","v":0},{"$f":"IF(Z75>0,+((V75-Y75)/'Post-holder data'!$DE$5),0)","v":0},0,0]
[null,null,null,null,null,null,null,null,null,null,null,null,null,null,null,null,null,null,null,null,null,null,null,null,null,{"$f":"IF(ISBLANK('Post-holder data'!$DE$5),0,'Post-holder data'!$DE$5)","v":0},{"$f":"IF(Z76>0,+((V76-Y76)/'Post-holder data'!$DE$5),0)","v":0},0,0]
[null,null,"Depute/assistant Headteacher",null,null,null,null,null,null,null,null,null,null,null,null,null,null,null,null,null,null,null,null,null,null,{"$f":"IF(ISBLANK('Post-holder data'!$DE$5),0,'Post-holder data'!$DE$5)","v":0},{"$f":"IF(Z77>0,+((V77-Y77)/'Post-holder data'!$DE$5),0)","v":0},0,0]
[null,null,null,null,null,null,null,null,null,null,null,null,null,null,null,null,null,null,null,null,null,null,null,null,null,{"$f":"IF(ISBLANK('Post-holder data'!$DE$5),0,'Post-holder data'!$DE$5)","v":0},{"$f":"IF(Z78>0,+((V78-Y78)/'Post-holder data'!$DE$5),0)","v":0},0,0]
[null,null,"Principal Teacher",null,null,null,null,null,null,null,null,null,null,null,null,null,null,null,null,null,null,null,null,null,null,{"$f":"IF(ISBLANK('Post-holder data'!$DE$5),0,'Post-holder data'!$DE$5)","v":0},{"$f":"IF(Z79>0,+((V79-Y79)/'Post-holder data'!$DE$5),0)","v":0},0,0]
[null,null,null,null,null,null,null,null,null,null,null,null,null,null,null,null,null,null,null,null,null,null,null,null,null,{"$f":"IF(ISBLANK('Post-holder data'!$DE$5),0,'Post-holder data'!$DE$5)","v":0},{"$f":"IF(Z80>0,+((V80-Y80)/'Post-holder data'!$DE$5),0)","v":0},0,0]
[null,null,null,null,null,null,null,null,null,null,null,null,null,null,null,null,null,null,null,null,null,null,null,null,null,{"$f":"IF(ISBLANK('Post-holder data'!$DE$5),0,'Post-holder data'!$DE$5)","v":0},{"$f":"IF(Z81>0,+((V81-Y81)/'Post-holder data'!$DE$5),0)","v":0},{"$f":"+W81-Y81","v":0},{"$f":"+V81-W81","v":0}]
[null,null,"Being a permanent member of the senior management team (SMT)",null,null,null,null,null,null,null,null,null,null,null,null,null,null,null,null,null,null,null,null,null,null,{"$f":"IF(ISBLANK('Post-holder data'!$DE$5),0,'Post-holder data'!$DE$5)","v":0},{"$f":"IF(Z82>0,+((V82-Y82)/'Post-holder data'!$DE$5),0)","v":0},0,0]
[null,null,null,null,null,null,null,null,null,null,null,null,null,null,null,null,null,null,null,null,null,null,null,null,null,{"$f":"IF(ISBLANK('Post-holder data'!$DE$5),0,'Post-holder data'!$DE$5)","v":0},{"$f":"IF(Z83>0,+((V83-Y83)/'Post-holder data'!$DE$5),0)","v":0},0,0]
[null,null,"Being the SMT member who formally deputises for the Headteacher",null,null,null,null,null,null,null,null,null,null,null,null,null,null,null,null,null,null,null,null,null,null,{"$f":"IF(ISBLANK('Post-holder data'!$DE$5),0,'Post-holder data'!$DE$5)","v":0},{"$f":"IF(Z84>0,+((V84-Y84)/'Post-holder data'!$DE$5),0)","v":0},0,0]
[null,null,null,null,null,null,null,null,null,null,null,null,null,null,null,null,null,null,null,null,null,null,null,null,null,{"$f":"IF(ISBLANK('Post-holder data'!$DE$5),0,'Post-holder data'!$DE$5)","v":0},{"$f":"IF(Z85>0,+((V85-Y85)/'Post-holder data'!$DE$5),0)","v":0},0,0]
[null,"1.8 Percentage of children registered for free school meals",null,null,null,null,null,null,null,null,null,null,null,null,null,null,null,null,null,null,null,null,null,null,null,{"$f":"IF(ISBLANK('Post-holder data'!$DE$5),0,'Post-holder data'!$DE$5)","v":0},{"$f":"IF(Z86>0,+((V86-Y86)/'Post-holder data'!$DE$5),0)","v":0},0,0]
[null,null,null,null,null,null,null,null,null,null,null,null,null,null,null,null,null,null,null,null,null,null,null,null,null,{"$f":"IF(ISBLANK('Post-holder data'!$DE$5),0,'Post-holder data'!$DE$5)","v":0},{"$f":"IF(Z87>0,+((V87-Y87)/'Post-holder data'!$DE$5),0)","v":0},0,0]
[null,null,null,null,null,null,null,null,null,null,null,null,null,null,null,null,null,null,null,null,null,null,null,null,null,{"$f":"IF(ISBLANK('Post-holder data'!$DE$5),0,'Post-holder data'!$DE$5)","v":0},{"$f":"IF(Z88>0,+((V88-Y88)/'Post-holder data'!$DE$5),0)","v":0},0,0]
[null,null,"0 to 10%",null,null,null,null,null,null,null,null,null,null,null,null,null,null,null,null,null,0.75,0.75,{"$f":"+Y89+AA89","v":0.75},0.75,0.75,{"$f":"IF(ISBLANK('Post-holder data'!$DE$5),0,'Post-holder data'!$DE$5)","v":0},{"$f":"IF(Z89>0,+((V89-Y89)/'Post-holder data'!$DE$5),0)","v":0},0,0]
[null,null,null,null,null,null,null,null,null,null,null,null,null,null,null,null,null,null,null,null,null,null,null,null,null,{"$f":"IF(ISBLANK('Post-holder data'!$DE$5),0,'Post-holder data'!$DE$5)","v":0},{"$f":"IF(Z90>0,+((V90-Y90)/'Post-holder data'!$DE$5),0)","v":0},0,0]
[null,null,"11% to 25%",null,null,null,null,null,null,null,null,null,null,null,null,null,null,null,null,null,1,1,{"$f":"+Y91+AA91","v":1},1,1,{"$f":"IF(ISBLANK('Post-holder data'!$DE$5),0,'Post-holder data'!$DE$5)","v":0},{"$f":"IF(Z91>0,+((V91-Y91)/'Post-holder data'!$DE$5),0)","v":0},0,0]
[null,null,null,null,null,null,null,null,null,null,null,null,null,null,null,null,null,null,null,null,null,null,null,null,null,{"$f":"IF(ISBLANK('Post-holder data'!$DE$5),0,'Post-holder data'!$DE$5)","v":0},{"$f":"IF(Z92>0,+((V92-Y92)/'Post-holder data'!$DE$5),0)","v":0},0,0]
[null,null,"26% to 50%",null,null,null,null,null,null,null,null,null,null,null,null,null,null,null,null,null,1.25,1.25,{"$f":"+Y93+AA93","v":1.25},1.25,1.25,{"$f":"IF(ISBLANK('Post-holder data'!$DE$5),0,'Post-holder data'!$DE$5)","v":0},{"$f":"IF(Z93>0,+((V93-Y93)/'Post-holder data'!$DE$5),0)","v":0},0,0]
[null,null,null,null,null,null,null,null,null,null,null,null,null,null,null,null,null,null,null,null,null,null,null,null,null,{"$f":"IF(ISBLANK('Post-holder data'!$DE$5),0,'Post-holder data'!$DE$5)","v":0},{"$f":"IF(Z94>0,+((V94-Y94)/'Post-holder data'!$DE$5),0)","v":0},0,0]
[null,null,"51% to 75%",null,null,null,null,null,null,null,null,null,null,null,null,null,null,null,null,null,1.5,1.5,{"$f":"+Y95+AA95","v":1.5},1.5,1.5,{"$f":"IF(ISBLANK('Post-holder data'!$DE$5),0,'Post-holder data'!$DE$5)","v":0},{"$f":"IF(Z95>0,+((V95-Y95)/'Post-holder data'!$DE$5),0)","v":0},0,0]
[null,null,null,null,null,null,null,null,null,null,null,null,null,null,null,null,null,null,null,null,null,null,null,null,null,{"$f":"IF(ISBLANK('Post-holder data'!$DE$5),0,'Post-holder data'!$DE$5)","v":0},{"$f":"IF(Z96>0,+((V96-Y96)/'Post-holder data'!$DE$5),0)","v":0},0,0]
[null,null,"75% to 100%",null,null,null,null,null,null,null,null,null,null,null,null,null,null,null,null,null,1.75,1.75,{"$f":"+Y97+AA97","v":1.75},1.75,1.75,{"$f":"IF(ISBLANK('Post-holder data'!$DE$5),0,'Post-holder data'!$DE$5)","v":0},{"$f":"IF(Z97>0,+((V97-Y97)/'Post-holder data'!$DE$5),0)","v":0},0,0]
[null,null,null,null,null,null,null,null,null,null,null,null,null,null,null,null,null,null,null,null,null,null,null,null,null,{"$f":"IF(ISBLANK('Post-holder data'!$DE$5),0,'Post-holder data'!$DE$5)","v":0},{"$f":"IF(Z98>0,+((V98-Y98)/'Post-holder data'!$DE$5),0)","v":0},0,0]
[null,null,null,null,null,null,null,null,null,null,null,null,null,null,null,null,null,null,null,null,null,null,null,null,null,{"$f":"IF(ISBLANK('Post-holder data'!$DE$5),0,'Post-holder data'!$DE$5)","v":0},{"$f":"IF(Z99>0,+((V99-Y99)/'Post-holder data'!$DE$5),0)","v":0},0,0]
[null,"1.9 Size of school budget ",null,null,null,null,null,null,null,null,null,null,null,null,null,null,null,null,null,null,null,null,null,null,null,{"$f":"IF(ISBLANK('Post-holder data'!$DE$5),0,'Post-holder data'!$DE$5)","v":0},{"$f":"IF(Z100>0,+((V100-Y100)/'Post-holder data'!$DE$5),0)","v":0},0,0]
[null,null,null,null,null,null,null,null,null,null,null,null,null,null,null,null,null,null,null,null,null,null,null,null,null,{"$f":"IF(ISBLANK('Post-holder data'!$DE$5),0,'Post-holder data'!$DE$5)","v":0},{"$f":"IF(Z101>0,+((V101-Y101)/'Post-holder data'!$DE$5),0)","v":0},0,0]
[" ",null,null,null,null,null,null,null,null,null,null,null,null,null,null,null,null,null,null,null,null,null,null,null,null,{"$f":"IF(ISBLANK('Post-holder data'!$DE$5),0,'Post-holder data'!$DE$5)","v":0},{"$f":"IF(Z102>0,+((V102-Y102)/'Post-holder data'!$DE$5),0)","v":0},0,0]
[null,null,"Total budget","£",null," '000",null,null,null,null,null,null,null,null,null,null,null,null,null,null,null,null,null,null,null,{"$f":"IF(ISBLANK('Post-holder data'!$DE$5),0,'Post-holder data'!$DE$5)","v":0},{"$f":"IF(Z103>0,+((V103-Y103)/'Post-holder data'!$DE$5),0)","v":0},0,0]
[null,null,null,null,null,null,null,null,null,null,null,null,null,null,null,null,null,null,null,null,null,null,null,null,null,{"$f":"IF(ISBLANK('Post-holder data'!$DE$5),0,'Post-holder data'!$DE$5)","v":0},{"$f":"IF(Z104>0,+((V104-Y104)/'Post-holder data'!$DE$5),0)","v":0},0,0]
[null,null,"Devolved amount (Excluding amounts relating to property management and permanent staff costs)",null,null,null,null,null,null,null,null,null,null,null,null,null,null,null,null,null,null,null,null,null,null,{"$f":"IF(ISBLANK('Post-holder data'!$DE$5),0,'Post-holder data'!$DE$5)","v":0},{"$f":"IF(Z105>0,+((V105-Y105)/'Post-holder data'!$DE$5),0)","v":0},0,0]
[null,null,null,null,null,null,null,null,null,null,null,null,null,null,null,null,null,null,null,null,null,null,null,null,null,{"$f":"IF(ISBLANK('Post-holder data'!$DE$5),0,'Post-holder data'!$DE$5)","v":0},{"$f":"IF(Z106>0,+((V106-Y106)/'Post-holder data'!$DE$5),0)","v":0},0,0]
[null,null,"None",null,null,null,null,null,null,null,null,null,null,null,null,null,null,null,null,null,0,0,{"$f":"+Y107+AA107","v":0},0,0,{"$f":"IF(ISBLANK('Post-holder data'!$DE$5),0,'Post-holder data'!$DE$5)","v":0},{"$f":"IF(Z107>0,+((V107-Y107)/'Post-holder data'!$DE$5),0)","v":0},0,0]
[null,null,null,null,null,null,null,null,null,null,null,null,null,null,null,null,null,null,null,null,null,null,null,null,null,{"$f":"IF(ISBLANK('Post-holder data'!$DE$5),0,'Post-holder data'!$DE$5)","v":0},{"$f":"IF(Z108>0,+((V108-Y108)/'Post-holder data'!$DE$5),0)","v":0},0,0]
[null,null,"Up to £10,000",null,null,null,null,null,null,null,null,null,null,null,null,null,null,null,null,null,8,0,{"$f":"+Y109+AA109","v":0},0,0,{"$f":"IF(ISBLANK('Post-holder data'!$DE$5),0,'Post-holder data'!$DE$5)","v":0},{"$f":"IF(Z109>0,+((V109-Y109)/'Post-holder data'!$DE$5),0)","v":0},0,0]
[null,null,null,null,null,null,null,null,null,null,null,null,null,null,null,null,null,null,null,null,null,null,null,null,null,{"$f":"IF(ISBLANK('Post-holder data'!$DE$5),0,'Post-holder data'!$DE$5)","v":0},{"$f":"IF(Z110>0,+((V110-Y110)/'Post-holder data'!$DE$5),0)","v":0},0,0]
[null,null,"£10,001 to £50,000",null,null,null,null,null,null,null,null,null,null,null,null,null,null,null,null,null,16,0,{"$f":"+Y111+AA111","v":0},0,0,{"$f":"IF(ISBLANK('Post-holder data'!$DE$5),0,'Post-holder data'!$DE$5)","v":0},{"$f":"IF(Z111>0,+((V111-Y111)/'Post-holder data'!$DE$5),0)","v":0},0,0]
[null,null,null,null,null,null,null,null,null,null,null,null,null,null,null,null,null,null,null,null,null,null,null,null,null,{"$f":"IF(ISBLANK('Post-holder data'!$DE$5),0,'Post-holder data'!$DE$5)","v":0},{"$f":"IF(Z112>0,+((V112-Y112)/'Post-holder data'!$DE$5),0)","v":0},0,0]
[null,null,"£50,001 to £100,000",null,null,null,null,null,null,null,null,null,null,null,null,null,null,null,null,null,24,0,{"$f":"+Y113+AA113","v":0},0,0,{"$f":"IF(ISBLANK('Post-holder data'!$DE$5),0,'Post-holder data'!$DE$5)","v":0},{"$f":"IF(Z113>0,+((V113-Y113)/'Post-holder data'!$DE$5),0)","v":0},0,0]
[null,null,null,null,null,null,null,null,null,null,null,null,null,null,null,null,null,null,null,null,null,null,null,null,null,{"$f":"IF(ISBLANK('Post-holder data'!$DE$5),0,'Post-holder data'!$DE$5)","v":0},{"$f":"IF(Z114>0,+((V114-Y114)/'Post-holder data'!$DE$5),0)","v":0},0,0]
[null,null,"£100,001 to £250,000",null,null,null,null,null,null,null,null,null,null,null,null,null,null,null,null,null,32,0,{"$f":"+Y115+AA115","v":0},0,0,{"$f":"IF(ISBLANK('Post-holder data'!$DE$5),0,'Post-holder data'!$DE$5)","v":0},{"$f":"IF(Z115>0,+((V115-Y115)/'Post-holder data'!$DE$5),0)","v":0},0,0]
[null,null,null,null,null,null,null,null,null,null,null,null,null,null,null,null,null,null,null,null,null,null,null,null,null,{"$f":"IF(ISBLANK('Post-holder data'!$DE$5),0,'Post-holder data'!$DE$5)","v":0},{"$f":"IF(Z116>0,+((V116-Y116)/'Post-holder data'!$DE$5),0)","v":0},0,0]
[null,null,"Over £250,000",null,null,null,null,null,null,null,null,null,null,null,null,null,null,null,null,null,40,0,{"$f":"+Y117+AA117","v":0},0,0,{"$f":"IF(ISBLANK('Post-holder data'!$DE$5),0,'Post-holder data'!$DE$5)","v":0},{"$f":"IF(Z117>0,+((V117-Y117)/'Post-holder data'!$DE$5),0)","v":0},0,0]
[null,null,null,null,null,null,null,null,null,null,null,null,null,null,null,null,null,null,null,null,null,null,null,null,null,{"$f":"IF(ISBLANK('Post-holder data'!$DE$5),0,'Post-holder data'!$DE$5)","v":0},{"$f":"IF(Z118>0,+((V118-Y118)/'Post-holder data'!$DE$5),0)","v":0},0,0]
[null,"1.10 Physical nature of school",null,null,null,null,null,null,null,null,null,null,null,null,null,null,null,null,null,null,null,null,null,null,null,{"$f":"IF(ISBLANK('Post-holder data'!$DE$5),0,'Post-holder data'!$DE$5)","v":0},{"$f":"IF(Z119>0,+((V119-Y119)/'Post-holder data'!$DE$5),0)","v":0},0,0]
[null,null,null,null,null,null,null,null,null,null,null,null,null,null,null,null,null,null,null,null,null,"Deputes","SMT members",null,"SMT members",{"$f":"IF(ISBLANK('Post-holder data'!$DE$5),0,'Post-holder data'!$DE$5)","v":0}]
[null,null,"Multi-site (or more than one) school",null,null,null,null,null,null,null,null,null,null,null,null,null,null,null,null,null,1.1000000000000001,1.1000000000000001,{"$f":"+Y121+AA121","v":1.1000000000000001},1,1.1000000000000001,{"$f":"IF(ISBLANK('Post-holder data'!$DE$5),0,'Post-holder data'!$DE$5)","v":0},{"$f":"IF(Z121>0,+((V121-Y121)/'Post-holder data'!$DE$5),0)","v":0},0,0]
[null,null,null,null,null,null,null,null,null,null,null,null,null,null,null,null,null,null,null,null,null,null,null,null,null,{"$f":"IF(ISBLANK('Post-holder data'!$DE$5),0,'Post-holder data'!$DE$5)","v":0},{"$f":"IF(Z122>0,+((V122-Y122)/'Post-holder data'!$DE$5),0)","v":0},0,0]
[null,null,"Number of children with transport in to school(s)",null,null,null,null,null,null,null,null,null,null,null,null,null,null,null,null,null,null,null,null,null,null,{"$f":"IF(ISBLANK('Post-holder data'!$DE$5),0,'Post-holder data'!$DE$5)","v":0},{"$f":"IF(Z123>0,+((V123-Y123)/'Post-holder data'!$DE$5),0)","v":0},0,0]
[null,null,null,null,null,null,null,null,null,null,null,null,null,null,null,null,null,null,null,null,null,"Deputes","SMT members","PTs","SMT members",{"$f":"IF(ISBLANK('Post-holder data'!$DE$5),0,'Post-holder data'!$DE$5)","v":0}]
[null,null,null,"0 to 50",null,null,null,null,null,null,null,null,null,null,null,null,null,null,null,null,2,1,{"$f":"+Y125+AA125","v":1},0,1,{"$f":"IF(ISBLANK('Post-holder data'!$DE$5),0,'Post-holder data'!$DE$5)","v":0},{"$f":"IF(Z125>0,+((V125-Y125)/'Post-holder data'!$DE$5),0)","v":0},0,0]
[null,null,null,null,null,null,null,null,null,null,null,null,null,null,null,null,null,null,null,null,null,null,null,null,null,{"$f":"IF(ISBLANK('Post-holder data'!$DE$5),0,'Post-holder data'!$DE$5)","v":0},{"$f":"IF(Z126>0,+((V126-Y126)/'Post-holder data'!$DE$5),0)","v":0},0,0]
[null,null,null,"51 to 100",null,null,null,null,null,null,null,null,null,null,null,null,null,null,null,null,4,2,{"$f":"+Y127+AA127","v":2},0,2,{"$f":"IF(ISBLANK('Post-holder data'!$DE$5),0,'Post-holder data'!$DE$5)","v":0},{"$f":"IF(Z127>0,+((V127-Y127)/'Post-holder data'!$DE$5),0)","v":0},0,0]
[null,null,null,null,null,null,null,null,null,null,null,null,null,null,null,null,null,null,null,null,null,null,null,null,null,{"$f":"IF(ISBLANK('Post-holder data'!$DE$5),0,'Post-holder data'!$DE$5)","v":0},{"$f":"IF(Z128>0,+((V128-Y128)/'Post-holder data'!$DE$5),0)","v":0},0,0]
[null,null,null,"101 to 200",null,null,null,null,null,null,null,null,null,null,null,null,null,null,null,null,6,3,{"$f":"+Y129+AA129","v":3},0,3,{"$f":"IF(ISBLANK('Post-holder data'!$DE$5),0,'Post-holder data'!$DE$5)","v":0},{"$f":"IF(Z129>0,+((V129-Y129)/'Post-holder data'!$DE$5),0)","v":0},0,0]
[null,null,null,null,null,null,null,null,null,null,null,null,null,null,null,null,null,null,null,null,null,null,null,null,null,{"$f":"IF(ISBLANK('Post-holder data'!$DE$5),0,'Post-holder data'!$DE$5)","v":0},{"$f":"IF(Z130>0,+((V130-Y130)/'Post-holder data'!$DE$5),0)","v":0},0,0]
[null,null,null,"201 to 300",null,null,null,null,null,null,null,null,null,null,null,null,null,null,null,null,8,4,{"$f":"+Y131+AA131","v":4},0,4,{"$f":"IF(ISBLANK('Post-holder data'!$DE$5),0,'Post-holder data'!$DE$5)","v":0},{"$f":"IF(Z131>0,+((V131-Y131)/'Post-holder data'!$DE$5),0)","v":0},0,0]
[null,null,null,null,null,null,null,null,null,null,null,null,null,null,null,null,null,null,null,null,null,null,null,null,null,{"$f":"IF(ISBLANK('Post-holder data'!$DE$5),0,'Post-holder data'!$DE$5)","v":0},{"$f":"IF(Z132>0,+((V132-Y132)/'Post-holder data'!$DE$5),0)","v":0},0,0]
[null,null,null,"301 to 400",null,null,null,null,null,null,null,null,null,null,null,null,null,null,null,null,10,5,{"$f":"+Y133+AA133","v":5},0,5,{"$f":"IF(ISBLANK('Post-holder data'!$DE$5),0,'Post-holder data'!$DE$5)","v":0},{"$f":"IF(Z133>0,+((V133-Y133)/'Post-holder data'!$DE$5),0)","v":0},0,0]
[null,null,null,null,null,null,null,null,null,null,null,null,null,null,null,null,null,null,null,null,null,null,null,null,null,{"$f":"IF(ISBLANK('Post-holder data'!$DE$5),0,'Post-holder data'!$DE$5)","v":0},{"$f":"IF(Z134>0,+((V134-Y134)/'Post-holder data'!$DE$5),0)","v":0},0,0]
[null,null,null,"Over 400",null,null,null,null,null,null,null,null,null,null,null,null,null,null,null,null,12,6,{"$f":"+Y135+AA135","v":6},0,6,{"$f":"IF(ISBLANK('Post-holder data'!$DE$5),0,'Post-holder data'!$DE$5)","v":0},{"$f":"IF(Z135>0,+((V135-Y135)/'Post-holder data'!$DE$5),0)","v":0},0,0]
[null,null,null,null,null,null,null,null,null,null,null,null,null,null,null,null,null,null,null,null,null,null,null,null,null,{"$f":"IF(ISBLANK('Post-holder data'!$DE$5),0,'Post-holder data'!$DE$5)","v":0},{"$f":"IF(Z136>0,+((V136-Y136)/'Post-holder data'!$DE$5),0)","v":0},0,0]
[null,"1.11 Name of post",null,null,null,null,null,null,null,null,null,null,null,null,null,null,null,null,null,null,null,null,null,null,null,{"$f":"IF(ISBLANK('Post-holder data'!$DE$5),0,'Post-holder data'!$DE$5)","v":0},{"$f":"IF(Z137>0,+((V137-Y137)/'Post-holder data'!$DE$5),0)","v":0},0,0]
[null,null,null,null,null,null,null,null,null,null,null,null,null,null,null,null,null,null,null,null,null,null,null,null,null,{"$f":"IF(ISBLANK('Post-holder data'!$DE$5),0,'Post-holder data'!$DE$5)","v":0},{"$f":"IF(Z138>0,+((V138-Y138)/'Post-holder data'!$DE$5),0)","v":0},0,0]
[null,"1.12 Name of post holder",null,null,null,null,null,null,null,null,null,null,null,null,null,null,null,null,null,null,null,null,null,null,null,{"$f":"IF(ISBLANK('Post-holder data'!$DE$5),0,'Post-holder data'!$DE$5)","v":0},{"$f":"IF(Z139>0,+((V139-Y139)/'Post-holder data'!$DE$5),0)","v":0},0,0]
[null,null,null,null,null,null,null,null,null,null,null,null,null,null,null,null,null,null,null,null,null,null,null,null,null,{"$f":"IF(ISBLANK('Post-holder data'!$DE$5),0,'Post-holder data'!$DE$5)","v":0},{"$f":"IF(Z140>0,+((V140-Y140)/'Post-holder data'!$DE$5),0)","v":0},0,0]
[null,null,"Salutation",null,null,null,null,null,null,null,null,null,null,null,null,null,null,null,null,null,null,null,null,null,null,{"$f":"IF(ISBLANK('Post-holder data'!$DE$5),0,'Post-holder data'!$DE$5)","v":0},{"$f":"IF(Z141>0,+((V141-Y141)/'Post-holder data'!$DE$5),0)","v":0},0,0]
[null,null,null,null,null,null,null,null,null,null,null,null,null,null,null,null,null,null,null,null,null,null,null,null,null,{"$f":"IF(ISBLANK('Post-holder data'!$DE$5),0,'Post-holder data'!$DE$5)","v":0},{"$f":"IF(Z142>0,+((V142-Y142)/'Post-holder data'!$DE$5),0)","v":0},0,0]
[null,null,"Forename",null,null,null,null,null,null,null,null,null,null,null,null,null,null,null,null,null,null,null,null,null,null,{"$f":"IF(ISBLANK('Post-holder data'!$DE$5),0,'Post-holder data'!$DE$5)","v":0},{"$f":"IF(Z143>0,+((V143-Y143)/'Post-holder data'!$DE$5),0)","v":0},0,0]
[null,null,null,null,null,null,null,null,null,null,null,null,null,null,null,null,null,null,null,null,null,null,null,null,null,{"$f":"IF(ISBLANK('Post-holder data'!$DE$5),0,'Post-holder data'!$DE$5)","v":0},{"$f":"IF(Z144>0,+((V144-Y144)/'Post-holder data'!$DE$5),0)","v":0},0,0]
[null,null,"Surname",null,null,null,null,null,null,null,null,null,null,null,null,null,null,null,null,null,null,null,null,null,null,{"$f":"IF(ISBLANK('Post-holder data'!$DE$5),0,'Post-holder data'!$DE$5)","v":0},{"$f":"IF(Z145>0,+((V145-Y145)/'Post-holder data'!$DE$5),0)","v":0},{"$f":"+W145-Y145","v":0},{"$f":"+V145-W145","v":0}]
[null,null,null,null,null,null,null,null,null,null,null,null,null,null,null,null,null,null,null,null,null,null,null,null,null,{"$f":"IF(ISBLANK('Post-holder data'!$DE$5),0,'Post-holder data'!$DE$5)","v":0},{"$f":"IF(Z146>0,+((V146-Y146)/'Post-holder data'!$DE$5),0)","v":0},0,0]
[null,"1.13 Staff / payroll reference number ",null,null,null,null,null,null,null,null,null,null,null,null,null,null,null,null,null,null,null,null,null,null,null,{"$f":"IF(ISBLANK('Post-holder data'!$DE$5),0,'Post-holder data'!$DE$5)","v":0},{"$f":"IF(Z147>0,+((V147-Y147)/'Post-holder data'!$DE$5),0)","v":0},0,0]
[null,null,null,null,null,null,null,null,null,null,null,null,null,null,null,null,null,null,null,null,null,null,null,null,null,{"$f":"IF(ISBLANK('Post-holder data'!$DE$5),0,'Post-holder data'!$DE$5)","v":0},{"$f":"IF(Z148>0,+((V148-Y148)/'Post-holder data'!$DE$5),0)","v":0},0,0]
[null,"1.14 Gender",null,null,null,null,null,null,null,null,null,null,null,null,null,null,null,null,null,null,null,null,null,null,null,{"$f":"IF(ISBLANK('Post-holder data'!$DE$5),0,'Post-holder data'!$DE$5)","v":0},{"$f":"IF(Z149>0,+((V149-Y149)/'Post-holder data'!$DE$5),0)","v":0},0,0]
[null,null,"Male ",null,null,null,null,null,null,null,null,null,null,null,null,null,null,null,null,null,null,null,null,null,null,{"$f":"IF(ISBLANK('Post-holder data'!$DE$5),0,'Post-holder data'!$DE$5)","v":0},{"$f":"IF(Z150>0,+((V150-Y150)/'Post-holder data'!$DE$5),0)","v":0},0,0]
[null,null,null,null,null,null,null,null,null,null,null,null,null,null,null,null,null,null,null,null,null,null,null,null,null,{"$f":"IF(ISBLANK('Post-holder data'!$DE$5),0,'Post-holder data'!$DE$5)","v":0},{"$f":"IF(Z151>0,+((V151-Y151)/'Post-holder data'!$DE$5),0)","v":0},0,0]
[null,null,"Female",null,null,null,null,null,null,null,null,null,null,null,null,null,null,null,null,null,null,null,null,null,null,{"$f":"IF(ISBLANK('Post-holder data'!$DE$5),0,'Post-holder data'!$DE$5)","v":0},{"$f":"IF(Z152>0,+((V152-Y152)/'Post-holder data'!$DE$5),0)","v":0},0,0]
[null,null,null,null,null,null,null,null,null,null,null,null,null,null,null,null,null,null,null,null,null,null,null,null,null,{"$f":"IF(ISBLANK('Post-holder data'!$DE$5),0,'Post-holder data'!$DE$5)","v":0},{"$f":"IF(Z153>0,+((V153-Y153)/'Post-holder data'!$DE$5),0)","v":0},0,0]
[null,null,null,null,null,null,null,null,null,null,null,null,null,null,null,null,null,null,null,null,null,null,null,null,null,{"$f":"IF(ISBLANK('Post-holder data'!$DE$5),0,'Post-holder data'!$DE$5)","v":0},{"$f":"IF(Z154>0,+((V154-Y154)/'Post-holder data'!$DE$5),0)","v":0},0,0]
["THE JOB HOLDER QUESTIONNAIRE",null,null,null,null,null,null,null,null,null,null,null,null,null,null,null,null,null,null,null,null,null,null,null,null,{"$f":"IF(ISBLANK('Post-holder data'!$DE$5),0,'Post-holder data'!$DE$5)","v":0},{"$f":"IF(Z155>0,+((V155-Y155)/'Post-holder data'!$DE$5),0)","v":0},0,0]
[null,null,null,null,null,null,null,null,null,null,null,null,null,null,null,null,null,null,null,null,null,null,null,null,null,{"$f":"IF(ISBLANK('Post-holder data'!$DE$5),0,'Post-holder data'!$DE$5)","v":0},{"$f":"IF(Z156>0,+((V156-Y156)/'Post-holder data'!$DE$5),0)","v":0},0,0]
[null,null,null,null,null,null,null,null,null,null,null,null,null,null,null,null,null,null,null,null,null,null,null,null,null,{"$f":"IF(ISBLANK('Post-holder data'!$DE$5),0,'Post-holder data'!$DE$5)","v":0},{"$f":"IF(Z157>0,+((V157-Y157)/'Post-holder data'!$DE$5),0)","v":0},0,0]
[null,"2. RESPONSIBILITY FOR THE LEADERSHIP, GOOD MANAGEMENT ",null,null,null,null,null,null,null,null,null,null,null,null,null,null,null,null,null,null,null,null,null,null,null,{"$f":"IF(ISBLANK('Post-holder data'!$DE$5),0,'Post-holder data'!$DE$5)","v":0},{"$f":"IF(Z158>0,+((V158-Y158)/'Post-holder data'!$DE$5),0)","v":0},0,0]
[null,"AND STRATEGIC DIRECTION OF COLLEAGUES",null,null,null,null,null,null,null,null,null,null,null,null,null,null,null,null,null,null,null,null,null,null,null,{"$f":"IF(ISBLANK('Post-holder data'!$DE$5),0,'Post-holder data'!$DE$5)","v":0},{"$f":"IF(Z159>0,+((V159-Y159)/'Post-holder data'!$DE$5),0)","v":0},0,0]
[null,null,null,null,null,null,null,null,null,null,null,null,null,null,null,null,null,null,null,null,null,null,null,null,null,{"$f":"IF(ISBLANK('Post-holder data'!$DE$5),0,'Post-holder data'!$DE$5)","v":0},{"$f":"IF(Z160>0,+((V160-Y160)/'Post-holder data'!$DE$5),0)","v":0},0,0]
[null,null,null,null,null,null,null,null,null,null,null,null,null,null,null,null,null,null,null,null,null,0.69,{"$f":"+Y161+AA161","v":0.79},1,0.79,{"$f":"IF(ISBLANK('Post-holder data'!$DE$5),0,'Post-holder data'!$DE$5)","v":0},{"$f":"IF(Z161>0,+((V161-Y161)/'Post-holder data'!$DE$5),0)","v":0},0,-0.10000000000000009]
[null,"2.1 Line management of teaching staff",null,null,null,null,null,null,null,null,null,null,null,null,null,null,null,null,null,null,null,null,null,null,null,{"$f":"IF(ISBLANK('Post-holder data'!$DE$5),0,'Post-holder data'!$DE$5)","v":0},{"$f":"IF(Z162>0,+((V162-Y162)/'Post-holder data'!$DE$5),0)","v":0},0,0]
[null,null,null,null,null,null,null,null,null,null,null,null,null,null,null,null,null,null,null,2,null,null,null,null,null,{"$f":"IF(ISBLANK('Post-holder data'!$DE$5),0,'Post-holder data'!$DE$5)","v":0},{"$f":"IF(Z163>0,+((V163-Y163)/'Post-holder data'!$DE$5),0)","v":0},0,0]
[null,null,"None",null,null,null,null,null,null,null,null,null,null,null,null,null,null,null,null,0,"N/A",0,{"$f":"+Y164+AA164","v":0},0,0,{"$f":"IF(ISBLANK('Post-holder data'!$DE$5),0,'Post-holder data'!$DE$5)","v":0},{"$f":"IF(Z164>0,+((V164-Y164)/'Post-holder data'!$DE$5),0)","v":0},0,0]
[null,null,null,null,null,null,null,null,null,null,null,null,null,null,null,null,null,null,null,null,null,null,null,null,null,{"$f":"IF(ISBLANK('Post-holder data'!$DE$5),0,'Post-holder data'!$DE$5)","v":0},{"$f":"IF(Z165>0,+((V165-Y165)/'Post-holder data'!$DE$5),0)","v":0},0,0]
[null,null,1,null,null,null,null,null,null,null,null,null,null,null,null,null,null,null,null,1,"N/A",5,{"$f":"+Y166+AA166","v":5},5,5,{"$f":"IF(ISBLANK('Post-holder data'!$DE$5),0,'Post-holder data'!$DE$5)","v":0},{"$f":"IF(Z166>0,+((V166-Y166)/'Post-holder data'!$DE$5),0)","v":0},0,0]
[null,null,null,null,null,null,null,null,null,null,null,null,null,null,null,null,null,null,null,null,null,null,null,null,null,{"$f":"IF(ISBLANK('Post-holder data'!$DE$5),0,'Post-holder data'!$DE$5)","v":0},{"$f":"IF(Z167>0,+((V167-Y167)/'Post-holder data'!$DE$5),0)","v":0},0,0]
[null,null,"2 to 5",null,null,null,null,null,null,null,null,null,null,null,null,null,null,null,null,2.5,"N/A",10,{"$f":"+Y168+AA168","v":10},10,10,{"$f":"IF(ISBLANK('Post-holder data'!$DE$5),0,'Post-holder data'!$DE$5)","v":0},{"$f":"IF(Z168>0,+((V168-Y168)/'Post-holder data'!$DE$5),0)","v":0},0,0]
[null,null,null,null,null,null,null,null,null,null,null,null,null,null,null,null,null,null,null,null,null,null,null,null,null,{"$f":"IF(ISBLANK('Post-holder data'!$DE$5),0,'Post-holder data'!$DE$5)","v":0},{"$f":"IF(Z169>0,+((V169-Y169)/'Post-holder data'!$DE$5),0)","v":0},0,0]
[null,null,"6 to 10",null,null,null,null,null,null,null,null,null,null,null,null,null,null,null,null,4.5,"N/A",20,{"$f":"+Y170+AA170","v":20},20,20,{"$f":"IF(ISBLANK('Post-holder data'!$DE$5),0,'Post-holder data'!$DE$5)","v":0},{"$f":"IF(Z170>0,+((V170-Y170)/'Post-holder data'!$DE$5),0)","v":0},0,0]
[null,null,null,null,null,null,null,null,null,null,null,null,null,null,null,null,null,null,null,null,null,null,null,null,null,{"$f":"IF(ISBLANK('Post-holder data'!$DE$5),0,'Post-holder data'!$DE$5)","v":0},{"$f":"IF(Z171>0,+((V171-Y171)/'Post-holder data'!$DE$5),0)","v":0},0,0]
[null,null,"11 to 25",null,null,null,null,null,null,null,null,null,null,null,null,null,null,null,null,8,"N/A",30,{"$f":"+Y172+AA172","v":30},30,30,{"$f":"IF(ISBLANK('Post-holder data'!$DE$5),0,'Post-holder data'!$DE$5)","v":0},{"$f":"IF(Z172>0,+((V172-Y172)/'Post-holder data'!$DE$5),0)","v":0},0,0]
[null,null,null,null,null,null,null,null,null,null,null,null,null,null,null,null,null,null,null,null,null,null,null,null,null,{"$f":"IF(ISBLANK('Post-holder data'!$DE$5),0,'Post-holder data'!$DE$5)","v":0},{"$f":"IF(Z173>0,+((V173-Y173)/'Post-holder data'!$DE$5),0)","v":0},0,0]
[null,null,"26 to 50",null,null,null,null,null,null,null,null,null,null,null,null,null,null,null,null,15,"N/A",40,{"$f":"+Y174+AA174","v":40},40,40,{"$f":"IF(ISBLANK('Post-holder data'!$DE$5),0,'Post-holder data'!$DE$5)","v":0},{"$f":"IF(Z174>0,+((V174-Y174)/'Post-holder data'!$DE$5),0)","v":0},0,0]
[null,null,null,null,null,null,null,null,null,null,null,null,null,null,null,null,null,null,null,null,null,null,null,null,null,{"$f":"IF(ISBLANK('Post-holder data'!$DE$5),0,'Post-holder data'!$DE$5)","v":0},{"$f":"IF(Z175>0,+((V175-Y175)/'Post-holder data'!$DE$5),0)","v":0},0,0]
[null,null,"Over 50",null,null,null,null,null,null,null,null,null,null,null,null,null,null,null,null,25,"N/A",50,{"$f":"+Y176+AA176","v":50},50,50,{"$f":"IF(ISBLANK('Post-holder data'!$DE$5),0,'Post-holder data'!$DE$5)","v":0},{"$f":"IF(Z176>0,+((V176-Y176)/'Post-holder data'!$DE$5),0)","v":0},0,0]
[null,null,null,null,null,null,null,null,null,null,null,null,null,null,null,null,null,null,null,null,null,null,null,null,null,{"$f":"IF(ISBLANK('Post-holder data'!$DE$5),0,'Post-holder data'!$DE$5)","v":0},{"$f":"IF(Z177>0,+((V177-Y177)/'Post-holder data'!$DE$5),0)","v":0},0,0]
[null,"2.2 Line management of other staff",null,null,null,null,null,null,null,null,null,null,null,null,null,null,null,null,null,null,null,0.69,{"$f":"+Y178+AA178","v":0.79},1,0.79,{"$f":"IF(ISBLANK('Post-holder data'!$DE$5),0,'Post-holder data'!$DE$5)","v":0},{"$f":"IF(Z178>0,+((V178-Y178)/'Post-holder data'!$DE$5),0)","v":0},0,-0.10000000000000009]
[null,null,null,null,null,null,null,null,null,null,null,null,null,null,null,null,null,null,null,null,null,null,null,null,null,{"$f":"IF(ISBLANK('Post-holder data'!$DE$5),0,'Post-holder data'!$DE$5)","v":0},{"$f":"IF(Z179>0,+((V179-Y179)/'Post-holder data'!$DE$5),0)","v":0},0,0]
[null,null,"None",null,null,null,null,null,null,null,null,null,null,null,null,null,null,null,null,0,"N/A",0,{"$f":"+Y180+AA180","v":0},0,0,{"$f":"IF(ISBLANK('Post-holder data'!$DE$5),0,'Post-holder data'!$DE$5)","v":0},{"$f":"IF(Z180>0,+((V180-Y180)/'Post-holder data'!$DE$5),0)","v":0},0,0]
[null,null,null,null,null,null,null,null,null,null,null,null,null,null,null,null,null,null,null,null,null,null,null,null,null,{"$f":"IF(ISBLANK('Post-holder data'!$DE$5),0,'Post-holder data'!$DE$5)","v":0},{"$f":"IF(Z181>0,+((V181-Y181)/'Post-holder data'!$DE$5),0)","v":0},0,0]
[null,null,1,null,null,null,null,null,null,null,null,null,null,null,null,null,null,null,null,1.125,"N/A",3,{"$f":"+Y182+AA182","v":3},3,3,{"$f":"IF(ISBLANK('Post-holder data'!$DE$5),0,'Post-holder data'!$DE$5)","v":0},{"$f":"IF(Z182>0,+((V182-Y182)/'Post-holder data'!$DE$5),0)","v":0},0,0]
[null,null,null,null,null,null,null,null,null,null,null,null,null,null,null,null,null,null,null,null,null,null,null,null,null,{"$f":"IF(ISBLANK('Post-holder data'!$DE$5),0,'Post-holder data'!$DE$5)","v":0},{"$f":"IF(Z183>0,+((V183-Y183)/'Post-holder data'!$DE$5),0)","v":0},0,0]
[null,null,"2 to 10",null,null,null,null,null,null,null,null,null,null,null,null,null,null,null,null,3.375,"N/A",6,{"$f":"+Y184+AA184","v":6},6,6,{"$f":"IF(ISBLANK('Post-holder data'!$DE$5),0,'Post-holder data'!$DE$5)","v":0},{"$f":"IF(Z184>0,+((V184-Y184)/'Post-holder data'!$DE$5),0)","v":0},0,0]
[null,null,null,null,null,null,null,null,null,null,null,null,null,null,null,null,null,null,null,null,null,null,null,null,null,{"$f":"IF(ISBLANK('Post-holder data'!$DE$5),0,'Post-holder data'!$DE$5)","v":0},{"$f":"IF(Z185>0,+((V185-Y185)/'Post-holder data'!$DE$5),0)","v":0},0,0]
[null,null,"11 to 25",null,null,null,null,null,null,null,null,null,null,null,null,null,null,null,null,6,"N/A",10,{"$f":"+Y186+AA186","v":10},10,10,{"$f":"IF(ISBLANK('Post-holder data'!$DE$5),0,'Post-holder data'!$DE$5)","v":0},{"$f":"IF(Z186>0,+((V186-Y186)/'Post-holder data'!$DE$5),0)","v":0},0,0]
[null,null,null,null,null,null,null,null,null,null,null,null,null,null,null,null,null,null,null,null,null,null,null,null,null,{"$f":"IF(ISBLANK('Post-holder data'!$DE$5),0,'Post-holder data'!$DE$5)","v":0},{"$f":"IF(Z187>0,+((V187-Y187)/'Post-holder data'!$DE$5),0)","v":0},0,0]
[null,null,"Over 25",null,null,null,null,null,null,null,null,null,null,null,null,null,null,null,null,11.25,"N/A",20,{"$f":"+Y188+AA188","v":20},20,20,{"$f":"IF(ISBLANK('Post-holder data'!$DE$5),0,'Post-holder data'!$DE$5)","v":0},{"$f":"IF(Z188>0,+((V188-Y188)/'Post-holder data'!$DE$5),0)","v":0},0,0]
[null,null,null,null,null,null,null,null,null,null,null,null,null,null,null,null,null,null,null,null,null,null,null,null,null,{"$f":"IF(ISBLANK('Post-holder data'!$DE$5),0,'Post-holder data'!$DE$5)","v":0},{"$f":"IF(Z189>0,+((V189-Y189)/'Post-holder data'!$DE$5),0)","v":0},0,0]
[null,"2.3 To manage resources including budgets",null,null,null,null,null,null,null,null,null,null,null,null,null,null,null,null,null,null,null,null,null,null,null,{"$f":"IF(ISBLANK('Post-holder data'!$DE$5),0,'Post-holder data'!$DE$5)","v":0},{"$f":"IF(Z190>0,+((V190-Y190)/'Post-holder data'!$DE$5),0)","v":0},0,0]
[null,null,null,null,null,null,null,null,null,null,null,null,null,null,null,null,null,null,null,null,null,null,null,null,null,{"$f":"IF(ISBLANK('Post-holder data'!$DE$5),0,'Post-holder data'!$DE$5)","v":0},{"$f":"IF(Z191>0,+((V191-Y191)/'Post-holder data'!$DE$5),0)","v":0},0,0]
[null,null,"Size of budget managed",null,null,null,null,null,null,null,null,null,null,null,null,null,null,null,null,null,null,null,null,null,null,{"$f":"IF(ISBLANK('Post-holder data'!$DE$5),0,'Post-holder data'!$DE$5)","v":0},{"$f":"IF(Z192>0,+((V192-Y192)/'Post-holder data'!$DE$5),0)","v":0},0,0]
[null,null,null,null,null,null,null,null,null,null,null,null,null,null,null,null,null,null,null,null,null,null,null,null,null,{"$f":"IF(ISBLANK('Post-holder data'!$DE$5),0,'Post-holder data'!$DE$5)","v":0},{"$f":"IF(Z193>0,+((V193-Y193)/'Post-holder data'!$DE$5),0)","v":0},0,0]
[null,null,"None",null,null,null,null,null,null,null,null,null,null,null,null,null,null,null,null,null,"N/A",0,{"$f":"+Y194+AA194","v":0},0,0,{"$f":"IF(ISBLANK('Post-holder data'!$DE$5),0,'Post-holder data'!$DE$5)","v":0},{"$f":"IF(Z194>0,+((V194-Y194)/'Post-holder data'!$DE$5),0)","v":0},0,0]
[null,null,null,null,null,null,null,null,null,null,null,null,null,null,null,null,null,null,null,null,null,null,null,null,null,{"$f":"IF(ISBLANK('Post-holder data'!$DE$5),0,'Post-holder data'!$DE$5)","v":0},{"$f":"IF(Z195>0,+((V195-Y195)/'Post-holder data'!$DE$5),0)","v":0},0,0]
[null,null,"Up to £1,000",null,null,null,null,null,null,null,null,null,null,null,null,null,null,null,null,null,"N/A",2,{"$f":"+Y196+AA196","v":2},2,2,{"$f":"IF(ISBLANK('Post-holder data'!$DE$5),0,'Post-holder data'!$DE$5)","v":0},{"$f":"IF(Z196>0,+((V196-Y196)/'Post-holder data'!$DE$5),0)","v":0},0,0]
[null,null,null,null,null,null,null,null,null,null,null,null,null,null,null,null,null,null,null,null,null,null,null,null,null,{"$f":"IF(ISBLANK('Post-holder data'!$DE$5),0,'Post-holder data'!$DE$5)","v":0},{"$f":"IF(Z197>0,+((V197-Y197)/'Post-holder data'!$DE$5),0)","v":0},0,0]
[null,null,"£1,001 to £5,000",null,null,null,null,null,null,null,null,null,null,null,null,null,null,null,null,null,"N/A",4,{"$f":"+Y198+AA198","v":4},4,4,{"$f":"IF(ISBLANK('Post-holder data'!$DE$5),0,'Post-holder data'!$DE$5)","v":0},{"$f":"IF(Z198>0,+((V198-Y198)/'Post-holder data'!$DE$5),0)","v":0},0,0]
[null,null,null,null,null,null,null,null,null,null,null,null,null,null,null,null,null,null,null,null,null,null,null,null,null,{"$f":"IF(ISBLANK('Post-holder data'!$DE$5),0,'Post-holder data'!$DE$5)","v":0},{"$f":"IF(Z199>0,+((V199-Y199)/'Post-holder data'!$DE$5),0)","v":0},0,0]
[null,null,"£5,001 to £10,000",null,null,null,null,null,null,null,null,null,null,null,null,null,null,null,null,null,"N/A",6,{"$f":"+Y200+AA200","v":6},6,6,{"$f":"IF(ISBLANK('Post-holder data'!$DE$5),0,'Post-holder data'!$DE$5)","v":0},{"$f":"IF(Z200>0,+((V200-Y200)/'Post-holder data'!$DE$5),0)","v":0},0,0]
[null,null,null,null,null,null,null,null,null,null,null,null,null,null,null,null,null,null,null,null,null,null,null,null,null,{"$f":"IF(ISBLANK('Post-holder data'!$DE$5),0,'Post-holder data'!$DE$5)","v":0},{"$f":"IF(Z201>0,+((V201-Y201)/'Post-holder data'!$DE$5),0)","v":0},0,0]
[null,null,"£10,001 to £25,000",null,null,null,null,null,null,null,null,null,null,null,null,null,null,null,null,null,"N/A",10,{"$f":"+Y202+AA202","v":10},10,10,{"$f":"IF(ISBLANK('Post-holder data'!$DE$5),0,'Post-holder data'!$DE$5)","v":0},{"$f":"IF(Z202>0,+((V202-Y202)/'Post-holder data'!$DE$5),0)","v":0},0,0]
[null,null,null,null,null,null,null,null,null,null,null,null,null,null,null,null,null,null,null,null,null,null,null,null,null,{"$f":"IF(ISBLANK('Post-holder data'!$DE$5),0,'Post-holder data'!$DE$5)","v":0},{"$f":"IF(Z203>0,+((V203-Y203)/'Post-holder data'!$DE$5),0)","v":0},0,0]
[null,null,"Over £25,000",null,null,null,null,null,null,null,null,null,null,null,null,null,null,null,null,null,"N/A",14,{"$f":"+Y204+AA204","v":14},14,14,{"$f":"IF(ISBLANK('Post-holder data'!$DE$5),0,'Post-holder data'!$DE$5)","v":0},{"$f":"IF(Z204>0,+((V204-Y204)/'Post-holder data'!$DE$5),0)","v":0},0,0]
[null,null,null,null,null,null,null,null,null,null,null,null,null,null,null,null,null,null,null,null,null,null,null,null,null,{"$f":"IF(ISBLANK('Post-holder data'!$DE$5),0,'Post-holder data'!$DE$5)","v":0},{"$f":"IF(Z205>0,+((V205-Y205)/'Post-holder data'!$DE$5),0)","v":0},0,0]
[null,null,null,null,null,null,null,null,null,null,null,null,null,null,null,null,null,null,null,null,null,null,null,null,null,{"$f":"IF(ISBLANK('Post-holder data'!$DE$5),0,'Post-holder data'!$DE$5)","v":0},{"$f":"IF(Z206>0,+((V206-Y206)/'Post-holder data'!$DE$5),0)","v":0},0,0]
[null,"2.4 To manage health and safety",null,null,null,null,null,null,null,null,null,null,null,null,null,null,null,null,null,null,null,null,null,null,null,{"$f":"IF(ISBLANK('Post-holder data'!$DE$5),0,'Post-holder data'!$DE$5)","v":0},{"$f":"IF(Z207>0,+((V207-Y207)/'Post-holder data'!$DE$5),0)","v":0},0,0]
[null,null,null,null,null,null,null,null,null,null,null,null,null,null,null,null,null,null,null,null,0.25,0.25,{"$f":"+Y208+AA208","v":0.25},0.25,0.25,{"$f":"IF(ISBLANK('Post-holder data'!$DE$5),0,'Post-holder data'!$DE$5)","v":0},{"$f":"IF(Z208>0,+((V208-Y208)/'Post-holder data'!$DE$5),0)","v":0},0,0]
[null,null,"High risk subject(s)",null,null,null,null,null,null,null,null,null,null,null,null,null,null,null,null,null,1.25,0.25,{"$f":"+Y209+AA209","v":0.25},0.25,0.25,{"$f":"IF(ISBLANK('Post-holder data'!$DE$5),0,'Post-holder data'!$DE$5)","v":0},{"$f":"IF(Z209>0,+((V209-Y209)/'Post-holder data'!$DE$5),0)","v":0},{"$f":"+W209-Y209","v":0},{"$f":"+V209-W209","v":0}]
[null,null,null,null,null,null,null,null,null,null,null,null,null,null,null,null,null,null,null,null,null,null,null,null,null,{"$f":"IF(ISBLANK('Post-holder data'!$DE$5),0,'Post-holder data'!$DE$5)","v":0},{"$f":"IF(Z210>0,+((V210-Y210)/'Post-holder data'!$DE$5),0)","v":0},0,0]
[null,null,"Other subgect(s) ",null,null,null,null,null,null,null,null,null,null,null,null,null,null,null,null,null,1,0,{"$f":"+Y211+AA211","v":0},0,0,{"$f":"IF(ISBLANK('Post-holder data'!$DE$5),0,'Post-holder data'!$DE$5)","v":0},{"$f":"IF(Z211>0,+((V211-Y211)/'Post-holder data'!$DE$5),0)","v":0},0,0]
[null,null,null,null,null,null,null,null,null,null,null,null,null,null,null,null,null,null,null,null,null,null,null,null,null,{"$f":"IF(ISBLANK('Post-holder data'!$DE$5),0,'Post-holder data'!$DE$5)","v":0},{"$f":"IF(Z212>0,+((V212-Y212)/'Post-holder data'!$DE$5),0)","v":0},0,0]
[null,null,"Year groups and specialist sections",null,null,null,null,null,null,null,null,null,null,null,null,null,null,null,null,null,1,0.25,{"$f":"+Y213+AA213","v":0.25},0.25,0.25,{"$f":"IF(ISBLANK('Post-holder data'!$DE$5),0,'Post-holder data'!$DE$5)","v":0},{"$f":"IF(Z213>0,+((V213-Y213)/'Post-holder data'!$DE$5),0)","v":0},0,0]
[null,null,null,null,null,null,null,null,null,null,null,null,null,null,null,null,null,null,null,null,null,null,null,null,null,{"$f":"IF(ISBLANK('Post-holder data'!$DE$5),0,'Post-holder data'!$DE$5)","v":0},{"$f":"IF(Z214>0,+((V214-Y214)/'Post-holder data'!$DE$5),0)","v":0},0,0]
[null,null,"Whole Scool",null,null,null,null,null,null,null,null,null,null,null,null,null,null,null,null,null,1,0.5,{"$f":"+Y215+AA215","v":0.5},0.5,0.5,{"$f":"IF(ISBLANK('Post-holder data'!$DE$5),0,'Post-holder data'!$DE$5)","v":0},{"$f":"IF(Z215>0,+((V215-Y215)/'Post-holder data'!$DE$5),0)","v":0},0,0]
[null,null,null,null,null,null,null,null,null,null,null,null,null,null,null,null,null,null,null,null,null,null,null,null,null,{"$f":"IF(ISBLANK('Post-holder data'!$DE$5),0,'Post-holder data'!$DE$5)","v":0},{"$f":"IF(Z216>0,+((V216-Y216)/'Post-holder data'!$DE$5),0)","v":0},0,0]
[null,null,null,null,null,null,null,null,null,null,null,null,null,null,null,null,null,null,null,null,null,null,null,null,null,{"$f":"IF(ISBLANK('Post-holder data'!$DE$5),0,'Post-holder data'!$DE$5)","v":0},{"$f":"IF(Z217>0,+((V217-Y217)/'Post-holder data'!$DE$5),0)","v":0},0,0]
[null,null,null,null,null,null,null,null,null,null,null,null,null,null,null,null,null,null,null,null,null,null,null,null,null,{"$f":"IF(ISBLANK('Post-holder data'!$DE$5),0,'Post-holder data'!$DE$5)","v":0},{"$f":"IF(Z218>0,+((V218-Y218)/'Post-holder data'!$DE$5),0)","v":0},0,0]
[null,"3. RESPONSIBILITY FOR DEVELOPMENT AND QUALITY ASSURANCE",null,null,null,null,null,null,null,null,null,null,null,null,null,null,null,null,null,null,null,null,null,null,null,{"$f":"IF(ISBLANK('Post-holder data'!$DE$5),0,'Post-holder data'!$DE$5)","v":0},{"$f":"IF(Z219>0,+((V219-Y219)/'Post-holder data'!$DE$5),0)","v":0},0,0]
[null,null,null,null,null,null,null,null,null,null,null,null,null,null,null,null,null,null,null,null,null,null,null,null,null,{"$f":"IF(ISBLANK('Post-holder data'!$DE$5),0,'Post-holder data'!$DE$5)","v":0},{"$f":"IF(Z220>0,+((V220-Y220)/'Post-holder data'!$DE$5),0)","v":0},0,0]
[null,null,null,null,null,null,null,null,null,null,null,null,null,null,null,null,null,null,null,null,null,null,null,null,null,{"$f":"IF(ISBLANK('Post-holder data'!$DE$5),0,'Post-holder data'!$DE$5)","v":0},{"$f":"IF(Z221>0,+((V221-Y221)/'Post-holder data'!$DE$5),0)","v":0},0,0]
[null,"3.1 To review the CPD needs, career development and performance of colleagues",null,null,null,null,null,null,null,null,null,null,null,null,null,null,null,null,null,null,null,null,null,null,null,{"$f":"IF(ISBLANK('Post-holder data'!$DE$5),0,'Post-holder data'!$DE$5)","v":0},{"$f":"IF(Z222>0,+((V222-Y222)/'Post-holder data'!$DE$5),0)","v":0},0,0]
[null,null,null,null,null,null,null,null,null,null,null,null,null,null,null,null,null,null,null,null,0.33333333333333331,0.5,{"$f":"+Y223+AA223","v":0.5},0.5,0.5,{"$f":"IF(ISBLANK('Post-holder data'!$DE$5),0,'Post-holder data'!$DE$5)","v":0},{"$f":"IF(Z223>0,+((V223-Y223)/'Post-holder data'!$DE$5),0)","v":0},0,0]
[null,null,null,null,null,null,null,null,null,null,null,null,null,null,null,null,null,null,null,null,null,null,null,null,null,{"$f":"IF(ISBLANK('Post-holder data'!$DE$5),0,'Post-holder data'!$DE$5)","v":0},{"$f":"IF(Z224>0,+((V224-Y224)/'Post-holder data'!$DE$5),0)","v":0},0,0]
[null,"3.2 To produce and implement a development plan",null,null,null,null,null,null,null,null,null,null,null,null,null,null,null,null,null,null,null,null,null,null,null,{"$f":"IF(ISBLANK('Post-holder data'!$DE$5),0,'Post-holder data'!$DE$5)","v":0},{"$f":"IF(Z225>0,+((V225-Y225)/'Post-holder data'!$DE$5),0)","v":0},0,0]
[null,null,null,null,null,null,null,null,null,null,null,null,null,null,null,null,null,null,null,null,null,null,null,null,null,{"$f":"IF(ISBLANK('Post-holder data'!$DE$5),0,'Post-holder data'!$DE$5)","v":0},{"$f":"IF(Z226>0,+((V226-Y226)/'Post-holder data'!$DE$5),0)","v":0},0,0]
[null,null,null,null,null,null,null,null,null,null,null,null,null,null,null,null,null,null,null,null,1,1,{"$f":"+Y227+AA227","v":1},1,1,{"$f":"IF(ISBLANK('Post-holder data'!$DE$5),0,'Post-holder data'!$DE$5)","v":0},{"$f":"IF(Z227>0,+((V227-Y227)/'Post-holder data'!$DE$5),0)","v":0},0,0]
[null,null,null,null,null,null,null,null,null,null,null,null,null,null,null,null,null,null,null,null,null,null,null,null,null,{"$f":"IF(ISBLANK('Post-holder data'!$DE$5),0,'Post-holder data'!$DE$5)","v":0},{"$f":"IF(Z228>0,+((V228-Y228)/'Post-holder data'!$DE$5),0)","v":0},0,0]
[null,null,"With impact on",null,null,null,null,null,null,null,null,null,null,null,null,null,null,null,null,null,null,null,null,null,null,{"$f":"IF(ISBLANK('Post-holder data'!$DE$5),0,'Post-holder data'!$DE$5)","v":0},{"$f":"IF(Z229>0,+((V229-Y229)/'Post-holder data'!$DE$5),0)","v":0},0,0]
[null,null,null,null,null,null,null,null,null,null,null,null,null,null,null,null,null,null,null,null,null,null,null,null,null,{"$f":"IF(ISBLANK('Post-holder data'!$DE$5),0,'Post-holder data'!$DE$5)","v":0},{"$f":"IF(Z230>0,+((V230-Y230)/'Post-holder data'!$DE$5),0)","v":0},0,0]
[null,null,"Departments / subjects",null,null,null,null,null,null,null,null,null,null,null,null,null,null,null,null,null,1,0.25,{"$f":"+Y231+AA231","v":0.25},0.25,0.25,{"$f":"IF(ISBLANK('Post-holder data'!$DE$5),0,'Post-holder data'!$DE$5)","v":0},{"$f":"IF(Z231>0,+((V231-Y231)/'Post-holder data'!$DE$5),0)","v":0},0,0]
[null,null,null,null,null,null,null,null,null,null,null,null,null,null,null,null,null,null,null,null,null,null,null,null,null,{"$f":"IF(ISBLANK('Post-holder data'!$DE$5),0,'Post-holder data'!$DE$5)","v":0},{"$f":"IF(Z232>0,+((V232-Y232)/'Post-holder data'!$DE$5),0)","v":0},0,0]
[null,null,"Guidance & pastoral care",null,null,null,null,null,null,null,null,null,null,null,null,null,null,null,null,null,1,0.25,{"$f":"+Y233+AA233","v":0.25},0.25,0.25,{"$f":"IF(ISBLANK('Post-holder data'!$DE$5),0,'Post-holder data'!$DE$5)","v":0},{"$f":"IF(Z233>0,+((V233-Y233)/'Post-holder data'!$DE$5),0)","v":0},0,0]
[null,null,null,null,null,null,null,null,null,null,null,null,null,null,null,null,null,null,null,null,null,null,null,null,null,{"$f":"IF(ISBLANK('Post-holder data'!$DE$5),0,'Post-holder data'!$DE$5)","v":0},{"$f":"IF(Z234>0,+((V234-Y234)/'Post-holder data'!$DE$5),0)","v":0},0,0]
[null,null,"Year groups and specialist sections",null,null,null,null,null,null,null,null,null,null,null,null,null,null,null,null,null,1,0.5,{"$f":"+Y235+AA235","v":0.5},0.5,0.5,{"$f":"IF(ISBLANK('Post-holder data'!$DE$5),0,'Post-holder data'!$DE$5)","v":0},{"$f":"IF(Z235>0,+((V235-Y235)/'Post-holder data'!$DE$5),0)","v":0},0,0]
[null,null,null,null,null,null,null,null,null,null,null,null,null,null,null,null,null,null,null,null,null,null,null,null,null,{"$f":"IF(ISBLANK('Post-holder data'!$DE$5),0,'Post-holder data'!$DE$5)","v":0},{"$f":"IF(Z236>0,+((V236-Y236)/'Post-holder data'!$DE$5),0)","v":0},0,0]
[null,null,"Whole School",null,null,null,null,null,null,null,null,null,null,null,null,null,null,null,null,null,1,1,{"$f":"+Y237+AA237","v":1},1,1,{"$f":"IF(ISBLANK('Post-holder data'!$DE$5),0,'Post-holder data'!$DE$5)","v":0},{"$f":"IF(Z237>0,+((V237-Y237)/'Post-holder data'!$DE$5),0)","v":0},0,0]
[null,null,null,null,null,null,null,null,null,null,null,null,null,null,null,null,null,null,null,null,null,null,null,null,null,{"$f":"IF(ISBLANK('Post-holder data'!$DE$5),0,'Post-holder data'!$DE$5)","v":0},{"$f":"IF(Z238>0,+((V238-Y238)/'Post-holder data'!$DE$5),0)","v":0},0,0]
[null,null,"Please provide details",null,null,null,null,null,null,null,null,null,null,null,null,null,null,null,null,null,null,null,null,null,null,{"$f":"IF(ISBLANK('Post-holder data'!$DE$5),0,'Post-holder data'!$DE$5)","v":0},{"$f":"IF(Z239>0,+((V239-Y239)/'Post-holder data'!$DE$5),0)","v":0},0,0]
[null,null,null,null,null,null,null,null,null,null,null,null,null,null,null,null,null,null,null,null,null,null,null,null,null,{"$f":"IF(ISBLANK('Post-holder data'!$DE$5),0,'Post-holder data'!$DE$5)","v":0},{"$f":"IF(Z240>0,+((V240-Y240)/'Post-holder data'!$DE$5),0)","v":0},0,0]
[null,null,null,null,null,null,null,null,null,null,null,null,null,null,null,null,null,null,null,null,null,null,null,null,null,{"$f":"IF(ISBLANK('Post-holder data'!$DE$5),0,'Post-holder data'!$DE$5)","v":0},{"$f":"IF(Z241>0,+((V241-Y241)/'Post-holder data'!$DE$5),0)","v":0},0,0]
[null,null,null,null,null,null,null,null,null,null,null,null,null,null,null,null,null,null,null,null,null,null,null,null,null,{"$f":"IF(ISBLANK('Post-holder data'!$DE$5),0,'Post-holder data'!$DE$5)","v":0},{"$f":"IF(Z242>0,+((V242-Y242)/'Post-holder data'!$DE$5),0)","v":0},0,0]
[null,null,null,null,null,null,null,null,null,null,null,null,null,null,null,null,null,null,null,null,null,null,null,null,null,{"$f":"IF(ISBLANK('Post-holder data'!$DE$5),0,'Post-holder data'!$DE$5)","v":0},{"$f":"IF(Z243>0,+((V243-Y243)/'Post-holder data'!$DE$5),0)","v":0},0,0]
[null,null,null,null,null,null,null,null,null,null,null,null,null,null,null,null,null,null,null,null,null,null,null,null,null,{"$f":"IF(ISBLANK('Post-holder data'!$DE$5),0,'Post-holder data'!$DE$5)","v":0},{"$f":"IF(Z244>0,+((V244-Y244)/'Post-holder data'!$DE$5),0)","v":0},0,0]
[null,null,null,null,null,null,null,null,null,null,null,null,null,null,null,null,null,null,null,null,null,null,null,null,null,{"$f":"IF(ISBLANK('Post-holder data'!$DE$5),0,'Post-holder data'!$DE$5)","v":0},{"$f":"IF(Z245>0,+((V245-Y245)/'Post-holder data'!$DE$5),0)","v":0},0,0]
[null,"3.3 To develop and monitor the curriculum",null,null,null,null,null,null,null,null,null,null,null,null,null,null,null,null,null,null,null,null,null,null,null,{"$f":"IF(ISBLANK('Post-holder data'!$DE$5),0,'Post-holder data'!$DE$5)","v":0},{"$f":"IF(Z246>0,+((V246-Y246)/'Post-holder data'!$DE$5),0)","v":0},0,0]
[null,null,null,null,null,null,null,null,null,null,null,null,null,null,null,null,null,null,null,null,null,null,null,null,null,{"$f":"IF(ISBLANK('Post-holder data'!$DE$5),0,'Post-holder data'!$DE$5)","v":0},{"$f":"IF(Z247>0,+((V247-Y247)/'Post-holder data'!$DE$5),0)","v":0},0,0]
[null,null,"Year groups",null,null,"Developing",null,null,null,"Monitoring",null,null,null,null,null,null,null,null,null,null,null,null,null,null,null,{"$f":"IF(ISBLANK('Post-holder data'!$DE$5),0,'Post-holder data'!$DE$5)","v":0},{"$f":"IF(Z248>0,+((V248-Y248)/'Post-holder data'!$DE$5),0)","v":0},0,0]
[null,null,null,null,null,null,"Number of subjects",null,"Number of national qualifications",null,null,"Number of classes",null,null,null,null,null,null,"For first subjects","Number of national qualifications","Number of classes",null,null,null,null,{"$f":"IF(ISBLANK('Post-holder data'!$DE$5),0,'Post-holder data'!$DE$5)","v":0},{"$f":"IF(Z249>0,+((V249-Y249)/'Post-holder data'!$DE$5),0)","v":0},0,0]
[null,null,null,null,null,null,null,null,null,null,null,null,null,null,null,null,null,null,null,null,null,null,null,null,null,{"$f":"IF(ISBLANK('Post-holder data'!$DE$5),0,'Post-holder data'!$DE$5)","v":0},{"$f":"IF(Z250>0,+((V250-Y250)/'Post-holder data'!$DE$5),0)","v":0},0,0]
[null,null,"Nursery",null,null,"Job sizing takes account of all areas of the primary school curriculum",null,null,null,null,null,null,null,null,null,null,null,null,5,null,0.25,null,null,null,null,{"$f":"IF(ISBLANK('Post-holder data'!$DE$5),0,'Post-holder data'!$DE$5)","v":0},{"$f":"IF(Z251>0,+((V251-Y251)/'Post-holder data'!$DE$5),0)","v":0},0,0]
[null,null,null,null,null,null,null,null,null,null,null,null,null,null,null,null,null,null,null,null,null,null,null,null,null,{"$f":"IF(ISBLANK('Post-holder data'!$DE$5),0,'Post-holder data'!$DE$5)","v":0},{"$f":"IF(Z252>0,+((V252-Y252)/'Post-holder data'!$DE$5),0)","v":0},0,0]
[null,null,"P1",null,null,null,null,null,null,null,null,null,null,null,null,null,null,null,null,null,0.75,null,null,null,null,{"$f":"IF(ISBLANK('Post-holder data'!$DE$5),0,'Post-holder data'!$DE$5)","v":0},{"$f":"IF(Z253>0,+((V253-Y253)/'Post-holder data'!$DE$5),0)","v":0},0,0]
[null,null,null,null,null,null,null,null,null,null,null,null,null,null,null,null,null,null,null,null,null,null,null,null,null,{"$f":"IF(ISBLANK('Post-holder data'!$DE$5),0,'Post-holder data'!$DE$5)","v":0},{"$f":"IF(Z254>0,+((V254-Y254)/'Post-holder data'!$DE$5),0)","v":0},0,0]
[null,null,"P2",null,null,null,null,null,null,null,null,null,null,null,null,null,null,null,null,null,0.75,null,null,null,null,{"$f":"IF(ISBLANK('Post-holder data'!$DE$5),0,'Post-holder data'!$DE$5)","v":0},{"$f":"IF(Z255>0,+((V255-Y255)/'Post-holder data'!$DE$5),0)","v":0},0,0]
[null,null,null,null,null,null,null,null,null,null,null,null,null,null,null,null,null,null,null,null,null,null,null,null,null,{"$f":"IF(ISBLANK('Post-holder data'!$DE$5),0,'Post-holder data'!$DE$5)","v":0},{"$f":"IF(Z256>0,+((V256-Y256)/'Post-holder data'!$DE$5),0)","v":0},0,0]
[null,null,"P3",null,null,null,null,null,null,null,null,null,null,null,null,null,null,null,null,null,0.75,null,null,null,null,{"$f":"IF(ISBLANK('Post-holder data'!$DE$5),0,'Post-holder data'!$DE$5)","v":0},{"$f":"IF(Z257>0,+((V257-Y257)/'Post-holder data'!$DE$5),0)","v":0},0,0]
[null,null,null,null,null,null,null,null,null,null,null,null,null,null,null,null,null,null,null,null,null,null,null,null,null,{"$f":"IF(ISBLANK('Post-holder data'!$DE$5),0,'Post-holder data'!$DE$5)","v":0},{"$f":"IF(Z258>0,+((V258-Y258)/'Post-holder data'!$DE$5),0)","v":0},0,0]
[null,null,"P4",null,null,null,null,null,null,null,null,null,null,null,null,null,null,null,null,null,0.75,null,null,null,null,{"$f":"IF(ISBLANK('Post-holder data'!$DE$5),0,'Post-holder data'!$DE$5)","v":0},{"$f":"IF(Z259>0,+((V259-Y259)/'Post-holder data'!$DE$5),0)","v":0},0,0]
[null,null,null,null,null,null,null,null,null,null,null,null,null,null,null,null,null,null,null,null,null,null,null,null,null,{"$f":"IF(ISBLANK('Post-holder data'!$DE$5),0,'Post-holder data'!$DE$5)","v":0},{"$f":"IF(Z260>0,+((V260-Y260)/'Post-holder data'!$DE$5),0)","v":0},0,0]
[null,null,"P5",null,null,null,null,null,null,null,null,null,null,null,null,null,null,null,null,null,0.75,null,null,null,null,{"$f":"IF(ISBLANK('Post-holder data'!$DE$5),0,'Post-holder data'!$DE$5)","v":0},{"$f":"IF(Z261>0,+((V261-Y261)/'Post-holder data'!$DE$5),0)","v":0},0,0]
[null,null,null,null,null,null,null,null,null,null,null,null,null,null,null,null,null,null,null,null,null,null,null,null,null,{"$f":"IF(ISBLANK('Post-holder data'!$DE$5),0,'Post-holder data'!$DE$5)","v":0},{"$f":"IF(Z262>0,+((V262-Y262)/'Post-holder data'!$DE$5),0)","v":0},0,0]
[null,null,"P6",null,null,null,null,null,null,null,null,null,null,null,null,null,null,null,null,null,0.75,null,null,null,null,{"$f":"IF(ISBLANK('Post-holder data'!$DE$5),0,'Post-holder data'!$DE$5)","v":0},{"$f":"IF(Z263>0,+((V263-Y263)/'Post-holder data'!$DE$5),0)","v":0},0,0]
[null,null,null,null,null,null,null,null,null,null,null,null,null,null,null,null,null,null,null,null,null,null,null,null,null,{"$f":"IF(ISBLANK('Post-holder data'!$DE$5),0,'Post-holder data'!$DE$5)","v":0},{"$f":"IF(Z264>0,+((V264-Y264)/'Post-holder data'!$DE$5),0)","v":0},0,0]
[null,null,"P7",null,null,null,null,null,null,null,null,null,null,null,null,null,null,null,null,null,0.75,null,null,null,null,{"$f":"IF(ISBLANK('Post-holder data'!$DE$5),0,'Post-holder data'!$DE$5)","v":0},{"$f":"IF(Z265>0,+((V265-Y265)/'Post-holder data'!$DE$5),0)","v":0},0,0]
[null,null,null,null,null,null,null,null,null,null,null,null,null,null,null,null,null,null,null,null,null,null,null,null,null,{"$f":"IF(ISBLANK('Post-holder data'!$DE$5),0,'Post-holder data'!$DE$5)","v":0},{"$f":"IF(Z266>0,+((V266-Y266)/'Post-holder data'!$DE$5),0)","v":0},0,0]
[null,null,"S1",null,null,null,null,null,null,null,null,null,null,null,null,null,null,null,0.5,null,0.75,null,null,null,null,{"$f":"IF(ISBLANK('Post-holder data'!$DE$5),0,'Post-holder data'!$DE$5)","v":0},{"$f":"IF(Z267>0,+((V267-Y267)/'Post-holder data'!$DE$5),0)","v":0},0,0]
[null,null,null,null,null,null,null,null,null,null,null,null,null,null,null,null,null,null,null,null,null,null,null,null,null,{"$f":"IF(ISBLANK('Post-holder data'!$DE$5),0,'Post-holder data'!$DE$5)","v":0},{"$f":"IF(Z268>0,+((V268-Y268)/'Post-holder data'!$DE$5),0)","v":0},0,0]
[null,null,"S2",null,null,null,null,null,null,null,null,null,null,null,null,null,null,null,{"$f":"+S267","v":0.5},null,0.75,null,null,null,null,{"$f":"IF(ISBLANK('Post-holder data'!$DE$5),0,'Post-holder data'!$DE$5)","v":0},{"$f":"IF(Z269>0,+((V269-Y269)/'Post-holder data'!$DE$5),0)","v":0},0,0]
[null,null,null,null,null,null,null,null,null,null,null,null,null,null,null,null,null,null,null,null,null,null,null,null,null,{"$f":"IF(ISBLANK('Post-holder data'!$DE$5),0,'Post-holder data'!$DE$5)","v":0},{"$f":"IF(Z270>0,+((V270-Y270)/'Post-holder data'!$DE$5),0)","v":0},0,0]
[null,null,"S3",null,null,null,null,null,null,null,null,null,null,null,null,null,null,null,{"$f":"+S269","v":0.5},0.25,0.75,null,null,null,null,{"$f":"IF(ISBLANK('Post-holder data'!$DE$5),0,'Post-holder data'!$DE$5)","v":0},{"$f":"IF(Z271>0,+((V271-Y271)/'Post-holder data'!$DE$5),0)","v":0},0,0]
[null,null,null,null,null,null,null,null,null,null,null,null,null,null,null,null,null,null,null,null,null,null,null,null,null,{"$f":"IF(ISBLANK('Post-holder data'!$DE$5),0,'Post-holder data'!$DE$5)","v":0},{"$f":"IF(Z272>0,+((V272-Y272)/'Post-holder data'!$DE$5),0)","v":0},0,0]
[null,null,"S4",null,null,null,null,null,null,null,null,null,null,null,null,null,null,null,{"$f":"+S271","v":0.5},{"$f":"+T271","v":0.25},0.75,null,null,null,null,{"$f":"IF(ISBLANK('Post-holder data'!$DE$5),0,'Post-holder data'!$DE$5)","v":0},{"$f":"IF(Z273>0,+((V273-Y273)/'Post-holder data'!$DE$5),0)","v":0},{"$f":"+W273-Y273","v":0},{"$f":"+V273-W273","v":0}]
[null,null,null,null,null,null,null,null,null,null,null,null,null,null,null,null,null,null,null,null,null,null,null,null,null,{"$f":"IF(ISBLANK('Post-holder data'!$DE$5),0,'Post-holder data'!$DE$5)","v":0},{"$f":"IF(Z274>0,+((V274-Y274)/'Post-holder data'!$DE$5),0)","v":0},0,0]
[null,null,"S5",null,null,null,null,null,null,null,null,null,null,null,null,null,null,null,{"$f":"+S273","v":0.5},{"$f":"+T273","v":0.25},0.75,null,null,null,null,{"$f":"IF(ISBLANK('Post-holder data'!$DE$5),0,'Post-holder data'!$DE$5)","v":0},{"$f":"IF(Z275>0,+((V275-Y275)/'Post-holder data'!$DE$5),0)","v":0},0,0]
[null,null,null,null,null,null,null,null,null,null,null,null,null,null,null,null,null,null,null,null,null,null,null,null,null,{"$f":"IF(ISBLANK('Post-holder data'!$DE$5),0,'Post-holder data'!$DE$5)","v":0},{"$f":"IF(Z276>0,+((V276-Y276)/'Post-holder data'!$DE$5),0)","v":0},0,0]
[null,null,"S6",null,null,null,null,null,null,null,null,null,null,null,null,null,null,null,{"$f":"+S275","v":0.5},{"$f":"+T275","v":0.25},0.75,null,null,null,null,{"$f":"IF(ISBLANK('Post-holder data'!$DE$5),0,'Post-holder data'!$DE$5)","v":0},{"$f":"IF(Z277>0,+((V277-Y277)/'Post-holder data'!$DE$5),0)","v":0},0,0]
[null,null,null,null,null,null,null,null,null,null,null,null,null,null,null,null,null,null,null,null,null,null,null,null,null,{"$f":"IF(ISBLANK('Post-holder data'!$DE$5),0,'Post-holder data'!$DE$5)","v":0},{"$f":"IF(Z278>0,+((V278-Y278)/'Post-holder data'!$DE$5),0)","v":0},0,0]
[null,null,null,null,null,null,null,null,null,null,null,null,null,null,null,null,null,null,null,null,null,null,null,null,null,{"$f":"IF(ISBLANK('Post-holder data'!$DE$5),0,'Post-holder data'!$DE$5)","v":0},{"$f":"IF(Z279>0,+((V279-Y279)/'Post-holder data'!$DE$5),0)","v":0},0,0]
[null,null,null,null,null,null,null,null,null,null,null,null,null,null,null,null,null,null,null,null,null,null,null,null,null,{"$f":"IF(ISBLANK('Post-holder data'!$DE$5),0,'Post-holder data'!$DE$5)","v":0},{"$f":"IF(Z280>0,+((V280-Y280)/'Post-holder data'!$DE$5),0)","v":0},0,0]
[null,"3.4 Other formal curricular / management activities",null,null,null,null,null,null,null,null,null,null,null,null,null,null,null,null,null,null,null,null,null,null,null,{"$f":"IF(ISBLANK('Post-holder data'!$DE$5),0,'Post-holder data'!$DE$5)","v":0},{"$f":"IF(Z281>0,+((V281-Y281)/'Post-holder data'!$DE$5),0)","v":0},0,0]
[null,null,null,null,null,null,null,null,null,null,null,null,null,null,null,null,null,null,null,null,null,null,null,null,null,{"$f":"IF(ISBLANK('Post-holder data'!$DE$5),0,'Post-holder data'!$DE$5)","v":0},{"$f":"IF(Z282>0,+((V282-Y282)/'Post-holder data'!$DE$5),0)","v":0},0,0]
[null,null,null,"Whole school timetabling (secondary schools only)",null,null,null,null,null,null,null,null,null,null,null,null,null,null,null,null,"N/A",0.25,{"$f":"+Y283+AA283","v":0.25},0.25,0.25,{"$f":"IF(ISBLANK('Post-holder data'!$DE$5),0,'Post-holder data'!$DE$5)","v":0},{"$f":"IF(Z283>0,+((V283-Y283)/'Post-holder data'!$DE$5),0)","v":0},0,0]
[null,null,null,null,null,null,null,null,null,null,null,null,null,null,null,null,null,null,null,null,null,null,null,null,null,{"$f":"IF(ISBLANK('Post-holder data'!$DE$5),0,'Post-holder data'!$DE$5)","v":0},{"$f":"IF(Z284>0,+((V284-Y284)/'Post-holder data'!$DE$5),0)","v":0},0,0]
[null,null,null,"ICT",null,null,null,null,null,null,null,null,null,null,null,null,null,null,null,null,"N/A",0.25,{"$f":"+Y285+AA285","v":0.25},0.25,0.25,{"$f":"IF(ISBLANK('Post-holder data'!$DE$5),0,'Post-holder data'!$DE$5)","v":0},{"$f":"IF(Z285>0,+((V285-Y285)/'Post-holder data'!$DE$5),0)","v":0},0,0]
[null,null,null,null,null,null,null,null,null,null,null,null,null,null,null,null,null,null,null,null,null,null,null,null,null,{"$f":"IF(ISBLANK('Post-holder data'!$DE$5),0,'Post-holder data'!$DE$5)","v":0},{"$f":"IF(Z286>0,+((V286-Y286)/'Post-holder data'!$DE$5),0)","v":0},0,0]
[null,null,null,"Early years / nursery classes (primary schools only)",null,null,null,null,null,null,null,null,null,null,null,null,null,null,null,null,"N/A",0.25,{"$f":"+Y287+AA287","v":0.25},0.25,0.25,{"$f":"IF(ISBLANK('Post-holder data'!$DE$5),0,'Post-holder data'!$DE$5)","v":0},{"$f":"IF(Z287>0,+((V287-Y287)/'Post-holder data'!$DE$5),0)","v":0},0,0]
[null,null,null,null,null,null,null,null,null,null,null,null,null,null,null,null,null,null,null,null,null,null,null,null,null,{"$f":"IF(ISBLANK('Post-holder data'!$DE$5),0,'Post-holder data'!$DE$5)","v":0},{"$f":"IF(Z288>0,+((V288-Y288)/'Post-holder data'!$DE$5),0)","v":0},0,0]
[null,null,null,"Learning and / or behavioural support",null,null,null,null,null,null,null,null,null,null,null,null,null,null,null,null,"N/A",2,{"$f":"+Y289+AA289","v":2},2,2,{"$f":"IF(ISBLANK('Post-holder data'!$DE$5),0,'Post-holder data'!$DE$5)","v":0},{"$f":"IF(Z289>0,+((V289-Y289)/'Post-holder data'!$DE$5),0)","v":0},0,0]
[null,null,null,null,null,null,null,null,null,null,null,null,null,null,null,null,null,null,null,null,null,null,null,null,null,{"$f":"IF(ISBLANK('Post-holder data'!$DE$5),0,'Post-holder data'!$DE$5)","v":0},{"$f":"IF(Z290>0,+((V290-Y290)/'Post-holder data'!$DE$5),0)","v":0},0,0]
[null,null,null,"A special needs unit / classes",null,null,null,null,null,null,null,null,null,null,null,null,null,null,null,null,"N/A",2,{"$f":"+Y291+AA291","v":2},2,2,{"$f":"IF(ISBLANK('Post-holder data'!$DE$5),0,'Post-holder data'!$DE$5)","v":0},{"$f":"IF(Z291>0,+((V291-Y291)/'Post-holder data'!$DE$5),0)","v":0},0,0]
[null,null,null,null,null,null,null,null,null,null,null,null,null,null,null,null,null,null,null,null,null,null,null,null,null,{"$f":"IF(ISBLANK('Post-holder data'!$DE$5),0,'Post-holder data'!$DE$5)","v":0},{"$f":"IF(Z292>0,+((V292-Y292)/'Post-holder data'!$DE$5),0)","v":0},0,0]
[null,null,null,"Other special sections such as English as a second language, asylum seekers ",null,null,null,null,null,null,null,null,null,null,null,null,null,null,null,null,null,null,null,null,null,{"$f":"IF(ISBLANK('Post-holder data'!$DE$5),0,'Post-holder data'!$DE$5)","v":0},{"$f":"IF(Z293>0,+((V293-Y293)/'Post-holder data'!$DE$5),0)","v":0},0,0]
[null,null,null,null,null,null,null,null,null,null,null,null,null,null,null,null,null,null,null,null,"N/A",1,{"$f":"+Y294+AA294","v":1},1,1,{"$f":"IF(ISBLANK('Post-holder data'!$DE$5),0,'Post-holder data'!$DE$5)","v":0},{"$f":"IF(Z294>0,+((V294-Y294)/'Post-holder data'!$DE$5),0)","v":0},0,0]
[null,null,null,null,null,null,null,null,null,null,null,null,null,null,null,null,null,null,null,null,null,null,null,null,null,{"$f":"IF(ISBLANK('Post-holder data'!$DE$5),0,'Post-holder data'!$DE$5)","v":0},{"$f":"IF(Z295>0,+((V295-Y295)/'Post-holder data'!$DE$5),0)","v":0},0,0]
[null,null,null,"Head of the primary section of a combined school",null,null,null,null,null,null,null,null,null,null,null,null,null,null,null,null,"N/A",1,{"$f":"+Y296+AA296","v":1},1,1,{"$f":"IF(ISBLANK('Post-holder data'!$DE$5),0,'Post-holder data'!$DE$5)","v":0},{"$f":"IF(Z296>0,+((V296-Y296)/'Post-holder data'!$DE$5),0)","v":0},0,0]
[null,null,null,null,null,null,null,null,null,null,null,null,null,null,null,null,null,null,null,null,null,null,null,null,null,{"$f":"IF(ISBLANK('Post-holder data'!$DE$5),0,'Post-holder data'!$DE$5)","v":0},{"$f":"IF(Z297>0,+((V297-Y297)/'Post-holder data'!$DE$5),0)","v":0},0,0]
[null,null,null,null,null,null,null,null,null,null,null,null,null,null,null,null,null,null,null,null,null,null,null,null,null,{"$f":"IF(ISBLANK('Post-holder data'!$DE$5),0,'Post-holder data'!$DE$5)","v":0},{"$f":"IF(Z298>0,+((V298-Y298)/'Post-holder data'!$DE$5),0)","v":0},0,0]
[null,null,null,null,null,null,null,null,null,null,null,null,null,null,null,null,null,null,null,null,null,null,null,null,null,{"$f":"IF(ISBLANK('Post-holder data'!$DE$5),0,'Post-holder data'!$DE$5)","v":0},{"$f":"IF(Z299>0,+((V299-Y299)/'Post-holder data'!$DE$5),0)","v":0},0,0]
[null,null,null,null,null,null,null,null,null,null,null,null,null,null,null,null,null,null,null,null,null,null,null,null,null,{"$f":"IF(ISBLANK('Post-holder data'!$DE$5),0,'Post-holder data'!$DE$5)","v":0},{"$f":"IF(Z300>0,+((V300-Y300)/'Post-holder data'!$DE$5),0)","v":0},0,0]
[null,null,null,null,null,null,null,null,null,null,null,null,null,null,null,null,null,null,null,null,null,null,null,null,null,{"$f":"IF(ISBLANK('Post-holder data'!$DE$5),0,'Post-holder data'!$DE$5)","v":0},{"$f":"IF(Z301>0,+((V301-Y301)/'Post-holder data'!$DE$5),0)","v":0},0,0]
[null,null,null,null,null,null,null,null,null,null,null,null,null,null,null,null,null,null,null,null,null,null,null,null,null,{"$f":"IF(ISBLANK('Post-holder data'!$DE$5),0,'Post-holder data'!$DE$5)","v":0},{"$f":"IF(Z302>0,+((V302-Y302)/'Post-holder data'!$DE$5),0)","v":0},0,0]
[null,"3.5 Formal teaching responsibilities",null,null,null,null,null,null,null,null,null,null,null,null,null,null,null,null,null,null,null,null,null,null,null,{"$f":"IF(ISBLANK('Post-holder data'!$DE$5),0,'Post-holder data'!$DE$5)","v":0},{"$f":"IF(Z303>0,+((V303-Y303)/'Post-holder data'!$DE$5),0)","v":0},0,0]
[null,null,null,null,null,null,null,null,null,null,null,null,null,null,null,null,null,null,null,null,null,null,null,null,null,{"$f":"IF(ISBLANK('Post-holder data'!$DE$5),0,'Post-holder data'!$DE$5)","v":0},{"$f":"IF(Z304>0,+((V304-Y304)/'Post-holder data'!$DE$5),0)","v":0},0,0]
[null,null,"Hours per week allocated to formal teaching time",null,null,null,null,null,null,null,null,null,null,null,null,null,null,null,null,null,1,1,{"$f":"+Y305+AA305","v":1},1,1,{"$f":"IF(ISBLANK('Post-holder data'!$DE$5),0,'Post-holder data'!$DE$5)","v":0},{"$f":"IF(Z305>0,+((V305-Y305)/'Post-holder data'!$DE$5),0)","v":0},0,0]
[null,null,null,null,null,null,null,null,null,null,null,null,null,null,null,null,null,null,null,null,null,null,null,null,null,{"$f":"IF(ISBLANK('Post-holder data'!$DE$5),0,'Post-holder data'!$DE$5)","v":0},{"$f":"IF(Z306>0,+((V306-Y306)/'Post-holder data'!$DE$5),0)","v":0},0,0]
[null,null,null,null,null,null,null,null,null,null,null,null,null,null,null,null,null,null,null,null,null,null,null,null,null,{"$f":"IF(ISBLANK('Post-holder data'!$DE$5),0,'Post-holder data'!$DE$5)","v":0},{"$f":"IF(Z307>0,+((V307-Y307)/'Post-holder data'!$DE$5),0)","v":0},0,0]
[null,null,null,null,null,null,null,null,null,null,null,null,null,null,null,null,null,null,null,null,null,null,null,null,null,{"$f":"IF(ISBLANK('Post-holder data'!$DE$5),0,'Post-holder data'!$DE$5)","v":0},{"$f":"IF(Z308>0,+((V308-Y308)/'Post-holder data'!$DE$5),0)","v":0},0,0]
[null,null,null,null,null,null,null,null,null,null,null,null,null,null,null,null,null,null,null,null,null,null,null,null,null,{"$f":"IF(ISBLANK('Post-holder data'!$DE$5),0,'Post-holder data'!$DE$5)","v":0},{"$f":"IF(Z309>0,+((V309-Y309)/'Post-holder data'!$DE$5),0)","v":0},0,0]
[null,"4. RESPONSIBILITY FOR WHOLE SCHOOL POLICY AND ",null,null,null,null,null,null,null,null,null,null,null,null,null,null,null,null,null,null,null,null,null,null,null,{"$f":"IF(ISBLANK('Post-holder data'!$DE$5),0,'Post-holder data'!$DE$5)","v":0},{"$f":"IF(Z310>0,+((V310-Y310)/'Post-holder data'!$DE$5),0)","v":0},0,0]
[null,"IMPLEMENTATION",null,null,null,null,null,null,null,null,null,null,null,null,null,null,null,null,null,null,null,null,null,null,null,{"$f":"IF(ISBLANK('Post-holder data'!$DE$5),0,'Post-holder data'!$DE$5)","v":0},{"$f":"IF(Z311>0,+((V311-Y311)/'Post-holder data'!$DE$5),0)","v":0},0,0]
[null,null,null,null,null,null,null,null,null,null,null,null,null,null,null,null,null,null,null,null,null,null,null,null,null,{"$f":"IF(ISBLANK('Post-holder data'!$DE$5),0,'Post-holder data'!$DE$5)","v":0},{"$f":"IF(Z312>0,+((V312-Y312)/'Post-holder data'!$DE$5),0)","v":0},0,0]
[null,null,null,null,null,null,null,null,null,null,null,null,null,null,null,null,null,null,null,null,null,null,null,null,null,{"$f":"IF(ISBLANK('Post-holder data'!$DE$5),0,'Post-holder data'!$DE$5)","v":0},{"$f":"IF(Z313>0,+((V313-Y313)/'Post-holder data'!$DE$5),0)","v":0},0,0]
[null,"4.1. To develop, manage and implement a policy on pupil behaviour management",null,null,null,null,null,null,null,null,null,null,null,null,null,null,null,null,null,null,null,null,null,null,null,{"$f":"IF(ISBLANK('Post-holder data'!$DE$5),0,'Post-holder data'!$DE$5)","v":0},{"$f":"IF(Z314>0,+((V314-Y314)/'Post-holder data'!$DE$5),0)","v":0},0,0]
[null,null,null,null,null,null,null,null,null,null,null,null,null,null,null,null,null,null,null,null,null,null,null,null,null,{"$f":"IF(ISBLANK('Post-holder data'!$DE$5),0,'Post-holder data'!$DE$5)","v":0},{"$f":"IF(Z315>0,+((V315-Y315)/'Post-holder data'!$DE$5),0)","v":0},0,0]
[null,null,"Formal whole-school policy development function ",null,null,null,null,null,null,null,null,null,null,null,null,null,null,null,null,null,1,1,{"$f":"+Y316+AA316","v":1},1,1,{"$f":"IF(ISBLANK('Post-holder data'!$DE$5),0,'Post-holder data'!$DE$5)","v":0},{"$f":"IF(Z316>0,+((V316-Y316)/'Post-holder data'!$DE$5),0)","v":0},0,0]
[null,null,null,null,null,null,null,null,null,null,null,null,null,null,null,null,null,null,null,null,null,null,null,null,null,{"$f":"IF(ISBLANK('Post-holder data'!$DE$5),0,'Post-holder data'!$DE$5)","v":0},{"$f":"IF(Z317>0,+((V317-Y317)/'Post-holder data'!$DE$5),0)","v":0},0,0]
[null,null,null,null,null,null,null,null,null,null,null,null,null,null,null,null,null,null,null,null,null,null,null,null,null,{"$f":"IF(ISBLANK('Post-holder data'!$DE$5),0,'Post-holder data'!$DE$5)","v":0},{"$f":"IF(Z318>0,+((V318-Y318)/'Post-holder data'!$DE$5),0)","v":0},0,0]
[null,null,null,null,null,null,null,null,null,null,null,null,null,null,null,null,null,null,null,null,null,null,null,null,null,{"$f":"IF(ISBLANK('Post-holder data'!$DE$5),0,'Post-holder data'!$DE$5)","v":0},{"$f":"IF(Z319>0,+((V319-Y319)/'Post-holder data'!$DE$5),0)","v":0},0,0]
[null,null,null,null,null,null,null,null,null,null,null,null,null,null,null,null,null,null,null,null,null,null,null,null,null,{"$f":"IF(ISBLANK('Post-holder data'!$DE$5),0,'Post-holder data'!$DE$5)","v":0},{"$f":"IF(Z320>0,+((V320-Y320)/'Post-holder data'!$DE$5),0)","v":0},0,0]
[null,null,"With impact on",null,null,null,null,null,null,null,null,null,null,null,null,null,null,null,null,null,null,null,null,null,null,{"$f":"IF(ISBLANK('Post-holder data'!$DE$5),0,'Post-holder data'!$DE$5)","v":0},{"$f":"IF(Z321>0,+((V321-Y321)/'Post-holder data'!$DE$5),0)","v":0},0,0]
[null,null,null,null,null,null,null,null,null,null,null,null,null,null,null,null,null,null,null,null,null,null,null,null,null,{"$f":"IF(ISBLANK('Post-holder data'!$DE$5),0,'Post-holder data'!$DE$5)","v":0},{"$f":"IF(Z322>0,+((V322-Y322)/'Post-holder data'!$DE$5),0)","v":0},0,0]
[null,null,"Year groups and / or specialist sections of the school",null,null,null,null,null,null,null,null,null,null,null,null,null,null,null,null,null,0.25,0.25,{"$f":"+Y323+AA323","v":0.25},0.25,0.25,{"$f":"IF(ISBLANK('Post-holder data'!$DE$5),0,'Post-holder data'!$DE$5)","v":0},{"$f":"IF(Z323>0,+((V323-Y323)/'Post-holder data'!$DE$5),0)","v":0},0,0]
[null,null,null,null,null,null,null,null,null,null,null,null,null,null,null,null,null,null,null,null,null,null,null,null,null,{"$f":"IF(ISBLANK('Post-holder data'!$DE$5),0,'Post-holder data'!$DE$5)","v":0},{"$f":"IF(Z324>0,+((V324-Y324)/'Post-holder data'!$DE$5),0)","v":0},0,0]
[null,null,"The whole school",null,null,null,null,null,null,null,null,null,null,null,null,null,null,null,null,null,0.5,0.5,{"$f":"+Y325+AA325","v":0.5},0.5,0.5,{"$f":"IF(ISBLANK('Post-holder data'!$DE$5),0,'Post-holder data'!$DE$5)","v":0},{"$f":"IF(Z325>0,+((V325-Y325)/'Post-holder data'!$DE$5),0)","v":0},0,0]
[null,null,null,null,null,null,null,null,null,null,null,null,null,null,null,null,null,null,null,null,null,null,null,null,null,{"$f":"IF(ISBLANK('Post-holder data'!$DE$5),0,'Post-holder data'!$DE$5)","v":0},{"$f":"IF(Z326>0,+((V326-Y326)/'Post-holder data'!$DE$5),0)","v":0},0,0]
[null,null,null,null,null,null,null,null,null,null,null,null,null,null,null,null,null,null,null,null,null,null,null,null,null,{"$f":"IF(ISBLANK('Post-holder data'!$DE$5),0,'Post-holder data'!$DE$5)","v":0},{"$f":"IF(Z327>0,+((V327-Y327)/'Post-holder data'!$DE$5),0)","v":0},0,0]
[null,null,"Please provide further details below",null,null,null,null,null,null,null,null,null,null,null,null,null,null,null,null,null,null,null,null,null,null,{"$f":"IF(ISBLANK('Post-holder data'!$DE$5),0,'Post-holder data'!$DE$5)","v":0},{"$f":"IF(Z328>0,+((V328-Y328)/'Post-holder data'!$DE$5),0)","v":0},0,0]
[null,null,null,null,null,null,null,null,null,null,null,null,null,null,null,null,null,null,null,null,null,null,null,null,null,{"$f":"IF(ISBLANK('Post-holder data'!$DE$5),0,'Post-holder data'!$DE$5)","v":0},{"$f":"IF(Z329>0,+((V329-Y329)/'Post-holder data'!$DE$5),0)","v":0},0,0]
[null,null,null,null,null,null,null,null,null,null,null,null,null,null,null,null,null,null,null,null,null,null,null,null,null,{"$f":"IF(ISBLANK('Post-holder data'!$DE$5),0,'Post-holder data'!$DE$5)","v":0},{"$f":"IF(Z330>0,+((V330-Y330)/'Post-holder data'!$DE$5),0)","v":0},0,0]
[null,null,null,null,null,null,null,null,null,null,null,null,null,null,null,null,null,null,null,null,null,null,null,null,null,{"$f":"IF(ISBLANK('Post-holder data'!$DE$5),0,'Post-holder data'!$DE$5)","v":0},{"$f":"IF(Z331>0,+((V331-Y331)/'Post-holder data'!$DE$5),0)","v":0},0,0]
[null,null,null,null,null,null,null,null,null,null,null,null,null,null,null,null,null,null,null,null,null,null,null,null,null,{"$f":"IF(ISBLANK('Post-holder data'!$DE$5),0,'Post-holder data'!$DE$5)","v":0},{"$f":"IF(Z332>0,+((V332-Y332)/'Post-holder data'!$DE$5),0)","v":0},0,0]
[null,null,null,null,null,null,null,null,null,null,null,null,null,null,null,null,null,null,null,null,null,null,null,null,null,{"$f":"IF(ISBLANK('Post-holder data'!$DE$5),0,'Post-holder data'!$DE$5)","v":0},{"$f":"IF(Z333>0,+((V333-Y333)/'Post-holder data'!$DE$5),0)","v":0},0,0]
[null,"4.2 To develop, manage and implement a policy on guidance, pastoral care and pupil welfare",null,null,null,null,null,null,null,null,null,null,null,null,null,null,null,null,null,null,null,null,null,null,null,{"$f":"IF(ISBLANK('Post-holder data'!$DE$5),0,'Post-holder data'!$DE$5)","v":0},{"$f":"IF(Z334>0,+((V334-Y334)/'Post-holder data'!$DE$5),0)","v":0},0,0]
[null,null,null,null,null,null,null,null,null,null,null,null,null,null,null,null,null,null,null,null,null,null,null,null,null,{"$f":"IF(ISBLANK('Post-holder data'!$DE$5),0,'Post-holder data'!$DE$5)","v":0},{"$f":"IF(Z335>0,+((V335-Y335)/'Post-holder data'!$DE$5),0)","v":0},0,0]
[null,null,null,null,null,null,null,null,null,null,null,null,null,null,null,null,null,null,null,null,null,null,null,null,null,{"$f":"IF(ISBLANK('Post-holder data'!$DE$5),0,'Post-holder data'!$DE$5)","v":0},{"$f":"IF(Z336>0,+((V336-Y336)/'Post-holder data'!$DE$5),0)","v":0},0,0]
[null,null,null,null,null,null,null,null,null,null,null,null,null,null,null,null,null,null,null,null,null,null,null,null,null,{"$f":"IF(ISBLANK('Post-holder data'!$DE$5),0,'Post-holder data'!$DE$5)","v":0},{"$f":"IF(Z337>0,+((V337-Y337)/'Post-holder data'!$DE$5),0)","v":0},{"$f":"+W337-Y337","v":0},{"$f":"+V337-W337","v":0}]
[null,null,"Formal whole-school policy development functions",null,null,null,null,null,null,null,null,null,null,null,null,null,null,null,null,null,1,1,{"$f":"+Y338+AA338","v":1},1,1,{"$f":"IF(ISBLANK('Post-holder data'!$DE$5),0,'Post-holder data'!$DE$5)","v":0},{"$f":"IF(Z338>0,+((V338-Y338)/'Post-holder data'!$DE$5),0)","v":0},0,0]
[null,null,null,null,null,null,null,null,null,null,null,null,null,null,null,null,null,null,null,null,null,null,null,null,null,{"$f":"IF(ISBLANK('Post-holder data'!$DE$5),0,'Post-holder data'!$DE$5)","v":0},{"$f":"IF(Z339>0,+((V339-Y339)/'Post-holder data'!$DE$5),0)","v":0},0,0]
[null,null,null,null,null,null,null,null,null,null,null,null,null,null,null,null,null,null,null,null,null,null,null,null,null,{"$f":"IF(ISBLANK('Post-holder data'!$DE$5),0,'Post-holder data'!$DE$5)","v":0},{"$f":"IF(Z340>0,+((V340-Y340)/'Post-holder data'!$DE$5),0)","v":0},0,0]
[null,null,null,null,null,null,null,null,null,null,null,null,null,null,null,null,null,null,null,null,null,null,null,null,null,{"$f":"IF(ISBLANK('Post-holder data'!$DE$5),0,'Post-holder data'!$DE$5)","v":0},{"$f":"IF(Z341>0,+((V341-Y341)/'Post-holder data'!$DE$5),0)","v":0},0,0]
[null,null,"With impact on",null,null,null,null,null,null,null,null,null,null,null,null,null,null,null,null,null,null,null,null,null,null,{"$f":"IF(ISBLANK('Post-holder data'!$DE$5),0,'Post-holder data'!$DE$5)","v":0},{"$f":"IF(Z342>0,+((V342-Y342)/'Post-holder data'!$DE$5),0)","v":0},0,0]
[null,null,null,null,null,null,null,null,null,null,null,null,null,null,null,null,null,null,null,null,null,null,null,null,null,{"$f":"IF(ISBLANK('Post-holder data'!$DE$5),0,'Post-holder data'!$DE$5)","v":0},{"$f":"IF(Z343>0,+((V343-Y343)/'Post-holder data'!$DE$5),0)","v":0},0,0]
[null,null,"Guidance and pastoral care",null,null,null,null,null,null,null,null,null,null,null,null,null,null,null,null,null,0.25,0.25,{"$f":"+Y344+AA344","v":0.25},0.25,0.25,{"$f":"IF(ISBLANK('Post-holder data'!$DE$5),0,'Post-holder data'!$DE$5)","v":0},{"$f":"IF(Z344>0,+((V344-Y344)/'Post-holder data'!$DE$5),0)","v":0},0,0]
[null,null,null,null,null,null,null,null,null,null,null,null,null,null,null,null,null,null,null,null,0.05,null,null,null,null,{"$f":"IF(ISBLANK('Post-holder data'!$DE$5),0,'Post-holder data'!$DE$5)","v":0},{"$f":"IF(Z345>0,+((V345-Y345)/'Post-holder data'!$DE$5),0)","v":0},0,0]
[null,null,"Year groups and / or specialist sections of the school",null,null,null,null,null,null,null,null,null,null,null,null,null,null,null,null,null,0.25,0.25,{"$f":"+Y346+AA346","v":0.25},0.25,0.25,{"$f":"IF(ISBLANK('Post-holder data'!$DE$5),0,'Post-holder data'!$DE$5)","v":0},{"$f":"IF(Z346>0,+((V346-Y346)/'Post-holder data'!$DE$5),0)","v":0},0,0]
[null,null,null,null,null,null,null,null,null,null,null,null,null,null,null,null,null,null,null,null,null,null,null,null,null,{"$f":"IF(ISBLANK('Post-holder data'!$DE$5),0,'Post-holder data'!$DE$5)","v":0},{"$f":"IF(Z347>0,+((V347-Y347)/'Post-holder data'!$DE$5),0)","v":0},0,0]
[null,null,"The whole school",null,null,null,null,null,null,null,null,null,null,null,null,null,null,null,null,null,0.5,0.5,{"$f":"+Y348+AA348","v":0.5},0.5,0.5,{"$f":"IF(ISBLANK('Post-holder data'!$DE$5),0,'Post-holder data'!$DE$5)","v":0},{"$f":"IF(Z348>0,+((V348-Y348)/'Post-holder data'!$DE$5),0)","v":0},0,0]
[null,null,null,null,null,null,null,null,null,null,null,null,null,null,null,null,null,null,null,null,null,null,null,null,null,{"$f":"IF(ISBLANK('Post-holder data'!$DE$5),0,'Post-holder data'!$DE$5)","v":0},{"$f":"IF(Z349>0,+((V349-Y349)/'Post-holder data'!$DE$5),0)","v":0},0,0]
[null,null,null,null,null,null,null,null,null,null,null,null,null,null,null,null,null,null,null,null,null,null,null,null,null,{"$f":"IF(ISBLANK('Post-holder data'!$DE$5),0,'Post-holder data'!$DE$5)","v":0},{"$f":"IF(Z350>0,+((V350-Y350)/'Post-holder data'!$DE$5),0)","v":0},0,0]
[null,null,"Please provide further details below",null,null,null,null,null,null,null,null,null,null,null,null,null,null,null,null,null,null,null,null,null,null,{"$f":"IF(ISBLANK('Post-holder data'!$DE$5),0,'Post-holder data'!$DE$5)","v":0},{"$f":"IF(Z351>0,+((V351-Y351)/'Post-holder data'!$DE$5),0)","v":0},0,0]
[null,null,null,null,null,null,null,null,null,null,null,null,null,null,null,null,null,null,null,null,null,null,null,null,null,{"$f":"IF(ISBLANK('Post-holder data'!$DE$5),0,'Post-holder data'!$DE$5)","v":0},{"$f":"IF(Z352>0,+((V352-Y352)/'Post-holder data'!$DE$5),0)","v":0},0,0]
[null,null,null,null,null,null,null,null,null,null,null,null,null,null,null,null,null,null,null,null,null,null,null,null,null,{"$f":"IF(ISBLANK('Post-holder data'!$DE$5),0,'Post-holder data'!$DE$5)","v":0},{"$f":"IF(Z353>0,+((V353-Y353)/'Post-holder data'!$DE$5),0)","v":0},0,0]
[null,null,null,null,null,null,null,null,null,null,null,null,null,null,null,null,null,null,null,null,null,null,null,null,null,{"$f":"IF(ISBLANK('Post-holder data'!$DE$5),0,'Post-holder data'!$DE$5)","v":0},{"$f":"IF(Z354>0,+((V354-Y354)/'Post-holder data'!$DE$5),0)","v":0},0,0]
[null,null,null,null,null,null,null,null,null,null,null,null,null,null,null,null,null,null,null,null,null,null,null,null,null,{"$f":"IF(ISBLANK('Post-holder data'!$DE$5),0,'Post-holder data'!$DE$5)","v":0},{"$f":"IF(Z355>0,+((V355-Y355)/'Post-holder data'!$DE$5),0)","v":0},0,0]
[null,null,null,null,null,null,null,null,null,null,null,null,null,null,null,null,null,null,null,null,null,null,null,null,null,{"$f":"IF(ISBLANK('Post-holder data'!$DE$5),0,'Post-holder data'!$DE$5)","v":0},{"$f":"IF(Z356>0,+((V356-Y356)/'Post-holder data'!$DE$5),0)","v":0},0,0]
[null,null,"Formal guidance responsibility (secondary schools only)",null,null,null,null,null,null,null,null,null,null,null,null,null,null,null,null,null,null,null,null,null,null,{"$f":"IF(ISBLANK('Post-holder data'!$DE$5),0,'Post-holder data'!$DE$5)","v":0},{"$f":"IF(Z357>0,+((V357-Y357)/'Post-holder data'!$DE$5),0)","v":0},0,0]
[null,null,null,null,null,null,null,null,null,null,null,null,null,null,null,null,null,null,null,null,null,null,null,null,null,{"$f":"IF(ISBLANK('Post-holder data'!$DE$5),0,'Post-holder data'!$DE$5)","v":0},{"$f":"IF(Z358>0,+((V358-Y358)/'Post-holder data'!$DE$5),0)","v":0},0,0]
[null,null,"Guidance case load",null,null,null,null,null,null,null,null,null,null,null,null,null,null,null,0.8,null,null,null,null,null,null,{"$f":"IF(ISBLANK('Post-holder data'!$DE$5),0,'Post-holder data'!$DE$5)","v":0},{"$f":"IF(Z359>0,+((V359-Y359)/'Post-holder data'!$DE$5),0)","v":0},0,0]
[null,null,null,null,null,null,null,null,null,null,null,null,null,null,null,null,null,null,null,null,null,null,null,null,null,{"$f":"IF(ISBLANK('Post-holder data'!$DE$5),0,'Post-holder data'!$DE$5)","v":0},{"$f":"IF(Z360>0,+((V360-Y360)/'Post-holder data'!$DE$5),0)","v":0},0,0]
[null,null,null,"None",null,null,null,null,null,null,null,null,null,null,null,null,null,null,0,null,0,0,{"$f":"+Y361+AA361","v":0},0,0,{"$f":"IF(ISBLANK('Post-holder data'!$DE$5),0,'Post-holder data'!$DE$5)","v":0},{"$f":"IF(Z361>0,+((V361-Y361)/'Post-holder data'!$DE$5),0)","v":0},0,0]
[null,null,null,null,null,null,null,null,null,null,null,null,null,null,null,null,null,null,null,null,null,null,null,null,null,{"$f":"IF(ISBLANK('Post-holder data'!$DE$5),0,'Post-holder data'!$DE$5)","v":0},{"$f":"IF(Z362>0,+((V362-Y362)/'Post-holder data'!$DE$5),0)","v":0},0,0]
[null,null,null,"0 to 50",null,null,null,null,null,null,null,null,null,null,null,null,null,null,4,null,10,10,{"$f":"+Y363+AA363","v":10},10,10,{"$f":"IF(ISBLANK('Post-holder data'!$DE$5),0,'Post-holder data'!$DE$5)","v":0},{"$f":"IF(Z363>0,+((V363-Y363)/'Post-holder data'!$DE$5),0)","v":0},0,0]
[null,null,null,null,null,null,null,null,null,null,null,null,null,null,null,null,null,null,null,null,null,null,null,null,null,{"$f":"IF(ISBLANK('Post-holder data'!$DE$5),0,'Post-holder data'!$DE$5)","v":0},{"$f":"IF(Z364>0,+((V364-Y364)/'Post-holder data'!$DE$5),0)","v":0},0,0]
[null,null,null,"51 to 100",null,null,null,null,null,null,null,null,null,null,null,null,null,null,8,null,12.5,12.5,{"$f":"+Y365+AA365","v":12.5},12.5,12.5,{"$f":"IF(ISBLANK('Post-holder data'!$DE$5),0,'Post-holder data'!$DE$5)","v":0},{"$f":"IF(Z365>0,+((V365-Y365)/'Post-holder data'!$DE$5),0)","v":0},0,0]
[null,null,null,null,null,null,null,null,null,null,null,null,null,null,null,null,null,null,null,null,null,null,null,null,null,{"$f":"IF(ISBLANK('Post-holder data'!$DE$5),0,'Post-holder data'!$DE$5)","v":0},{"$f":"IF(Z366>0,+((V366-Y366)/'Post-holder data'!$DE$5),0)","v":0},0,0]
[null,null,null,"101 to 200",null,null,null,null,null,null,null,null,null,null,null,null,null,null,16,null,17.5,17.5,{"$f":"+Y367+AA367","v":17.5},17.5,17.5,{"$f":"IF(ISBLANK('Post-holder data'!$DE$5),0,'Post-holder data'!$DE$5)","v":0},{"$f":"IF(Z367>0,+((V367-Y367)/'Post-holder data'!$DE$5),0)","v":0},0,0]
[null,null,null,null,null,null,null,null,null,null,null,null,null,null,null,null,null,null,null,null,null,null,null,null,null,{"$f":"IF(ISBLANK('Post-holder data'!$DE$5),0,'Post-holder data'!$DE$5)","v":0},{"$f":"IF(Z368>0,+((V368-Y368)/'Post-holder data'!$DE$5),0)","v":0},0,0]
[null,null,null,"Over 200",null,null,null,null,null,null,null,null,null,null,null,null,null,null,25,null,17.5,17.5,{"$f":"+Y369+AA369","v":17.5},17.5,17.5,{"$f":"IF(ISBLANK('Post-holder data'!$DE$5),0,'Post-holder data'!$DE$5)","v":0},{"$f":"IF(Z369>0,+((V369-Y369)/'Post-holder data'!$DE$5),0)","v":0},0,0]
[null,null,null,null,null,null,null,null,null,null,null,null,null,null,null,null,null,null,null,null,null,null,null,null,null,{"$f":"IF(ISBLANK('Post-holder data'!$DE$5),0,'Post-holder data'!$DE$5)","v":0},{"$f":"IF(Z370>0,+((V370-Y370)/'Post-holder data'!$DE$5),0)","v":0},0,0]
[null,null,null,null,null,null,null,null,null,null,null,null,null,null,null,null,null,null,null,null,null,null,null,null,null,{"$f":"IF(ISBLANK('Post-holder data'!$DE$5),0,'Post-holder data'!$DE$5)","v":0},{"$f":"IF(Z371>0,+((V371-Y371)/'Post-holder data'!$DE$5),0)","v":0},0,0]
[null,"4.3 To develop, manage and implement a policy on pupil assessment",null,null,null,null,null,null,null,null,null,null,null,null,null,null,null,null,null,null,null,null,null,null,null,{"$f":"IF(ISBLANK('Post-holder data'!$DE$5),0,'Post-holder data'!$DE$5)","v":0},{"$f":"IF(Z372>0,+((V372-Y372)/'Post-holder data'!$DE$5),0)","v":0},0,0]
[null,null,null,null,null,null,null,null,null,null,null,null,null,null,null,null,null,null,null,null,1,1,{"$f":"+Y373+AA373","v":1},1,1,{"$f":"IF(ISBLANK('Post-holder data'!$DE$5),0,'Post-holder data'!$DE$5)","v":0},{"$f":"IF(Z373>0,+((V373-Y373)/'Post-holder data'!$DE$5),0)","v":0},0,0]
[null,null,null,null,null,null,null,null,null,null,null,null,null,null,null,null,null,null,null,null,null,null,null,null,null,{"$f":"IF(ISBLANK('Post-holder data'!$DE$5),0,'Post-holder data'!$DE$5)","v":0},{"$f":"IF(Z374>0,+((V374-Y374)/'Post-holder data'!$DE$5),0)","v":0},0,0]
[null,null,null,null,null,null,null,null,null,null,null,null,null,null,null,null,null,null,null,null,null,null,null,null,null,{"$f":"IF(ISBLANK('Post-holder data'!$DE$5),0,'Post-holder data'!$DE$5)","v":0},{"$f":"IF(Z375>0,+((V375-Y375)/'Post-holder data'!$DE$5),0)","v":0},0,0]
[null,null,null,null,null,null,null,null,null,null,null,null,null,null,null,null,null,null,null,null,null,null,null,null,null,{"$f":"IF(ISBLANK('Post-holder data'!$DE$5),0,'Post-holder data'!$DE$5)","v":0},{"$f":"IF(Z376>0,+((V376-Y376)/'Post-holder data'!$DE$5),0)","v":0},0,0]
[null,null,"Departments / subjects",null,null,null,null,null,null,null,null,null,null,null,null,null,null,null,null,null,0.25,0.25,{"$f":"+Y377+AA377","v":0.25},0.25,0.25,{"$f":"IF(ISBLANK('Post-holder data'!$DE$5),0,'Post-holder data'!$DE$5)","v":0},{"$f":"IF(Z377>0,+((V377-Y377)/'Post-holder data'!$DE$5),0)","v":0},0,0]
[null,null,null,null,null,null,null,null,null,null,null,null,null,null,null,null,null,null,null,null,null,null,null,null,null,{"$f":"IF(ISBLANK('Post-holder data'!$DE$5),0,'Post-holder data'!$DE$5)","v":0},{"$f":"IF(Z378>0,+((V378-Y378)/'Post-holder data'!$DE$5),0)","v":0},0,0]
[null,null,"Year groups and / or specialist sections of the school",null,null,null,null,null,null,null,null,null,null,null,null,null,null,null,null,null,0.25,0.25,{"$f":"+Y379+AA379","v":0.25},0.25,0.25,{"$f":"IF(ISBLANK('Post-holder data'!$DE$5),0,'Post-holder data'!$DE$5)","v":0},{"$f":"IF(Z379>0,+((V379-Y379)/'Post-holder data'!$DE$5),0)","v":0},0,0]
[null,null,null,null,null,null,null,null,null,null,null,null,null,null,null,null,null,null,null,null,null,null,null,null,null,{"$f":"IF(ISBLANK('Post-holder data'!$DE$5),0,'Post-holder data'!$DE$5)","v":0},{"$f":"IF(Z380>0,+((V380-Y380)/'Post-holder data'!$DE$5),0)","v":0},0,0]
[null,null,"The whole school",null,null,null,null,null,null,null,null,null,null,null,null,null,null,null,null,null,0.5,0.5,{"$f":"+Y381+AA381","v":0.5},0.5,0.5,{"$f":"IF(ISBLANK('Post-holder data'!$DE$5),0,'Post-holder data'!$DE$5)","v":0},{"$f":"IF(Z381>0,+((V381-Y381)/'Post-holder data'!$DE$5),0)","v":0},0,0]
[null,null,null,null,null,null,null,null,null,null,null,null,null,null,null,null,null,null,null,null,null,null,null,null,null,{"$f":"IF(ISBLANK('Post-holder data'!$DE$5),0,'Post-holder data'!$DE$5)","v":0},{"$f":"IF(Z382>0,+((V382-Y382)/'Post-holder data'!$DE$5),0)","v":0},0,0]
[null,null,null,null,null,null,null,null,null,null,null,null,null,null,null,null,null,null,null,null,null,null,null,null,null,{"$f":"IF(ISBLANK('Post-holder data'!$DE$5),0,'Post-holder data'!$DE$5)","v":0},{"$f":"IF(Z383>0,+((V383-Y383)/'Post-holder data'!$DE$5),0)","v":0},0,0]
[null,null,"Please provide further details below",null,null,null,null,null,null,null,null,null,null,null,null,null,null,null,null,null,null,null,null,null,null,{"$f":"IF(ISBLANK('Post-holder data'!$DE$5),0,'Post-holder data'!$DE$5)","v":0},{"$f":"IF(Z384>0,+((V384-Y384)/'Post-holder data'!$DE$5),0)","v":0},0,0]
[null,null,null,null,null,null,null,null,null,null,null,null,null,null,null,null,null,null,null,null,null,null,null,null,null,{"$f":"IF(ISBLANK('Post-holder data'!$DE$5),0,'Post-holder data'!$DE$5)","v":0},{"$f":"IF(Z385>0,+((V385-Y385)/'Post-holder data'!$DE$5),0)","v":0},0,0]
[null,null,null,null,null,null,null,null,null,null,null,null,null,null,null,null,null,null,null,null,null,null,null,null,null,{"$f":"IF(ISBLANK('Post-holder data'!$DE$5),0,'Post-holder data'!$DE$5)","v":0},{"$f":"IF(Z386>0,+((V386-Y386)/'Post-holder data'!$DE$5),0)","v":0},0,0]
[null,null,null,null,null,null,null,null,null,null,null,null,null,null,null,null,null,null,null,null,null,null,null,null,null,{"$f":"IF(ISBLANK('Post-holder data'!$DE$5),0,'Post-holder data'!$DE$5)","v":0},{"$f":"IF(Z387>0,+((V387-Y387)/'Post-holder data'!$DE$5),0)","v":0},0,0]
[null,null,null,null,null,null,null,null,null,null,null,null,null,null,null,null,null,null,null,null,null,null,null,null,null,{"$f":"IF(ISBLANK('Post-holder data'!$DE$5),0,'Post-holder data'!$DE$5)","v":0},{"$f":"IF(Z388>0,+((V388-Y388)/'Post-holder data'!$DE$5),0)","v":0},0,0]
[null,null,null,null,null,null,null,null,null,null,null,null,null,null,null,null,null,null,null,null,null,null,null,null,null,{"$f":"IF(ISBLANK('Post-holder data'!$DE$5),0,'Post-holder data'!$DE$5)","v":0},{"$f":"IF(Z389>0,+((V389-Y389)/'Post-holder data'!$DE$5),0)","v":0},0,0]
[null,null,null,null,null,null,null,null,null,null,null,null,null,null,null,null,null,null,null,null,null,null,null,null,null,{"$f":"IF(ISBLANK('Post-holder data'!$DE$5),0,'Post-holder data'!$DE$5)","v":0},{"$f":"IF(Z390>0,+((V390-Y390)/'Post-holder data'!$DE$5),0)","v":0},0,0]
[null,null,null,null,null,null,null,null,null,null,null,null,null,null,null,null,null,null,null,null,null,null,null,null,null,{"$f":"IF(ISBLANK('Post-holder data'!$DE$5),0,'Post-holder data'!$DE$5)","v":0},{"$f":"IF(Z391>0,+((V391-Y391)/'Post-holder data'!$DE$5),0)","v":0},0,0]
[null,null,null,null,null,null,null,null,null,null,null,null,null,null,null,null,null,null,null,null,null,null,null,null,null,{"$f":"IF(ISBLANK('Post-holder data'!$DE$5),0,'Post-holder data'!$DE$5)","v":0},{"$f":"IF(Z392>0,+((V392-Y392)/'Post-holder data'!$DE$5),0)","v":0},0,0]
[null,null,null,null,null,null,null,null,null,null,null,null,null,null,null,null,null,null,null,null,null,null,null,null,null,{"$f":"IF(ISBLANK('Post-holder data'!$DE$5),0,'Post-holder data'!$DE$5)","v":0},{"$f":"IF(Z393>0,+((V393-Y393)/'Post-holder data'!$DE$5),0)","v":0},0,0]
[null,"5. RESPONSIBILITY FOR WORKING WITH PARTNERS",null,null,null,null,null,null,null,null,null,null,null,null,null,null,null,null,null,null,null,null,null,null,null,{"$f":"IF(ISBLANK('Post-holder data'!$DE$5),0,'Post-holder data'!$DE$5)","v":0},{"$f":"IF(Z394>0,+((V394-Y394)/'Post-holder data'!$DE$5),0)","v":0},0,0]
[null,null,null,null,null,null,null,null,null,null,null,null,null,null,null,null,null,null,null,null,null,null,null,null,null,{"$f":"IF(ISBLANK('Post-holder data'!$DE$5),0,'Post-holder data'!$DE$5)","v":0},{"$f":"IF(Z395>0,+((V395-Y395)/'Post-holder data'!$DE$5),0)","v":0},0,0]
[null,null,null,null,null,null,null,null,null,null,null,null,null,null,null,null,null,null,null,null,null,null,null,null,null,{"$f":"IF(ISBLANK('Post-holder data'!$DE$5),0,'Post-holder data'!$DE$5)","v":0},{"$f":"IF(Z396>0,+((V396-Y396)/'Post-holder data'!$DE$5),0)","v":0},0,0]
[null,"5.1 To work with parents",null,null,null,null,null,null,null,null,null,null,null,null,null,null,null,null,null,null,null,null,null,null,null,{"$f":"IF(ISBLANK('Post-holder data'!$DE$5),0,'Post-holder data'!$DE$5)","v":0},{"$f":"IF(Z397>0,+((V397-Y397)/'Post-holder data'!$DE$5),0)","v":0},0,0]
[null,null,null,null,null,null,null,null,null,null,null,null,null,null,null,null,null,null,null,null,null,null,null,null,null,{"$f":"IF(ISBLANK('Post-holder data'!$DE$5),0,'Post-holder data'!$DE$5)","v":0},{"$f":"IF(Z398>0,+((V398-Y398)/'Post-holder data'!$DE$5),0)","v":0},0,0]
[null,null,null,null,null,null,null,null,null,null,null,null,null,null,null,null,null,null,null,null,1,1,{"$f":"+Y399+AA399","v":1},1,1,{"$f":"IF(ISBLANK('Post-holder data'!$DE$5),0,'Post-holder data'!$DE$5)","v":0},{"$f":"IF(Z399>0,+((V399-Y399)/'Post-holder data'!$DE$5),0)","v":0},0,0]
[null,null,null,null,null,null,null,null,null,null,null,null,null,null,null,null,null,null,null,null,null,null,null,null,null,{"$f":"IF(ISBLANK('Post-holder data'!$DE$5),0,'Post-holder data'!$DE$5)","v":0},{"$f":"IF(Z400>0,+((V400-Y400)/'Post-holder data'!$DE$5),0)","v":0},0,0]
[null,null,null,null,null,null,null,null,null,null,null,null,null,null,null,null,null,null,null,null,null,null,null,null,null,{"$f":"IF(ISBLANK('Post-holder data'!$DE$5),0,'Post-holder data'!$DE$5)","v":0},{"$f":"IF(Z401>0,+((V401-Y401)/'Post-holder data'!$DE$5),0)","v":0},{"$f":"+W401-Y401","v":0},{"$f":"+V401-W401","v":0}]
[null,null,null,null,null,null,null,null,null,null,null,null,null,null,null,null,null,null,null,null,null,null,null,null,null,{"$f":"IF(ISBLANK('Post-holder data'!$DE$5),0,'Post-holder data'!$DE$5)","v":0},{"$f":"IF(Z402>0,+((V402-Y402)/'Post-holder data'!$DE$5),0)","v":0},0,0]
[null,null,null,null,null,null,null,null,null,null,null,null,null,null,null,null,null,null,null,null,null,null,null,null,null,{"$f":"IF(ISBLANK('Post-holder data'!$DE$5),0,'Post-holder data'!$DE$5)","v":0},{"$f":"IF(Z403>0,+((V403-Y403)/'Post-holder data'!$DE$5),0)","v":0},0,0]
[null,null,null,null,null,null,null,null,null,null,null,null,null,null,null,null,null,null,null,null,null,null,null,null,null,{"$f":"IF(ISBLANK('Post-holder data'!$DE$5),0,'Post-holder data'!$DE$5)","v":0},{"$f":"IF(Z404>0,+((V404-Y404)/'Post-holder data'!$DE$5),0)","v":0},0,0]
[null,null,null,null,null,null,null,null,null,null,null,null,null,null,null,null,null,null,null,null,null,null,null,null,null,{"$f":"IF(ISBLANK('Post-holder data'!$DE$5),0,'Post-holder data'!$DE$5)","v":0},{"$f":"IF(Z405>0,+((V405-Y405)/'Post-holder data'!$DE$5),0)","v":0},0,0]
[null,null,"Year groups and / or specialist sections of the school",null,null,null,null,null,null,null,null,null,null,null,null,null,null,null,null,null,0.25,0.25,{"$f":"+Y406+AA406","v":0.25},0.25,0.25,{"$f":"IF(ISBLANK('Post-holder data'!$DE$5),0,'Post-holder data'!$DE$5)","v":0},{"$f":"IF(Z406>0,+((V406-Y406)/'Post-holder data'!$DE$5),0)","v":0},0,0]
[null,null,null,null,null,null,null,null,null,null,null,null,null,null,null,null,null,null,null,null,null,null,null,null,null,{"$f":"IF(ISBLANK('Post-holder data'!$DE$5),0,'Post-holder data'!$DE$5)","v":0},{"$f":"IF(Z407>0,+((V407-Y407)/'Post-holder data'!$DE$5),0)","v":0},0,0]
[null,null,"The whole school",null,null,null,null,null,null,null,null,null,null,null,null,null,null,null,null,null,0.5,0.5,{"$f":"+Y408+AA408","v":0.5},0.5,0.5,{"$f":"IF(ISBLANK('Post-holder data'!$DE$5),0,'Post-holder data'!$DE$5)","v":0},{"$f":"IF(Z408>0,+((V408-Y408)/'Post-holder data'!$DE$5),0)","v":0},0,0]
[null,null,null,null,null,null,null,null,null,null,null,null,null,null,null,null,null,null,null,null,null,null,null,null,null,{"$f":"IF(ISBLANK('Post-holder data'!$DE$5),0,'Post-holder data'!$DE$5)","v":0},{"$f":"IF(Z409>0,+((V409-Y409)/'Post-holder data'!$DE$5),0)","v":0},0,0]
[null,null,null,null,null,null,null,null,null,null,null,null,null,null,null,null,null,null,null,null,null,null,null,null,null,{"$f":"IF(ISBLANK('Post-holder data'!$DE$5),0,'Post-holder data'!$DE$5)","v":0},{"$f":"IF(Z410>0,+((V410-Y410)/'Post-holder data'!$DE$5),0)","v":0},0,0]
[null,null,"Please provide further details below",null,null,null,null,null,null,null,null,null,null,null,null,null,null,null,null,null,null,null,null,null,null,{"$f":"IF(ISBLANK('Post-holder data'!$DE$5),0,'Post-holder data'!$DE$5)","v":0},{"$f":"IF(Z411>0,+((V411-Y411)/'Post-holder data'!$DE$5),0)","v":0},0,0]
[null,null,null,null,null,null,null,null,null,null,null,null,null,null,null,null,null,null,null,null,null,null,null,null,null,{"$f":"IF(ISBLANK('Post-holder data'!$DE$5),0,'Post-holder data'!$DE$5)","v":0},{"$f":"IF(Z412>0,+((V412-Y412)/'Post-holder data'!$DE$5),0)","v":0},0,0]
[null,null,null,null,null,null,null,null,null,null,null,null,null,null,null,null,null,null,null,null,null,null,null,null,null,{"$f":"IF(ISBLANK('Post-holder data'!$DE$5),0,'Post-holder data'!$DE$5)","v":0},{"$f":"IF(Z413>0,+((V413-Y413)/'Post-holder data'!$DE$5),0)","v":0},0,0]
[null,null,null,null,null,null,null,null,null,null,null,null,null,null,null,null,null,null,null,null,null,null,null,null,null,{"$f":"IF(ISBLANK('Post-holder data'!$DE$5),0,'Post-holder data'!$DE$5)","v":0},{"$f":"IF(Z414>0,+((V414-Y414)/'Post-holder data'!$DE$5),0)","v":0},0,0]
[null,null,null,null,null,null,null,null,null,null,null,null,null,null,null,null,null,null,null,null,null,null,null,null,null,{"$f":"IF(ISBLANK('Post-holder data'!$DE$5),0,'Post-holder data'!$DE$5)","v":0},{"$f":"IF(Z415>0,+((V415-Y415)/'Post-holder data'!$DE$5),0)","v":0},0,0]
[null,null,null,null,null,null,null,null,null,null,null,null,null,null,null,null,null,null,null,null,null,null,null,null,null,{"$f":"IF(ISBLANK('Post-holder data'!$DE$5),0,'Post-holder data'!$DE$5)","v":0},{"$f":"IF(Z416>0,+((V416-Y416)/'Post-holder data'!$DE$5),0)","v":0},0,0]
[null,"5.2 To lead or work with colleagues in the same establishment",null,null,null,null,null,null,null,null,null,null,null,null,null,null,null,null,null,null,null,null,null,null,null,{"$f":"IF(ISBLANK('Post-holder data'!$DE$5),0,'Post-holder data'!$DE$5)","v":0},{"$f":"IF(Z417>0,+((V417-Y417)/'Post-holder data'!$DE$5),0)","v":0},0,0]
[null,null,null,null,null,null,null,null,null,null,null,null,null,null,null,null,null,null,null,null,null,null,null,null,null,{"$f":"IF(ISBLANK('Post-holder data'!$DE$5),0,'Post-holder data'!$DE$5)","v":0},{"$f":"IF(Z418>0,+((V418-Y418)/'Post-holder data'!$DE$5),0)","v":0},0,0]
[null,null,"Formal whole-school responsibilities to relating to leadership or working with colleagues",null,null,null,null,null,null,null,null,null,null,null,null,null,null,null,null,null,1,1,{"$f":"+Y419+AA419","v":1},1,1,{"$f":"IF(ISBLANK('Post-holder data'!$DE$5),0,'Post-holder data'!$DE$5)","v":0},{"$f":"IF(Z419>0,+((V419-Y419)/'Post-holder data'!$DE$5),0)","v":0},0,0]
[null,null,null,null,null,null,null,null,null,null,null,null,null,null,null,null,null,null,null,null,null,null,null,null,null,{"$f":"IF(ISBLANK('Post-holder data'!$DE$5),0,'Post-holder data'!$DE$5)","v":0},{"$f":"IF(Z420>0,+((V420-Y420)/'Post-holder data'!$DE$5),0)","v":0},0,0]
[null,null,null,null,null,null,null,null,null,null,null,null,null,null,null,null,null,null,null,null,null,null,null,null,null,{"$f":"IF(ISBLANK('Post-holder data'!$DE$5),0,'Post-holder data'!$DE$5)","v":0},{"$f":"IF(Z421>0,+((V421-Y421)/'Post-holder data'!$DE$5),0)","v":0},0,0]
[null,null,null,null,null,null,null,null,null,null,null,null,null,null,null,null,null,null,null,null,null,null,null,null,null,{"$f":"IF(ISBLANK('Post-holder data'!$DE$5),0,'Post-holder data'!$DE$5)","v":0},{"$f":"IF(Z422>0,+((V422-Y422)/'Post-holder data'!$DE$5),0)","v":0},0,0]
[null,null,null,null,null,null,null,null,null,null,null,null,null,null,null,null,null,null,null,null,null,null,null,null,null,{"$f":"IF(ISBLANK('Post-holder data'!$DE$5),0,'Post-holder data'!$DE$5)","v":0},{"$f":"IF(Z423>0,+((V423-Y423)/'Post-holder data'!$DE$5),0)","v":0},0,0]
[null,null,"Year groups and / or specialist sections of the school",null,null,null,null,null,null,null,null,null,null,null,null,null,null,null,null,null,0.25,0.25,{"$f":"+Y424+AA424","v":0.25},0.25,0.25,{"$f":"IF(ISBLANK('Post-holder data'!$DE$5),0,'Post-holder data'!$DE$5)","v":0},{"$f":"IF(Z424>0,+((V424-Y424)/'Post-holder data'!$DE$5),0)","v":0},0,0]
[null,null,null,null,null,null,null,null,null,null,null,null,null,null,null,null,null,null,null,null,null,null,null,null,null,{"$f":"IF(ISBLANK('Post-holder data'!$DE$5),0,'Post-holder data'!$DE$5)","v":0},{"$f":"IF(Z425>0,+((V425-Y425)/'Post-holder data'!$DE$5),0)","v":0},0,0]
[null,null,"The whole school",null,null,null,null,null,null,null,null,null,null,null,null,null,null,null,null,null,0.5,0.5,{"$f":"+Y426+AA426","v":0.5},0.5,0.5,{"$f":"IF(ISBLANK('Post-holder data'!$DE$5),0,'Post-holder data'!$DE$5)","v":0},{"$f":"IF(Z426>0,+((V426-Y426)/'Post-holder data'!$DE$5),0)","v":0},0,0]
[null,null,null,null,null,null,null,null,null,null,null,null,null,null,null,null,null,null,null,null,null,null,null,null,null,{"$f":"IF(ISBLANK('Post-holder data'!$DE$5),0,'Post-holder data'!$DE$5)","v":0},{"$f":"IF(Z427>0,+((V427-Y427)/'Post-holder data'!$DE$5),0)","v":0},0,0]
[null,null,null,null,null,null,null,null,null,null,null,null,null,null,null,null,null,null,null,null,null,null,null,null,null,{"$f":"IF(ISBLANK('Post-holder data'!$DE$5),0,'Post-holder data'!$DE$5)","v":0},{"$f":"IF(Z428>0,+((V428-Y428)/'Post-holder data'!$DE$5),0)","v":0},0,0]
[null,null,"Please provide further details below",null,null,null,null,null,null,null,null,null,null,null,null,null,null,null,null,null,null,null,null,null,null,{"$f":"IF(ISBLANK('Post-holder data'!$DE$5),0,'Post-holder data'!$DE$5)","v":0},{"$f":"IF(Z429>0,+((V429-Y429)/'Post-holder data'!$DE$5),0)","v":0},0,0]
[null,null,null,null,null,null,null,null,null,null,null,null,null,null,null,null,null,null,null,null,null,null,null,null,null,{"$f":"IF(ISBLANK('Post-holder data'!$DE$5),0,'Post-holder data'!$DE$5)","v":0},{"$f":"IF(Z430>0,+((V430-Y430)/'Post-holder data'!$DE$5),0)","v":0},0,0]
[null,null,null,null,null,null,null,null,null,null,null,null,null,null,null,null,null,null,null,null,null,null,null,null,null,{"$f":"IF(ISBLANK('Post-holder data'!$DE$5),0,'Post-holder data'!$DE$5)","v":0},{"$f":"IF(Z431>0,+((V431-Y431)/'Post-holder data'!$DE$5),0)","v":0},0,0]
[null,null,null,null,null,null,null,null,null,null,null,null,null,null,null,null,null,null,null,null,null,null,null,null,null,{"$f":"IF(ISBLANK('Post-holder data'!$DE$5),0,'Post-holder data'!$DE$5)","v":0},{"$f":"IF(Z432>0,+((V432-Y432)/'Post-holder data'!$DE$5),0)","v":0},0,0]
[null,null,null,null,null,null,null,null,null,null,null,null,null,null,null,null,null,null,null,null,null,null,null,null,null,{"$f":"IF(ISBLANK('Post-holder data'!$DE$5),0,'Post-holder data'!$DE$5)","v":0},{"$f":"IF(Z433>0,+((V433-Y433)/'Post-holder data'!$DE$5),0)","v":0},0,0]
[null,null,null,null,null,null,null,null,null,null,null,null,null,null,null,null,null,null,null,null,null,null,null,null,null,{"$f":"IF(ISBLANK('Post-holder data'!$DE$5),0,'Post-holder data'!$DE$5)","v":0},{"$f":"IF(Z434>0,+((V434-Y434)/'Post-holder data'!$DE$5),0)","v":0},0,0]
[null,"5.3 To work with other establishments or agencies.",null,null,null,null,null,null,null,null,null,null,null,null,null,null,null,null,null,null,null,null,null,null,null,{"$f":"IF(ISBLANK('Post-holder data'!$DE$5),0,'Post-holder data'!$DE$5)","v":0},{"$f":"IF(Z435>0,+((V435-Y435)/'Post-holder data'!$DE$5),0)","v":0},0,0]
[null,null,null,null,null,null,null,null,null,null,null,null,null,null,null,null,null,null,null,null,null,null,null,null,null,{"$f":"IF(ISBLANK('Post-holder data'!$DE$5),0,'Post-holder data'!$DE$5)","v":0},{"$f":"IF(Z436>0,+((V436-Y436)/'Post-holder data'!$DE$5),0)","v":0},0,0]
[null,null,"Other formal whole-school responsibilities for working with other establishments / agencies",null,null,null,null,null,null,null,null,null,null,null,null,null,null,null,null,null,1,1,{"$f":"+Y437+AA437","v":1},1,1,{"$f":"IF(ISBLANK('Post-holder data'!$DE$5),0,'Post-holder data'!$DE$5)","v":0},{"$f":"IF(Z437>0,+((V437-Y437)/'Post-holder data'!$DE$5),0)","v":0},0,0]
[null,null,null,null,null,null,null,null,null,null,null,null,null,null,null,null,null,null,null,null,null,null,null,null,null,{"$f":"IF(ISBLANK('Post-holder data'!$DE$5),0,'Post-holder data'!$DE$5)","v":0},{"$f":"IF(Z438>0,+((V438-Y438)/'Post-holder data'!$DE$5),0)","v":0},0,0]
[null,null,null,null,null,null,null,null,null,null,null,null,null,null,null,null,null,null,null,null,null,null,null,null,null,{"$f":"IF(ISBLANK('Post-holder data'!$DE$5),0,'Post-holder data'!$DE$5)","v":0},{"$f":"IF(Z439>0,+((V439-Y439)/'Post-holder data'!$DE$5),0)","v":0},0,0]
[null,null,null,null,null,null,null,null,null,null,null,null,null,null,null,null,null,null,null,null,null,null,null,null,null,{"$f":"IF(ISBLANK('Post-holder data'!$DE$5),0,'Post-holder data'!$DE$5)","v":0},{"$f":"IF(Z440>0,+((V440-Y440)/'Post-holder data'!$DE$5),0)","v":0},0,0]
[null,null,null,null,null,null,null,null,null,null,null,null,null,null,null,null,null,null,null,null,null,null,null,null,null,{"$f":"IF(ISBLANK('Post-holder data'!$DE$5),0,'Post-holder data'!$DE$5)","v":0},{"$f":"IF(Z441>0,+((V441-Y441)/'Post-holder data'!$DE$5),0)","v":0},0,0]
[null,null,null,null,null,null,null,null,null,null,null,null,null,null,null,null,null,null,null,null,null,null,null,null,null,{"$f":"IF(ISBLANK('Post-holder data'!$DE$5),0,'Post-holder data'!$DE$5)","v":0},{"$f":"IF(Z442>0,+((V442-Y442)/'Post-holder data'!$DE$5),0)","v":0},0,0]
[null,null,"Year groups and / or specialist sections of the school",null,null,null,null,null,null,null,null,null,null,null,null,null,null,null,null,null,0.25,0.25,{"$f":"+Y443+AA443","v":0.25},0.25,0.25,{"$f":"IF(ISBLANK('Post-holder data'!$DE$5),0,'Post-holder data'!$DE$5)","v":0},{"$f":"IF(Z443>0,+((V443-Y443)/'Post-holder data'!$DE$5),0)","v":0},0,0]
[null,null,null,null,null,null,null,null,null,null,null,null,null,null,null,null,null,null,null,null,null,null,null,null,null,{"$f":"IF(ISBLANK('Post-holder data'!$DE$5),0,'Post-holder data'!$DE$5)","v":0},{"$f":"IF(Z444>0,+((V444-Y444)/'Post-holder data'!$DE$5),0)","v":0},0,0]
[null,null,"The whole school",null,null,null,null,null,null,null,null,null,null,null,null,null,null,null,null,null,0.5,0.5,{"$f":"+Y445+AA445","v":0.5},0.5,0.5,{"$f":"IF(ISBLANK('Post-holder data'!$DE$5),0,'Post-holder data'!$DE$5)","v":0},{"$f":"IF(Z445>0,+((V445-Y445)/'Post-holder data'!$DE$5),0)","v":0},0,0]
[null,null,null,null,null,null,null,null,null,null,null,null,null,null,null,null,null,null,null,null,null,null,null,null,null,{"$f":"IF(ISBLANK('Post-holder data'!$DE$5),0,'Post-holder data'!$DE$5)","v":0},{"$f":"IF(Z446>0,+((V446-Y446)/'Post-holder data'!$DE$5),0)","v":0},0,0]
[null,null,"Other establishments or agencies.",null,null,null,null,null,null,null,null,null,null,null,null,null,null,null,null,null,0.6,0.6,{"$f":"+Y447+AA447","v":0.6},0.6,0.6,{"$f":"IF(ISBLANK('Post-holder data'!$DE$5),0,'Post-holder data'!$DE$5)","v":0},{"$f":"IF(Z447>0,+((V447-Y447)/'Post-holder data'!$DE$5),0)","v":0},0,0]
[null,null,null,null,null,null,null,null,null,null,null,null,null,null,null,null,null,null,null,null,null,null,null,null,null,{"$f":"IF(ISBLANK('Post-holder data'!$DE$5),0,'Post-holder data'!$DE$5)","v":0},{"$f":"IF(Z448>0,+((V448-Y448)/'Post-holder data'!$DE$5),0)","v":0},0,0]
[null,null,null,null,null,null,null,null,null,null,null,null,null,null,null,null,null,null,null,null,null,null,null,null,null,{"$f":"IF(ISBLANK('Post-holder data'!$DE$5),0,'Post-holder data'!$DE$5)","v":0},{"$f":"IF(Z449>0,+((V449-Y449)/'Post-holder data'!$DE$5),0)","v":0},0,0]
[null,null,"Please provide further details whole-school responsibilities below",null,null,null,null,null,null,null,null,null,null,null,null,null,null,null,null,null,null,null,null,null,null,{"$f":"IF(ISBLANK('Post-holder data'!$DE$5),0,'Post-holder data'!$DE$5)","v":0},{"$f":"IF(Z450>0,+((V450-Y450)/'Post-holder data'!$DE$5),0)","v":0},0,0]
[null,null,null,null,null,null,null,null,null,null,null,null,null,null,null,null,null,null,null,null,null,null,null,null,null,{"$f":"IF(ISBLANK('Post-holder data'!$DE$5),0,'Post-holder data'!$DE$5)","v":0},{"$f":"IF(Z451>0,+((V451-Y451)/'Post-holder data'!$DE$5),0)","v":0},0,0]
[null,null,null,null,null,null,null,null,null,null,null,null,null,null,null,null,null,null,null,null,null,null,null,null,null,{"$f":"IF(ISBLANK('Post-holder data'!$DE$5),0,'Post-holder data'!$DE$5)","v":0},{"$f":"IF(Z452>0,+((V452-Y452)/'Post-holder data'!$DE$5),0)","v":0},0,0]
[null,null,null,null,null,null,null,null,null,null,null,null,null,null,null,null,null,null,null,null,null,null,null,null,null,{"$f":"IF(ISBLANK('Post-holder data'!$DE$5),0,'Post-holder data'!$DE$5)","v":0},{"$f":"IF(Z453>0,+((V453-Y453)/'Post-holder data'!$DE$5),0)","v":0},0,0]
[null,null,null,null,null,null,null,null,null,null,null,null,null,null,null,null,null,null,null,null,null,null,null,null,null,{"$f":"IF(ISBLANK('Post-holder data'!$DE$5),0,'Post-holder data'!$DE$5)","v":0},{"$f":"IF(Z454>0,+((V454-Y454)/'Post-holder data'!$DE$5),0)","v":0},0,0]
[null,null,null,null,null,null,null,null,null,null,null,null,null,null,null,null,null,null,null,null,null,null,null,null,null,{"$f":"IF(ISBLANK('Post-holder data'!$DE$5),0,'Post-holder data'!$DE$5)","v":0},{"$f":"IF(Z455>0,+((V455-Y455)/'Post-holder data'!$DE$5),0)","v":0},0,0]
[null,null,null,null,null,null,null,null,null,null,null,null,null,null,null,null,null,null,null,null,null,null,null,null,null,{"$f":"IF(ISBLANK('Post-holder data'!$DE$5),0,'Post-holder data'!$DE$5)","v":0},{"$f":"IF(Z456>0,+((V456-Y456)/'Post-holder data'!$DE$5),0)","v":0},0,0]
[null,null,null,null,null,null,null,null,null,null,null,null,null,null,null,null,null,null,null,null,null,null,null,null,null,{"$f":"IF(ISBLANK('Post-holder data'!$DE$5),0,'Post-holder data'!$DE$5)","v":0},{"$f":"IF(Z457>0,+((V457-Y457)/'Post-holder data'!$DE$5),0)","v":0},0,0]
[null,null,null,null,null,null,null,null,null,null,null,null,null,null,null,null,null,null,null,null,null,null,null,null,null,{"$f":"IF(ISBLANK('Post-holder data'!$DE$5),0,'Post-holder data'!$DE$5)","v":0},{"$f":"IF(Z458>0,+((V458-Y458)/'Post-holder data'!$DE$5),0)","v":0},0,0]
[null,null,null,null,null,null,null,null,null,null,null,null,null,null,null,null,null,null,null,null,null,null,null,null,null,{"$f":"IF(ISBLANK('Post-holder data'!$DE$5),0,'Post-holder data'!$DE$5)","v":0},{"$f":"IF(Z459>0,+((V459-Y459)/'Post-holder data'!$DE$5),0)","v":0},0,0]
[null,null,null,null,null,null,null,null,null,null,null,null,null,null,null,null,null,null,null,null,null,null,null,null,null,{"$f":"IF(ISBLANK('Post-holder data'!$DE$5),0,'Post-holder data'!$DE$5)","v":0},{"$f":"IF(Z460>0,+((V460-Y460)/'Post-holder data'!$DE$5),0)","v":0},0,0]
[null,"SIGNATURES",null,null,null,null,null,null,null,null,null,null,null,null,null,null,null,null,null,null,null,null,null,null,null,{"$f":"IF(ISBLANK('Post-holder data'!$DE$5),0,'Post-holder data'!$DE$5)","v":0},{"$f":"IF(Z461>0,+((V461-Y461)/'Post-holder data'!$DE$5),0)","v":0},0,0]
[null,null,null,null,null,null,null,null,null,null,null,null,null,null,null,null,null,null,null,null,null,null,null,null,null,{"$f":"IF(ISBLANK('Post-holder data'!$DE$5),0,'Post-holder data'!$DE$5)","v":0},{"$f":"IF(Z462>0,+((V462-Y462)/'Post-holder data'!$DE$5),0)","v":0},0,0]
[null,null,"Post holder",null,null,null,null,null,null,null,null,null,null,null,null,null,null,null,null,null,null,null,null,null,null,{"$f":"IF(ISBLANK('Post-holder data'!$DE$5),0,'Post-holder data'!$DE$5)","v":0},{"$f":"IF(Z463>0,+((V463-Y463)/'Post-holder data'!$DE$5),0)","v":0},0,0]
[null,null,null,null,null,null,null,null,null,null,null,null,null,null,null,null,null,null,null,null,null,null,null,null,null,{"$f":"IF(ISBLANK('Post-holder data'!$DE$5),0,'Post-holder data'!$DE$5)","v":0},{"$f":"IF(Z464>0,+((V464-Y464)/'Post-holder data'!$DE$5),0)","v":0},0,0]
[null,null,null,"Signature",null,null,null,null,null,null,null,null,null,null,null,null,null,null,null,null,null,null,null,null,null,{"$f":"IF(ISBLANK('Post-holder data'!$DE$5),0,'Post-holder data'!$DE$5)","v":0},{"$f":"IF(Z465>0,+((V465-Y465)/'Post-holder data'!$DE$5),0)","v":0},{"$f":"+W465-Y465","v":0},{"$f":"+V465-W465","v":0}]
[null,null,null,null,null,null,null,null,null,null,null,null,null,null,null,null,null,null,null,null,null,null,null,null,null,{"$f":"IF(ISBLANK('Post-holder data'!$DE$5),0,'Post-holder data'!$DE$5)","v":0},{"$f":"IF(Z466>0,+((V466-Y466)/'Post-holder data'!$DE$5),0)","v":0},0,0]
[null,null,null,"Print name",null,null,null,null,null,null,null,null,null,null,null,null,null,null,null,null,null,null,null,null,null,{"$f":"IF(ISBLANK('Post-holder data'!$DE$5),0,'Post-holder data'!$DE$5)","v":0},{"$f":"IF(Z467>0,+((V467-Y467)/'Post-holder data'!$DE$5),0)","v":0},0,0]
[null,null,null,null,null,null,null,null,null,null,null,null,null,null,null,null,null,null,null,null,null,null,null,null,null,{"$f":"IF(ISBLANK('Post-holder data'!$DE$5),0,'Post-holder data'!$DE$5)","v":0},{"$f":"IF(Z468>0,+((V468-Y468)/'Post-holder data'!$DE$5),0)","v":0},0,0]
[null,null,null,"Date",null,null,null,null,null,null,null,null,null,null,null,null,null,null,null,null,null,null,null,null,null,{"$f":"IF(ISBLANK('Post-holder data'!$DE$5),0,'Post-holder data'!$DE$5)","v":0},{"$f":"IF(Z469>0,+((V469-Y469)/'Post-holder data'!$DE$5),0)","v":0},0,0]
[null,null,null,null,null,null,null,null,null,null,null,null,null,null,null,null,null,null,null,null,null,null,null,null,null,{"$f":"IF(ISBLANK('Post-holder data'!$DE$5),0,'Post-holder data'!$DE$5)","v":0},{"$f":"IF(Z470>0,+((V470-Y470)/'Post-holder data'!$DE$5),0)","v":0},0,0]
[null,null,"Headteacher (or local authority manager in respect of HT posts)",null,null,null,null,null,null,null,null,null,null,null,null,null,null,null,null,null,null,null,null,null,null,{"$f":"IF(ISBLANK('Post-holder data'!$DE$5),0,'Post-holder data'!$DE$5)","v":0},{"$f":"IF(Z471>0,+((V471-Y471)/'Post-holder data'!$DE$5),0)","v":0},0,0]
[null,null,null,null,null,null,null,null,null,null,null,null,null,null,null,null,null,null,null,null,null,null,null,null,null,{"$f":"IF(ISBLANK('Post-holder data'!$DE$5),0,'Post-holder data'!$DE$5)","v":0},{"$f":"IF(Z472>0,+((V472-Y472)/'Post-holder data'!$DE$5),0)","v":0},0,0]
[null,null,null,"Signature",null,null,null,null,null,null,null,null,null,null,null,null,null,null,null,null,null,null,null,null,null,{"$f":"IF(ISBLANK('Post-holder data'!$DE$5),0,'Post-holder data'!$DE$5)","v":0},{"$f":"IF(Z473>0,+((V473-Y473)/'Post-holder data'!$DE$5),0)","v":0},0,0]
[null,null,null,null,null,null,null,null,null,null,null,null,null,null,null,null,null,null,null,null,null,null,null,null,null,{"$f":"IF(ISBLANK('Post-holder data'!$DE$5),0,'Post-holder data'!$DE$5)","v":0},{"$f":"IF(Z474>0,+((V474-Y474)/'Post-holder data'!$DE$5),0)","v":0},0,0]
[null,null,null,"Print name",null,null,null,null,null,null,null,null,null,null,null,null,null,null,null,null,null,null,null,null,null,{"$f":"IF(ISBLANK('Post-holder data'!$DE$5),0,'Post-holder data'!$DE$5)","v":0},{"$f":"IF(Z475>0,+((V475-Y475)/'Post-holder data'!$DE$5),0)","v":0},0,0]
[null,null,null,null,null,null,null,null,null,null,null,null,null,null,null,null,null,null,null,null,null,null,null,null,null,{"$f":"IF(ISBLANK('Post-holder data'!$DE$5),0,'Post-holder data'!$DE$5)","v":0},{"$f":"IF(Z476>0,+((V476-Y476)/'Post-holder data'!$DE$5),0)","v":0},0,0]
[null,null,null,"Date",null,null,null,null,null,null,null,null,null,null,null,null,null,null,null,null,null,null,null,null,null,{"$f":"IF(ISBLANK('Post-holder data'!$DE$5),0,'Post-holder data'!$DE$5)","v":0},{"$f":"IF(Z477>0,+((V477-Y477)/'Post-holder data'!$DE$5),0)","v":0},0,0]
[null,null,null,null,null,null,null,null,null,null,null,null,null,null,null,null,null,null,null,null,null,null,null,null,null,{"$f":"IF(ISBLANK('Post-holder data'!$DE$5),0,'Post-holder data'!$DE$5)","v":0},{"$f":"IF(Z478>0,+((V478-Y478)/'Post-holder data'!$DE$5),0)","v":0},0,0]
[null,null,null,null,null,null,null,null,null,null,null,null,null,null,null,null,null,null,null,null,null,null,null,null,null,null,{"$f":"IF(Z479>0,+((V479-Y479)/'Post-holder data'!$DE$5),0)","v":0},0,0]
[null,null,"Job-sizing Co-ordinator",null,null,null,null,null,null,null,null,null,null,null,null,null,null,null,null,null,null,null,null,null,null,null,{"$f":"IF(Z480>0,+((V480-Y480)/'Post-holder data'!$DE$5),0)","v":0},0,0]
[null,null,null,null,null,null,null,null,null,null,null,null,null,null,null,null,null,null,null,null,null,null,null,null,null,null,{"$f":"IF(Z481>0,+((V481-Y481)/'Post-holder data'!$DE$5),0)","v":0},0,0]
[null,null,null,"Signature",null,null,null,null,null,null,null,null,null,null,null,null,null,null,null,null,null,null,null,null,null,null,{"$f":"IF(Z482>0,+((V482-Y482)/'Post-holder data'!$DE$5),0)","v":0},0,0]
[null,null,null,null,null,null,null,null,null,null,null,null,null,null,null,null,null,null,null,null,null,null,null,null,null,null,{"$f":"IF(Z483>0,+((V483-Y483)/'Post-holder data'!$DE$5),0)","v":0},0,0]
[null,null,null,"Date",null,null,null,null,null,null,null,null,null,null,null,null,null,null,null,null,null,null,null,null,null,null,{"$f":"IF(Z484>0,+((V484-Y484)/'Post-holder data'!$DE$5),0)","v":0},0,0]
[null,null,null,null,null,null,null,null,null,null,null,null,null,null,null,null,null,null,null,null,null,null,null,null,null,null,{"$f":"IF(Z485>0,+((V485-Y485)/'Post-holder data'!$DE$5),0)","v":0},0,0]
[null,null,null,null,null,null,null,null,null,null,null,null,null,null,null,null,null,null,null,null,null,null,null,null,null,null,{"$f":"IF(Z486>0,+((V486-Y486)/'Post-holder data'!$DE$5),0)","v":0},0,0]
[null,null,null,null,null,null,null,null,null,null,null,null,null,null,null,null,null,null,null,null,null,null,null,null,null,null,{"$f":"IF(Z487>0,+((V487-Y487)/'Post-holder data'!$DE$5),0)","v":0},0,0]
[null,null,null,null,null,null,null,null,null,null,null,null,null,null,null,null,null,null,null,null,null,null,null,null,null,null,{"$f":"IF(Z488>0,+((V488-Y488)/'Post-holder data'!$DE$5),0)","v":0},0,0]
[null,null,null,null,null,null,null,null,null,null,null,null,null,null,null,null,null,null,null,null,null,null,null,null,null,null,{"$f":"IF(Z489>0,+((V489-Y489)/'Post-holder data'!$DE$5),0)","v":0},0,0]
[null,null,null,null,null,null,null,null,null,null,null,null,null,null,null,null,null,null,null,null,null,null,null,null,null,null,{"$f":"IF(Z490>0,+((V490-Y490)/'Post-holder data'!$DE$5),0)","v":0},0,0]
[null,null,null,null,null,null,null,null,null,null,null,null,null,null,null,null,null,null,null,null,null,null,null,null,null,null,{"$f":"IF(Z491>0,+((V491-Y491)/'Post-holder data'!$DE$5),0)","v":0},0,0]
[null,null,null,null,null,null,null,null,null,null,null,null,null,null,null,null,null,null,null,null,null,null,null,null,null,null,{"$f":"IF(Z492>0,+((V492-Y492)/'Post-holder data'!$DE$5),0)","v":0},0,0]
[null,null,null,null,null,null,null,null,null,null,null,null,null,null,null,null,null,null,null,null,null,null,null,null,null,null,{"$f":"IF(Z493>0,+((V493-Y493)/'Post-holder data'!$DE$5),0)","v":0},0,0]
[null,null,null,null,null,null,null,null,null,null,null,null,null,null,null,null,null,null,null,null,null,null,null,null,null,null,{"$f":"IF(Z494>0,+((V494-Y494)/'Post-holder data'!$DE$5),0)","v":0},0,0]
[null,null,null,null,null,null,null,null,null,null,null,null,null,null,null,null,null,null,null,null,null,null,null,null,null,null,{"$f":"IF(Z495>0,+((V495-Y495)/'Post-holder data'!$DE$5),0)","v":0},0,0]
[null,null,null,null,null,null,null,null,null,null,null,null,null,null,null,null,null,null,null,null,null,null,null,null,null,null,{"$f":"IF(Z496>0,+((V496-Y496)/'Post-holder data'!$DE$5),0)","v":0},0,0]
[null,null,null,null,null,null,null,null,null,null,null,null,null,null,null,null,null,null,null,null,null,null,null,null,null,null,{"$f":"IF(Z497>0,+((V497-Y497)/'Post-holder data'!$DE$5),0)","v":0},0,0]
[null,null,null,null,null,null,null,null,null,null,null,null,null,null,null,null,null,null,null,null,null,null,null,null,null,null,{"$f":"IF(Z498>0,+((V498-Y498)/'Post-holder data'!$DE$5),0)","v":0},0,0]
[null,null,null,null,null,null,null,null,null,null,null,null,null,null,null,null,null,null,null,null,null,null,null,null,null,null,{"$f":"IF(Z499>0,+((V499-Y499)/'Post-holder data'!$DE$5),0)","v":0},0,0]
[null,null,null,null,null,null,null,null,null,null,null,null,null,null,null,null,null,null,null,null,null,null,null,null,null,null,{"$f":"IF(Z500>0,+((V500-Y500)/'Post-holder data'!$DE$5),0)","v":0},0,0]
[null,null,null,null,null,null,null,null,null,null,null,null,null,null,null,null,null,null,null,null,null,null,null,null,null,null,{"$f":"IF(Z501>0,+((V501-Y501)/'Post-holder data'!$DE$5),0)","v":0},0,0]
[null,null,null,null,null,null,null,null,null,null,null,null,null,null,null,null,null,null,null,null,null,null,null,null,null,null,{"$f":"IF(Z502>0,+((V502-Y502)/'Post-holder data'!$DE$5),0)","v":0},0,0]
[null,null,null,null,null,null,null,null,null,null,null,null,null,null,null,null,null,null,null,null,null,null,null,null,null,null,{"$f":"IF(Z503>0,+((V503-Y503)/'Post-holder data'!$DE$5),0)","v":0},0,0]
[null,null,null,null,null,null,null,null,null,null,null,null,null,null,null,null,null,null,null,null,null,null,null,null,null,null,{"$f":"IF(Z504>0,+((V504-Y504)/'Post-holder data'!$DE$5),0)","v":0},0,0]
[null,null,null,null,null,null,null,null,null,null,null,null,null,null,null,null,null,null,null,null,null,null,null,null,null,null,{"$f":"IF(Z505>0,+((V505-Y505)/'Post-holder data'!$DE$5),0)","v":0},0,0]
[null,null,null,null,null,null,null,null,null,null,null,null,null,null,null,null,null,null,null,null,null,null,null,null,null,null,{"$f":"IF(Z506>0,+((V506-Y506)/'Post-holder data'!$DE$5),0)","v":0},0,0]
[null,null,null,null,null,null,null,null,null,null,null,null,null,null,null,null,null,null,null,null,null,null,null,null,null,null,{"$f":"IF(Z507>0,+((V507-Y507)/'Post-holder data'!$DE$5),0)","v":0},0,0]
[null,null,null,null,null,null,null,null,null,null,null,null,null,null,null,null,null,null,null,null,null,null,null,null,null,null,{"$f":"IF(Z508>0,+((V508-Y508)/'Post-holder data'!$DE$5),0)","v":0},0,0]
[null,null,null,null,null,null,null,null,null,null,null,null,null,null,null,null,null,null,null,null,null,null,null,null,null,null,{"$f":"IF(Z509>0,+((V509-Y509)/'Post-holder data'!$DE$5),0)","v":0},0,0]
[null,null,null,null,null,null,null,null,null,null,null,null,null,null,null,null,null,null,null,null,null,null,null,null,null,null,{"$f":"IF(Z510>0,+((V510-Y510)/'Post-holder data'!$DE$5),0)","v":0},0,0]
[null,null,null,null,null,null,null,null,null,null,null,null,null,null,null,null,null,null,null,null,null,null,null,null,null,null,{"$f":"IF(Z511>0,+((V511-Y511)/'Post-holder data'!$DE$5),0)","v":0},0,0]
[null,null,null,null,null,null,null,null,null,null,null,null,null,null,null,null,null,null,null,null,null,null,null,null,null,null,{"$f":"IF(Z512>0,+((V512-Y512)/'Post-holder data'!$DE$5),0)","v":0},0,0]
[null,null,null,null,null,null,null,null,null,null,null,null,null,null,null,null,null,null,null,null,null,null,null,null,null,null,{"$f":"IF(Z513>0,+((V513-Y513)/'Post-holder data'!$DE$5),0)","v":0},0,0]
[null,null,null,null,null,null,null,null,null,null,null,null,null,null,null,null,null,null,null,null,null,null,null,null,null,null,{"$f":"IF(Z514>0,+((V514-Y514)/'Post-holder data'!$DE$5),0)","v":0},0,0]
[null,null,null,null,null,null,null,null,null,null,null,null,null,null,null,null,null,null,null,null,null,null,null,null,null,null,{"$f":"IF(Z515>0,+((V515-Y515)/'Post-holder data'!$DE$5),0)","v":0},0,0]
[null,null,null,null,null,null,null,null,null,null,null,null,null,null,null,null,null,null,null,null,null,null,null,null,null,null,{"$f":"IF(Z516>0,+((V516-Y516)/'Post-holder data'!$DE$5),0)","v":0},0,0]
[null,null,null,null,null,null,null,null,null,null,null,null,null,null,null,null,null,null,null,null,null,null,null,null,null,null,{"$f":"IF(Z517>0,+((V517-Y517)/'Post-holder data'!$DE$5),0)","v":0},0,0]
[null,null,null,null,null,null,null,null,null,null,null,null,null,null,null,null,null,null,null,null,null,null,null,null,null,null,{"$f":"IF(Z518>0,+((V518-Y518)/'Post-holder data'!$DE$5),0)","v":0},0,0]
[null,null,null,null,null,null,null,null,null,null,null,null,null,null,null,null,null,null,null,null,null,null,null,null,null,null,{"$f":"IF(Z519>0,+((V519-Y519)/'Post-holder data'!$DE$5),0)","v":0},0,0]
[null,null,null,null,null,null,null,null,null,null,null,null,null,null,null,null,null,null,null,null,null,null,null,null,null,null,{"$f":"IF(Z520>0,+((V520-Y520)/'Post-holder data'!$DE$5),0)","v":0},0,0]
[null,null,null,null,null,null,null,null,null,null,null,null,null,null,null,null,null,null,null,null,null,null,null,null,null,null,{"$f":"IF(Z521>0,+((V521-Y521)/'Post-holder data'!$DE$5),0)","v":0},0,0]
[null,null,null,null,null,null,null,null,null,null,null,null,null,null,null,null,null,null,null,null,null,null,null,null,null,null,{"$f":"IF(Z522>0,+((V522-Y522)/'Post-holder data'!$DE$5),0)","v":0},0,0]
[null,null,null,null,null,null,null,null,null,null,null,null,null,null,null,null,null,null,null,null,null,null,null,null,null,null,{"$f":"IF(Z523>0,+((V523-Y523)/'Post-holder data'!$DE$5),0)","v":0},0,0]
[null,null,null,null,null,null,null,null,null,null,null,null,null,null,null,null,null,null,null,null,null,null,null,null,null,null,{"$f":"IF(Z524>0,+((V524-Y524)/'Post-holder data'!$DE$5),0)","v":0},0,0]
[null,null,null,null,null,null,null,null,null,null,null,null,null,null,null,null,null,null,null,null,null,null,null,null,null,null,{"$f":"IF(Z525>0,+((V525-Y525)/'Post-holder data'!$DE$5),0)","v":0},0,0]
[null,null,null,null,null,null,null,null,null,null,null,null,null,null,null,null,null,null,null,null,null,null,null,null,null,null,{"$f":"IF(Z526>0,+((V526-Y526)/'Post-holder data'!$DE$5),0)","v":0},0,0]
[null,null,null,null,null,null,null,null,null,null,null,null,null,null,null,null,null,null,null,null,null,null,null,null,null,null,{"$f":"IF(Z527>0,+((V527-Y527)/'Post-holder data'!$DE$5),0)","v":0},0,0]
[null,null,null,null,null,null,null,null,null,null,null,null,null,null,null,null,null,null,null,null,null,null,null,null,null,null,{"$f":"IF(Z528>0,+((V528-Y528)/'Post-holder data'!$DE$5),0)","v":0},0,0]
[null,null,null,null,null,null,null,null,null,null,null,null,null,null,null,null,null,null,null,null,null,null,null,null,null,null,{"$f":"IF(Z529>0,+((V529-Y529)/'Post-holder data'!$DE$5),0)","v":0},{"$f":"+W529-Y529","v":0},{"$f":"+V529-W529","v":0}]
[null,null,null,null,null,null,null,null,null,null,null,null,null,null,null,null,null,null,null,null,null,null,null,null,null,null,{"$f":"IF(Z530>0,+((V530-Y530)/'Post-holder data'!$DE$5),0)","v":0},0,0]
[null,null,null,null,null,null,null,null,null,null,null,null,null,null,null,null,null,null,null,null,null,null,null,null,null,null,{"$f":"IF(Z531>0,+((V531-Y531)/'Post-holder data'!$DE$5),0)","v":0},0,0]
[null,null,null,null,null,null,null,null,null,null,null,null,null,null,null,null,null,null,null,null,null,null,null,null,null,null,{"$f":"IF(Z532>0,+((V532-Y532)/'Post-holder data'!$DE$5),0)","v":0},0,0]
[null,null,null,null,null,null,null,null,null,null,null,null,null,null,null,null,null,null,null,null,null,null,null,null,null,null,{"$f":"IF(Z533>0,+((V533-Y533)/'Post-holder data'!$DE$5),0)","v":0},0,0]
[null,null,null,null,null,null,null,null,null,null,null,null,null,null,null,null,null,null,null,null,null,null,null,null,null,null,{"$f":"IF(Z534>0,+((V534-Y534)/'Post-holder data'!$DE$5),0)","v":0},0,0]
[null,null,null,null,null,null,null,null,null,null,null,null,null,null,null,null,null,null,null,null,null,null,null,null,null,null,{"$f":"IF(Z535>0,+((V535-Y535)/'Post-holder data'!$DE$5),0)","v":0},0,0]
[null,null,null,null,null,null,null,null,null,null,null,null,null,null,null,null,null,null,null,null,null,null,null,null,null,null,{"$f":"IF(Z536>0,+((V536-Y536)/'Post-holder data'!$DE$5),0)","v":0},0,0]
[null,null,null,null,null,null,null,null,null,null,null,null,null,null,null,null,null,null,null,null,null,null,null,null,null,null,{"$f":"IF(Z537>0,+((V537-Y537)/'Post-holder data'!$DE$5),0)","v":0},0,0]
[null,null,null,null,null,null,null,null,null,null,null,null,null,null,null,null,null,null,null,null,null,null,null,null,null,null,{"$f":"IF(Z538>0,+((V538-Y538)/'Post-holder data'!$DE$5),0)","v":0},0,0]
[null,null,null,null,null,null,null,null,null,null,null,null,null,null,null,null,null,null,null,null,null,null,null,null,null,null,{"$f":"IF(Z539>0,+((V539-Y539)/'Post-holder data'!$DE$5),0)","v":0},0,0]
[null,null,null,null,null,null,null,null,null,null,null,null,null,null,null,null,null,null,null,null,null,null,null,null,null,null,{"$f":"IF(Z540>0,+((V540-Y540)/'Post-holder data'!$DE$5),0)","v":0},0,0]
[null,null,null,null,null,null,null,null,null,null,null,null,null,null,null,null,null,null,null,null,null,null,null,null,null,null,{"$f":"IF(Z541>0,+((V541-Y541)/'Post-holder data'!$DE$5),0)","v":0},0,0]
[null,null,null,null,null,null,null,null,null,null,null,null,null,null,null,null,null,null,null,null,null,null,null,null,null,null,{"$f":"IF(Z542>0,+((V542-Y542)/'Post-holder data'!$DE$5),0)","v":0},0,0]
[null,null,null,null,null,null,null,null,null,null,null,null,null,null,null,null,null,null,null,null,null,null,null,null,null,null,{"$f":"IF(Z543>0,+((V543-Y543)/'Post-holder data'!$DE$5),0)","v":0},0,0]
[null,null,null,null,null,null,null,null,null,null,null,null,null,null,null,null,null,null,null,null,null,null,null,null,null,null,{"$f":"IF(Z544>0,+((V544-Y544)/'Post-holder data'!$DE$5),0)","v":0},0,0]
[null,null,null,null,null,null,null,null,null,null,null,null,null,null,null,null,null,null,null,null,null,null,null,null,null,null,{"$f":"IF(Z545>0,+((V545-Y545)/'Post-holder data'!$DE$5),0)","v":0},0,0]
[null,null,null,null,null,null,null,null,null,null,null,null,null,null,null,null,null,null,null,null,null,null,null,null,null,null,{"$f":"IF(Z546>0,+((V546-Y546)/'Post-holder data'!$DE$5),0)","v":0},0,0]
[null,null,null,null,null,null,null,null,null,null,null,null,null,null,null,null,null,null,null,null,null,null,null,null,null,null,{"$f":"IF(Z547>0,+((V547-Y547)/'Post-holder data'!$DE$5),0)","v":0},0,0]
[null,null,null,null,null,null,null,null,null,null,null,null,null,null,null,null,null,null,null,null,null,null,null,null,null,null,{"$f":"IF(Z548>0,+((V548-Y548)/'Post-holder data'!$DE$5),0)","v":0},0,0]
[null,null,null,null,null,null,null,null,null,null,null,null,null,null,null,null,null,null,null,null,null,null,null,null,null,null,{"$f":"IF(Z549>0,+((V549-Y549)/'Post-holder data'!$DE$5),0)","v":0},0,0]
[null,null,null,null,null,null,null,null,null,null,null,null,null,null,null,null,null,null,null,null,null,null,null,null,null,null,{"$f":"IF(Z550>0,+((V550-Y550)/'Post-holder data'!$DE$5),0)","v":0},0,0]
[null,null,null,null,null,null,null,null,null,null,null,null,null,null,null,null,null,null,null,null,null,null,null,null,null,null,{"$f":"IF(Z551>0,+((V551-Y551)/'Post-holder data'!$DE$5),0)","v":0},0,0]
[null,null,null,null,null,null,null,null,null,null,null,null,null,null,null,null,null,null,null,null,null,null,null,null,null,null,{"$f":"IF(Z552>0,+((V552-Y552)/'Post-holder data'!$DE$5),0)","v":0},0,0]
[null,null,null,null,null,null,null,null,null,null,null,null,null,null,null,null,null,null,null,null,null,null,null,null,null,null,{"$f":"IF(Z553>0,+((V553-Y553)/'Post-holder data'!$DE$5),0)","v":0},0,0]
[null,null,null,null,null,null,null,null,null,null,null,null,null,null,null,null,null,null,null,null,null,null,null,null,null,null,{"$f":"IF(Z554>0,+((V554-Y554)/'Post-holder data'!$DE$5),0)","v":0},0,0]
[null,null,null,null,null,null,null,null,null,null,null,null,null,null,null,null,null,null,null,null,null,null,null,null,null,null,{"$f":"IF(Z555>0,+((V555-Y555)/'Post-holder data'!$DE$5),0)","v":0},0,0]
[null,null,null,null,null,null,null,null,null,null,null,null,null,null,null,null,null,null,null,null,null,null,null,null,null,null,{"$f":"IF(Z556>0,+((V556-Y556)/'Post-holder data'!$DE$5),0)","v":0},0,0]
[null,null,null,null,null,null,null,null,null,null,null,null,null,null,null,null,null,null,null,null,null,null,null,null,null,null,{"$f":"IF(Z557>0,+((V557-Y557)/'Post-holder data'!$DE$5),0)","v":0},0,0]
[null,null,null,null,null,null,null,null,null,null,null,null,null,null,null,null,null,null,null,null,null,null,null,null,null,null,{"$f":"IF(Z558>0,+((V558-Y558)/'Post-holder data'!$DE$5),0)","v":0},0,0]
[null,null,null,null,null,null,null,null,null,null,null,null,null,null,null,null,null,null,null,null,null,null,null,null,null,null,{"$f":"IF(Z559>0,+((V559-Y559)/'Post-holder data'!$DE$5),0)","v":0},0,0]
[null,null,null,null,null,null,null,null,null,null,null,null,null,null,null,null,null,null,null,null,null,null,null,null,null,null,{"$f":"IF(Z560>0,+((V560-Y560)/'Post-holder data'!$DE$5),0)","v":0},0,0]
[null,null,null,null,null,null,null,null,null,null,null,null,null,null,null,null,null,null,null,null,null,null,null,null,null,null,{"$f":"IF(Z561>0,+((V561-Y561)/'Post-holder data'!$DE$5),0)","v":0},0,0]
[null,null,null,null,null,null,null,null,null,null,null,null,null,null,null,null,null,null,null,null,null,null,null,null,null,null,{"$f":"IF(Z562>0,+((V562-Y562)/'Post-holder data'!$DE$5),0)","v":0},0,0]
[null,null,null,null,null,null,null,null,null,null,null,null,null,null,null,null,null,null,null,null,null,null,null,null,null,null,{"$f":"IF(Z563>0,+((V563-Y563)/'Post-holder data'!$DE$5),0)","v":0},0,0]
[null,null,null,null,null,null,null,null,null,null,null,null,null,null,null,null,null,null,null,null,null,null,null,null,null,null,{"$f":"IF(Z564>0,+((V564-Y564)/'Post-holder data'!$DE$5),0)","v":0},0,0]
[null,null,null,null,null,null,null,null,null,null,null,null,null,null,null,null,null,null,null,null,null,null,null,null,null,null,{"$f":"IF(Z565>0,+((V565-Y565)/'Post-holder data'!$DE$5),0)","v":0},0,0]
[null,null,null,null,null,null,null,null,null,null,null,null,null,null,null,null,null,null,null,null,null,null,null,null,null,null,{"$f":"IF(Z566>0,+((V566-Y566)/'Post-holder data'!$DE$5),0)","v":0},0,0]
[null,null,null,null,null,null,null,null,null,null,null,null,null,null,null,null,null,null,null,null,null,null,null,null,null,null,{"$f":"IF(Z567>0,+((V567-Y567)/'Post-holder data'!$DE$5),0)","v":0},0,0]
[null,null,null,null,null,null,null,null,null,null,null,null,null,null,null,null,null,null,null,null,null,null,null,null,null,null,{"$f":"IF(Z568>0,+((V568-Y568)/'Post-holder data'!$DE$5),0)","v":0},0,0]
[null,null,null,null,null,null,null,null,null,null,null,null,null,null,null,null,null,null,null,null,null,null,null,null,null,null,{"$f":"IF(Z569>0,+((V569-Y569)/'Post-holder data'!$DE$5),0)","v":0},0,0]
[null,null,null,null,null,null,null,null,null,null,null,null,null,null,null,null,null,null,null,null,null,null,null,null,null,null,{"$f":"IF(Z570>0,+((V570-Y570)/'Post-holder data'!$DE$5),0)","v":0},0,0]
[null,null,null,null,null,null,null,null,null,null,null,null,null,null,null,null,null,null,null,null,null,null,null,null,null,null,{"$f":"IF(Z571>0,+((V571-Y571)/'Post-holder data'!$DE$5),0)","v":0},0,0]
[null,null,null,null,null,null,null,null,null,null,null,null,null,null,null,null,null,null,null,null,null,null,null,null,null,null,{"$f":"IF(Z572>0,+((V572-Y572)/'Post-holder data'!$DE$5),0)","v":0},0,0]
[null,null,null,null,null,null,null,null,null,null,null,null,null,null,null,null,null,null,null,null,null,null,null,null,null,null,{"$f":"IF(Z573>0,+((V573-Y573)/'Post-holder data'!$DE$5),0)","v":0},0,0]
[null,null,null,null,null,null,null,null,null,null,null,null,null,null,null,null,null,null,null,null,null,null,null,null,null,null,{"$f":"IF(Z574>0,+((V574-Y574)/'Post-holder data'!$DE$5),0)","v":0},0,0]
[null,null,null,null,null,null,null,null,null,null,null,null,null,null,null,null,null,null,null,null,null,null,null,null,null,null,{"$f":"IF(Z575>0,+((V575-Y575)/'Post-holder data'!$DE$5),0)","v":0},0,0]
[null,null,null,null,null,null,null,null,null,null,null,null,null,null,null,null,null,null,null,null,null,null,null,null,null,null,{"$f":"IF(Z576>0,+((V576-Y576)/'Post-holder data'!$DE$5),0)","v":0},0,0]
[null,null,null,null,null,null,null,null,null,null,null,null,null,null,null,null,null,null,null,null,null,null,null,null,null,null,{"$f":"IF(Z577>0,+((V577-Y577)/'Post-holder data'!$DE$5),0)","v":0},0,0]
[null,null,null,null,null,null,null,null,null,null,null,null,null,null,null,null,null,null,null,null,null,null,null,null,null,null,{"$f":"IF(Z578>0,+((V578-Y578)/'Post-holder data'!$DE$5),0)","v":0},0,0]
[null,null,null,null,null,null,null,null,null,null,null,null,null,null,null,null,null,null,null,null,null,null,null,null,null,null,{"$f":"IF(Z579>0,+((V579-Y579)/'Post-holder data'!$DE$5),0)","v":0},0,0]
[null,null,null,null,null,null,null,null,null,null,null,null,null,null,null,null,null,null,null,null,null,null,null,null,null,null,{"$f":"IF(Z580>0,+((V580-Y580)/'Post-holder data'!$DE$5),0)","v":0},0,0]
[null,null,null,null,null,null,null,null,null,null,null,null,null,null,null,null,null,null,null,null,null,null,null,null,null,null,{"$f":"IF(Z581>0,+((V581-Y581)/'Post-holder data'!$DE$5),0)","v":0},0,0]
[null,null,null,null,null,null,null,null,null,null,null,null,null,null,null,null,null,null,null,null,null,null,null,null,null,null,{"$f":"IF(Z582>0,+((V582-Y582)/'Post-holder data'!$DE$5),0)","v":0},0,0]
[null,null,null,null,null,null,null,null,null,null,null,null,null,null,null,null,null,null,null,null,null,null,null,null,null,null,{"$f":"IF(Z583>0,+((V583-Y583)/'Post-holder data'!$DE$5),0)","v":0},0,0]
[null,null,null,null,null,null,null,null,null,null,null,null,null,null,null,null,null,null,null,null,null,null,null,null,null,null,{"$f":"IF(Z584>0,+((V584-Y584)/'Post-holder data'!$DE$5),0)","v":0},0,0]
[null,null,null,null,null,null,null,null,null,null,null,null,null,null,null,null,null,null,null,null,null,null,null,null,null,null,{"$f":"IF(Z585>0,+((V585-Y585)/'Post-holder data'!$DE$5),0)","v":0},0,0]
[null,null,null,null,null,null,null,null,null,null,null,null,null,null,null,null,null,null,null,null,null,null,null,null,null,null,{"$f":"IF(Z586>0,+((V586-Y586)/'Post-holder data'!$DE$5),0)","v":0},0,0]
[null,null,null,null,null,null,null,null,null,null,null,null,null,null,null,null,null,null,null,null,null,null,null,null,null,null,{"$f":"IF(Z587>0,+((V587-Y587)/'Post-holder data'!$DE$5),0)","v":0},0,0]
[null,null,null,null,null,null,null,null,null,null,null,null,null,null,null,null,null,null,null,null,null,null,null,null,null,null,{"$f":"IF(Z588>0,+((V588-Y588)/'Post-holder data'!$DE$5),0)","v":0},0,0]
[null,null,null,null,null,null,null,null,null,null,null,null,null,null,null,null,null,null,null,null,null,null,null,null,null,null,{"$f":"IF(Z589>0,+((V589-Y589)/'Post-holder data'!$DE$5),0)","v":0},0,0]
[null,null,null,null,null,null,null,null,null,null,null,null,null,null,null,null,null,null,null,null,null,null,null,null,null,null,{"$f":"IF(Z590>0,+((V590-Y590)/'Post-holder data'!$DE$5),0)","v":0},0,0]
[null,null,null,null,null,null,null,null,null,null,null,null,null,null,null,null,null,null,null,null,null,null,null,null,null,null,{"$f":"IF(Z591>0,+((V591-Y591)/'Post-holder data'!$DE$5),0)","v":0},0,0]
[null,null,null,null,null,null,null,null,null,null,null,null,null,null,null,null,null,null,null,null,null,null,null,null,null,null,{"$f":"IF(Z592>0,+((V592-Y592)/'Post-holder data'!$DE$5),0)","v":0},0,0]
[null,null,null,null,null,null,null,null,null,null,null,null,null,null,null,null,null,null,null,null,null,null,null,null,null,null,{"$f":"IF(Z593>0,+((V593-Y593)/'Post-holder data'!$DE$5),0)","v":0},{"$f":"+W593-Y593","v":0},{"$f":"+V593-W593","v":0}]
[null,null,null,null,null,null,null,null,null,null,null,null,null,null,null,null,null,null,null,null,null,null,null,null,null,null,{"$f":"IF(Z594>0,+((V594-Y594)/'Post-holder data'!$DE$5),0)","v":0},0,0]
[null,null,null,null,null,null,null,null,null,null,null,null,null,null,null,null,null,null,null,null,null,null,null,null,null,null,{"$f":"IF(Z595>0,+((V595-Y595)/'Post-holder data'!$DE$5),0)","v":0},0,0]
[null,null,null,null,null,null,null,null,null,null,null,null,null,null,null,null,null,null,null,null,null,null,null,null,null,null,{"$f":"IF(Z596>0,+((V596-Y596)/'Post-holder data'!$DE$5),0)","v":0},0,0]
[null,null,null,null,null,null,null,null,null,null,null,null,null,null,null,null,null,null,null,null,null,null,null,null,null,null,{"$f":"IF(Z597>0,+((V597-Y597)/'Post-holder data'!$DE$5),0)","v":0},0,0]
[null,null,null,null,null,null,null,null,null,null,null,null,null,null,null,null,null,null,null,null,null,null,null,null,null,null,{"$f":"IF(Z598>0,+((V598-Y598)/'Post-holder data'!$DE$5),0)","v":0},0,0]
[null,null,null,null,null,null,null,null,null,null,null,null,null,null,null,null,null,null,null,null,null,null,null,null,null,null,{"$f":"IF(Z599>0,+((V599-Y599)/'Post-holder data'!$DE$5),0)","v":0},0,0]
[null,null,null,null,null,null,null,null,null,null,null,null,null,null,null,null,null,null,null,null,null,null,null,null,null,null,{"$f":"IF(Z600>0,+((V600-Y600)/'Post-holder data'!$DE$5),0)","v":0},0,0]
[null,null,null,null,null,null,null,null,null,null,null,null,null,null,null,null,null,null,null,null,null,null,null,null,null,null,{"$f":"IF(Z601>0,+((V601-Y601)/'Post-holder data'!$DE$5),0)","v":0},0,0]
[null,null,null,null,null,null,null,null,null,null,null,null,null,null,null,null,null,null,null,null,null,null,null,null,null,null,{"$f":"IF(Z602>0,+((V602-Y602)/'Post-holder data'!$DE$5),0)","v":0},0,0]
[null,null,null,null,null,null,null,null,null,null,null,null,null,null,null,null,null,null,null,null,null,null,null,null,null,null,{"$f":"IF(Z603>0,+((V603-Y603)/'Post-holder data'!$DE$5),0)","v":0},0,0]
[null,null,null,null,null,null,null,null,null,null,null,null,null,null,null,null,null,null,null,null,null,null,null,null,null,null,{"$f":"IF(Z604>0,+((V604-Y604)/'Post-holder data'!$DE$5),0)","v":0},0,0]
[null,null,null,null,null,null,null,null,null,null,null,null,null,null,null,null,null,null,null,null,null,null,null,null,null,null,{"$f":"IF(Z605>0,+((V605-Y605)/'Post-holder data'!$DE$5),0)","v":0},0,0]
[null,null,null,null,null,null,null,null,null,null,null,null,null,null,null,null,null,null,null,null,null,null,null,null,null,null,{"$f":"IF(Z606>0,+((V606-Y606)/'Post-holder data'!$DE$5),0)","v":0},0,0]
[null,null,null,null,null,null,null,null,null,null,null,null,null,null,null,null,null,null,null,null,null,null,null,null,null,null,{"$f":"IF(Z607>0,+((V607-Y607)/'Post-holder data'!$DE$5),0)","v":0},0,0]
[null,null,null,null,null,null,null,null,null,null,null,null,null,null,null,null,null,null,null,null,null,null,null,null,null,null,{"$f":"IF(Z608>0,+((V608-Y608)/'Post-holder data'!$DE$5),0)","v":0},0,0]
[null,null,null,null,null,null,null,null,null,null,null,null,null,null,null,null,null,null,null,null,null,null,null,null,null,null,{"$f":"IF(Z609>0,+((V609-Y609)/'Post-holder data'!$DE$5),0)","v":0},0,0]
[null,null,null,null,null,null,null,null,null,null,null,null,null,null,null,null,null,null,null,null,null,null,null,null,null,null,{"$f":"IF(Z610>0,+((V610-Y610)/'Post-holder data'!$DE$5),0)","v":0},0,0]
[null,null,null,null,null,null,null,null,null,null,null,null,null,null,null,null,null,null,null,null,null,null,null,null,null,null,{"$f":"IF(Z611>0,+((V611-Y611)/'Post-holder data'!$DE$5),0)","v":0},0,0]
[null,null,null,null,null,null,null,null,null,null,null,null,null,null,null,null,null,null,null,null,null,null,null,null,null,null,{"$f":"IF(Z612>0,+((V612-Y612)/'Post-holder data'!$DE$5),0)","v":0},0,0]
[null,null,null,null,null,null,null,null,null,null,null,null,null,null,null,null,null,null,null,null,null,null,null,null,null,null,{"$f":"IF(Z613>0,+((V613-Y613)/'Post-holder data'!$DE$5),0)","v":0},0,0]
[null,null,null,null,null,null,null,null,null,null,null,null,null,null,null,null,null,null,null,null,null,null,null,null,null,null,{"$f":"IF(Z614>0,+((V614-Y614)/'Post-holder data'!$DE$5),0)","v":0},0,0]
[null,null,null,null,null,null,null,null,null,null,null,null,null,null,null,null,null,null,null,null,null,null,null,null,null,null,{"$f":"IF(Z615>0,+((V615-Y615)/'Post-holder data'!$DE$5),0)","v":0},0,0]
[null,null,null,null,null,null,null,null,null,null,null,null,null,null,null,null,null,null,null,null,null,null,null,null,null,null,{"$f":"IF(Z616>0,+((V616-Y616)/'Post-holder data'!$DE$5),0)","v":0},0,0]
[null,null,null,null,null,null,null,null,null,null,null,null,null,null,null,null,null,null,null,null,null,null,null,null,null,null,{"$f":"IF(Z617>0,+((V617-Y617)/'Post-holder data'!$DE$5),0)","v":0},0,0]
[null,null,null,null,null,null,null,null,null,null,null,null,null,null,null,null,null,null,null,null,null,null,null,null,null,null,{"$f":"IF(Z618>0,+((V618-Y618)/'Post-holder data'!$DE$5),0)","v":0},0,0]
[null,null,null,null,null,null,null,null,null,null,null,null,null,null,null,null,null,null,null,null,null,null,null,null,null,null,{"$f":"IF(Z619>0,+((V619-Y619)/'Post-holder data'!$DE$5),0)","v":0},0,0]
[null,null,null,null,null,null,null,null,null,null,null,null,null,null,null,null,null,null,null,null,null,null,null,null,null,null,{"$f":"IF(Z620>0,+((V620-Y620)/'Post-holder data'!$DE$5),0)","v":0},0,0]
[null,null,null,null,null,null,null,null,null,null,null,null,null,null,null,null,null,null,null,null,null,null,null,null,null,null,{"$f":"IF(Z621>0,+((V621-Y621)/'Post-holder data'!$DE$5),0)","v":0},0,0]
[null,null,null,null,null,null,null,null,null,null,null,null,null,null,null,null,null,null,null,null,null,null,null,null,null,null,{"$f":"IF(Z622>0,+((V622-Y622)/'Post-holder data'!$DE$5),0)","v":0},0,0]
[null,null,null,null,null,null,null,null,null,null,null,null,null,null,null,null,null,null,null,null,null,null,null,null,null,null,{"$f":"IF(Z623>0,+((V623-Y623)/'Post-holder data'!$DE$5),0)","v":0},0,0]
[null,null,null,null,null,null,null,null,null,null,null,null,null,null,null,null,null,null,null,null,null,null,null,null,null,null,{"$f":"IF(Z624>0,+((V624-Y624)/'Post-holder data'!$DE$5),0)","v":0},0,0]
[null,null,null,null,null,null,null,null,null,null,null,null,null,null,null,null,null,null,null,null,null,null,null,null,null,null,{"$f":"IF(Z625>0,+((V625-Y625)/'Post-holder data'!$DE$5),0)","v":0},0,0]
[null,null,null,null,null,null,null,null,null,null,null,null,null,null,null,null,null,null,null,null,null,null,null,null,null,null,{"$f":"IF(Z626>0,+((V626-Y626)/'Post-holder data'!$DE$5),0)","v":0},0,0]
[null,null,null,null,null,null,null,null,null,null,null,null,null,null,null,null,null,null,null,null,null,null,null,null,null,null,{"$f":"IF(Z627>0,+((V627-Y627)/'Post-holder data'!$DE$5),0)","v":0},0,0]
[null,null,null,null,null,null,null,null,null,null,null,null,null,null,null,null,null,null,null,null,null,null,null,null,null,null,{"$f":"IF(Z628>0,+((V628-Y628)/'Post-holder data'!$DE$5),0)","v":0},0,0]
[null,null,null,null,null,null,null,null,null,null,null,null,null,null,null,null,null,null,null,null,null,null,null,null,null,null,{"$f":"IF(Z629>0,+((V629-Y629)/'Post-holder data'!$DE$5),0)","v":0},0,0]
[null,null,null,null,null,null,null,null,null,null,null,null,null,null,null,null,null,null,null,null,null,null,null,null,null,null,{"$f":"IF(Z630>0,+((V630-Y630)/'Post-holder data'!$DE$5),0)","v":0},0,0]
[null,null,null,null,null,null,null,null,null,null,null,null,null,null,null,null,null,null,null,null,null,null,null,null,null,null,{"$f":"IF(Z631>0,+((V631-Y631)/'Post-holder data'!$DE$5),0)","v":0},0,0]
[null,null,null,null,null,null,null,null,null,null,null,null,null,null,null,null,null,null,null,null,null,null,null,null,null,null,{"$f":"IF(Z632>0,+((V632-Y632)/'Post-holder data'!$DE$5),0)","v":0},0,0]
[null,null,null,null,null,null,null,null,null,null,null,null,null,null,null,null,null,null,null,null,null,null,null,null,null,null,{"$f":"IF(Z633>0,+((V633-Y633)/'Post-holder data'!$DE$5),0)","v":0},0,0]
[null,null,null,null,null,null,null,null,null,null,null,null,null,null,null,null,null,null,null,null,null,null,null,null,null,null,{"$f":"IF(Z634>0,+((V634-Y634)/'Post-holder data'!$DE$5),0)","v":0},0,0]
[null,null,null,null,null,null,null,null,null,null,null,null,null,null,null,null,null,null,null,null,null,null,null,null,null,null,{"$f":"IF(Z635>0,+((V635-Y635)/'Post-holder data'!$DE$5),0)","v":0},0,0]
[null,null,null,null,null,null,null,null,null,null,null,null,null,null,null,null,null,null,null,null,null,null,null,null,null,null,{"$f":"IF(Z636>0,+((V636-Y636)/'Post-holder data'!$DE$5),0)","v":0},0,0]
[null,null,null,null,null,null,null,null,null,null,null,null,null,null,null,null,null,null,null,null,null,null,null,null,null,null,{"$f":"IF(Z637>0,+((V637-Y637)/'Post-holder data'!$DE$5),0)","v":0},0,0]
[null,null,null,null,null,null,null,null,null,null,null,null,null,null,null,null,null,null,null,null,null,null,null,null,null,null,{"$f":"IF(Z638>0,+((V638-Y638)/'Post-holder data'!$DE$5),0)","v":0},0,0]
[null,null,null,null,null,null,null,null,null,null,null,null,null,null,null,null,null,null,null,null,null,null,null,null,null,null,{"$f":"IF(Z639>0,+((V639-Y639)/'Post-holder data'!$DE$5),0)","v":0},0,0]
[null,null,null,null,null,null,null,null,null,null,null,null,null,null,null,null,null,null,null,null,null,null,null,null,null,null,{"$f":"IF(Z640>0,+((V640-Y640)/'Post-holder data'!$DE$5),0)","v":0},0,0]
[null,null,null,null,null,null,null,null,null,null,null,null,null,null,null,null,null,null,null,null,null,null,null,null,null,null,{"$f":"IF(Z641>0,+((V641-Y641)/'Post-holder data'!$DE$5),0)","v":0},0,0]
[null,null,null,null,null,null,null,null,null,null,null,null,null,null,null,null,null,null,null,null,null,null,null,null,null,null,{"$f":"IF(Z642>0,+((V642-Y642)/'Post-holder data'!$DE$5),0)","v":0},0,0]
[null,null,null,null,null,null,null,null,null,null,null,null,null,null,null,null,null,null,null,null,null,null,null,null,null,null,{"$f":"IF(Z643>0,+((V643-Y643)/'Post-holder data'!$DE$5),0)","v":0},0,0]
[null,null,null,null,null,null,null,null,null,null,null,null,null,null,null,null,null,null,null,null,null,null,null,null,null,null,{"$f":"IF(Z644>0,+((V644-Y644)/'Post-holder data'!$DE$5),0)","v":0},0,0]
[null,null,null,null,null,null,null,null,null,null,null,null,null,null,null,null,null,null,null,null,null,null,null,null,null,null,{"$f":"IF(Z645>0,+((V645-Y645)/'Post-holder data'!$DE$5),0)","v":0},0,0]
[null,null,null,null,null,null,null,null,null,null,null,null,null,null,null,null,null,null,null,null,null,null,null,null,null,null,{"$f":"IF(Z646>0,+((V646-Y646)/'Post-holder data'!$DE$5),0)","v":0},0,0]
[null,null,null,null,null,null,null,null,null,null,null,null,null,null,null,null,null,null,null,null,null,null,null,null,null,null,{"$f":"IF(Z647>0,+((V647-Y647)/'Post-holder data'!$DE$5),0)","v":0},0,0]
[null,null,null,null,null,null,null,null,null,null,null,null,null,null,null,null,null,null,null,null,null,null,null,null,null,null,{"$f":"IF(Z648>0,+((V648-Y648)/'Post-holder data'!$DE$5),0)","v":0},0,0]
[null,null,null,null,null,null,null,null,null,null,null,null,null,null,null,null,null,null,null,null,null,null,null,null,null,null,{"$f":"IF(Z649>0,+((V649-Y649)/'Post-holder data'!$DE$5),0)","v":0},0,0]
[null,null,null,null,null,null,null,null,null,null,null,null,null,null,null,null,null,null,null,null,null,null,null,null,null,null,{"$f":"IF(Z650>0,+((V650-Y650)/'Post-holder data'!$DE$5),0)","v":0},0,0]
[null,null,null,null,null,null,null,null,null,null,null,null,null,null,null,null,null,null,null,null,null,null,null,null,null,null,{"$f":"IF(Z651>0,+((V651-Y651)/'Post-holder data'!$DE$5),0)","v":0},0,0]
[null,null,null,null,null,null,null,null,null,null,null,null,null,null,null,null,null,null,null,null,null,null,null,null,null,null,{"$f":"IF(Z652>0,+((V652-Y652)/'Post-holder data'!$DE$5),0)","v":0},0,0]
[null,null,null,null,null,null,null,null,null,null,null,null,null,null,null,null,null,null,null,null,null,null,null,null,null,null,{"$f":"IF(Z653>0,+((V653-Y653)/'Post-holder data'!$DE$5),0)","v":0},0,0]
[null,null,null,null,null,null,null,null,null,null,null,null,null,null,null,null,null,null,null,null,null,null,null,null,null,null,{"$f":"IF(Z654>0,+((V654-Y654)/'Post-holder data'!$DE$5),0)","v":0},0,0]
[null,null,null,null,null,null,null,null,null,null,null,null,null,null,null,null,null,null,null,null,null,null,null,null,null,null,{"$f":"IF(Z655>0,+((V655-Y655)/'Post-holder data'!$DE$5),0)","v":0},0,0]
[null,null,null,null,null,null,null,null,null,null,null,null,null,null,null,null,null,null,null,null,null,null,null,null,null,null,{"$f":"IF(Z656>0,+((V656-Y656)/'Post-holder data'!$DE$5),0)","v":0},0,0]
[null,null,null,null,null,null,null,null,null,null,null,null,null,null,null,null,null,null,null,null,null,null,null,null,null,null,{"$f":"IF(Z657>0,+((V657-Y657)/'Post-holder data'!$DE$5),0)","v":0},{"$f":"+W657-Y657","v":0},{"$f":"+V657-W657","v":0}]
[null,null,null,null,null,null,null,null,null,null,null,null,null,null,null,null,null,null,null,null,null,null,null,null,null,null,{"$f":"IF(Z658>0,+((V658-Y658)/'Post-holder data'!$DE$5),0)","v":0},0,0]
[null,null,null,null,null,null,null,null,null,null,null,null,null,null,null,null,null,null,null,null,null,null,null,null,null,null,{"$f":"IF(Z659>0,+((V659-Y659)/'Post-holder data'!$DE$5),0)","v":0},0,0]
[null,null,null,null,null,null,null,null,null,null,null,null,null,null,null,null,null,null,null,null,null,null,null,null,null,null,{"$f":"IF(Z660>0,+((V660-Y660)/'Post-holder data'!$DE$5),0)","v":0},0,0]
[null,null,null,null,null,null,null,null,null,null,null,null,null,null,null,null,null,null,null,null,null,null,null,null,null,null,{"$f":"IF(Z661>0,+((V661-Y661)/'Post-holder data'!$DE$5),0)","v":0},0,0]
[null,null,null,null,null,null,null,null,null,null,null,null,null,null,null,null,null,null,null,null,null,null,null,null,null,null,{"$f":"IF(Z662>0,+((V662-Y662)/'Post-holder data'!$DE$5),0)","v":0},0,0]
[null,null,null,null,null,null,null,null,null,null,null,null,null,null,null,null,null,null,null,null,null,null,null,null,null,null,{"$f":"IF(Z663>0,+((V663-Y663)/'Post-holder data'!$DE$5),0)","v":0},0,0]
[null,null,null,null,null,null,null,null,null,null,null,null,null,null,null,null,null,null,null,null,null,null,null,null,null,null,{"$f":"IF(Z664>0,+((V664-Y664)/'Post-holder data'!$DE$5),0)","v":0},0,0]
[null,null,null,null,null,null,null,null,null,null,null,null,null,null,null,null,null,null,null,null,null,null,null,null,null,null,{"$f":"IF(Z665>0,+((V665-Y665)/'Post-holder data'!$DE$5),0)","v":0},0,0]
[null,null,null,null,null,null,null,null,null,null,null,null,null,null,null,null,null,null,null,null,null,null,null,null,null,null,{"$f":"IF(Z666>0,+((V666-Y666)/'Post-holder data'!$DE$5),0)","v":0},0,0]
[null,null,null,null,null,null,null,null,null,null,null,null,null,null,null,null,null,null,null,null,null,null,null,null,null,null,{"$f":"IF(Z667>0,+((V667-Y667)/'Post-holder data'!$DE$5),0)","v":0},0,0]
[null,null,null,null,null,null,null,null,null,null,null,null,null,null,null,null,null,null,null,null,null,null,null,null,null,null,{"$f":"IF(Z668>0,+((V668-Y668)/'Post-holder data'!$DE$5),0)","v":0},0,0]
[null,null,null,null,null,null,null,null,null,null,null,null,null,null,null,null,null,null,null,null,null,null,null,null,null,null,{"$f":"IF(Z669>0,+((V669-Y669)/'Post-holder data'!$DE$5),0)","v":0},0,0]
[null,null,null,null,null,null,null,null,null,null,null,null,null,null,null,null,null,null,null,null,null,null,null,null,null,null,{"$f":"IF(Z670>0,+((V670-Y670)/'Post-holder data'!$DE$5),0)","v":0},0,0]
[null,null,null,null,null,null,null,null,null,null,null,null,null,null,null,null,null,null,null,null,null,null,null,null,null,null,{"$f":"IF(Z671>0,+((V671-Y671)/'Post-holder data'!$DE$5),0)","v":0},0,0]
[null,null,null,null,null,null,null,null,null,null,null,null,null,null,null,null,null,null,null,null,null,null,null,null,null,null,{"$f":"IF(Z672>0,+((V672-Y672)/'Post-holder data'!$DE$5),0)","v":0},0,0]
[null,null,null,null,null,null,null,null,null,null,null,null,null,null,null,null,null,null,null,null,null,null,null,null,null,null,{"$f":"IF(Z673>0,+((V673-Y673)/'Post-holder data'!$DE$5),0)","v":0},0,0]
[null,null,null,null,null,null,null,null,null,null,null,null,null,null,null,null,null,null,null,null,null,null,null,null,null,null,{"$f":"IF(Z674>0,+((V674-Y674)/'Post-holder data'!$DE$5),0)","v":0},0,0]
[null,null,null,null,null,null,null,null,null,null,null,null,null,null,null,null,null,null,null,null,null,null,null,null,null,null,{"$f":"IF(Z675>0,+((V675-Y675)/'Post-holder data'!$DE$5),0)","v":0},0,0]
[null,null,null,null,null,null,null,null,null,null,null,null,null,null,null,null,null,null,null,null,null,null,null,null,null,null,{"$f":"IF(Z676>0,+((V676-Y676)/'Post-holder data'!$DE$5),0)","v":0},0,0]
[null,null,null,null,null,null,null,null,null,null,null,null,null,null,null,null,null,null,null,null,null,null,null,null,null,null,{"$f":"IF(Z677>0,+((V677-Y677)/'Post-holder data'!$DE$5),0)","v":0},0,0]
[null,null,null,null,null,null,null,null,null,null,null,null,null,null,null,null,null,null,null,null,null,null,null,null,null,null,{"$f":"IF(Z678>0,+((V678-Y678)/'Post-holder data'!$DE$5),0)","v":0},0,0]
[null,null,null,null,null,null,null,null,null,null,null,null,null,null,null,null,null,null,null,null,null,null,null,null,null,null,{"$f":"IF(Z679>0,+((V679-Y679)/'Post-holder data'!$DE$5),0)","v":0},0,0]
[null,null,null,null,null,null,null,null,null,null,null,null,null,null,null,null,null,null,null,null,null,null,null,null,null,null,{"$f":"IF(Z680>0,+((V680-Y680)/'Post-holder data'!$DE$5),0)","v":0},0,0]
[null,null,null,null,null,null,null,null,null,null,null,null,null,null,null,null,null,null,null,null,null,null,null,null,null,null,{"$f":"IF(Z681>0,+((V681-Y681)/'Post-holder data'!$DE$5),0)","v":0},0,0]
[null,null,null,null,null,null,null,null,null,null,null,null,null,null,null,null,null,null,null,null,null,null,null,null,null,null,{"$f":"IF(Z682>0,+((V682-Y682)/'Post-holder data'!$DE$5),0)","v":0},0,0]
[null,null,null,null,null,null,null,null,null,null,null,null,null,null,null,null,null,null,null,null,null,null,null,null,null,null,{"$f":"IF(Z683>0,+((V683-Y683)/'Post-holder data'!$DE$5),0)","v":0},0,0]
[null,null,null,null,null,null,null,null,null,null,null,null,null,null,null,null,null,null,null,null,null,null,null,null,null,null,{"$f":"IF(Z684>0,+((V684-Y684)/'Post-holder data'!$DE$5),0)","v":0},0,0]
[null,null,null,null,null,null,null,null,null,null,null,null,null,null,null,null,null,null,null,null,null,null,null,null,null,null,{"$f":"IF(Z685>0,+((V685-Y685)/'Post-holder data'!$DE$5),0)","v":0},0,0]
[null,null,null,null,null,null,null,null,null,null,null,null,null,null,null,null,null,null,null,null,null,null,null,null,null,null,{"$f":"IF(Z686>0,+((V686-Y686)/'Post-holder data'!$DE$5),0)","v":0},0,0]
[null,null,null,null,null,null,null,null,null,null,null,null,null,null,null,null,null,null,null,null,null,null,null,null,null,null,{"$f":"IF(Z687>0,+((V687-Y687)/'Post-holder data'!$DE$5),0)","v":0},0,0]
[null,null,null,null,null,null,null,null,null,null,null,null,null,null,null,null,null,null,null,null,null,null,null,null,null,null,{"$f":"IF(Z688>0,+((V688-Y688)/'Post-holder data'!$DE$5),0)","v":0},0,0]
[null,null,null,null,null,null,null,null,null,null,null,null,null,null,null,null,null,null,null,null,null,null,null,null,null,null,{"$f":"IF(Z689>0,+((V689-Y689)/'Post-holder data'!$DE$5),0)","v":0},0,0]
[null,null,null,null,null,null,null,null,null,null,null,null,null,null,null,null,null,null,null,null,null,null,null,null,null,null,{"$f":"IF(Z690>0,+((V690-Y690)/'Post-holder data'!$DE$5),0)","v":0},0,0]
[null,null,null,null,null,null,null,null,null,null,null,null,null,null,null,null,null,null,null,null,null,null,null,null,null,null,{"$f":"IF(Z691>0,+((V691-Y691)/'Post-holder data'!$DE$5),0)","v":0},0,0]
[null,null,null,null,null,null,null,null,null,null,null,null,null,null,null,null,null,null,null,null,null,null,null,null,null,null,{"$f":"IF(Z692>0,+((V692-Y692)/'Post-holder data'!$DE$5),0)","v":0},0,0]
[null,null,null,null,null,null,null,null,null,null,null,null,null,null,null,null,null,null,null,null,null,null,null,null,null,null,{"$f":"IF(Z693>0,+((V693-Y693)/'Post-holder data'!$DE$5),0)","v":0},0,0]
[null,null,null,null,null,null,null,null,null,null,null,null,null,null,null,null,null,null,null,null,null,null,null,null,null,null,{"$f":"IF(Z694>0,+((V694-Y694)/'Post-holder data'!$DE$5),0)","v":0},0,0]
[null,null,null,null,null,null,null,null,null,null,null,null,null,null,null,null,null,null,null,null,null,null,null,null,null,null,{"$f":"IF(Z695>0,+((V695-Y695)/'Post-holder data'!$DE$5),0)","v":0},0,0]
[null,null,null,null,null,null,null,null,null,null,null,null,null,null,null,null,null,null,null,null,null,null,null,null,null,null,{"$f":"IF(Z696>0,+((V696-Y696)/'Post-holder data'!$DE$5),0)","v":0},0,0]
[null,null,null,null,null,null,null,null,null,null,null,null,null,null,null,null,null,null,null,null,null,null,null,null,null,null,{"$f":"IF(Z697>0,+((V697-Y697)/'Post-holder data'!$DE$5),0)","v":0},0,0]
[null,null,null,null,null,null,null,null,null,null,null,null,null,null,null,null,null,null,null,null,null,null,null,null,null,null,{"$f":"IF(Z698>0,+((V698-Y698)/'Post-holder data'!$DE$5),0)","v":0},0,0]
[null,null,null,null,null,null,null,null,null,null,null,null,null,null,null,null,null,null,null,null,null,null,null,null,null,null,{"$f":"IF(Z699>0,+((V699-Y699)/'Post-holder data'!$DE$5),0)","v":0},0,0]
[null,null,null,null,null,null,null,null,null,null,null,null,null,null,null,null,null,null,null,null,null,null,null,null,null,null,{"$f":"IF(Z700>0,+((V700-Y700)/'Post-holder data'!$DE$5),0)","v":0},0,0]
[null,null,null,null,null,null,null,null,null,null,null,null,null,null,null,null,null,null,null,null,null,null,null,null,null,null,{"$f":"IF(Z701>0,+((V701-Y701)/'Post-holder data'!$DE$5),0)","v":0},0,0]
[null,null,null,null,null,null,null,null,null,null,null,null,null,null,null,null,null,null,null,null,null,null,null,null,null,null,{"$f":"IF(Z702>0,+((V702-Y702)/'Post-holder data'!$DE$5),0)","v":0},0,0]
[null,null,null,null,null,null,null,null,null,null,null,null,null,null,null,null,null,null,null,null,null,null,null,null,null,null,{"$f":"IF(Z703>0,+((V703-Y703)/'Post-holder data'!$DE$5),0)","v":0},0,0]
[null,null,null,null,null,null,null,null,null,null,null,null,null,null,null,null,null,null,null,null,null,null,null,null,null,null,{"$f":"IF(Z704>0,+((V704-Y704)/'Post-holder data'!$DE$5),0)","v":0},0,0]
[null,null,null,null,null,null,null,null,null,null,null,null,null,null,null,null,null,null,null,null,null,null,null,null,null,null,{"$f":"IF(Z705>0,+((V705-Y705)/'Post-holder data'!$DE$5),0)","v":0},0,0]
[null,null,null,null,null,null,null,null,null,null,null,null,null,null,null,null,null,null,null,null,null,null,null,null,null,null,{"$f":"IF(Z706>0,+((V706-Y706)/'Post-holder data'!$DE$5),0)","v":0},0,0]
[null,null,null,null,null,null,null,null,null,null,null,null,null,null,null,null,null,null,null,null,null,null,null,null,null,null,{"$f":"IF(Z707>0,+((V707-Y707)/'Post-holder data'!$DE$5),0)","v":0},0,0]
[null,null,null,null,null,null,null,null,null,null,null,null,null,null,null,null,null,null,null,null,null,null,null,null,null,null,{"$f":"IF(Z708>0,+((V708-Y708)/'Post-holder data'!$DE$5),0)","v":0},0,0]
[null,null,null,null,null,null,null,null,null,null,null,null,null,null,null,null,null,null,null,null,null,null,null,null,null,null,{"$f":"IF(Z709>0,+((V709-Y709)/'Post-holder data'!$DE$5),0)","v":0},0,0]
[null,null,null,null,null,null,null,null,null,null,null,null,null,null,null,null,null,null,null,null,null,null,null,null,null,null,{"$f":"IF(Z710>0,+((V710-Y710)/'Post-holder data'!$DE$5),0)","v":0},0,0]
[null,null,null,null,null,null,null,null,null,null,null,null,null,null,null,null,null,null,null,null,null,null,null,null,null,null,{"$f":"IF(Z711>0,+((V711-Y711)/'Post-holder data'!$DE$5),0)","v":0},0,0]
[null,null,null,null,null,null,null,null,null,null,null,null,null,null,null,null,null,null,null,null,null,null,null,null,null,null,{"$f":"IF(Z712>0,+((V712-Y712)/'Post-holder data'!$DE$5),0)","v":0},0,0]
[null,null,null,null,null,null,null,null,null,null,null,null,null,null,null,null,null,null,null,null,null,null,null,null,null,null,{"$f":"IF(Z713>0,+((V713-Y713)/'Post-holder data'!$DE$5),0)","v":0},0,0]
[null,null,null,null,null,null,null,null,null,null,null,null,null,null,null,null,null,null,null,null,null,null,null,null,null,null,{"$f":"IF(Z714>0,+((V714-Y714)/'Post-holder data'!$DE$5),0)","v":0},0,0]
[null,null,null,null,null,null,null,null,null,null,null,null,null,null,null,null,null,null,null,null,null,null,null,null,null,null,{"$f":"IF(Z715>0,+((V715-Y715)/'Post-holder data'!$DE$5),0)","v":0},0,0]
[null,null,null,null,null,null,null,null,null,null,null,null,null,null,null,null,null,null,null,null,null,null,null,null,null,null,{"$f":"IF(Z716>0,+((V716-Y716)/'Post-holder data'!$DE$5),0)","v":0},0,0]
[null,null,null,null,null,null,null,null,null,null,null,null,null,null,null,null,null,null,null,null,null,null,null,null,null,null,{"$f":"IF(Z717>0,+((V717-Y717)/'Post-holder data'!$DE$5),0)","v":0},0,0]
[null,null,null,null,null,null,null,null,null,null,null,null,null,null,null,null,null,null,null,null,null,null,null,null,null,null,{"$f":"IF(Z718>0,+((V718-Y718)/'Post-holder data'!$DE$5),0)","v":0},0,0]
[null,null,null,null,null,null,null,null,null,null,null,null,null,null,null,null,null,null,null,null,null,null,null,null,null,null,{"$f":"IF(Z719>0,+((V719-Y719)/'Post-holder data'!$DE$5),0)","v":0},0,0]
[null,null,null,null,null,null,null,null,null,null,null,null,null,null,null,null,null,null,null,null,null,null,null,null,null,null,{"$f":"IF(Z720>0,+((V720-Y720)/'Post-holder data'!$DE$5),0)","v":0},0,0]
[null,null,null,null,null,null,null,null,null,null,null,null,null,null,null,null,null,null,null,null,null,null,null,null,null,null,{"$f":"IF(Z721>0,+((V721-Y721)/'Post-holder data'!$DE$5),0)","v":0},{"$f":"+W721-Y721","v":0},{"$f":"+V721-W721","v":0}]
[null,null,null,null,null,null,null,null,null,null,null,null,null,null,null,null,null,null,null,null,null,null,null,null,null,null,{"$f":"IF(Z722>0,+((V722-Y722)/'Post-holder data'!$DE$5),0)","v":0},0,0]
[null,null,null,null,null,null,null,null,null,null,null,null,null,null,null,null,null,null,null,null,null,null,null,null,null,null,{"$f":"IF(Z723>0,+((V723-Y723)/'Post-holder data'!$DE$5),0)","v":0},0,0]
[null,null,null,null,null,null,null,null,null,null,null,null,null,null,null,null,null,null,null,null,null,null,null,null,null,null,{"$f":"IF(Z724>0,+((V724-Y724)/'Post-holder data'!$DE$5),0)","v":0},0,0]
[null,null,null,null,null,null,null,null,null,null,null,null,null,null,null,null,null,null,null,null,null,null,null,null,null,null,{"$f":"IF(Z725>0,+((V725-Y725)/'Post-holder data'!$DE$5),0)","v":0},0,0]
[null,null,null,null,null,null,null,null,null,null,null,null,null,null,null,null,null,null,null,null,null,null,null,null,null,null,{"$f":"IF(Z726>0,+((V726-Y726)/'Post-holder data'!$DE$5),0)","v":0},0,0]
[null,null,null,null,null,null,null,null,null,null,null,null,null,null,null,null,null,null,null,null,null,null,null,null,null,null,{"$f":"IF(Z727>0,+((V727-Y727)/'Post-holder data'!$DE$5),0)","v":0},0,0]
[null,null,null,null,null,null,null,null,null,null,null,null,null,null,null,null,null,null,null,null,null,null,null,null,null,null,{"$f":"IF(Z728>0,+((V728-Y728)/'Post-holder data'!$DE$5),0)","v":0},0,0]
[null,null,null,null,null,null,null,null,null,null,null,null,null,null,null,null,null,null,null,null,null,null,null,null,null,null,{"$f":"IF(Z729>0,+((V729-Y729)/'Post-holder data'!$DE$5),0)","v":0},0,0]
[null,null,null,null,null,null,null,null,null,null,null,null,null,null,null,null,null,null,null,null,null,null,null,null,null,null,{"$f":"IF(Z730>0,+((V730-Y730)/'Post-holder data'!$DE$5),0)","v":0},0,0]
[null,null,null,null,null,null,null,null,null,null,null,null,null,null,null,null,null,null,null,null,null,null,null,null,null,null,{"$f":"IF(Z731>0,+((V731-Y731)/'Post-holder data'!$DE$5),0)","v":0},0,0]
[null,null,null,null,null,null,null,null,null,null,null,null,null,null,null,null,null,null,null,null,null,null,null,null,null,null,{"$f":"IF(Z732>0,+((V732-Y732)/'Post-holder data'!$DE$5),0)","v":0},0,0]
[null,null,null,null,null,null,null,null,null,null,null,null,null,null,null,null,null,null,null,null,null,null,null,null,null,null,{"$f":"IF(Z733>0,+((V733-Y733)/'Post-holder data'!$DE$5),0)","v":0},0,0]
[null,null,null,null,null,null,null,null,null,null,null,null,null,null,null,null,null,null,null,null,null,null,null,null,null,null,{"$f":"IF(Z734>0,+((V734-Y734)/'Post-holder data'!$DE$5),0)","v":0},0,0]
[null,null,null,null,null,null,null,null,null,null,null,null,null,null,null,null,null,null,null,null,null,null,null,null,null,null,{"$f":"IF(Z735>0,+((V735-Y735)/'Post-holder data'!$DE$5),0)","v":0},0,0]
[null,null,null,null,null,null,null,null,null,null,null,null,null,null,null,null,null,null,null,null,null,null,null,null,null,null,{"$f":"IF(Z736>0,+((V736-Y736)/'Post-holder data'!$DE$5),0)","v":0},0,0]
[null,null,null,null,null,null,null,null,null,null,null,null,null,null,null,null,null,null,null,null,null,null,null,null,null,null,{"$f":"IF(Z737>0,+((V737-Y737)/'Post-holder data'!$DE$5),0)","v":0},0,0]
[null,null,null,null,null,null,null,null,null,null,null,null,null,null,null,null,null,null,null,null,null,null,null,null,null,null,{"$f":"IF(Z738>0,+((V738-Y738)/'Post-holder data'!$DE$5),0)","v":0},0,0]
[null,null,null,null,null,null,null,null,null,null,null,null,null,null,null,null,null,null,null,null,null,null,null,null,null,null,{"$f":"IF(Z739>0,+((V739-Y739)/'Post-holder data'!$DE$5),0)","v":0},0,0]
[null,null,null,null,null,null,null,null,null,null,null,null,null,null,null,null,null,null,null,null,null,null,null,null,null,null,{"$f":"IF(Z740>0,+((V740-Y740)/'Post-holder data'!$DE$5),0)","v":0},0,0]
[null,null,null,null,null,null,null,null,null,null,null,null,null,null,null,null,null,null,null,null,null,null,null,null,null,null,{"$f":"IF(Z741>0,+((V741-Y741)/'Post-holder data'!$DE$5),0)","v":0},0,0]
[null,null,null,null,null,null,null,null,null,null,null,null,null,null,null,null,null,null,null,null,null,null,null,null,null,null,{"$f":"IF(Z742>0,+((V742-Y742)/'Post-holder data'!$DE$5),0)","v":0},0,0]
[null,null,null,null,null,null,null,null,null,null,null,null,null,null,null,null,null,null,null,null,null,null,null,null,null,null,{"$f":"IF(Z743>0,+((V743-Y743)/'Post-holder data'!$DE$5),0)","v":0},0,0]
[null,null,null,null,null,null,null,null,null,null,null,null,null,null,null,null,null,null,null,null,null,null,null,null,null,null,{"$f":"IF(Z744>0,+((V744-Y744)/'Post-holder data'!$DE$5),0)","v":0},0,0]
[null,null,null,null,null,null,null,null,null,null,null,null,null,null,null,null,null,null,null,null,null,null,null,null,null,null,{"$f":"IF(Z745>0,+((V745-Y745)/'Post-holder data'!$DE$5),0)","v":0},0,0]
[null,null,null,null,null,null,null,null,null,null,null,null,null,null,null,null,null,null,null,null,null,null,null,null,null,null,{"$f":"IF(Z746>0,+((V746-Y746)/'Post-holder data'!$DE$5),0)","v":0},0,0]
[null,null,null,null,null,null,null,null,null,null,null,null,null,null,null,null,null,null,null,null,null,null,null,null,null,null,{"$f":"IF(Z747>0,+((V747-Y747)/'Post-holder data'!$DE$5),0)","v":0},0,0]
[null,null,null,null,null,null,null,null,null,null,null,null,null,null,null,null,null,null,null,null,null,null,null,null,null,null,{"$f":"IF(Z748>0,+((V748-Y748)/'Post-holder data'!$DE$5),0)","v":0},0,0]
[null,null,null,null,null,null,null,null,null,null,null,null,null,null,null,null,null,null,null,null,null,null,null,null,null,null,{"$f":"IF(Z749>0,+((V749-Y749)/'Post-holder data'!$DE$5),0)","v":0},0,0]
[null,null,null,null,null,null,null,null,null,null,null,null,null,null,null,null,null,null,null,null,null,null,null,null,null,null,{"$f":"IF(Z750>0,+((V750-Y750)/'Post-holder data'!$DE$5),0)","v":0},0,0]
[null,null,null,null,null,null,null,null,null,null,null,null,null,null,null,null,null,null,null,null,null,null,null,null,null,null,{"$f":"IF(Z751>0,+((V751-Y751)/'Post-holder data'!$DE$5),0)","v":0},0,0]
[null,null,null,null,null,null,null,null,null,null,null,null,null,null,null,null,null,null,null,null,null,null,null,null,null,null,{"$f":"IF(Z752>0,+((V752-Y752)/'Post-holder data'!$DE$5),0)","v":0},0,0]
[null,null,null,null,null,null,null,null,null,null,null,null,null,null,null,null,null,null,null,null,null,null,null,null,null,null,{"$f":"IF(Z753>0,+((V753-Y753)/'Post-holder data'!$DE$5),0)","v":0},0,0]
[null,null,null,null,null,null,null,null,null,null,null,null,null,null,null,null,null,null,null,null,null,null,null,null,null,null,{"$f":"IF(Z754>0,+((V754-Y754)/'Post-holder data'!$DE$5),0)","v":0},0,0]
[null,null,null,null,null,null,null,null,null,null,null,null,null,null,null,null,null,null,null,null,null,null,null,null,null,null,{"$f":"IF(Z755>0,+((V755-Y755)/'Post-holder data'!$DE$5),0)","v":0},0,0]
[null,null,null,null,null,null,null,null,null,null,null,null,null,null,null,null,null,null,null,null,null,null,null,null,null,null,{"$f":"IF(Z756>0,+((V756-Y756)/'Post-holder data'!$DE$5),0)","v":0},0,0]
[null,null,null,null,null,null,null,null,null,null,null,null,null,null,null,null,null,null,null,null,null,null,null,null,null,null,{"$f":"IF(Z757>0,+((V757-Y757)/'Post-holder data'!$DE$5),0)","v":0},0,0]
[null,null,null,null,null,null,null,null,null,null,null,null,null,null,null,null,null,null,null,null,null,null,null,null,null,null,{"$f":"IF(Z758>0,+((V758-Y758)/'Post-holder data'!$DE$5),0)","v":0},0,0]
[null,null,null,null,null,null,null,null,null,null,null,null,null,null,null,null,null,null,null,null,null,null,null,null,null,null,{"$f":"IF(Z759>0,+((V759-Y759)/'Post-holder data'!$DE$5),0)","v":0},0,0]
[null,null,null,null,null,null,null,null,null,null,null,null,null,null,null,null,null,null,null,null,null,null,null,null,null,null,{"$f":"IF(Z760>0,+((V760-Y760)/'Post-holder data'!$DE$5),0)","v":0},0,0]
[null,null,null,null,null,null,null,null,null,null,null,null,null,null,null,null,null,null,null,null,null,null,null,null,null,null,{"$f":"IF(Z761>0,+((V761-Y761)/'Post-holder data'!$DE$5),0)","v":0},0,0]
[null,null,null,null,null,null,null,null,null,null,null,null,null,null,null,null,null,null,null,null,null,null,null,null,null,null,{"$f":"IF(Z762>0,+((V762-Y762)/'Post-holder data'!$DE$5),0)","v":0},0,0]
[null,null,null,null,null,null,null,null,null,null,null,null,null,null,null,null,null,null,null,null,null,null,null,null,null,null,{"$f":"IF(Z763>0,+((V763-Y763)/'Post-holder data'!$DE$5),0)","v":0},0,0]
[null,null,null,null,null,null,null,null,null,null,null,null,null,null,null,null,null,null,null,null,null,null,null,null,null,null,{"$f":"IF(Z764>0,+((V764-Y764)/'Post-holder data'!$DE$5),0)","v":0},0,0]
[null,null,null,null,null,null,null,null,null,null,null,null,null,null,null,null,null,null,null,null,null,null,null,null,null,null,{"$f":"IF(Z765>0,+((V765-Y765)/'Post-holder data'!$DE$5),0)","v":0},0,0]
[null,null,null,null,null,null,null,null,null,null,null,null,null,null,null,null,null,null,null,null,null,null,null,null,null,null,{"$f":"IF(Z766>0,+((V766-Y766)/'Post-holder data'!$DE$5),0)","v":0},0,0]
[null,null,null,null,null,null,null,null,null,null,null,null,null,null,null,null,null,null,null,null,null,null,null,null,null,null,{"$f":"IF(Z767>0,+((V767-Y767)/'Post-holder data'!$DE$5),0)","v":0},0,0]
[null,null,null,null,null,null,null,null,null,null,null,null,null,null,null,null,null,null,null,null,null,null,null,null,null,null,{"$f":"IF(Z768>0,+((V768-Y768)/'Post-holder data'!$DE$5),0)","v":0},0,0]
[null,null,null,null,null,null,null,null,null,null,null,null,null,null,null,null,null,null,null,null,null,null,null,null,null,null,{"$f":"IF(Z769>0,+((V769-Y769)/'Post-holder data'!$DE$5),0)","v":0},0,0]
[null,null,null,null,null,null,null,null,null,null,null,null,null,null,null,null,null,null,null,null,null,null,null,null,null,null,{"$f":"IF(Z770>0,+((V770-Y770)/'Post-holder data'!$DE$5),0)","v":0},0,0]
[null,null,null,null,null,null,null,null,null,null,null,null,null,null,null,null,null,null,null,null,null,null,null,null,null,null,{"$f":"IF(Z771>0,+((V771-Y771)/'Post-holder data'!$DE$5),0)","v":0},0,0]
[null,null,null,null,null,null,null,null,null,null,null,null,null,null,null,null,null,null,null,null,null,null,null,null,null,null,{"$f":"IF(Z772>0,+((V772-Y772)/'Post-holder data'!$DE$5),0)","v":0},0,0]
[null,null,null,null,null,null,null,null,null,null,null,null,null,null,null,null,null,null,null,null,null,null,null,null,null,null,{"$f":"IF(Z773>0,+((V773-Y773)/'Post-holder data'!$DE$5),0)","v":0},0,0]
[null,null,null,null,null,null,null,null,null,null,null,null,null,null,null,null,null,null,null,null,null,null,null,null,null,null,{"$f":"IF(Z774>0,+((V774-Y774)/'Post-holder data'!$DE$5),0)","v":0},0,0]
[null,null,null,null,null,null,null,null,null,null,null,null,null,null,null,null,null,null,null,null,null,null,null,null,null,null,{"$f":"IF(Z775>0,+((V775-Y775)/'Post-holder data'!$DE$5),0)","v":0},0,0]
[null,null,null,null,null,null,null,null,null,null,null,null,null,null,null,null,null,null,null,null,null,null,null,null,null,null,{"$f":"IF(Z776>0,+((V776-Y776)/'Post-holder data'!$DE$5),0)","v":0},0,0]
[null,null,null,null,null,null,null,null,null,null,null,null,null,null,null,null,null,null,null,null,null,null,null,null,null,null,{"$f":"IF(Z777>0,+((V777-Y777)/'Post-holder data'!$DE$5),0)","v":0},0,0]
[null,null,null,null,null,null,null,null,null,null,null,null,null,null,null,null,null,null,null,null,null,null,null,null,null,null,{"$f":"IF(Z778>0,+((V778-Y778)/'Post-holder data'!$DE$5),0)","v":0},0,0]
[null,null,null,null,null,null,null,null,null,null,null,null,null,null,null,null,null,null,null,null,null,null,null,null,null,null,{"$f":"IF(Z779>0,+((V779-Y779)/'Post-holder data'!$DE$5),0)","v":0},0,0]
[null,null,null,null,null,null,null,null,null,null,null,null,null,null,null,null,null,null,null,null,null,null,null,null,null,null,{"$f":"IF(Z780>0,+((V780-Y780)/'Post-holder data'!$DE$5),0)","v":0},0,0]
[null,null,null,null,null,null,null,null,null,null,null,null,null,null,null,null,null,null,null,null,null,null,null,null,null,null,{"$f":"IF(Z781>0,+((V781-Y781)/'Post-holder data'!$DE$5),0)","v":0},0,0]
[null,null,null,null,null,null,null,null,null,null,null,null,null,null,null,null,null,null,null,null,null,null,null,null,null,null,{"$f":"IF(Z782>0,+((V782-Y782)/'Post-holder data'!$DE$5),0)","v":0},0,0]
[null,null,null,null,null,null,null,null,null,null,null,null,null,null,null,null,null,null,null,null,null,null,null,null,null,null,{"$f":"IF(Z783>0,+((V783-Y783)/'Post-holder data'!$DE$5),0)","v":0},0,0]
[null,null,null,null,null,null,null,null,null,null,null,null,null,null,null,null,null,null,null,null,null,null,null,null,null,null,{"$f":"IF(Z784>0,+((V784-Y784)/'Post-holder data'!$DE$5),0)","v":0},0,0]
[null,null,null,null,null,null,null,null,null,null,null,null,null,null,null,null,null,null,null,null,null,null,null,null,null,null,{"$f":"IF(Z785>0,+((V785-Y785)/'Post-holder data'!$DE$5),0)","v":0},{"$f":"+W785-Y785","v":0},{"$f":"+V785-W785","v":0}]
[null,null,null,null,null,null,null,null,null,null,null,null,null,null,null,null,null,null,null,null,null,null,null,null,null,null,{"$f":"IF(Z786>0,+((V786-Y786)/'Post-holder data'!$DE$5),0)","v":0},0,0]
[null,null,null,null,null,null,null,null,null,null,null,null,null,null,null,null,null,null,null,null,null,null,null,null,null,null,{"$f":"IF(Z787>0,+((V787-Y787)/'Post-holder data'!$DE$5),0)","v":0},0,0]
[null,null,null,null,null,null,null,null,null,null,null,null,null,null,null,null,null,null,null,null,null,null,null,null,null,null,{"$f":"IF(Z788>0,+((V788-Y788)/'Post-holder data'!$DE$5),0)","v":0},0,0]
[null,null,null,null,null,null,null,null,null,null,null,null,null,null,null,null,null,null,null,null,null,null,null,null,null,null,{"$f":"IF(Z789>0,+((V789-Y789)/'Post-holder data'!$DE$5),0)","v":0},0,0]
[null,null,null,null,null,null,null,null,null,null,null,null,null,null,null,null,null,null,null,null,null,null,null,null,null,null,{"$f":"IF(Z790>0,+((V790-Y790)/'Post-holder data'!$DE$5),0)","v":0},0,0]
[null,null,null,null,null,null,null,null,null,null,null,null,null,null,null,null,null,null,null,null,null,null,null,null,null,null,{"$f":"IF(Z791>0,+((V791-Y791)/'Post-holder data'!$DE$5),0)","v":0},0,0]
[null,null,null,null,null,null,null,null,null,null,null,null,null,null,null,null,null,null,null,null,null,null,null,null,null,null,{"$f":"IF(Z792>0,+((V792-Y792)/'Post-holder data'!$DE$5),0)","v":0},0,0]
[null,null,null,null,null,null,null,null,null,null,null,null,null,null,null,null,null,null,null,null,null,null,null,null,null,null,{"$f":"IF(Z793>0,+((V793-Y793)/'Post-holder data'!$DE$5),0)","v":0},0,0]
[null,null,null,null,null,null,null,null,null,null,null,null,null,null,null,null,null,null,null,null,null,null,null,null,null,null,{"$f":"IF(Z794>0,+((V794-Y794)/'Post-holder data'!$DE$5),0)","v":0},0,0]
[null,null,null,null,null,null,null,null,null,null,null,null,null,null,null,null,null,null,null,null,null,null,null,null,null,null,{"$f":"IF(Z795>0,+((V795-Y795)/'Post-holder data'!$DE$5),0)","v":0},0,0]
[null,null,null,null,null,null,null,null,null,null,null,null,null,null,null,null,null,null,null,null,null,null,null,null,null,null,{"$f":"IF(Z796>0,+((V796-Y796)/'Post-holder data'!$DE$5),0)","v":0},0,0]
[null,null,null,null,null,null,null,null,null,null,null,null,null,null,null,null,null,null,null,null,null,null,null,null,null,null,{"$f":"IF(Z797>0,+((V797-Y797)/'Post-holder data'!$DE$5),0)","v":0},0,0]
[null,null,null,null,null,null,null,null,null,null,null,null,null,null,null,null,null,null,null,null,null,null,null,null,null,null,{"$f":"IF(Z798>0,+((V798-Y798)/'Post-holder data'!$DE$5),0)","v":0},0,0]
[null,null,null,null,null,null,null,null,null,null,null,null,null,null,null,null,null,null,null,null,null,null,null,null,null,null,{"$f":"IF(Z799>0,+((V799-Y799)/'Post-holder data'!$DE$5),0)","v":0},0,0]
[null,null,null,null,null,null,null,null,null,null,null,null,null,null,null,null,null,null,null,null,null,null,null,null,null,null,{"$f":"IF(Z800>0,+((V800-Y800)/'Post-holder data'!$DE$5),0)","v":0},null,0]
[null,null,null,null,null,null,null,null,null,null,null,null,null,null,null,null,null,null,null,null,null,null,null,null,null,null,{"$f":"IF(Z801>0,+((V801-Y801)/'Post-holder data'!$DE$5),0)","v":0},null,0]
[null,null,null,null,null,null,null,null,null,null,null,null,null,null,null,null,null,null,null,null,null,null,null,null,null,null,{"$f":"IF(Z802>0,+((V802-Y802)/'Post-holder data'!$DE$5),0)","v":0},null,0]
[null,null,null,null,null,null,null,null,null,null,null,null,null,null,null,null,null,null,null,null,null,null,null,null,null,null,{"$f":"IF(Z803>0,+((V803-Y803)/'Post-holder data'!$DE$5),0)","v":0},null,0]
[null,null,null,null,null,null,null,null,null,null,null,null,null,null,null,null,null,null,null,null,null,null,null,null,null,null,{"$f":"IF(Z804>0,+((V804-Y804)/'Post-holder data'!$DE$5),0)","v":0},null,0]
[null,null,null,null,null,null,null,null,null,null,null,null,null,null,null,null,null,null,null,null,null,null,null,null,null,null,{"$f":"IF(Z805>0,+((V805-Y805)/'Post-holder data'!$DE$5),0)","v":0},null,0]
[null,null,null,null,null,null,null,null,null,null,null,null,null,null,null,null,null,null,null,null,null,null,null,null,null,null,{"$f":"IF(Z806>0,+((V806-Y806)/'Post-holder data'!$DE$5),0)","v":0},null,0]
[null,null,null,null,null,null,null,null,null,null,null,null,null,null,null,null,null,null,null,null,null,null,null,null,null,null,{"$f":"IF(Z807>0,+((V807-Y807)/'Post-holder data'!$DE$5),0)","v":0},null,0]
[null,null,null,null,null,null,null,null,null,null,null,null,null,null,null,null,null,null,null,null,null,null,null,null,null,null,{"$f":"IF(Z808>0,+((V808-Y808)/'Post-holder data'!$DE$5),0)","v":0},null,0]
[null,null,null,null,null,null,null,null,null,null,null,null,null,null,null,null,null,null,null,null,null,null,null,null,null,null,{"$f":"IF(Z809>0,+((V809-Y809)/'Post-holder data'!$DE$5),0)","v":0},null,0]
[null,null,null,null,null,null,null,null,null,null,null,null,null,null,null,null,null,null,null,null,null,null,null,null,null,null,{"$f":"IF(Z810>0,+((V810-Y810)/'Post-holder data'!$DE$5),0)","v":0},null,0]
[null,null,null,null,null,null,null,null,null,null,null,null,null,null,null,null,null,null,null,null,null,null,null,null,null,null,{"$f":"IF(Z811>0,+((V811-Y811)/'Post-holder data'!$DE$5),0)","v":0},null,0]
[null,null,null,null,null,null,null,null,null,null,null,null,null,null,null,null,null,null,null,null,null,null,null,null,null,null,{"$f":"IF(Z812>0,+((V812-Y812)/'Post-holder data'!$DE$5),0)","v":0},null,0]
[null,null,null,null,null,null,null,null,null,null,null,null,null,null,null,null,null,null,null,null,null,null,null,null,null,null,{"$f":"IF(Z813>0,+((V813-Y813)/'Post-holder data'!$DE$5),0)","v":0},null,0]
[null,null,null,null,null,null,null,null,null,null,null,null,null,null,null,null,null,null,null,null,null,null,null,null,null,null,{"$f":"IF(Z814>0,+((V814-Y814)/'Post-holder data'!$DE$5),0)","v":0},null,0]
[null,null,null,null,null,null,null,null,null,null,null,null,null,null,null,null,null,null,null,null,null,null,null,null,null,null,{"$f":"IF(Z815>0,+((V815-Y815)/'Post-holder data'!$DE$5),0)","v":0},null,0]
[null,null,null,null,null,null,null,null,null,null,null,null,null,null,null,null,null,null,null,null,null,null,null,null,null,null,{"$f":"IF(Z816>0,+((V816-Y816)/'Post-holder data'!$DE$5),0)","v":0},null,0]
[null,null,null,null,null,null,null,null,null,null,null,null,null,null,null,null,null,null,null,null,null,null,null,null,null,null,{"$f":"IF(Z817>0,+((V817-Y817)/'Post-holder data'!$DE$5),0)","v":0},null,0]
[null,null,null,null,null,null,null,null,null,null,null,null,null,null,null,null,null,null,null,null,null,null,null,null,null,null,{"$f":"IF(Z818>0,+((V818-Y818)/'Post-holder data'!$DE$5),0)","v":0},null,0]
[null,null,null,null,null,null,null,null,null,null,null,null,null,null,null,null,null,null,null,null,null,null,null,null,null,null,{"$f":"IF(Z819>0,+((V819-Y819)/'Post-holder data'!$DE$5),0)","v":0},null,0]
[null,null,null,null,null,null,null,null,null,null,null,null,null,null,null,null,null,null,null,null,null,null,null,null,null,null,{"$f":"IF(Z820>0,+((V820-Y820)/'Post-holder data'!$DE$5),0)","v":0},null,0]
[null,null,null,null,null,null,null,null,null,null,null,null,null,null,null,null,null,null,null,null,null,null,null,null,null,null,{"$f":"IF(Z821>0,+((V821-Y821)/'Post-holder data'!$DE$5),0)","v":0},null,0]
[null,null,null,null,null,null,null,null,null,null,null,null,null,null,null,null,null,null,null,null,null,null,null,null,null,null,{"$f":"IF(Z822>0,+((V822-Y822)/'Post-holder data'!$DE$5),0)","v":0},null,0]
[null,null,null,null,null,null,null,null,null,null,null,null,null,null,null,null,null,null,null,null,null,null,null,null,null,null,{"$f":"IF(Z823>0,+((V823-Y823)/'Post-holder data'!$DE$5),0)","v":0},null,0]
[null,null,null,null,null,null,null,null,null,null,null,null,null,null,null,null,null,null,null,null,null,null,null,null,null,null,{"$f":"IF(Z824>0,+((V824-Y824)/'Post-holder data'!$DE$5),0)","v":0},null,0]
[null,null,null,null,null,null,null,null,null,null,null,null,null,null,null,null,null,null,null,null,null,null,null,null,null,null,{"$f":"IF(Z825>0,+((V825-Y825)/'Post-holder data'!$DE$5),0)","v":0},null,0]
[null,null,null,null,null,null,null,null,null,null,null,null,null,null,null,null,null,null,null,null,null,null,null,null,null,null,{"$f":"IF(Z826>0,+((V826-Y826)/'Post-holder data'!$DE$5),0)","v":0},null,0]
[null,null,null,null,null,null,null,null,null,null,null,null,null,null,null,null,null,null,null,null,null,null,null,null,null,null,{"$f":"IF(Z827>0,+((V827-Y827)/'Post-holder data'!$DE$5),0)","v":0},null,0]
[null,null,null,null,null,null,null,null,null,null,null,null,null,null,null,null,null,null,null,null,null,null,null,null,null,null,{"$f":"IF(Z828>0,+((V828-Y828)/'Post-holder data'!$DE$5),0)","v":0},null,0]
[null,null,null,null,null,null,null,null,null,null,null,null,null,null,null,null,null,null,null,null,null,null,null,null,null,null,{"$f":"IF(Z829>0,+((V829-Y829)/'Post-holder data'!$DE$5),0)","v":0},null,0]
[null,null,null,null,null,null,null,null,null,null,null,null,null,null,null,null,null,null,null,null,null,null,null,null,null,null,{"$f":"IF(Z830>0,+((V830-Y830)/'Post-holder data'!$DE$5),0)","v":0},null,0]
[null,null,null,null,null,null,null,null,null,null,null,null,null,null,null,null,null,null,null,null,null,null,null,null,null,null,{"$f":"IF(Z831>0,+((V831-Y831)/'Post-holder data'!$DE$5),0)","v":0},null,0]
[null,null,null,null,null,null,null,null,null,null,null,null,null,null,null,null,null,null,null,null,null,null,null,null,null,null,{"$f":"IF(Z832>0,+((V832-Y832)/'Post-holder data'!$DE$5),0)","v":0},null,0]
[null,null,null,null,null,null,null,null,null,null,null,null,null,null,null,null,null,null,null,null,null,null,null,null,null,null,{"$f":"IF(Z833>0,+((V833-Y833)/'Post-holder data'!$DE$5),0)","v":0},null,0]
[null,null,null,null,null,null,null,null,null,null,null,null,null,null,null,null,null,null,null,null,null,null,null,null,null,null,{"$f":"IF(Z834>0,+((V834-Y834)/'Post-holder data'!$DE$5),0)","v":0},null,0]
[null,null,null,null,null,null,null,null,null,null,null,null,null,null,null,null,null,null,null,null,null,null,null,null,null,null,{"$f":"IF(Z835>0,+((V835-Y835)/'Post-holder data'!$DE$5),0)","v":0},null,0]
[null,null,null,null,null,null,null,null,null,null,null,null,null,null,null,null,null,null,null,null,null,null,null,null,null,null,{"$f":"IF(Z836>0,+((V836-Y836)/'Post-holder data'!$DE$5),0)","v":0},null,0]
[null,null,null,null,null,null,null,null,null,null,null,null,null,null,null,null,null,null,null,null,null,null,null,null,null,null,{"$f":"IF(Z837>0,+((V837-Y837)/'Post-holder data'!$DE$5),0)","v":0},null,0]
[null,null,null,null,null,null,null,null,null,null,null,null,null,null,null,null,null,null,null,null,null,null,null,null,null,null,{"$f":"IF(Z838>0,+((V838-Y838)/'Post-holder data'!$DE$5),0)","v":0},null,0]
[null,null,null,null,null,null,null,null,null,null,null,null,null,null,null,null,null,null,null,null,null,null,null,null,null,null,{"$f":"IF(Z839>0,+((V839-Y839)/'Post-holder data'!$DE$5),0)","v":0},null,0]
[null,null,null,null,null,null,null,null,null,null,null,null,null,null,null,null,null,null,null,null,null,null,null,null,null,null,{"$f":"IF(Z840>0,+((V840-Y840)/'Post-holder data'!$DE$5),0)","v":0},null,0]
[null,null,null,null,null,null,null,null,null,null,null,null,null,null,null,null,null,null,null,null,null,null,null,null,null,null,{"$f":"IF(Z841>0,+((V841-Y841)/'Post-holder data'!$DE$5),0)","v":0},null,0]
[null,null,null,null,null,null,null,null,null,null,null,null,null,null,null,null,null,null,null,null,null,null,null,null,null,null,{"$f":"IF(Z842>0,+((V842-Y842)/'Post-holder data'!$DE$5),0)","v":0},null,0]
[null,null,null,null,null,null,null,null,null,null,null,null,null,null,null,null,null,null,null,null,null,null,null,null,null,null,{"$f":"IF(Z843>0,+((V843-Y843)/'Post-holder data'!$DE$5),0)","v":0},null,0]
[null,null,null,null,null,null,null,null,null,null,null,null,null,null,null,null,null,null,null,null,null,null,null,null,null,null,{"$f":"IF(Z844>0,+((V844-Y844)/'Post-holder data'!$DE$5),0)","v":0},null,0]
[null,null,null,null,null,null,null,null,null,null,null,null,null,null,null,null,null,null,null,null,null,null,null,null,null,null,{"$f":"IF(Z845>0,+((V845-Y845)/'Post-holder data'!$DE$5),0)","v":0},null,0]
[null,null,null,null,null,null,null,null,null,null,null,null,null,null,null,null,null,null,null,null,null,null,null,null,null,null,{"$f":"IF(Z846>0,+((V846-Y846)/'Post-holder data'!$DE$5),0)","v":0},null,0]
[null,null,null,null,null,null,null,null,null,null,null,null,null,null,null,null,null,null,null,null,null,null,null,null,null,null,{"$f":"IF(Z847>0,+((V847-Y847)/'Post-holder data'!$DE$5),0)","v":0},null,0]
[null,null,null,null,null,null,null,null,null,null,null,null,null,null,null,null,null,null,null,null,null,null,null,null,null,null,{"$f":"IF(Z848>0,+((V848-Y848)/'Post-holder data'!$DE$5),0)","v":0},null,0]
[null,null,null,null,null,null,null,null,null,null,null,null,null,null,null,null,null,null,null,null,null,null,null,null,null,null,{"$f":"IF(Z849>0,+((V849-Y849)/'Post-holder data'!$DE$5),0)","v":0},null,{"$f":"+V849-W849","v":0}]
[null,null,null,null,null,null,null,null,null,null,null,null,null,null,null,null,null,null,null,null,null,null,null,null,null,null,{"$f":"IF(Z850>0,+((V850-Y850)/'Post-holder data'!$DE$5),0)","v":0},null,0]
[null,null,null,null,null,null,null,null,null,null,null,null,null,null,null,null,null,null,null,null,null,null,null,null,null,null,{"$f":"IF(Z851>0,+((V851-Y851)/'Post-holder data'!$DE$5),0)","v":0},null,0]
[null,null,null,null,null,null,null,null,null,null,null,null,null,null,null,null,null,null,null,null,null,null,null,null,null,null,{"$f":"IF(Z852>0,+((V852-Y852)/'Post-holder data'!$DE$5),0)","v":0},null,0]
[null,null,null,null,null,null,null,null,null,null,null,null,null,null,null,null,null,null,null,null,null,null,null,null,null,null,{"$f":"IF(Z853>0,+((V853-Y853)/'Post-holder data'!$DE$5),0)","v":0},null,0]
[null,null,null,null,null,null,null,null,null,null,null,null,null,null,null,null,null,null,null,null,null,null,null,null,null,null,{"$f":"IF(Z854>0,+((V854-Y854)/'Post-holder data'!$DE$5),0)","v":0},null,0]
[null,null,null,null,null,null,null,null,null,null,null,null,null,null,null,null,null,null,null,null,null,null,null,null,null,null,{"$f":"IF(Z855>0,+((V855-Y855)/'Post-holder data'!$DE$5),0)","v":0},null,0]
[null,null,null,null,null,null,null,null,null,null,null,null,null,null,null,null,null,null,null,null,null,null,null,null,null,null,{"$f":"IF(Z856>0,+((V856-Y856)/'Post-holder data'!$DE$5),0)","v":0},null,0]
[null,null,null,null,null,null,null,null,null,null,null,null,null,null,null,null,null,null,null,null,null,null,null,null,null,null,{"$f":"IF(Z857>0,+((V857-Y857)/'Post-holder data'!$DE$5),0)","v":0},null,0]
[null,null,null,null,null,null,null,null,null,null,null,null,null,null,null,null,null,null,null,null,null,null,null,null,null,null,{"$f":"IF(Z858>0,+((V858-Y858)/'Post-holder data'!$DE$5),0)","v":0},null,0]
[null,null,null,null,null,null,null,null,null,null,null,null,null,null,null,null,null,null,null,null,null,null,null,null,null,null,{"$f":"IF(Z859>0,+((V859-Y859)/'Post-holder data'!$DE$5),0)","v":0},null,0]
[null,null,null,null,null,null,null,null,null,null,null,null,null,null,null,null,null,null,null,null,null,null,null,null,null,null,{"$f":"IF(Z860>0,+((V860-Y860)/'Post-holder data'!$DE$5),0)","v":0},null,0]
[null,null,null,null,null,null,null,null,null,null,null,null,null,null,null,null,null,null,null,null,null,null,null,null,null,null,{"$f":"IF(Z861>0,+((V861-Y861)/'Post-holder data'!$DE$5),0)","v":0},null,0]
[null,null,null,null,null,null,null,null,null,null,null,null,null,null,null,null,null,null,null,null,null,null,null,null,null,null,{"$f":"IF(Z862>0,+((V862-Y862)/'Post-holder data'!$DE$5),0)","v":0},null,0]
[null,null,null,null,null,null,null,null,null,null,null,null,null,null,null,null,null,null,null,null,null,null,null,null,null,null,{"$f":"IF(Z863>0,+((V863-Y863)/'Post-holder data'!$DE$5),0)","v":0},null,0]
[null,null,null,null,null,null,null,null,null,null,null,null,null,null,null,null,null,null,null,null,null,null,null,null,null,null,{"$f":"IF(Z864>0,+((V864-Y864)/'Post-holder data'!$DE$5),0)","v":0},null,0]
[null,null,null,null,null,null,null,null,null,null,null,null,null,null,null,null,null,null,null,null,null,null,null,null,null,null,{"$f":"IF(Z865>0,+((V865-Y865)/'Post-holder data'!$DE$5),0)","v":0},null,0]
[null,null,null,null,null,null,null,null,null,null,null,null,null,null,null,null,null,null,null,null,null,null,null,null,null,null,{"$f":"IF(Z866>0,+((V866-Y866)/'Post-holder data'!$DE$5),0)","v":0},null,0]
[null,null,null,null,null,null,null,null,null,null,null,null,null,null,null,null,null,null,null,null,null,null,null,null,null,null,{"$f":"IF(Z867>0,+((V867-Y867)/'Post-holder data'!$DE$5),0)","v":0},null,0]
[null,null,null,null,null,null,null,null,null,null,null,null,null,null,null,null,null,null,null,null,null,null,null,null,null,null,{"$f":"IF(Z868>0,+((V868-Y868)/'Post-holder data'!$DE$5),0)","v":0},null,0]
[null,null,null,null,null,null,null,null,null,null,null,null,null,null,null,null,null,null,null,null,null,null,null,null,null,null,{"$f":"IF(Z869>0,+((V869-Y869)/'Post-holder data'!$DE$5),0)","v":0},null,0]
[null,null,null,null,null,null,null,null,null,null,null,null,null,null,null,null,null,null,null,null,null,null,null,null,null,null,{"$f":"IF(Z870>0,+((V870-Y870)/'Post-holder data'!$DE$5),0)","v":0},null,0]
[null,null,null,null,null,null,null,null,null,null,null,null,null,null,null,null,null,null,null,null,null,null,null,null,null,null,{"$f":"IF(Z871>0,+((V871-Y871)/'Post-holder data'!$DE$5),0)","v":0},null,0]
[null,null,null,null,null,null,null,null,null,null,null,null,null,null,null,null,null,null,null,null,null,null,null,null,null,null,{"$f":"IF(Z872>0,+((V872-Y872)/'Post-holder data'!$DE$5),0)","v":0},null,0]
[null,null,null,null,null,null,null,null,null,null,null,null,null,null,null,null,null,null,null,null,null,null,null,null,null,null,{"$f":"IF(Z873>0,+((V873-Y873)/'Post-holder data'!$DE$5),0)","v":0},null,0]
[null,null,null,null,null,null,null,null,null,null,null,null,null,null,null,null,null,null,null,null,null,null,null,null,null,null,{"$f":"IF(Z874>0,+((V874-Y874)/'Post-holder data'!$DE$5),0)","v":0},null,0]
[null,null,null,null,null,null,null,null,null,null,null,null,null,null,null,null,null,null,null,null,null,null,null,null,null,null,{"$f":"IF(Z875>0,+((V875-Y875)/'Post-holder data'!$DE$5),0)","v":0},null,0]
[null,null,null,null,null,null,null,null,null,null,null,null,null,null,null,null,null,null,null,null,null,null,null,null,null,null,{"$f":"IF(Z876>0,+((V876-Y876)/'Post-holder data'!$DE$5),0)","v":0},null,0]
[null,null,null,null,null,null,null,null,null,null,null,null,null,null,null,null,null,null,null,null,null,null,null,null,null,null,{"$f":"IF(Z877>0,+((V877-Y877)/'Post-holder data'!$DE$5),0)","v":0},null,0]
[null,null,null,null,null,null,null,null,null,null,null,null,null,null,null,null,null,null,null,null,null,null,null,null,null,null,{"$f":"IF(Z878>0,+((V878-Y878)/'Post-holder data'!$DE$5),0)","v":0},null,0]
[null,null,null,null,null,null,null,null,null,null,null,null,null,null,null,null,null,null,null,null,null,null,null,null,null,null,{"$f":"IF(Z879>0,+((V879-Y879)/'Post-holder data'!$DE$5),0)","v":0},null,0]
[null,null,null,null,null,null,null,null,null,null,null,null,null,null,null,null,null,null,null,null,null,null,null,null,null,null,{"$f":"IF(Z880>0,+((V880-Y880)/'Post-holder data'!$DE$5),0)","v":0},null,0]
[null,null,null,null,null,null,null,null,null,null,null,null,null,null,null,null,null,null,null,null,null,null,null,null,null,null,{"$f":"IF(Z881>0,+((V881-Y881)/'Post-holder data'!$DE$5),0)","v":0},null,0]
[null,null,null,null,null,null,null,null,null,null,null,null,null,null,null,null,null,null,null,null,null,null,null,null,null,null,{"$f":"IF(Z882>0,+((V882-Y882)/'Post-holder data'!$DE$5),0)","v":0},null,0]
[null,null,null,null,null,null,null,null,null,null,null,null,null,null,null,null,null,null,null,null,null,null,null,null,null,null,{"$f":"IF(Z883>0,+((V883-Y883)/'Post-holder data'!$DE$5),0)","v":0},null,0]
[null,null,null,null,null,null,null,null,null,null,null,null,null,null,null,null,null,null,null,null,null,null,null,null,null,null,{"$f":"IF(Z884>0,+((V884-Y884)/'Post-holder data'!$DE$5),0)","v":0},null,0]
[null,null,null,null,null,null,null,null,null,null,null,null,null,null,null,null,null,null,null,null,null,null,null,null,null,null,{"$f":"IF(Z885>0,+((V885-Y885)/'Post-holder data'!$DE$5),0)","v":0},null,0]
[null,null,null,null,null,null,null,null,null,null,null,null,null,null,null,null,null,null,null,null,null,null,null,null,null,null,{"$f":"IF(Z886>0,+((V886-Y886)/'Post-holder data'!$DE$5),0)","v":0},null,0]
[null,null,null,null,null,null,null,null,null,null,null,null,null,null,null,null,null,null,null,null,null,null,null,null,null,null,{"$f":"IF(Z887>0,+((V887-Y887)/'Post-holder data'!$DE$5),0)","v":0},null,0]
[null,null,null,null,null,null,null,null,null,null,null,null,null,null,null,null,null,null,null,null,null,null,null,null,null,null,{"$f":"IF(Z888>0,+((V888-Y888)/'Post-holder data'!$DE$5),0)","v":0},null,0]
[null,null,null,null,null,null,null,null,null,null,null,null,null,null,null,null,null,null,null,null,null,null,null,null,null,null,{"$f":"IF(Z889>0,+((V889-Y889)/'Post-holder data'!$DE$5),0)","v":0},null,0]
[null,null,null,null,null,null,null,null,null,null,null,null,null,null,null,null,null,null,null,null,null,null,null,null,null,null,{"$f":"IF(Z890>0,+((V890-Y890)/'Post-holder data'!$DE$5),0)","v":0},null,0]
[null,null,null,null,null,null,null,null,null,null,null,null,null,null,null,null,null,null,null,null,null,null,null,null,null,null,{"$f":"IF(Z891>0,+((V891-Y891)/'Post-holder data'!$DE$5),0)","v":0},null,0]
[null,null,null,null,null,null,null,null,null,null,null,null,null,null,null,null,null,null,null,null,null,null,null,null,null,null,{"$f":"IF(Z892>0,+((V892-Y892)/'Post-holder data'!$DE$5),0)","v":0},null,0]
[null,null,null,null,null,null,null,null,null,null,null,null,null,null,null,null,null,null,null,null,null,null,null,null,null,null,{"$f":"IF(Z893>0,+((V893-Y893)/'Post-holder data'!$DE$5),0)","v":0},null,0]
[null,null,null,null,null,null,null,null,null,null,null,null,null,null,null,null,null,null,null,null,null,null,null,null,null,null,{"$f":"IF(Z894>0,+((V894-Y894)/'Post-holder data'!$DE$5),0)","v":0},null,0]
[null,null,null,null,null,null,null,null,null,null,null,null,null,null,null,null,null,null,null,null,null,null,null,null,null,null,{"$f":"IF(Z895>0,+((V895-Y895)/'Post-holder data'!$DE$5),0)","v":0},null,0]
[null,null,null,null,null,null,null,null,null,null,null,null,null,null,null,null,null,null,null,null,null,null,null,null,null,null,{"$f":"IF(Z896>0,+((V896-Y896)/'Post-holder data'!$DE$5),0)","v":0},null,0]
[null,null,null,null,null,null,null,null,null,null,null,null,null,null,null,null,null,null,null,null,null,null,null,null,null,null,{"$f":"IF(Z897>0,+((V897-Y897)/'Post-holder data'!$DE$5),0)","v":0},null,0]
[null,null,null,null,null,null,null,null,null,null,null,null,null,null,null,null,null,null,null,null,null,null,null,null,null,null,{"$f":"IF(Z898>0,+((V898-Y898)/'Post-holder data'!$DE$5),0)","v":0},null,0]
[null,null,null,null,null,null,null,null,null,null,null,null,null,null,null,null,null,null,null,null,null,null,null,null,null,null,{"$f":"IF(Z899>0,+((V899-Y899)/'Post-holder data'!$DE$5),0)","v":0},null,0]
[null,null,null,null,null,null,null,null,null,null,null,null,null,null,null,null,null,null,null,null,null,null,null,null,null,null,{"$f":"IF(Z900>0,+((V900-Y900)/'Post-holder data'!$DE$5),0)","v":0},null,0]
[null,null,null,null,null,null,null,null,null,null,null,null,null,null,null,null,null,null,null,null,null,null,null,null,null,null,{"$f":"IF(Z901>0,+((V901-Y901)/'Post-holder data'!$DE$5),0)","v":0},null,0]
[null,null,null,null,null,null,null,null,null,null,null,null,null,null,null,null,null,null,null,null,null,null,null,null,null,null,{"$f":"IF(Z902>0,+((V902-Y902)/'Post-holder data'!$DE$5),0)","v":0},null,0]
[null,null,null,null,null,null,null,null,null,null,null,null,null,null,null,null,null,null,null,null,null,null,null,null,null,null,{"$f":"IF(Z903>0,+((V903-Y903)/'Post-holder data'!$DE$5),0)","v":0},null,0]
[null,null,null,null,null,null,null,null,null,null,null,null,null,null,null,null,null,null,null,null,null,null,null,null,null,null,{"$f":"IF(Z904>0,+((V904-Y904)/'Post-holder data'!$DE$5),0)","v":0},null,0]
[null,null,null,null,null,null,null,null,null,null,null,null,null,null,null,null,null,null,null,null,null,null,null,null,null,null,{"$f":"IF(Z905>0,+((V905-Y905)/'Post-holder data'!$DE$5),0)","v":0},null,0]
[null,null,null,null,null,null,null,null,null,null,null,null,null,null,null,null,null,null,null,null,null,null,null,null,null,null,{"$f":"IF(Z906>0,+((V906-Y906)/'Post-holder data'!$DE$5),0)","v":0},null,0]
[null,null,null,null,null,null,null,null,null,null,null,null,null,null,null,null,null,null,null,null,null,null,null,null,null,null,{"$f":"IF(Z907>0,+((V907-Y907)/'Post-holder data'!$DE$5),0)","v":0},null,0]
[null,null,null,null,null,null,null,null,null,null,null,null,null,null,null,null,null,null,null,null,null,null,null,null,null,null,{"$f":"IF(Z908>0,+((V908-Y908)/'Post-holder data'!$DE$5),0)","v":0},null,0]
[null,null,null,null,null,null,null,null,null,null,null,null,null,null,null,null,null,null,null,null,null,null,null,null,null,null,{"$f":"IF(Z909>0,+((V909-Y909)/'Post-holder data'!$DE$5),0)","v":0},null,0]
[null,null,null,null,null,null,null,null,null,null,null,null,null,null,null,null,null,null,null,null,null,null,null,null,null,null,{"$f":"IF(Z910>0,+((V910-Y910)/'Post-holder data'!$DE$5),0)","v":0},null,0]
[null,null,null,null,null,null,null,null,null,null,null,null,null,null,null,null,null,null,null,null,null,null,null,null,null,null,{"$f":"IF(Z911>0,+((V911-Y911)/'Post-holder data'!$DE$5),0)","v":0},null,0]
[null,null,null,null,null,null,null,null,null,null,null,null,null,null,null,null,null,null,null,null,null,null,null,null,null,null,{"$f":"IF(Z912>0,+((V912-Y912)/'Post-holder data'!$DE$5),0)","v":0},null,0]
[null,null,null,null,null,null,null,null,null,null,null,null,null,null,null,null,null,null,null,null,null,null,null,null,null,null,{"$f":"IF(Z913>0,+((V913-Y913)/'Post-holder data'!$DE$5),0)","v":0},null,{"$f":"+V913-W913","v":0}]
[null,null,null,null,null,null,null,null,null,null,null,null,null,null,null,null,null,null,null,null,null,null,null,null,null,null,{"$f":"IF(Z914>0,+((V914-Y914)/'Post-holder data'!$DE$5),0)","v":0},null,0]
[null,null,null,null,null,null,null,null,null,null,null,null,null,null,null,null,null,null,null,null,null,null,null,null,null,null,{"$f":"IF(Z915>0,+((V915-Y915)/'Post-holder data'!$DE$5),0)","v":0},null,0]
[null,null,null,null,null,null,null,null,null,null,null,null,null,null,null,null,null,null,null,null,null,null,null,null,null,null,{"$f":"IF(Z916>0,+((V916-Y916)/'Post-holder data'!$DE$5),0)","v":0},null,0]
[null,null,null,null,null,null,null,null,null,null,null,null,null,null,null,null,null,null,null,null,null,null,null,null,null,null,{"$f":"IF(Z917>0,+((V917-Y917)/'Post-holder data'!$DE$5),0)","v":0},null,0]
[null,null,null,null,null,null,null,null,null,null,null,null,null,null,null,null,null,null,null,null,null,null,null,null,null,null,{"$f":"IF(Z918>0,+((V918-Y918)/'Post-holder data'!$DE$5),0)","v":0},null,0]
[null,null,null,null,null,null,null,null,null,null,null,null,null,null,null,null,null,null,null,null,null,null,null,null,null,null,{"$f":"IF(Z919>0,+((V919-Y919)/'Post-holder data'!$DE$5),0)","v":0},null,0]
[null,null,null,null,null,null,null,null,null,null,null,null,null,null,null,null,null,null,null,null,null,null,null,null,null,null,{"$f":"IF(Z920>0,+((V920-Y920)/'Post-holder data'!$DE$5),0)","v":0},null,0]
[null,null,null,null,null,null,null,null,null,null,null,null,null,null,null,null,null,null,null,null,null,null,null,null,null,null,{"$f":"IF(Z921>0,+((V921-Y921)/'Post-holder data'!$DE$5),0)","v":0},null,0]
[null,null,null,null,null,null,null,null,null,null,null,null,null,null,null,null,null,null,null,null,null,null,null,null,null,null,{"$f":"IF(Z922>0,+((V922-Y922)/'Post-holder data'!$DE$5),0)","v":0},null,0]
[null,null,null,null,null,null,null,null,null,null,null,null,null,null,null,null,null,null,null,null,null,null,null,null,null,null,{"$f":"IF(Z923>0,+((V923-Y923)/'Post-holder data'!$DE$5),0)","v":0},null,0]
[null,null,null,null,null,null,null,null,null,null,null,null,null,null,null,null,null,null,null,null,null,null,null,null,null,null,{"$f":"IF(Z924>0,+((V924-Y924)/'Post-holder data'!$DE$5),0)","v":0},null,0]
[null,null,null,null,null,null,null,null,null,null,null,null,null,null,null,null,null,null,null,null,null,null,null,null,null,null,{"$f":"IF(Z925>0,+((V925-Y925)/'Post-holder data'!$DE$5),0)","v":0},null,0]
[null,null,null,null,null,null,null,null,null,null,null,null,null,null,null,null,null,null,null,null,null,null,null,null,null,null,{"$f":"IF(Z926>0,+((V926-Y926)/'Post-holder data'!$DE$5),0)","v":0},null,0]
[null,null,null,null,null,null,null,null,null,null,null,null,null,null,null,null,null,null,null,null,null,null,null,null,null,null,{"$f":"IF(Z927>0,+((V927-Y927)/'Post-holder data'!$DE$5),0)","v":0},null,0]
[null,null,null,null,null,null,null,null,null,null,null,null,null,null,null,null,null,null,null,null,null,null,null,null,null,null,{"$f":"IF(Z928>0,+((V928-Y928)/'Post-holder data'!$DE$5),0)","v":0},null,0]
[null,null,null,null,null,null,null,null,null,null,null,null,null,null,null,null,null,null,null,null,null,null,null,null,null,null,{"$f":"IF(Z929>0,+((V929-Y929)/'Post-holder data'!$DE$5),0)","v":0},null,0]
[null,null,null,null,null,null,null,null,null,null,null,null,null,null,null,null,null,null,null,null,null,null,null,null,null,null,{"$f":"IF(Z930>0,+((V930-Y930)/'Post-holder data'!$DE$5),0)","v":0},null,0]
[null,null,null,null,null,null,null,null,null,null,null,null,null,null,null,null,null,null,null,null,null,null,null,null,null,null,{"$f":"IF(Z931>0,+((V931-Y931)/'Post-holder data'!$DE$5),0)","v":0},null,0]
[null,null,null,null,null,null,null,null,null,null,null,null,null,null,null,null,null,null,null,null,null,null,null,null,null,null,{"$f":"IF(Z932>0,+((V932-Y932)/'Post-holder data'!$DE$5),0)","v":0},null,0]
[null,null,null,null,null,null,null,null,null,null,null,null,null,null,null,null,null,null,null,null,null,null,null,null,null,null,{"$f":"IF(Z933>0,+((V933-Y933)/'Post-holder data'!$DE$5),0)","v":0},null,0]
[null,null,null,null,null,null,null,null,null,null,null,null,null,null,null,null,null,null,null,null,null,null,null,null,null,null,{"$f":"IF(Z934>0,+((V934-Y934)/'Post-holder data'!$DE$5),0)","v":0},null,0]
[null,null,null,null,null,null,null,null,null,null,null,null,null,null,null,null,null,null,null,null,null,null,null,null,null,null,{"$f":"IF(Z935>0,+((V935-Y935)/'Post-holder data'!$DE$5),0)","v":0},null,0]
[null,null,null,null,null,null,null,null,null,null,null,null,null,null,null,null,null,null,null,null,null,null,null,null,null,null,{"$f":"IF(Z936>0,+((V936-Y936)/'Post-holder data'!$DE$5),0)","v":0},null,0]
[null,null,null,null,null,null,null,null,null,null,null,null,null,null,null,null,null,null,null,null,null,null,null,null,null,null,{"$f":"IF(Z937>0,+((V937-Y937)/'Post-holder data'!$DE$5),0)","v":0},null,0]
[null,null,null,null,null,null,null,null,null,null,null,null,null,null,null,null,null,null,null,null,null,null,null,null,null,null,{"$f":"IF(Z938>0,+((V938-Y938)/'Post-holder data'!$DE$5),0)","v":0},null,0]
[null,null,null,null,null,null,null,null,null,null,null,null,null,null,null,null,null,null,null,null,null,null,null,null,null,null,{"$f":"IF(Z939>0,+((V939-Y939)/'Post-holder data'!$DE$5),0)","v":0},null,0]
[null,null,null,null,null,null,null,null,null,null,null,null,null,null,null,null,null,null,null,null,null,null,null,null,null,null,{"$f":"IF(Z940>0,+((V940-Y940)/'Post-holder data'!$DE$5),0)","v":0},null,0]
[null,null,null,null,null,null,null,null,null,null,null,null,null,null,null,null,null,null,null,null,null,null,null,null,null,null,{"$f":"IF(Z941>0,+((V941-Y941)/'Post-holder data'!$DE$5),0)","v":0},null,0]
[null,null,null,null,null,null,null,null,null,null,null,null,null,null,null,null,null,null,null,null,null,null,null,null,null,null,{"$f":"IF(Z942>0,+((V942-Y942)/'Post-holder data'!$DE$5),0)","v":0},null,0]
[null,null,null,null,null,null,null,null,null,null,null,null,null,null,null,null,null,null,null,null,null,null,null,null,null,null,{"$f":"IF(Z943>0,+((V943-Y943)/'Post-holder data'!$DE$5),0)","v":0},null,0]
[null,null,null,null,null,null,null,null,null,null,null,null,null,null,null,null,null,null,null,null,null,null,null,null,null,null,{"$f":"IF(Z944>0,+((V944-Y944)/'Post-holder data'!$DE$5),0)","v":0},null,0]
[null,null,null,null,null,null,null,null,null,null,null,null,null,null,null,null,null,null,null,null,null,null,null,null,null,null,{"$f":"IF(Z945>0,+((V945-Y945)/'Post-holder data'!$DE$5),0)","v":0},null,0]
[null,null,null,null,null,null,null,null,null,null,null,null,null,null,null,null,null,null,null,null,null,null,null,null,null,null,{"$f":"IF(Z946>0,+((V946-Y946)/'Post-holder data'!$DE$5),0)","v":0},null,0]
[null,null,null,null,null,null,null,null,null,null,null,null,null,null,null,null,null,null,null,null,null,null,null,null,null,null,{"$f":"IF(Z947>0,+((V947-Y947)/'Post-holder data'!$DE$5),0)","v":0},null,0]
[null,null,null,null,null,null,null,null,null,null,null,null,null,null,null,null,null,null,null,null,null,null,null,null,null,null,{"$f":"IF(Z948>0,+((V948-Y948)/'Post-holder data'!$DE$5),0)","v":0},null,0]
[null,null,null,null,null,null,null,null,null,null,null,null,null,null,null,null,null,null,null,null,null,null,null,null,null,null,{"$f":"IF(Z949>0,+((V949-Y949)/'Post-holder data'!$DE$5),0)","v":0},null,0]
[null,null,null,null,null,null,null,null,null,null,null,null,null,null,null,null,null,null,null,null,null,null,null,null,null,null,{"$f":"IF(Z950>0,+((V950-Y950)/'Post-holder data'!$DE$5),0)","v":0},null,0]
[null,null,null,null,null,null,null,null,null,null,null,null,null,null,null,null,null,null,null,null,null,null,null,null,null,null,{"$f":"IF(Z951>0,+((V951-Y951)/'Post-holder data'!$DE$5),0)","v":0},null,0]
[null,null,null,null,null,null,null,null,null,null,null,null,null,null,null,null,null,null,null,null,null,null,null,null,null,null,{"$f":"IF(Z952>0,+((V952-Y952)/'Post-holder data'!$DE$5),0)","v":0},null,0]
[null,null,null,null,null,null,null,null,null,null,null,null,null,null,null,null,null,null,null,null,null,null,null,null,null,null,{"$f":"IF(Z953>0,+((V953-Y953)/'Post-holder data'!$DE$5),0)","v":0},null,0]
[null,null,null,null,null,null,null,null,null,null,null,null,null,null,null,null,null,null,null,null,null,null,null,null,null,null,{"$f":"IF(Z954>0,+((V954-Y954)/'Post-holder data'!$DE$5),0)","v":0},null,0]
[null,null,null,null,null,null,null,null,null,null,null,null,null,null,null,null,null,null,null,null,null,null,null,null,null,null,{"$f":"IF(Z955>0,+((V955-Y955)/'Post-holder data'!$DE$5),0)","v":0},null,0]
[null,null,null,null,null,null,null,null,null,null,null,null,null,null,null,null,null,null,null,null,null,null,null,null,null,null,{"$f":"IF(Z956>0,+((V956-Y956)/'Post-holder data'!$DE$5),0)","v":0},null,0]
[null,null,null,null,null,null,null,null,null,null,null,null,null,null,null,null,null,null,null,null,null,null,null,null,null,null,{"$f":"IF(Z957>0,+((V957-Y957)/'Post-holder data'!$DE$5),0)","v":0},null,0]
[null,null,null,null,null,null,null,null,null,null,null,null,null,null,null,null,null,null,null,null,null,null,null,null,null,null,{"$f":"IF(Z958>0,+((V958-Y958)/'Post-holder data'!$DE$5),0)","v":0},null,0]
[null,null,null,null,null,null,null,null,null,null,null,null,null,null,null,null,null,null,null,null,null,null,null,null,null,null,{"$f":"IF(Z959>0,+((V959-Y959)/'Post-holder data'!$DE$5),0)","v":0},null,0]
[null,null,null,null,null,null,null,null,null,null,null,null,null,null,null,null,null,null,null,null,null,null,null,null,null,null,{"$f":"IF(Z960>0,+((V960-Y960)/'Post-holder data'!$DE$5),0)","v":0},null,0]
[null,null,null,null,null,null,null,null,null,null,null,null,null,null,null,null,null,null,null,null,null,null,null,null,null,null,{"$f":"IF(Z961>0,+((V961-Y961)/'Post-holder data'!$DE$5),0)","v":0},null,0]
[null,null,null,null,null,null,null,null,null,null,null,null,null,null,null,null,null,null,null,null,null,null,null,null,null,null,{"$f":"IF(Z962>0,+((V962-Y962)/'Post-holder data'!$DE$5),0)","v":0},null,0]
[null,null,null,null,null,null,null,null,null,null,null,null,null,null,null,null,null,null,null,null,null,null,null,null,null,null,{"$f":"IF(Z963>0,+((V963-Y963)/'Post-holder data'!$DE$5),0)","v":0},null,0]
[null,null,null,null,null,null,null,null,null,null,null,null,null,null,null,null,null,null,null,null,null,null,null,null,null,null,{"$f":"IF(Z964>0,+((V964-Y964)/'Post-holder data'!$DE$5),0)","v":0},null,0]
[null,null,null,null,null,null,null,null,null,null,null,null,null,null,null,null,null,null,null,null,null,null,null,null,null,null,{"$f":"IF(Z965>0,+((V965-Y965)/'Post-holder data'!$DE$5),0)","v":0},null,0]
[null,null,null,null,null,null,null,null,null,null,null,null,null,null,null,null,null,null,null,null,null,null,null,null,null,null,{"$f":"IF(Z966>0,+((V966-Y966)/'Post-holder data'!$DE$5),0)","v":0},null,0]
[null,null,null,null,null,null,null,null,null,null,null,null,null,null,null,null,null,null,null,null,null,null,null,null,null,null,{"$f":"IF(Z967>0,+((V967-Y967)/'Post-holder data'!$DE$5),0)","v":0},null,0]
[null,null,null,null,null,null,null,null,null,null,null,null,null,null,null,null,null,null,null,null,null,null,null,null,null,null,{"$f":"IF(Z968>0,+((V968-Y968)/'Post-holder data'!$DE$5),0)","v":0},null,0]
[null,null,null,null,null,null,null,null,null,null,null,null,null,null,null,null,null,null,null,null,null,null,null,null,null,null,{"$f":"IF(Z969>0,+((V969-Y969)/'Post-holder data'!$DE$5),0)","v":0},null,0]
[null,null,null,null,null,null,null,null,null,null,null,null,null,null,null,null,null,null,null,null,null,null,null,null,null,null,{"$f":"IF(Z970>0,+((V970-Y970)/'Post-holder data'!$DE$5),0)","v":0},null,0]
[null,null,null,null,null,null,null,null,null,null,null,null,null,null,null,null,null,null,null,null,null,null,null,null,null,null,{"$f":"IF(Z971>0,+((V971-Y971)/'Post-holder data'!$DE$5),0)","v":0},null,0]
[null,null,null,null,null,null,null,null,null,null,null,null,null,null,null,null,null,null,null,null,null,null,null,null,null,null,{"$f":"IF(Z972>0,+((V972-Y972)/'Post-holder data'!$DE$5),0)","v":0},null,0]
[null,null,null,null,null,null,null,null,null,null,null,null,null,null,null,null,null,null,null,null,null,null,null,null,null,null,{"$f":"IF(Z973>0,+((V973-Y973)/'Post-holder data'!$DE$5),0)","v":0},null,0]
[null,null,null,null,null,null,null,null,null,null,null,null,null,null,null,null,null,null,null,null,null,null,null,null,null,null,{"$f":"IF(Z974>0,+((V974-Y974)/'Post-holder data'!$DE$5),0)","v":0},null,0]
[null,null,null,null,null,null,null,null,null,null,null,null,null,null,null,null,null,null,null,null,null,null,null,null,null,null,{"$f":"IF(Z975>0,+((V975-Y975)/'Post-holder data'!$DE$5),0)","v":0},null,0]
[null,null,null,null,null,null,null,null,null,null,null,null,null,null,null,null,null,null,null,null,null,null,null,null,null,null,{"$f":"IF(Z976>0,+((V976-Y976)/'Post-holder data'!$DE$5),0)","v":0},null,0]
[null,null,null,null,null,null,null,null,null,null,null,null,null,null,null,null,null,null,null,null,null,null,null,null,null,null,{"$f":"IF(Z977>0,+((V977-Y977)/'Post-holder data'!$DE$5),0)","v":0},null,{"$f":"+V977-W977","v":0}]
[null,null,null,null,null,null,null,null,null,null,null,null,null,null,null,null,null,null,null,null,null,null,null,null,null,null,{"$f":"IF(Z978>0,+((V978-Y978)/'Post-holder data'!$DE$5),0)","v":0},null,{"$f":"+V978-W978","v":0}]
[null,null,null,null,null,null,null,null,null,null,null,null,null,null,null,null,null,null,null,null,null,null,null,null,null,null,{"$f":"IF(Z979>0,+((V979-Y979)/'Post-holder data'!$DE$5),0)","v":0},null,{"$f":"+V979-W979","v":0}]
[null,null,null,null,null,null,null,null,null,null,null,null,null,null,null,null,null,null,null,null,null,null,null,null,null,null,{"$f":"IF(Z980>0,+((V980-Y980)/'Post-holder data'!$DE$5),0)","v":0},null,{"$f":"+V980-W980","v":0}]
[null,null,null,null,null,null,null,null,null,null,null,null,null,null,null,null,null,null,null,null,null,null,null,null,null,null,{"$f":"IF(Z981>0,+((V981-Y981)/'Post-holder data'!$DE$5),0)","v":0}]
[null,null,null,null,null,null,null,null,null,null,null,null,null,null,null,null,null,null,null,null,null,null,null,null,null,null,{"$f":"IF(Z982>0,+((V982-Y982)/'Post-holder data'!$DE$5),0)","v":0}]
[null,null,null,null,null,null,null,null,null,null,null,null,null,null,null,null,null,null,null,null,null,null,null,null,null,null,{"$f":"IF(Z983>0,+((V983-Y983)/'Post-holder data'!$DE$5),0)","v":0}]
[null,null,null,null,null,null,null,null,null,null,null,null,null,null,null,null,null,null,null,null,null,null,null,null,null,null,{"$f":"IF(Z984>0,+((V984-Y984)/'Post-holder data'!$DE$5),0)","v":0}]
[null,null,null,null,null,null,null,null,null,null,null,null,null,null,null,null,null,null,null,null,null,null,null,null,null,null,{"$f":"IF(Z985>0,+((V985-Y985)/'Post-holder data'!$DE$5),0)","v":0}]
[null,null,null,null,null,null,null,null,null,null,null,null,null,null,null,null,null,null,null,null,null,null,null,null,null,null,{"$f":"IF(Z986>0,+((V986-Y986)/'Post-holder data'!$DE$5),0)","v":0}]
[null,null,null,null,null,null,null,null,null,null,null,null,null,null,null,null,null,null,null,null,null,null,null,null,null,null,{"$f":"IF(Z987>0,+((V987-Y987)/'Post-holder data'!$DE$5),0)","v":0}]
[null,null,null,null,null,null,null,null,null,null,null,null,null,null,null,null,null,null,null,null,null,null,null,null,null,null,{"$f":"IF(Z988>0,+((V988-Y988)/'Post-holder data'!$DE$5),0)","v":0}]
[null,null,null,null,null,null,null,null,null,null,null,null,null,null,null,null,null,null,null,null,null,null,null,null,null,null,{"$f":"IF(Z989>0,+((V989-Y989)/'Post-holder data'!$DE$5),0)","v":0}]
[null,null,null,null,null,null,null,null,null,null,null,null,null,null,null,null,null,null,null,null,null,null,null,null,null,null,{"$f":"IF(Z990>0,+((V990-Y990)/'Post-holder data'!$DE$5),0)","v":0}]
[null,null,null,null,null,null,null,null,null,null,null,null,null,null,null,null,null,null,null,null,null,null,null,null,null,null,{"$f":"IF(Z991>0,+((V991-Y991)/'Post-holder data'!$DE$5),0)","v":0}]
[null,null,null,null,null,null,null,null,null,null,null,null,null,null,null,null,null,null,null,null,null,null,null,null,null,null,{"$f":"IF(Z992>0,+((V992-Y992)/'Post-holder data'!$DE$5),0)","v":0}]
[null,null,null,null,null,null,null,null,null,null,null,null,null,null,null,null,null,null,null,null,null,null,null,null,null,null,{"$f":"IF(Z993>0,+((V993-Y993)/'Post-holder data'!$DE$5),0)","v":0}]
[null,null,null,null,null,null,null,null,null,null,null,null,null,null,null,null,null,null,null,null,null,null,null,null,null,null,{"$f":"IF(Z994>0,+((V994-Y994)/'Post-holder data'!$DE$5),0)","v":0}]
[null,null,null,null,null,null,null,null,null,null,null,null,null,null,null,null,null,null,null,null,null,null,null,null,null,null,{"$f":"IF(Z995>0,+((V995-Y995)/'Post-holder data'!$DE$5),0)","v":0}]
[null,null,null,null,null,null,null,null,null,null,null,null,null,null,null,null,null,null,null,null,null,null,null,null,null,null,{"$f":"IF(Z996>0,+((V996-Y996)/'Post-holder data'!$DE$5),0)","v":0}]
[null,null,null,null,null,null,null,null,null,null,null,null,null,null,null,null,null,null,null,null,null,null,null,null,null,null,{"$f":"IF(Z997>0,+((V997-Y997)/'Post-holder data'!$DE$5),0)","v":0}]
[null,null,null,null,null,null,null,null,null,null,null,null,null,null,null,null,null,null,null,null,null,null,null,null,null,null,{"$f":"IF(Z998>0,+((V998-Y998)/'Post-holder data'!$DE$5),0)","v":0}]
[null,null,null,null,null,null,null,null,null,null,null,null,null,null,null,null,null,null,null,null,null,null,null,null,null,null,{"$f":"IF(Z999>0,+((V999-Y999)/'Post-holder data'!$DE$5),0)","v":0}]
[null,null,null,null,null,null,null,null,null,null,null,null,null,null,null,null,null,null,null,null,null,null,null,null,null,null,{"$f":"IF(Z1000>0,+((V1000-Y1000)/'Post-holder data'!$DE$5),0)","v":0}]
[null,null,null,null,null,null,null,null,null,null,null,null,null,null,null,null,null,null,null,null,null,null,null,null,null,null,{"$f":"IF(Z1001>0,+((V1001-Y1001)/'Post-holder data'!$DE$5),0)","v":0}]
[null,null,null,null,null,null,null,null,null,null,null,null,null,null,null,null,null,null,null,null,null,null,null,null,null,null,{"$f":"IF(Z1002>0,+((V1002-Y1002)/'Post-holder data'!$DE$5),0)","v":0}]
[null,null,null,null,null,null,null,null,null,null,null,null,null,null,null,null,null,null,null,null,null,null,null,null,null,null,{"$f":"IF(Z1003>0,+((V1003-Y1003)/'Post-holder data'!$DE$5),0)","v":0}]
[null,null,null,null,null,null,null,null,null,null,null,null,null,null,null,null,null,null,null,null,null,null,null,null,null,null,{"$f":"IF(Z1004>0,+((V1004-Y1004)/'Post-holder data'!$DE$5),0)","v":0}]
[null,null,null,null,null,null,null,null,null,null,null,null,null,null,null,null,null,null,null,null,null,null,null,null,null,null,{"$f":"IF(Z1005>0,+((V1005-Y1005)/'Post-holder data'!$DE$5),0)","v":0}]
[null,null,null,null,null,null,null,null,null,null,null,null,null,null,null,null,null,null,null,null,null,null,null,null,null,null,{"$f":"IF(Z1006>0,+((V1006-Y1006)/'Post-holder data'!$DE$5),0)","v":0}]
[null,null,null,null,null,null,null,null,null,null,null,null,null,null,null,null,null,null,null,null,null,null,null,null,null,null,{"$f":"IF(Z1007>0,+((V1007-Y1007)/'Post-holder data'!$DE$5),0)","v":0}]
[null,null,null,null,null,null,null,null,null,null,null,null,null,null,null,null,null,null,null,null,null,null,null,null,null,null,{"$f":"IF(Z1008>0,+((V1008-Y1008)/'Post-holder data'!$DE$5),0)","v":0}]
[null,null,null,null,null,null,null,null,null,null,null,null,null,null,null,null,null,null,null,null,null,null,null,null,null,null,{"$f":"IF(Z1009>0,+((V1009-Y1009)/'Post-holder data'!$DE$5),0)","v":0}]
[null,null,null,null,null,null,null,null,null,null,null,null,null,null,null,null,null,null,null,null,null,null,null,null,null,null,{"$f":"IF(Z1010>0,+((V1010-Y1010)/'Post-holder data'!$DE$5),0)","v":0}]
[null,null,null,null,null,null,null,null,null,null,null,null,null,null,null,null,null,null,null,null,null,null,null,null,null,null,{"$f":"IF(Z1011>0,+((V1011-Y1011)/'Post-holder data'!$DE$5),0)","v":0}]
[null,null,null,null,null,null,null,null,null,null,null,null,null,null,null,null,null,null,null,null,null,null,null,null,null,null,{"$f":"IF(Z1012>0,+((V1012-Y1012)/'Post-holder data'!$DE$5),0)","v":0}]
[null,null,null,null,null,null,null,null,null,null,null,null,null,null,null,null,null,null,null,null,null,null,null,null,null,null,{"$f":"IF(Z1013>0,+((V1013-Y1013)/'Post-holder data'!$DE$5),0)","v":0}]
[null,null,null,null,null,null,null,null,null,null,null,null,null,null,null,null,null,null,null,null,null,null,null,null,null,null,{"$f":"IF(Z1014>0,+((V1014-Y1014)/'Post-holder data'!$DE$5),0)","v":0}]
[null,null,null,null,null,null,null,null,null,null,null,null,null,null,null,null,null,null,null,null,null,null,null,null,null,null,{"$f":"IF(Z1015>0,+((V1015-Y1015)/'Post-holder data'!$DE$5),0)","v":0}]
[null,null,null,null,null,null,null,null,null,null,null,null,null,null,null,null,null,null,null,null,null,null,null,null,null,null,{"$f":"IF(Z1016>0,+((V1016-Y1016)/'Post-holder data'!$DE$5),0)","v":0}]
[null,null,null,null,null,null,null,null,null,null,null,null,null,null,null,null,null,null,null,null,null,null,null,null,null,null,{"$f":"IF(Z1017>0,+((V1017-Y1017)/'Post-holder data'!$DE$5),0)","v":0}]
[null,null,null,null,null,null,null,null,null,null,null,null,null,null,null,null,null,null,null,null,null,null,null,null,null,null,{"$f":"IF(Z1018>0,+((V1018-Y1018)/'Post-holder data'!$DE$5),0)","v":0}]
[null,null,null,null,null,null,null,null,null,null,null,null,null,null,null,null,null,null,null,null,null,null,null,null,null,null,{"$f":"IF(Z1019>0,+((V1019-Y1019)/'Post-holder data'!$DE$5),0)","v":0}]
[null,null,null,null,null,null,null,null,null,null,null,null,null,null,null,null,null,null,null,null,null,null,null,null,null,null,{"$f":"IF(Z1020>0,+((V1020-Y1020)/'Post-holder data'!$DE$5),0)","v":0}]
[null,null,null,null,null,null,null,null,null,null,null,null,null,null,null,null,null,null,null,null,null,null,null,null,null,null,{"$f":"IF(Z1021>0,+((V1021-Y1021)/'Post-holder data'!$DE$5),0)","v":0}]
[null,null,null,null,null,null,null,null,null,null,null,null,null,null,null,null,null,null,null,null,null,null,null,null,null,null,{"$f":"IF(Z1022>0,+((V1022-Y1022)/'Post-holder data'!$DE$5),0)","v":0}]
[null,null,null,null,null,null,null,null,null,null,null,null,null,null,null,null,null,null,null,null,null,null,null,null,null,null,{"$f":"IF(Z1023>0,+((V1023-Y1023)/'Post-holder data'!$DE$5),0)","v":0}]
[null,null,null,null,null,null,null,null,null,null,null,null,null,null,null,null,null,null,null,null,null,null,null,null,null,null,{"$f":"IF(Z1024>0,+((V1024-Y1024)/'Post-holder data'!$DE$5),0)","v":0}]
[null,null,null,null,null,null,null,null,null,null,null,null,null,null,null,null,null,null,null,null,null,null,null,null,null,null,{"$f":"IF(Z1025>0,+((V1025-Y1025)/'Post-holder data'!$DE$5),0)","v":0}]
[null,null,null,null,null,null,null,null,null,null,null,null,null,null,null,null,null,null,null,null,null,null,null,null,null,null,{"$f":"IF(Z1026>0,+((V1026-Y1026)/'Post-holder data'!$DE$5),0)","v":0}]
[null,null,null,null,null,null,null,null,null,null,null,null,null,null,null,null,null,null,null,null,null,null,null,null,null,null,{"$f":"IF(Z1027>0,+((V1027-Y1027)/'Post-holder data'!$DE$5),0)","v":0}]
[null,null,null,null,null,null,null,null,null,null,null,null,null,null,null,null,null,null,null,null,null,null,null,null,null,null,{"$f":"IF(Z1028>0,+((V1028-Y1028)/'Post-holder data'!$DE$5),0)","v":0}]
[null,null,null,null,null,null,null,null,null,null,null,null,null,null,null,null,null,null,null,null,null,null,null,null,null,null,{"$f":"IF(Z1029>0,+((V1029-Y1029)/'Post-holder data'!$DE$5),0)","v":0}]
[null,null,null,null,null,null,null,null,null,null,null,null,null,null,null,null,null,null,null,null,null,null,null,null,null,null,{"$f":"IF(Z1030>0,+((V1030-Y1030)/'Post-holder data'!$DE$5),0)","v":0}]
[null,null,null,null,null,null,null,null,null,null,null,null,null,null,null,null,null,null,null,null,null,null,null,null,null,null,{"$f":"IF(Z1031>0,+((V1031-Y1031)/'Post-holder data'!$DE$5),0)","v":0}]
[null,null,null,null,null,null,null,null,null,null,null,null,null,null,null,null,null,null,null,null,null,null,null,null,null,null,{"$f":"IF(Z1032>0,+((V1032-Y1032)/'Post-holder data'!$DE$5),0)","v":0}]
[null,null,null,null,null,null,null,null,null,null,null,null,null,null,null,null,null,null,null,null,null,null,null,null,null,null,{"$f":"IF(Z1033>0,+((V1033-Y1033)/'Post-holder data'!$DE$5),0)","v":0}]
[null,null,null,null,null,null,null,null,null,null,null,null,null,null,null,null,null,null,null,null,null,null,null,null,null,null,{"$f":"IF(Z1034>0,+((V1034-Y1034)/'Post-holder data'!$DE$5),0)","v":0}]
[null,null,null,null,null,null,null,null,null,null,null,null,null,null,null,null,null,null,null,null,null,null,null,null,null,null,{"$f":"IF(Z1035>0,+((V1035-Y1035)/'Post-holder data'!$DE$5),0)","v":0}]
[null,null,null,null,null,null,null,null,null,null,null,null,null,null,null,null,null,null,null,null,null,null,null,null,null,null,{"$f":"IF(Z1036>0,+((V1036-Y1036)/'Post-holder data'!$DE$5),0)","v":0}]
[null,null,null,null,null,null,null,null,null,null,null,null,null,null,null,null,null,null,null,null,null,null,null,null,null,null,{"$f":"IF(Z1037>0,+((V1037-Y1037)/'Post-holder data'!$DE$5),0)","v":0}]
[null,null,null,null,null,null,null,null,null,null,null,null,null,null,null,null,null,null,null,null,null,null,null,null,null,null,{"$f":"IF(Z1038>0,+((V1038-Y1038)/'Post-holder data'!$DE$5),0)","v":0}]
[null,null,null,null,null,null,null,null,null,null,null,null,null,null,null,null,null,null,null,null,null,null,null,null,null,null,{"$f":"IF(Z1039>0,+((V1039-Y1039)/'Post-holder data'!$DE$5),0)","v":0}]
[null,null,null,null,null,null,null,null,null,null,null,null,null,null,null,null,null,null,null,null,null,null,null,null,null,null,{"$f":"IF(Z1040>0,+((V1040-Y1040)/'Post-holder data'!$DE$5),0)","v":0}]
[null,null,null,null,null,null,null,null,null,null,null,null,null,null,null,null,null,null,null,null,null,null,null,null,null,null,{"$f":"IF(Z1041>0,+((V1041-Y1041)/'Post-holder data'!$DE$5),0)","v":0}]
[null,null,null,null,null,null,null,null,null,null,null,null,null,null,null,null,null,null,null,null,null,null,null,null,null,null,{"$f":"IF(Z1042>0,+((V1042-Y1042)/'Post-holder data'!$DE$5),0)","v":0}]
[null,null,null,null,null,null,null,null,null,null,null,null,null,null,null,null,null,null,null,null,null,null,null,null,null,null,{"$f":"IF(Z1043>0,+((V1043-Y1043)/'Post-holder data'!$DE$5),0)","v":0}]
[null,null,null,null,null,null,null,null,null,null,null,null,null,null,null,null,null,null,null,null,null,null,null,null,null,null,{"$f":"IF(Z1044>0,+((V1044-Y1044)/'Post-holder data'!$DE$5),0)","v":0}]
[null,null,null,null,null,null,null,null,null,null,null,null,null,null,null,null,null,null,null,null,null,null,null,null,null,null,{"$f":"IF(Z1045>0,+((V1045-Y1045)/'Post-holder data'!$DE$5),0)","v":0}]
[null,null,null,null,null,null,null,null,null,null,null,null,null,null,null,null,null,null,null,null,null,null,null,null,null,null,{"$f":"IF(Z1046>0,+((V1046-Y1046)/'Post-holder data'!$DE$5),0)","v":0}]
[null,null,null,null,null,null,null,null,null,null,null,null,null,null,null,null,null,null,null,null,null,null,null,null,null,null,{"$f":"IF(Z1047>0,+((V1047-Y1047)/'Post-holder data'!$DE$5),0)","v":0}]
[null,null,null,null,null,null,null,null,null,null,null,null,null,null,null,null,null,null,null,null,null,null,null,null,null,null,{"$f":"IF(Z1048>0,+((V1048-Y1048)/'Post-holder data'!$DE$5),0)","v":0}]
[null,null,null,null,null,null,null,null,null,null,null,null,null,null,null,null,null,null,null,null,null,null,null,null,null,null,{"$f":"IF(Z1049>0,+((V1049-Y1049)/'Post-holder data'!$DE$5),0)","v":0}]
[null,null,null,null,null,null,null,null,null,null,null,null,null,null,null,null,null,null,null,null,null,null,null,null,null,null,{"$f":"IF(Z1050>0,+((V1050-Y1050)/'Post-holder data'!$DE$5),0)","v":0}]
[null,null,null,null,null,null,null,null,null,null,null,null,null,null,null,null,null,null,null,null,null,null,null,null,null,null,{"$f":"IF(Z1051>0,+((V1051-Y1051)/'Post-holder data'!$DE$5),0)","v":0}]
[null,null,null,null,null,null,null,null,null,null,null,null,null,null,null,null,null,null,null,null,null,null,null,null,null,null,{"$f":"IF(Z1052>0,+((V1052-Y1052)/'Post-holder data'!$DE$5),0)","v":0}]
[null,null,null,null,null,null,null,null,null,null,null,null,null,null,null,null,null,null,null,null,null,null,null,null,null,null,{"$f":"IF(Z1053>0,+((V1053-Y1053)/'Post-holder data'!$DE$5),0)","v":0}]
[null,null,null,null,null,null,null,null,null,null,null,null,null,null,null,null,null,null,null,null,null,null,null,null,null,null,{"$f":"IF(Z1054>0,+((V1054-Y1054)/'Post-holder data'!$DE$5),0)","v":0}]
[null,null,null,null,null,null,null,null,null,null,null,null,null,null,null,null,null,null,null,null,null,null,null,null,null,null,{"$f":"IF(Z1055>0,+((V1055-Y1055)/'Post-holder data'!$DE$5),0)","v":0}]
[null,null,null,null,null,null,null,null,null,null,null,null,null,null,null,null,null,null,null,null,null,null,null,null,null,null,{"$f":"IF(Z1056>0,+((V1056-Y1056)/'Post-holder data'!$DE$5),0)","v":0}]
[null,null,null,null,null,null,null,null,null,null,null,null,null,null,null,null,null,null,null,null,null,null,null,null,null,null,{"$f":"IF(Z1057>0,+((V1057-Y1057)/'Post-holder data'!$DE$5),0)","v":0}]
[null,null,null,null,null,null,null,null,null,null,null,null,null,null,null,null,null,null,null,null,null,null,null,null,null,null,{"$f":"IF(Z1058>0,+((V1058-Y1058)/'Post-holder data'!$DE$5),0)","v":0}]
[null,null,null,null,null,null,null,null,null,null,null,null,null,null,null,null,null,null,null,null,null,null,null,null,null,null,{"$f":"IF(Z1059>0,+((V1059-Y1059)/'Post-holder data'!$DE$5),0)","v":0}]
[null,null,null,null,null,null,null,null,null,null,null,null,null,null,null,null,null,null,null,null,null,null,null,null,null,null,{"$f":"IF(Z1060>0,+((V1060-Y1060)/'Post-holder data'!$DE$5),0)","v":0}]
[null,null,null,null,null,null,null,null,null,null,null,null,null,null,null,null,null,null,null,null,null,null,null,null,null,null,{"$f":"IF(Z1061>0,+((V1061-Y1061)/'Post-holder data'!$DE$5),0)","v":0}]
[null,null,null,null,null,null,null,null,null,null,null,null,null,null,null,null,null,null,null,null,null,null,null,null,null,null,{"$f":"IF(Z1062>0,+((V1062-Y1062)/'Post-holder data'!$DE$5),0)","v":0}]
[null,null,null,null,null,null,null,null,null,null,null,null,null,null,null,null,null,null,null,null,null,null,null,null,null,null,{"$f":"IF(Z1063>0,+((V1063-Y1063)/'Post-holder data'!$DE$5),0)","v":0}]
[null,null,null,null,null,null,null,null,null,null,null,null,null,null,null,null,null,null,null,null,null,null,null,null,null,null,{"$f":"IF(Z1064>0,+((V1064-Y1064)/'Post-holder data'!$DE$5),0)","v":0}]
[null,null,null,null,null,null,null,null,null,null,null,null,null,null,null,null,null,null,null,null,null,null,null,null,null,null,{"$f":"IF(Z1065>0,+((V1065-Y1065)/'Post-holder data'!$DE$5),0)","v":0}]
[null,null,null,null,null,null,null,null,null,null,null,null,null,null,null,null,null,null,null,null,null,null,null,null,null,null,{"$f":"IF(Z1066>0,+((V1066-Y1066)/'Post-holder data'!$DE$5),0)","v":0}]
[null,null,null,null,null,null,null,null,null,null,null,null,null,null,null,null,null,null,null,null,null,null,null,null,null,null,{"$f":"IF(Z1067>0,+((V1067-Y1067)/'Post-holder data'!$DE$5),0)","v":0}]
[null,null,null,null,null,null,null,null,null,null,null,null,null,null,null,null,null,null,null,null,null,null,null,null,null,null,{"$f":"IF(Z1068>0,+((V1068-Y1068)/'Post-holder data'!$DE$5),0)","v":0}]
[null,null,null,null,null,null,null,null,null,null,null,null,null,null,null,null,null,null,null,null,null,null,null,null,null,null,{"$f":"IF(Z1069>0,+((V1069-Y1069)/'Post-holder data'!$DE$5),0)","v":0}]
[null,null,null,null,null,null,null,null,null,null,null,null,null,null,null,null,null,null,null,null,null,null,null,null,null,null,{"$f":"IF(Z1070>0,+((V1070-Y1070)/'Post-holder data'!$DE$5),0)","v":0}]
[null,null,null,null,null,null,null,null,null,null,null,null,null,null,null,null,null,null,null,null,null,null,null,null,null,null,{"$f":"IF(Z1071>0,+((V1071-Y1071)/'Post-holder data'!$DE$5),0)","v":0}]
[null,null,null,null,null,null,null,null,null,null,null,null,null,null,null,null,null,null,null,null,null,null,null,null,null,null,{"$f":"IF(Z1072>0,+((V1072-Y1072)/'Post-holder data'!$DE$5),0)","v":0}]
[null,null,null,null,null,null,null,null,null,null,null,null,null,null,null,null,null,null,null,null,null,null,null,null,null,null,{"$f":"IF(Z1073>0,+((V1073-Y1073)/'Post-holder data'!$DE$5),0)","v":0}]
[null,null,null,null,null,null,null,null,null,null,null,null,null,null,null,null,null,null,null,null,null,null,null,null,null,null,{"$f":"IF(Z1074>0,+((V1074-Y1074)/'Post-holder data'!$DE$5),0)","v":0}]
[null,null,null,null,null,null,null,null,null,null,null,null,null,null,null,null,null,null,null,null,null,null,null,null,null,null,{"$f":"IF(Z1075>0,+((V1075-Y1075)/'Post-holder data'!$DE$5),0)","v":0}]
[null,null,null,null,null,null,null,null,null,null,null,null,null,null,null,null,null,null,null,null,null,null,null,null,null,null,{"$f":"IF(Z1076>0,+((V1076-Y1076)/'Post-holder data'!$DE$5),0)","v":0}]
[null,null,null,null,null,null,null,null,null,null,null,null,null,null,null,null,null,null,null,null,null,null,null,null,null,null,{"$f":"IF(Z1077>0,+((V1077-Y1077)/'Post-holder data'!$DE$5),0)","v":0}]
[null,null,null,null,null,null,null,null,null,null,null,null,null,null,null,null,null,null,null,null,null,null,null,null,null,null,{"$f":"IF(Z1078>0,+((V1078-Y1078)/'Post-holder data'!$DE$5),0)","v":0}]
[null,null,null,null,null,null,null,null,null,null,null,null,null,null,null,null,null,null,null,null,null,null,null,null,null,null,{"$f":"IF(Z1079>0,+((V1079-Y1079)/'Post-holder data'!$DE$5),0)","v":0}]
[null,null,null,null,null,null,null,null,null,null,null,null,null,null,null,null,null,null,null,null,null,null,null,null,null,null,{"$f":"IF(Z1080>0,+((V1080-Y1080)/'Post-holder data'!$DE$5),0)","v":0}]
[null,null,null,null,null,null,null,null,null,null,null,null,null,null,null,null,null,null,null,null,null,null,null,null,null,null,{"$f":"IF(Z1081>0,+((V1081-Y1081)/'Post-holder data'!$DE$5),0)","v":0}]
[null,null,null,null,null,null,null,null,null,null,null,null,null,null,null,null,null,null,null,null,null,null,null,null,null,null,{"$f":"IF(Z1082>0,+((V1082-Y1082)/'Post-holder data'!$DE$5),0)","v":0}]
[null,null,null,null,null,null,null,null,null,null,null,null,null,null,null,null,null,null,null,null,null,null,null,null,null,null,{"$f":"IF(Z1083>0,+((V1083-Y1083)/'Post-holder data'!$DE$5),0)","v":0}]
[null,null,null,null,null,null,null,null,null,null,null,null,null,null,null,null,null,null,null,null,null,null,null,null,null,null,{"$f":"IF(Z1084>0,+((V1084-Y1084)/'Post-holder data'!$DE$5),0)","v":0}]
[null,null,null,null,null,null,null,null,null,null,null,null,null,null,null,null,null,null,null,null,null,null,null,null,null,null,{"$f":"IF(Z1085>0,+((V1085-Y1085)/'Post-holder data'!$DE$5),0)","v":0}]
[null,null,null,null,null,null,null,null,null,null,null,null,null,null,null,null,null,null,null,null,null,null,null,null,null,null,{"$f":"IF(Z1086>0,+((V1086-Y1086)/'Post-holder data'!$DE$5),0)","v":0}]
[null,null,null,null,null,null,null,null,null,null,null,null,null,null,null,null,null,null,null,null,null,null,null,null,null,null,{"$f":"IF(Z1087>0,+((V1087-Y1087)/'Post-holder data'!$DE$5),0)","v":0}]
[null,null,null,null,null,null,null,null,null,null,null,null,null,null,null,null,null,null,null,null,null,null,null,null,null,null,{"$f":"IF(Z1088>0,+((V1088-Y1088)/'Post-holder data'!$DE$5),0)","v":0}]
[null,null,null,null,null,null,null,null,null,null,null,null,null,null,null,null,null,null,null,null,null,null,null,null,null,null,{"$f":"IF(Z1089>0,+((V1089-Y1089)/'Post-holder data'!$DE$5),0)","v":0}]
[null,null,null,null,null,null,null,null,null,null,null,null,null,null,null,null,null,null,null,null,null,null,null,null,null,null,{"$f":"IF(Z1090>0,+((V1090-Y1090)/'Post-holder data'!$DE$5),0)","v":0}]
[null,null,null,null,null,null,null,null,null,null,null,null,null,null,null,null,null,null,null,null,null,null,null,null,null,null,{"$f":"IF(Z1091>0,+((V1091-Y1091)/'Post-holder data'!$DE$5),0)","v":0}]
[null,null,null,null,null,null,null,null,null,null,null,null,null,null,null,null,null,null,null,null,null,null,null,null,null,null,{"$f":"IF(Z1092>0,+((V1092-Y1092)/'Post-holder data'!$DE$5),0)","v":0}]
[null,null,null,null,null,null,null,null,null,null,null,null,null,null,null,null,null,null,null,null,null,null,null,null,null,null,{"$f":"IF(Z1093>0,+((V1093-Y1093)/'Post-holder data'!$DE$5),0)","v":0}]
[null,null,null,null,null,null,null,null,null,null,null,null,null,null,null,null,null,null,null,null,null,null,null,null,null,null,{"$f":"IF(Z1094>0,+((V1094-Y1094)/'Post-holder data'!$DE$5),0)","v":0}]
[null,null,null,null,null,null,null,null,null,null,null,null,null,null,null,null,null,null,null,null,null,null,null,null,null,null,{"$f":"IF(Z1095>0,+((V1095-Y1095)/'Post-holder data'!$DE$5),0)","v":0}]
[null,null,null,null,null,null,null,null,null,null,null,null,null,null,null,null,null,null,null,null,null,null,null,null,null,null,{"$f":"IF(Z1096>0,+((V1096-Y1096)/'Post-holder data'!$DE$5),0)","v":0}]
[null,null,null,null,null,null,null,null,null,null,null,null,null,null,null,null,null,null,null,null,null,null,null,null,null,null,{"$f":"IF(Z1097>0,+((V1097-Y1097)/'Post-holder data'!$DE$5),0)","v":0}]
[null,null,null,null,null,null,null,null,null,null,null,null,null,null,null,null,null,null,null,null,null,null,null,null,null,null,{"$f":"IF(Z1098>0,+((V1098-Y1098)/'Post-holder data'!$DE$5),0)","v":0}]
[null,null,null,null,null,null,null,null,null,null,null,null,null,null,null,null,null,null,null,null,null,null,null,null,null,null,{"$f":"IF(Z1099>0,+((V1099-Y1099)/'Post-holder data'!$DE$5),0)","v":0}]
[null,null,null,null,null,null,null,null,null,null,null,null,null,null,null,null,null,null,null,null,null,null,null,null,null,null,{"$f":"IF(Z1100>0,+((V1100-Y1100)/'Post-holder data'!$DE$5),0)","v":0}]
[null,null,null,null,null,null,null,null,null,null,null,null,null,null,null,null,null,null,null,null,null,null,null,null,null,null,{"$f":"IF(Z1101>0,+((V1101-Y1101)/'Post-holder data'!$DE$5),0)","v":0}]
[null,null,null,null,null,null,null,null,null,null,null,null,null,null,null,null,null,null,null,null,null,null,null,null,null,null,{"$f":"IF(Z1102>0,+((V1102-Y1102)/'Post-holder data'!$DE$5),0)","v":0}]
[null,null,null,null,null,null,null,null,null,null,null,null,null,null,null,null,null,null,null,null,null,null,null,null,null,null,{"$f":"IF(Z1103>0,+((V1103-Y1103)/'Post-holder data'!$DE$5),0)","v":0}]
[null,null,null,null,null,null,null,null,null,null,null,null,null,null,null,null,null,null,null,null,null,null,null,null,null,null,{"$f":"IF(Z1104>0,+((V1104-Y1104)/'Post-holder data'!$DE$5),0)","v":0}]
[null,null,null,null,null,null,null,null,null,null,null,null,null,null,null,null,null,null,null,null,null,null,null,null,null,null,{"$f":"IF(Z1105>0,+((V1105-Y1105)/'Post-holder data'!$DE$5),0)","v":0}]
[null,null,null,null,null,null,null,null,null,null,null,null,null,null,null,null,null,null,null,null,null,null,null,null,null,null,{"$f":"IF(Z1106>0,+((V1106-Y1106)/'Post-holder data'!$DE$5),0)","v":0}]
[null,null,null,null,null,null,null,null,null,null,null,null,null,null,null,null,null,null,null,null,null,null,null,null,null,null,{"$f":"IF(Z1107>0,+((V1107-Y1107)/'Post-holder data'!$DE$5),0)","v":0}]
[null,null,null,null,null,null,null,null,null,null,null,null,null,null,null,null,null,null,null,null,null,null,null,null,null,null,{"$f":"IF(Z1108>0,+((V1108-Y1108)/'Post-holder data'!$DE$5),0)","v":0}]
[null,null,null,null,null,null,null,null,null,null,null,null,null,null,null,null,null,null,null,null,null,null,null,null,null,null,{"$f":"IF(Z1109>0,+((V1109-Y1109)/'Post-holder data'!$DE$5),0)","v":0}]
[null,null,null,null,null,null,null,null,null,null,null,null,null,null,null,null,null,null,null,null,null,null,null,null,null,null,{"$f":"IF(Z1110>0,+((V1110-Y1110)/'Post-holder data'!$DE$5),0)","v":0}]
[null,null,null,null,null,null,null,null,null,null,null,null,null,null,null,null,null,null,null,null,null,null,null,null,null,null,{"$f":"IF(Z1111>0,+((V1111-Y1111)/'Post-holder data'!$DE$5),0)","v":0}]
[null,null,null,null,null,null,null,null,null,null,null,null,null,null,null,null,null,null,null,null,null,null,null,null,null,null,{"$f":"IF(Z1112>0,+((V1112-Y1112)/'Post-holder data'!$DE$5),0)","v":0}]
[null,null,null,null,null,null,null,null,null,null,null,null,null,null,null,null,null,null,null,null,null,null,null,null,null,null,{"$f":"IF(Z1113>0,+((V1113-Y1113)/'Post-holder data'!$DE$5),0)","v":0}]
[null,null,null,null,null,null,null,null,null,null,null,null,null,null,null,null,null,null,null,null,null,null,null,null,null,null,{"$f":"IF(Z1114>0,+((V1114-Y1114)/'Post-holder data'!$DE$5),0)","v":0}]
[null,null,null,null,null,null,null,null,null,null,null,null,null,null,null,null,null,null,null,null,null,null,null,null,null,null,{"$f":"IF(Z1115>0,+((V1115-Y1115)/'Post-holder data'!$DE$5),0)","v":0}]
[null,null,null,null,null,null,null,null,null,null,null,null,null,null,null,null,null,null,null,null,null,null,null,null,null,null,{"$f":"IF(Z1116>0,+((V1116-Y1116)/'Post-holder data'!$DE$5),0)","v":0}]
[null,null,null,null,null,null,null,null,null,null,null,null,null,null,null,null,null,null,null,null,null,null,null,null,null,null,{"$f":"IF(Z1117>0,+((V1117-Y1117)/'Post-holder data'!$DE$5),0)","v":0}]
[null,null,null,null,null,null,null,null,null,null,null,null,null,null,null,null,null,null,null,null,null,null,null,null,null,null,{"$f":"IF(Z1118>0,+((V1118-Y1118)/'Post-holder data'!$DE$5),0)","v":0}]
[null,null,null,null,null,null,null,null,null,null,null,null,null,null,null,null,null,null,null,null,null,null,null,null,null,null,{"$f":"IF(Z1119>0,+((V1119-Y1119)/'Post-holder data'!$DE$5),0)","v":0}]
[null,null,null,null,null,null,null,null,null,null,null,null,null,null,null,null,null,null,null,null,null,null,null,null,null,null,{"$f":"IF(Z1120>0,+((V1120-Y1120)/'Post-holder data'!$DE$5),0)","v":0}]
[null,null,null,null,null,null,null,null,null,null,null,null,null,null,null,null,null,null,null,null,null,null,null,null,null,null,{"$f":"IF(Z1121>0,+((V1121-Y1121)/'Post-holder data'!$DE$5),0)","v":0}]
[null,null,null,null,null,null,null,null,null,null,null,null,null,null,null,null,null,null,null,null,null,null,null,null,null,null,{"$f":"IF(Z1122>0,+((V1122-Y1122)/'Post-holder data'!$DE$5),0)","v":0}]
[null,null,null,null,null,null,null,null,null,null,null,null,null,null,null,null,null,null,null,null,null,null,null,null,null,null,{"$f":"IF(Z1123>0,+((V1123-Y1123)/'Post-holder data'!$DE$5),0)","v":0}]
[null,null,null,null,null,null,null,null,null,null,null,null,null,null,null,null,null,null,null,null,null,null,null,null,null,null,{"$f":"IF(Z1124>0,+((V1124-Y1124)/'Post-holder data'!$DE$5),0)","v":0}]
[null,null,null,null,null,null,null,null,null,null,null,null,null,null,null,null,null,null,null,null,null,null,null,null,null,null,{"$f":"IF(Z1125>0,+((V1125-Y1125)/'Post-holder data'!$DE$5),0)","v":0}]
[null,null,null,null,null,null,null,null,null,null,null,null,null,null,null,null,null,null,null,null,null,null,null,null,null,null,{"$f":"IF(Z1126>0,+((V1126-Y1126)/'Post-holder data'!$DE$5),0)","v":0}]
[null,null,null,null,null,null,null,null,null,null,null,null,null,null,null,null,null,null,null,null,null,null,null,null,null,null,{"$f":"IF(Z1127>0,+((V1127-Y1127)/'Post-holder data'!$DE$5),0)","v":0}]
[null,null,null,null,null,null,null,null,null,null,null,null,null,null,null,null,null,null,null,null,null,null,null,null,null,null,{"$f":"IF(Z1128>0,+((V1128-Y1128)/'Post-holder data'!$DE$5),0)","v":0}]
[null,null,null,null,null,null,null,null,null,null,null,null,null,null,null,null,null,null,null,null,null,null,null,null,null,null,{"$f":"IF(Z1129>0,+((V1129-Y1129)/'Post-holder data'!$DE$5),0)","v":0}]
[null,null,null,null,null,null,null,null,null,null,null,null,null,null,null,null,null,null,null,null,null,null,null,null,null,null,{"$f":"IF(Z1130>0,+((V1130-Y1130)/'Post-holder data'!$DE$5),0)","v":0}]
[null,null,null,null,null,null,null,null,null,null,null,null,null,null,null,null,null,null,null,null,null,null,null,null,null,null,{"$f":"IF(Z1131>0,+((V1131-Y1131)/'Post-holder data'!$DE$5),0)","v":0}]
[null,null,null,null,null,null,null,null,null,null,null,null,null,null,null,null,null,null,null,null,null,null,null,null,null,null,{"$f":"IF(Z1132>0,+((V1132-Y1132)/'Post-holder data'!$DE$5),0)","v":0}]
[null,null,null,null,null,null,null,null,null,null,null,null,null,null,null,null,null,null,null,null,null,null,null,null,null,null,{"$f":"IF(Z1133>0,+((V1133-Y1133)/'Post-holder data'!$DE$5),0)","v":0}]
[null,null,null,null,null,null,null,null,null,null,null,null,null,null,null,null,null,null,null,null,null,null,null,null,null,null,{"$f":"IF(Z1134>0,+((V1134-Y1134)/'Post-holder data'!$DE$5),0)","v":0}]
[null,null,null,null,null,null,null,null,null,null,null,null,null,null,null,null,null,null,null,null,null,null,null,null,null,null,{"$f":"IF(Z1135>0,+((V1135-Y1135)/'Post-holder data'!$DE$5),0)","v":0}]
[null,null,null,null,null,null,null,null,null,null,null,null,null,null,null,null,null,null,null,null,null,null,null,null,null,null,{"$f":"IF(Z1136>0,+((V1136-Y1136)/'Post-holder data'!$DE$5),0)","v":0}]
[null,null,null,null,null,null,null,null,null,null,null,null,null,null,null,null,null,null,null,null,null,null,null,null,null,null,{"$f":"IF(Z1137>0,+((V1137-Y1137)/'Post-holder data'!$DE$5),0)","v":0}]
[null,null,null,null,null,null,null,null,null,null,null,null,null,null,null,null,null,null,null,null,null,null,null,null,null,null,{"$f":"IF(Z1138>0,+((V1138-Y1138)/'Post-holder data'!$DE$5),0)","v":0}]
[null,null,null,null,null,null,null,null,null,null,null,null,null,null,null,null,null,null,null,null,null,null,null,null,null,null,{"$f":"IF(Z1139>0,+((V1139-Y1139)/'Post-holder data'!$DE$5),0)","v":0}]
[null,null,null,null,null,null,null,null,null,null,null,null,null,null,null,null,null,null,null,null,null,null,null,null,null,null,{"$f":"IF(Z1140>0,+((V1140-Y1140)/'Post-holder data'!$DE$5),0)","v":0}]
[null,null,null,null,null,null,null,null,null,null,null,null,null,null,null,null,null,null,null,null,null,null,null,null,null,null,{"$f":"IF(Z1141>0,+((V1141-Y1141)/'Post-holder data'!$DE$5),0)","v":0}]
[null,null,null,null,null,null,null,null,null,null,null,null,null,null,null,null,null,null,null,null,null,null,null,null,null,null,{"$f":"IF(Z1142>0,+((V1142-Y1142)/'Post-holder data'!$DE$5),0)","v":0}]
[null,null,null,null,null,null,null,null,null,null,null,null,null,null,null,null,null,null,null,null,null,null,null,null,null,null,{"$f":"IF(Z1143>0,+((V1143-Y1143)/'Post-holder data'!$DE$5),0)","v":0}]
[null,null,null,null,null,null,null,null,null,null,null,null,null,null,null,null,null,null,null,null,null,null,null,null,null,null,{"$f":"IF(Z1144>0,+((V1144-Y1144)/'Post-holder data'!$DE$5),0)","v":0}]
[null,null,null,null,null,null,null,null,null,null,null,null,null,null,null,null,null,null,null,null,null,null,null,null,null,null,{"$f":"IF(Z1145>0,+((V1145-Y1145)/'Post-holder data'!$DE$5),0)","v":0}]
[null,null,null,null,null,null,null,null,null,null,null,null,null,null,null,null,null,null,null,null,null,null,null,null,null,null,{"$f":"IF(Z1146>0,+((V1146-Y1146)/'Post-holder data'!$DE$5),0)","v":0}]

{"sheet":"Calculations","index":1,"n_rows":5,"n_cols":170,"rows_kept":5,"cut":false,"hidden":false,"merged":[[0,168,3,168],[1,71,1,81],[2,71,3,71],[1,82,1,88],[2,87,3,87],[2,72,2,76],[2,89,3,89],[2,91,3,91],[1,134,3,134],[2,90,3,90],[0,167,3,167],[1,95,3,95],[0,55,0,93],[2,86,3,86],[2,84,3,84],[2,82,3,82],[1,55,3,55],[1,56,1,70],[2,56,3,56],[2,128,3,128],[2,57,2,63],[2,129,3,129],[2,130,3,130],[2,131,3,131],[1,47,1,50],[2,93,3,93],[2,102,2,107],[2,108,2,111],[2,83,3,83],[2,85,3,85],[2,92,3,92],[2,64,2,70],[1,89,1,93],[2,88,3,88],[0,94,0,134],[1,94,3,94],[1,96,1,100],[2,96,3,96],[1,101,1,125],[0,135,0,151],[1,136,1,138],[2,126,3,126],[2,101,3,101],[1,126,1,133],[2,112,2,125],[2,132,3,132],[1,152,3,152],[1,153,1,155],[0,164,3,164],[2,160,2,162],[2,159,3,159],[1,156,1,158],[2,156,3,156],[2,137,2,138],[2,143,2,147],[2,139,3,139],[0,166,3,166],[2,44,3,44],[2,45,3,45],[2,46,3,46],[2,77,2,81],[2,127,3,127],[1,43,1,44],[1,53,1,54],[0,42,0,54],[2,47,3,47],[2,50,3,50],[2,48,3,48],[2,49,3,49],[2,51,3,51],[2,52,3,52],[1,159,1,162],[2,54,3,54],[2,97,2,100],[1,148,1,151],[2,148,3,148],[2,133,3,133],[1,135,3,135],[2,136,3,136],[1,139,1,147],[2,31,3,31],[2,32,3,32],[2,26,3,26],[2,27,3,27],[2,30,3,30],[2,36,3,36],[0,165,3,165],[2,37,3,37],[2,33,3,33],[2,34,3,34],[0,35,3,35],[2,43,3,43],[2,39,3,39],[2,40,3,40],[2,41,3,41],[2,42,3,42],[2,53,3,53],[2,149,2,151],[2,140,2,142],[2,154,2,155],[2,153,3,153],[0,163,3,163],[2,157,2,158],[0,152,0,162],[2,0,3,0],[2,4,3,4],[0,3,3,3],[0,2,3,2],[0,1,3,1],[0,0,1,0],[0,4,1,10],[2,5,3,5],[2,6,3,6],[2,8,3,8],[2,10,3,10],[2,7,3,7],[0,11,1,19],[0,36,1,41],[0,29,1,34],[2,12,3,12],[2,13,3,13],[2,14,3,14],[2,15,3,15],[2,17,3,17],[2,9,3,9],[2,11,3,11],[2,16,3,16],[2,20,3,20],[2,18,3,18],[2,19,3,19],[2,23,3,23],[2,29,3,29],[2,21,3,21],[2,24,3,24],[2,25,3,25],[2,22,3,22],[0,28,3,28],[0,23,1,27],[0,20,1,22],[2,38,3,38]]}
["Local Authority","School Reference","Co-ordinator","School Name","Type of establishment",null,null,null,null,null,null,"School Roll",null,null,null,null,null,null,null,null,"Numbers of staff",null,null,"FME %",null,null,null,null,"Total Budget £","Devolved budget £",null,null,null,null,null,"Multi-site?","No. of children with transport to school",null,null,null,null,null,"1. WHOLE-SCHOOL INFORMATION",null,null,null,null,null,null,null,null,null,null,null,null,"2. RESPONSIBILITY FOR THE LEADERSHIP, GOOD MANAGEMENT & STRATEGIC DIRECTION OF COLLEAGUES",null,null,null,null,null,null,null,null,null,null,null,null,null,null,null,null,null,null,null,null,null,null,null,null,null,null,null,null,null,null,null,null,null,null,null,null,null,null,"3. RESPONSIBILITY FOR CURRICULUM DEVELOPMENT & QUALITY ASSURANCE",null,null,null,null,null,null,null,null,null,null,null,null,null,null,null,null,null,null,null,null,null,null,null,null,null,null,null,null,null,null,null,null,null,null,null,null,null,null,null,null,"4. RESPONSIBILITY FOR WHOLE-SCHOOL POLICY & IMPLEMENTATION",null,null,null,null,null,null,null,null,null,null,null,null,null,null,null,null,"5. RESPONSIBILITY FOR WORKING WITH PARTNERS",null,null,null,null,null,null,null,null,null,null,"GRAND TOTAL","SCHOOL TYPE","POST TYPE","SCHOOL ROLL","SALARY","SALARY Point"]
[null,null,null,null,null,null,null,null,null,null,null,null,null,null,null,null,null,null,null,null,null,null,null,null,null,null,null,null,null,null,null,null,null,null,null,null,null,null,null,null,null,null,"Local Authority","School Name and reference",null,"More than one school?","Total no. of schools","Current post",null,null,null,"Name of post","Name of post holder","Gender",null,"Total","2.1 No. of teaching staff managed",null,null,null,null,null,null,null,null,null,null,null,null,null,null,"2.2 No. of other staff managed",null,null,null,null,null,null,null,null,null,null,"2.3 Amount of budget managed",null,null,null,null,null,null,"2.4 Health & safety",null,null,null,null,"Total","3.1 CPD needs, career development and performance - Sub-total","3.2 Development plan",null,null,null,null,"3.3 Subgects and classes",null,null,null,null,null,null,null,null,null,null,null,null,null,null,null,null,null,null,null,null,null,null,null,null,"3.4 Other formal curricular / management responsibilities",null,null,null,null,null,null,null,"3.5 Teaching time Sub-total","Total","4.1 Pupil behaviour management",null,null,"4.2 Guidance, pastoral care & pupil welfare",null,null,null,null,null,null,null,null,"4.3 Pupil assessment",null,null,null,"Total","5.1 To work with parents",null,null,"5.2 To work with colleagues in the same establishment",null,null,"5.3 To work with other establishments and agencies"]
["Name",null,null,null,"Primary","Secondary","Special","Junior High School","Other","Includes nursery unit","Includes SEN unit","Up to 50","51 to 100","101 to 250","251 to 500","501 to 750","751 to 1000","1001 to 1250","1251 to 1500","Over 1500","Promoted posts","Other teaching staff","Other staff","0 to 10","11 to 20","21 to 30","31 to 40","41 to 100",null,"None","Up to 10000","10001 to 50000","50001 to 100000","100001 to 250000","Over 250000",null,"0 to 50","51 to 100","101 to 200","201 to 300","301 to 400","Over 400","Name","Ref. (as in Whole School Data Sheet)","Name",null,null,"HT","Formal depute role?","Member of SMT","PT",null,null,"Male","Female",null,"Sub-total","Number of staff",null,null,null,null,null,null,"FTEs",null,null,null,null,null,null,"Sub-total","Number of staff",null,null,null,null,"FTEs",null,null,null,null,"Sub-total","None","Up to £1000","£1001 to £5000","£5001 to £10000","£10001 to £25000","Over £25000","Sub-total","High risk subject(s)","Other subgect(s) ","Year groups and specialist sections","Whole Scool",null,null,"Sub-total","With impact on:",null,null,null,"Sub-total","Developing subjects",null,null,null,null,null,"National Qualifications",null,null,null,"Monitoring (no. of classes)",null,null,null,null,null,null,null,null,null,null,null,null,null,"Sub-total","Whole-school timetabling","Whole-school responsibility for ICT","Early years / nursery classes","Learning and / or behvioural support","A special needs unit / classes","Other specialist sections such as English as a second language","Primary section of combined school",null,null,"Sub-total","Leading with impact on:",null,"Sub-total","With impact on:",null,null,"Guidance case load",null,null,null,null,"Sub-total","With impact on:",null,null,null,"Sub-total","With impact on:",null,"Sub-total","With impact on:",null,"Sub-total","With impact on:"]
[null,null,null,null,null,null,null,null,null,null,null,null,null,null,null,null,null,null,null,null,null,null,null,null,null,null,null,null,null,null,null,null,null,null,null,null,null,null,null,null,null,null,null,null,null,null,null,null,null,null,null,null,null,null,null,null,null,"None",1,"2 to 5","6 to 10","11 to 25","26 to 50","50+","None",1,"2 to 5","6 to 10","11 to 25","26 to 50","50+",null,"None",1,"2 to 10","11 to 25","25+","None",1,"2 to 10","11 to 25","25+",null,null,null,null,null,null,null,null,null,null,null,null,null,null,null,"Departments / subjects","Guidance & pastoral care","Year groups and specialist sections","Whole School",null,"S1","S2","S3","S4","S5","S6","S3","S4","S5","S6","Nursery","P1","P2","P3","P4","P5","P6","P7","S1","S2","S3","S4","S5","S6",null,null,null,null,null,null,null,null,null,null,null,"Year groups and specialist sections","Whole School",null,"Guidance & pastoral care","Year groups and specialist sections","Whole School","None","1 to 50","51 to 100","101 to 200","Over 200",null,"Departments / subgects","Year groups and specialist sections","Whole School",null,null,"Year groups and specialist sections","Whole School",null,"Year groups and specialist sections","Whole School",null,"Year groups and specialist sections","Whole School","Other establishments / agencies"]
[{"$f":"+'Post-holder data'!B5","v":0},{"$f":"+'Post-holder data'!C5","v":"School"},null,{"$f":"VLOOKUP($B5,'Whole-school data'!$C$5:$AP$10,2,FALSE)","v":0},{"$f":"IF(VLOOKUP($B5,'Whole-school data'!$C$5:$AP$10,3,FALSE)=\"y\",IF(AV5=\"y\",Weightings!$U$21,IF(AW5=\"y\",Weightings!$V$21,IF(AX5=\"y\",Weightings!$W$21,IF(AY5=\"y\",Weightings!$X$21)))),\"N\")","v":1},{"$f":"IF(VLOOKUP($B5,'Whole-school data'!$C$5:$AP$10,4,FALSE)=\"y\",IF(AV5=\"y\",Weightings!$U$23,IF(AW5=\"y\",Weightings!$V$23,IF(AX5=\"y\",Weightings!$W$23,IF(AY5=\"y\",Weightings!$X$23)))),\"N\")","v":"N"},{"$f":"IF(VLOOKUP($B5,'Whole-school data'!$C$5:$AP$10,5,FALSE)=\"y\",IF(AV5=\"y\",Weightings!$U$25,IF(AW5=\"y\",Weightings!$V$25,IF(AX5=\"y\",Weightings!$W$25,IF(AY5=\"y\",Weightings!$X$25)))),\"N\")","v":"N"},{"$f":"IF(VLOOKUP($B5,'Whole-school data'!$C$5:$AP$10,6,FALSE)=\"y\",IF(AV5=\"y\",Weightings!$U$27,IF(AW5=\"y\",Weightings!$V$27,IF(AX5=\"y\",Weightings!$W$27,IF(AY5=\"y\",Weightings!$X$27)))),\"N\")","v":"N"},{"$f":"IF(VLOOKUP($B5,'Whole-school data'!$C$5:$AP$10,7,FALSE)=\"y\",IF(AV5=\"y\",Weightings!$U$29,IF(AW5=\"y\",Weightings!$V$29,IF(AX5=\"y\",Weightings!$W$29,IF(AY5=\"y\",Weightings!$X$29)))),\"N\")","v":"N"},{"$f":"IF(VLOOKUP($B5,'Whole-school data'!$C$5:$AP$10,8,FALSE)=\"y\",IF(AV5=\"y\",Weightings!$U$39,IF(AW5=\"y\",Weightings!$V$39,IF(AX5=\"y\",Weightings!$W$39,IF(AY5=\"y\",Weightings!$X$39)))),1)","v":1},{"$f":"IF(VLOOKUP($B5,'Whole-school data'!$C$5:$AP$10,9,FALSE)=\"y\",IF(AV5=\"y\",Weightings!$U$41,IF(AW5=\"y\",Weightings!$V$41,IF(AX5=\"y\",Weightings!$W$41,IF(AY5=\"y\",Weightings!$X$41)))),1)","v":1},{"$f":"IF(VLOOKUP($B5,'Whole-school data'!$C$5:$AP$10,10,FALSE)=\"Y\",IF(AV5=\"y\",Weightings!$U$47,IF(AW5=\"y\",Weightings!$V$47,IF(AX5=\"y\",Weightings!$W$47,IF(AY5=\"y\",Weightings!$X$47)))),\"N\")","v":8},{"$f":"IF(VLOOKUP($B5,'Whole-school data'!$C$5:$AP$10,11,FALSE)=\"Y\",IF(AV5=\"y\",Weightings!$U$49,IF(AW5=\"y\",Weightings!$V$49,IF(AX5=\"y\",Weightings!$W$49,IF(AY5=\"y\",Weightings!$X$49)))),\"N\")","v":"N"},{"$f":"IF(VLOOKUP($B5,'Whole-school data'!$C$5:$AP$10,12,FALSE)=\"Y\",IF(AV5=\"y\",Weightings!$U$51,IF(AW5=\"y\",Weightings!$V$51,IF(AX5=\"y\",Weightings!$W$51,IF(AY5=\"y\",Weightings!$X$51)))),\"N\")","v":"N"},{"$f":"IF(VLOOKUP($B5,'Whole-school data'!$C$5:$AP$10,13,FALSE)=\"Y\",IF(AV5=\"y\",Weightings!$U$53,IF(AW5=\"y\",Weightings!$V$53,IF(AX5=\"y\",Weightings!$W$53,IF(AY5=\"y\",Weightings!$X$53)))),\"N\")","v":"N"},{"$f":"IF(VLOOKUP($B5,'Whole-school data'!$C$5:$AP$10,14,FALSE)=\"Y\",IF(AV5=\"y\",Weightings!$U$55,IF(AW5=\"y\",Weightings!$V$55,IF(AX5=\"y\",Weightings!$W$55,IF(AY5=\"y\",Weightings!$X$55)))),\"N\")","v":"N"},{"$f":"IF(VLOOKUP($B5,'Whole-school data'!$C$5:$AP$10,15,FALSE)=\"Y\",IF(AV5=\"y\",Weightings!$U$57,IF(AW5=\"y\",Weightings!$V$57,IF(AX5=\"y\",Weightings!$W$57,IF(AY5=\"y\",Weightings!$X$57)))),\"N\")","v":"N"},{"$f":"IF(VLOOKUP($B5,'Whole-school data'!$C$5:$AP$10,16,FALSE)=\"Y\",IF(AV5=\"y\",Weightings!$U$59,IF(AW5=\"y\",Weightings!$V$59,IF(AX5=\"y\",Weightings!$W$59,IF(AY5=\"y\",Weightings!$X$59)))),\"N\")","v":"N"},{"$f":"IF(VLOOKUP($B5,'Whole-school data'!$C$5:$AP$10,17,FALSE)=\"Y\",IF(AV5=\"y\",Weightings!$U$61,IF(AW5=\"y\",Weightings!$V$61,IF(AX5=\"y\",Weightings!$W$61,IF(AY5=\"y\",Weightings!$X$61)))),\"N\")","v":"N"},{"$f":"IF(VLOOKUP($B5,'Whole-school data'!$C$5:$AP$10,18,FALSE)=\"Y\",IF(AV5=\"y\",Weightings!$U$63,IF(AW5=\"y\",Weightings!$V$63,IF(AX5=\"y\",Weightings!$W$63,IF(AY5=\"y\",Weightings!$X$63)))),\"N\")","v":"N"},{"$f":"VLOOKUP($B5,'Whole-school data'!$C$5:$AP$10,19,FALSE)*IF(AV5=\"y\",Weightings!$U$67,IF(AW5=\"y\",Weightings!$V$67,IF(AX5=\"y\",Weightings!$W$67,IF(AY5=\"y\",Weightings!$X$67))))","v":0},{"$f":"VLOOKUP($B5,'Whole-school data'!$C$5:$AP$10,20,FALSE)*IF(AV5=\"y\",Weightings!$U$69,IF(AW5=\"y\",Weightings!$V$69,IF(AX5=\"y\",Weightings!$W$69,IF(AY5=\"y\",Weightings!$X$69))))","v":0},{"$f":"VLOOKUP($B5,'Whole-school data'!$C$5:$AP$10,21,FALSE)*IF(AV5=\"y\",Weightings!$U$71,IF(AW5=\"y\",Weightings!$V$71,IF(AX5=\"y\",Weightings!$W$71,IF(AY5=\"y\",Weightings!$X$71))))","v":0},{"$f":"IF(VLOOKUP($B5,'Whole-school data'!$C$5:$AP$10,22,FALSE)=\"Y\",IF(AV5=\"y\",Weightings!$U$89,IF(AW5=\"y\",Weightings!$V$89,IF(AX5=\"y\",Weightings!$W$89,IF(AY5=\"y\",Weightings!$X$89)))),\"N\")","v":0.75},{"$f":"IF(VLOOKUP($B5,'Whole-school data'!$C$5:$AP$10,23,FALSE)=\"Y\",IF(AV5=\"y\",Weightings!$U$91,IF(AW5=\"y\",Weightings!$V$91,IF(AX5=\"y\",Weightings!$W$91,IF(AY5=\"y\",Weightings!$X$91)))),\"N\")","v":"N"},{"$f":"IF(VLOOKUP($B5,'Whole-school data'!$C$5:$AP$10,24,FALSE)=\"Y\",IF(AV5=\"y\",Weightings!$U$93,IF(AW5=\"y\",Weightings!$V$93,IF(AX5=\"y\",Weightings!$W$93,IF(AY5=\"y\",Weightings!$X$93)))),\"N\")","v":"N"},{"$f":"IF(VLOOKUP($B5,'Whole-school data'!$C$5:$AP$10,25,FALSE)=\"Y\",IF(AV5=\"y\",Weightings!$U$95,IF(AW5=\"y\",Weightings!$V$95,IF(AX5=\"y\",Weightings!$W$95,IF(AY5=\"y\",Weightings!$X$95)))),\"N\")","v":"N"},{"$f":"IF(VLOOKUP($B5,'Whole-school data'!$C$5:$AP$10,26,FALSE)=\"Y\",IF(AV5=\"y\",Weightings!$U$97,IF(AW5=\"y\",Weightings!$V$97,IF(AX5=\"y\",Weightings!$W$97,IF(AY5=\"y\",Weightings!$X$97)))),\"N\")","v":"N"},{"$f":"VLOOKUP($B5,'Whole-school data'!$C$5:$AP$10,27,FALSE)","v":0},{"$f":"IF(VLOOKUP($B5,'Whole-school data'!$C$5:$AP$10,28,FALSE)=\"y\",IF(AV5=\"y\",Weightings!$U$107,IF(AW5=\"y\",Weightings!$V$107,IF(AX5=\"y\",Weightings!$W$107,IF(AY5=\"y\",Weightings!$X$107)))),\"N\")","v":0},{"$f":"IF(VLOOKUP($B5,'Whole-school data'!$C$5:$AP$10,29,FALSE)=\"y\",IF(AV5=\"y\",Weightings!$U$109,IF(AW5=\"y\",Weightings!$V$109,IF(AX5=\"y\",Weightings!$W$109,IF(AY5=\"y\",Weightings!$X$109)))),\"N\")","v":"N"},{"$f":"IF(VLOOKUP($B5,'Whole-school data'!$C$5:$AP$10,30,FALSE)=\"y\",IF(AV5=\"y\",Weightings!$U$111,IF(AW5=\"y\",Weightings!$V$111,IF(AX5=\"y\",Weightings!$W$111,IF(AY5=\"y\",Weightings!$X$111)))),\"N\")","v":"N"},{"$f":"IF(VLOOKUP($B5,'Whole-school data'!$C$5:$AP$10,31,FALSE)=\"y\",IF(AV5=\"y\",Weightings!$U$113,IF(AW5=\"y\",Weightings!$V$113,IF(AX5=\"y\",Weightings!$W$113,IF(AY5=\"y\",Weightings!$X$113)))),\"N\")","v":"N"},{"$f":"IF(VLOOKUP($B5,'Whole-school data'!$C$5:$AP$10,32,FALSE)=\"y\",IF(AV5=\"y\",Weightings!$U$115,IF(AW5=\"y\",Weightings!$V$115,IF(AX5=\"y\",Weightings!$W$115,IF(AY5=\"y\",Weightings!$X$115)))),\"N\")","v":"N"},{"$f":"IF(VLOOKUP($B5,'Whole-school data'!$C$5:$AP$10,33,FALSE)=\"y\",IF(AV5=\"y\",Weightings!$U$117,IF(AW5=\"y\",Weightings!$V$117,IF(AX5=\"y\",Weightings!$W$117,IF(AY5=\"y\",Weightings!$X$117)))),\"N\")","v":"N"},{"$f":"IF(VLOOKUP($B5,'Whole-school data'!$C$5:$AP$10,40,FALSE)=\"y\",IF(AV5=\"y\",Weightings!$U$121,IF(AW5=\"y\",Weightings!$V$121,IF(AX5=\"y\",Weightings!$W$121,IF(AY5=\"y\",Weightings!$X$121)))),1)","v":1},{"$f":"IF(VLOOKUP($B5,'Whole-school data'!$C$5:$AP$10,34,FALSE)=\"y\",IF(AV5=\"y\",Weightings!$U$125,IF(AW5=\"y\",Weightings!$V$125,IF(AX5=\"y\",Weightings!$W$125,IF(AY5=\"y\",Weightings!$X$125)))),\"N\")","v":2},{"$f":"IF(VLOOKUP($B5,'Whole-school data'!$C$5:$AP$10,35,FALSE)=\"y\",IF(AV5=\"y\",Weightings!$U$127,IF(AW5=\"y\",Weightings!$V$127,IF(AX5=\"y\",Weightings!$W$127,IF(AY5=\"y\",Weightings!$X$127)))),\"N\")","v":"N"},{"$f":"IF(VLOOKUP($B5,'Whole-school data'!$C$5:$AP$10,36,FALSE)=\"y\",IF(AV5=\"y\",Weightings!$U$129,IF(AW5=\"y\",Weightings!$V$129,IF(AX5=\"y\",Weightings!$W$129,IF(AY5=\"y\",Weightings!$X$129)))),\"N\")","v":"N"},{"$f":"IF(VLOOKUP($B5,'Whole-school data'!$C$5:$AP$10,37,FALSE)=\"y\",IF(AV5=\"y\",Weightings!$U$131,IF(AW5=\"y\",Weightings!$V$131,IF(AX5=\"y\",Weightings!$W$131,IF(AY5=\"y\",Weightings!$X$131)))),\"N\")","v":"N"},{"$f":"IF(VLOOKUP($B5,'Whole-school data'!$C$5:$AP$10,38,FALSE)=\"y\",IF(AV5=\"y\",Weightings!$U$133,IF(AW5=\"y\",Weightings!$V$133,IF(AX5=\"y\",Weightings!$W$133,IF(AY5=\"y\",Weightings!$X$133)))),\"N\")","v":"N"},{"$f":"IF(VLOOKUP($B5,'Whole-school data'!$C$5:$AP$10,39,FALSE)=\"y\",IF(AV5=\"y\",Weightings!$U$135,IF(AW5=\"y\",Weightings!$V$135,IF(AX5=\"y\",Weightings!$W$135,IF(AY5=\"y\",Weightings!$X$135)))),\"N\")","v":"N"},{"$f":"+'Post-holder data'!B5","v":0},{"$f":"+'Post-holder data'!C5","v":"School"},{"$f":"+'Post-holder data'!D5","v":0},{"$f":"+'Post-holder data'!$H5","v":""},{"$f":"IF(ISNUMBER('Post-holder data'!I5),IF('Post-holder data'!I5>1,'Post-holder data'!$I5,1),1)","v":1},{"$f":"+'Post-holder data'!E5","v":"y"},{"$f":"+'Post-holder data'!M5","v":""},{"$f":"IF('Post-holder data'!M5=\"Y\",0,+'Post-holder data'!L5)","v":""},{"$f":"+'Post-holder data'!G5","v":""},{"$f":"+'Post-holder data'!N5","v":0},{"$f":"+'Post-holder data'!O5","v":0},{"$f":"+'Post-holder data'!P5","v":""},{"$f":"+'Post-holder data'!Q5","v":"y"},{"$f":"ROUND(+BE5+BT5+CE5+CL5,0)","v":5},{"$f":"IF(AV5=\"y\",(+U5+V5)*Weightings!$U$65,IF(AW5=\"y\",Weightings!$V$161,IF(AX5=\"y\",Weightings!$W$161,IF(AY5=\"y\",Weightings!$X$161)))*SUM(BM5:BS5)+U5+V5)","v":0},{"$f":"+IF('Post-holder data'!R5=\"y\",IF(AW5=\"y\",Weightings!$V$164,IF(AX5=\"y\",Weightings!$W$164,IF(AY5=\"y\",Weightings!$X$164))),\"N\")","v":false},{"$f":"+IF('Post-holder data'!S5=\"y\",IF(AW5=\"y\",Weightings!$V$166,IF(AX5=\"y\",Weightings!$W$166,IF(AY5=\"y\",Weightings!$X$166))),\"N\")","v":"N"},{"$f":"+IF('Post-holder data'!T5=\"y\",IF(AW5=\"y\",Weightings!$V$168,IF(AX5=\"y\",Weightings!$W$168,IF(AY5=\"y\",Weightings!$X$168))),\"N\")","v":"N"},{"$f":"+IF('Post-holder data'!U5=\"y\",IF(AW5=\"y\",Weightings!$V$170,IF(AX5=\"y\",Weightings!$W$170,IF(AY5=\"y\",Weightings!$X$170))),\"N\")","v":"N"},{"$f":"+IF('Post-holder data'!V5=\"y\",IF(AW5=\"y\",Weightings!$V$172,IF(AX5=\"y\",Weightings!$W$172,IF(AY5=\"y\",Weightings!$X$172))),\"N\")","v":"N"},{"$f":"+IF('Post-holder data'!W5=\"y\",IF(AW5=\"y\",Weightings!$V$174,IF(AX5=\"y\",Weightings!$W$174,IF(AY5=\"y\",Weightings!$X$174))),\"N\")","v":"N"},{"$f":"+IF('Post-holder data'!X5=\"y\",IF(AW5=\"y\",Weightings!$V$176,IF(AX5=\"y\",Weightings!$W$176,IF(AY5=\"y\",Weightings!$X$176))),\"N\")","v":"N"},{"$f":"+IF('Post-holder data'!Y5=\"y\",IF(AW5=\"y\",Weightings!$V$164,IF(AX5=\"y\",Weightings!$W$164,IF(AY5=\"y\",Weightings!$X$164))),\"N\")","v":false},{"$f":"+IF('Post-holder data'!Z5=\"y\",IF(AW5=\"y\",Weightings!$V$166,IF(AX5=\"y\",Weightings!$W$166,IF(AY5=\"y\",Weightings!$X$166))),\"N\")","v":"N"},{"$f":"+IF('Post-holder data'!AA5=\"y\",IF(AW5=\"y\",Weightings!$V$168,IF(AX5=\"y\",Weightings!$W$168,IF(AY5=\"y\",Weightings!$X$168))),\"N\")","v":"N"},{"$f":"+IF('Post-holder data'!AB5=\"y\",IF(AW5=\"y\",Weightings!$V$170,IF(AX5=\"y\",Weightings!$W$170,IF(AY5=\"y\",Weightings!$X$170))),\"N\")","v":"N"},{"$f":"+IF('Post-holder data'!AC5=\"y\",IF(AW5=\"y\",Weightings!$V$172,IF(AX5=\"y\",Weightings!$W$172,IF(AY5=\"y\",Weightings!$X$172))),\"N\")","v":"N"},{"$f":"+IF('Post-holder data'!AD5=\"y\",IF(AW5=\"y\",Weightings!$V$174,IF(AX5=\"y\",Weightings!$W$174,IF(AY5=\"y\",Weightings!$X$174))),\"N\")","v":"N"},{"$f":"+IF('Post-holder data'!AE5=\"y\",IF(AW5=\"y\",Weightings!$V$176,IF(AX5=\"y\",Weightings!$W$176,IF(AY5=\"y\",Weightings!$X$176))),\"N\")","v":"N"},{"$f":"IF(AV5=\"y\",W5*Weightings!$U$65,IF(AW5=\"y\",Weightings!$V$178,IF(AX5=\"y\",Weightings!$W$178,IF(AY5=\"y\",Weightings!$X$178)))*SUM(BZ5:CD5)+W5)","v":0},{"$f":"+IF('Post-holder data'!AF5=\"y\",IF(AW5=\"y\",Weightings!$V$180,IF(AX5=\"y\",Weightings!$W$180,IF(AY5=\"y\",Weightings!$X$180))),\"N\")","v":false},{"$f":"+IF('Post-holder data'!AG5=\"y\",IF(AW5=\"y\",Weightings!$V$182,IF(AX5=\"y\",Weightings!$W$182,IF(AY5=\"y\",Weightings!$X$182))),\"N\")","v":"N"},{"$f":"+IF('Post-holder data'!AH5=\"y\",IF(AW5=\"y\",Weightings!$V$184,IF(AX5=\"y\",Weightings!$W$184,IF(AY5=\"y\",Weightings!$X$184))),\"N\")","v":"N"},{"$f":"+IF('Post-holder data'!AI5=\"y\",IF(AW5=\"y\",Weightings!$V$186,IF(AX5=\"y\",Weightings!$W$186,IF(AY5=\"y\",Weightings!$X$186))),\"N\")","v":"N"},{"$f":"+IF('Post-holder data'!AJ5=\"y\",IF(AW5=\"y\",Weightings!$V$188,IF(AX5=\"y\",Weightings!$W$188,IF(AY5=\"y\",Weightings!$X$188))),\"N\")","v":"N"},{"$f":"+IF('Post-holder data'!AK5=\"y\",IF(AW5=\"y\",Weightings!$V$180,IF(AX5=\"y\",Weightings!$W$180,IF(AY5=\"y\",Weightings!$X$180))),\"N\")","v":false},{"$f":"+IF('Post-holder data'!AL5=\"y\",IF(AW5=\"y\",Weightings!$V$182,IF(AX5=\"y\",Weightings!$W$182,IF(AY5=\"y\",Weightings!$X$182))),\"N\")","v":"N"},{"$f":"+IF('Post-holder data'!AM5=\"y\",IF(AW5=\"y\",Weightings!$V$184,IF(AX5=\"y\",Weightings!$W$184,IF(AY5=\"y\",Weightings!$X$184))),\"N\")","v":"N"},{"$f":"+IF('Post-holder data'!AN5=\"y\",IF(AW5=\"y\",Weightings!$V$186,IF(AX5=\"y\",Weightings!$W$186,IF(AY5=\"y\",Weightings!$X$186))),\"N\")","v":"N"},{"$f":"+IF('Post-holder data'!AO5=\"y\",IF(AW5=\"y\",Weightings!$V$188,IF(AX5=\"y\",Weightings!$W$188,IF(AY5=\"y\",Weightings!$X$188))),\"N\")","v":"N"},{"$f":"IF(AV5=\"y\",SUM(AD5:AI5),SUM(CF5:CK5)+SUM(AD5:AI5))","v":0},{"$f":"+IF('Post-holder data'!AP5=\"y\",IF(AW5=\"y\",Weightings!$V$194,IF(AX5=\"y\",Weightings!$W$194,IF(AY5=\"y\",Weightings!$X$194))),\"N\")","v":false},{"$f":"+IF('Post-holder data'!AQ5=\"y\",IF(AW5=\"y\",Weightings!$V$196,IF(AX5=\"y\",Weightings!$W$196,IF(AY5=\"y\",Weightings!$X$196))),\"N\")","v":"N"},{"$f":"+IF('Post-holder data'!AR5=\"y\",IF(AW5=\"y\",Weightings!$V$198,IF(AX5=\"y\",Weightings!$W$198,IF(AY5=\"y\",Weightings!$X$198))),\"N\")","v":"N"},{"$f":"+IF('Post-holder data'!AS5=\"y\",IF(AW5=\"y\",Weightings!$V$200,IF(AX5=\"y\",Weightings!$W$200,IF(AY5=\"y\",Weightings!$X$200))),\"N\")","v":"N"},{"$f":"+IF('Post-holder data'!AT5=\"y\",IF(AW5=\"y\",Weightings!$V$202,IF(AX5=\"y\",Weightings!$W$202,IF(AY5=\"y\",Weightings!$X$202))),\"N\")","v":"N"},{"$f":"+IF('Post-holder data'!AU5=\"y\",IF(AW5=\"y\",Weightings!$V$204,IF(AX5=\"y\",Weightings!$W$204,IF(AY5=\"y\",Weightings!$X$204))),\"N\")","v":"N"},{"$f":"(SUM(L5:T5)*AJ5*(1+LARGE(CO5:CP5,1))*IF(AJ5=\"y\",IF(AV5=\"y\",Weightings!$U$121,IF(AW5=\"y\",Weightings!$V$121,IF(AX5=\"y\",Weightings!$W$121,IF(AY5=\"y\",Weightings!$X$121)))),1)+(BE5/IF(AV5=\"y\",Weightings!$U$65,1))*(1+LARGE(CM5:CN5,1))+SUM(Calculations!AK5:AP5))*IF(AV5=\"y\",Weightings!$U$208,IF(AW5=\"y\",Weightings!$V$208,IF(AX5=\"y\",Weightings!$W$208,IF(AY5=\"y\",Weightings!$X$208))))","v":4.5},{"$f":"IF('Post-holder data'!AV5=\"y\",(IF(AV5=\"y\",Weightings!$U$209,IF(AW5=\"y\",Weightings!$V$209,IF(AX5=\"y\",Weightings!$W$209,IF(AY5=\"y\",Weightings!$X$209))))),0)","v":0},{"$f":"IF('Post-holder data'!AW5=\"y\",(IF(AV5=\"y\",Weightings!$U$211,IF(AW5=\"y\",Weightings!$V$211,IF(AX5=\"y\",Weightings!$W$211,IF(AY5=\"y\",Weightings!$X$211))))),0)","v":0},{"$f":"IF('Post-holder data'!AX5=\"y\",(IF(AV5=\"y\",Weightings!$U$213,IF(AW5=\"y\",Weightings!$V$213,IF(AX5=\"y\",Weightings!$W$213,IF(AY5=\"y\",Weightings!$X$213))))),0)","v":0},{"$f":"IF(AV5=\"y\",Weightings!$U$215,IF('Post-holder data'!AY5=\"y\",(IF(AW5=\"y\",Weightings!$V$215,IF(AX5=\"y\",Weightings!$W$215,IF(AY5=\"y\",Weightings!$X$215)))),0))","v":1},{"$f":"ROUND(+CR5+CS5+CX5+DW5+EE5,0)","v":32},{"$f":"IF(AV5=\"y\",+U5+V5+W5,(IF(AW5=\"y\",Weightings!$V$161,IF(AX5=\"y\",Weightings!$W$161,IF(AY5=\"y\",Weightings!$X$161)))*SUM(BF5:BL5))+(IF(AW5=\"y\",Weightings!$V$178,IF(AX5=\"y\",Weightings!$W$178,IF(AY5=\"y\",Weightings!$X$178)))*SUM(BU5:BY5))+U5+V5+W5)*IF(AV5=\"y\",Weightings!$U$223,IF(AW5=\"y\",Weightings!$V$223,IF(AX5=\"y\",Weightings!$W$223,IF(AY5=\"y\",Weightings!$X$223))))","v":0},{"$f":"SUM($L5:$T5)*(1+(($AU5-1)*IF(AV5=\"y\",Weightings!$U$16,IF(AW5=\"y\",Weightings!$V$16,IF(AX5=\"y\",Weightings!$W$16,IF(AY5=\"y\",Weightings!$X$16))))))*LARGE(E5:I5,1)*$J5*$K5*(1+LARGE(CT5:CW5,1))*IF(AV5=\"y\",Weightings!$U$227,IF(AW5=\"y\",Weightings!$V$227,IF(AX5=\"y\",Weightings!$W$227,IF(AY5=\"y\",Weightings!$X$227))))","v":16},{"$f":"IF('Post-holder data'!AZ5=\"y\",(IF(AV5=\"y\",Weightings!$U$231,IF(AW5=\"y\",Weightings!$V$231,IF(AX5=\"y\",Weightings!$W$231,IF(AY5=\"y\",Weightings!$X$231))))),0)","v":0},{"$f":"IF('Post-holder data'!BA5=\"y\",(IF(AV5=\"y\",Weightings!$U$233,IF(AW5=\"y\",Weightings!$V$233,IF(AX5=\"y\",Weightings!$W$233,IF(AY5=\"y\",Weightings!$X$233))))),0)","v":0},{"$f":"IF('Post-holder data'!BB5=\"y\",(IF(AV5=\"y\",Weightings!$U$235,IF(AW5=\"y\",Weightings!$V$235,IF(AX5=\"y\",Weightings!$W$235,IF(AY5=\"y\",Weightings!$X$235))))),0)","v":0},{"$f":"IF(AV5=\"y\",Weightings!$U$237,IF('Post-holder data'!BC5=\"y\",(IF(AW5=\"y\",Weightings!$V$237,IF(AX5=\"y\",Weightings!$W$237,IF(AY5=\"y\",Weightings!$X$237)))),0))","v":1},{"$f":"(SUM(L5:T5)*SUM(E5:I5))+(SUM(CY5:DV5))+IF(SUM(DI5:DP5)>0,Weightings!$S$251,0)","v":8},{"$f":"IF(ISNUMBER('Post-holder data'!BD5*Weightings!$S$267),'Post-holder data'!BD5*Weightings!$S$267,0)","v":0},{"$f":"IF(ISNUMBER('Post-holder data'!BE5*Weightings!$S$269),'Post-holder data'!BE5*Weightings!$S$269,0)","v":0},{"$f":"IF(ISNUMBER('Post-holder data'!BF5*Weightings!$S$271),'Post-holder data'!BF5*Weightings!$S$271,0)","v":0},{"$f":"IF(ISNUMBER('Post-holder data'!BG5*Weightings!$S$273),'Post-holder data'!BG5*Weightings!$S$273,0)","v":0},{"$f":"IF(ISNUMBER('Post-holder data'!BH5*Weightings!$S$275),'Post-holder data'!BH5*Weightings!$S$275,0)","v":0},{"$f":"IF(ISNUMBER('Post-holder data'!BI5*Weightings!$S$277),'Post-holder data'!BI5*Weightings!$S$277,0)","v":0},{"$f":"IF(ISNUMBER('Post-holder data'!BJ5*Weightings!$T$271),'Post-holder data'!BJ5*Weightings!$T$271,0)","v":0},{"$f":"IF(ISNUMBER('Post-holder data'!BK5*Weightings!$T$273),'Post-holder data'!BK5*Weightings!$T$273,0)","v":0},{"$f":"IF(ISNUMBER('Post-holder data'!BL5*Weightings!$T$275),'Post-holder data'!BL5*Weightings!$T$275,0)","v":0},{"$f":"IF(ISNUMBER('Post-holder data'!BM5*Weightings!$T$277),'Post-holder data'!BM5*Weightings!$T$277,0)","v":0},{"$f":"IF(ISNUMBER('Post-holder data'!BN5*Weightings!$U$251),'Post-holder data'!BN5*Weightings!$U$251,0)","v":0},{"$f":"IF(ISNUMBER('Post-holder data'!BO5*Weightings!$U$253),'Post-holder data'!BO5*Weightings!$U$253,0)","v":0},{"$f":"IF(ISNUMBER('Post-holder data'!BP5*Weightings!$U$255),'Post-holder data'!BP5*Weightings!$U$255,0)","v":0},{"$f":"IF(ISNUMBER('Post-holder data'!BQ5*Weightings!$U$257),'Post-holder data'!BQ5*Weightings!$U$257,0)","v":0},{"$f":"IF(ISNUMBER('Post-holder data'!BR5*Weightings!$U$259),'Post-holder data'!BR5*Weightings!$U$259,0)","v":0},{"$f":"IF(ISNUMBER('Post-holder data'!BS5*Weightings!$U$261),'Post-holder data'!BS5*Weightings!$U$261,0)","v":0},{"$f":"IF(ISNUMBER('Post-holder data'!BT5*Weightings!$U$263),'Post-holder data'!BT5*Weightings!$U$263,0)","v":0},{"$f":"IF(ISNUMBER('Post-holder data'!BU5*Weightings!$U$265),'Post-holder data'!BU5*Weightings!$U$265,0)","v":0},{"$f":"IF(ISNUMBER('Post-holder data'!BV5*Weightings!$U$267),'Post-holder data'!BV5*Weightings!$U$267,0)","v":0},{"$f":"IF(ISNUMBER('Post-holder data'!BW5*Weightings!$U$269),'Post-holder data'!BW5*Weightings!$U$269,0)","v":0},{"$f":"IF(ISNUMBER('Post-holder data'!BX5*Weightings!$U$271),'Post-holder data'!BX5*Weightings!$U$271,0)","v":0},{"$f":"IF(ISNUMBER('Post-holder data'!BY5*Weightings!$U$273),'Post-holder data'!BY5*Weightings!$U$273,0)","v":0},{"$f":"IF(ISNUMBER('Post-holder data'!BZ5*Weightings!$U$275),'Post-holder data'!BZ5*Weightings!$U$275,0)","v":0},{"$f":"IF(ISNUMBER('Post-holder data'!CA5*Weightings!$U$277),'Post-holder data'!CA5*Weightings!$U$277,0)","v":0},{"$f":"IF(AV5=\"y\",SUM(L5:T5),(1+SUM(DX5:ED5))*SUM(L5:T5))","v":8},{"$f":"+IF('Post-holder data'!CB5=\"y\",IF(AW5=\"y\",Weightings!$V$283,IF(AX5=\"y\",Weightings!$W$283,IF(AY5=\"y\",Weightings!$X$283))),0)","v":0},{"$f":"+IF('Post-holder data'!CC5=\"y\",IF(AW5=\"y\",Weightings!$V$285,IF(AX5=\"y\",Weightings!$W$285,IF(AY5=\"y\",Weightings!$X$285))),0)","v":0},{"$f":"+IF('Post-holder data'!CD5=\"y\",IF(AW5=\"y\",Weightings!$V$287,IF(AX5=\"y\",Weightings!$W$287,IF(AY5=\"y\",Weightings!$X$287))),0)","v":0},{"$f":"+IF('Post-holder data'!CE5=\"y\",IF(AW5=\"y\",Weightings!$V$289,IF(AX5=\"y\",Weightings!$W$289,IF(AY5=\"y\",Weightings!$X$289))),0)","v":0},{"$f":"+IF('Post-holder data'!CF5=\"y\",IF(AW5=\"y\",Weightings!$V$291,IF(AX5=\"y\",Weightings!$W$291,IF(AY5=\"y\",Weightings!$X$291))),0)","v":0},{"$f":"+IF('Post-holder data'!CG5=\"y\",IF(AW5=\"y\",Weightings!$V$294,IF(AX5=\"y\",Weightings!$W$294,IF(AY5=\"y\",Weightings!$X$294))),0)","v":0},{"$f":"+IF('Post-holder data'!CH5=\"y\",IF(AW5=\"y\",Weightings!$V$296,IF(AX5=\"y\",Weightings!$W$296,IF(AY5=\"y\",Weightings!$X$296))),0)","v":0},{"$f":"IF(ISNUMBER(+'Post-holder data'!CI5*IF(AV5=\"y\",Weightings!$U$305,IF(AW5=\"y\",Weightings!$V$305,IF(AX5=\"y\",Weightings!$W$305,IF(AY5=\"y\",Weightings!$X$305))))),+'Post-holder data'!CI5*IF(AV5=\"y\",Weightings!$U$305,IF(AW5=\"y\",Weightings!$V$305,IF(AX5=\"y\",Weightings!$W$305,IF(AY5=\"y\",Weightings!$X$305))))*IF('Post-holder data'!J5=\"y\",35/'Post-holder data'!K5,1),0)","v":0},{"$f":"ROUND(+EG5+EJ5+ES5,0)","v":30},{"$f":"(1+LARGE(EH5:EI5,1))*SUM(Calculations!L5:T5)*SUM(Calculations!E5:I5)*SUM(X5:AB5)*IF(AV5=\"y\",Weightings!$U$316,IF(AW5=\"y\",Weightings!$V$316,IF(AX5=\"y\",Weightings!$W$316,IF(AY5=\"y\",Weightings!$X$316))))","v":9},{"$f":"IF('Post-holder data'!CJ5=\"y\",IF(AV5=\"y\",Weightings!$U$323,IF(AW5=\"y\",Weightings!$V$323,IF(AX5=\"y\",Weightings!$W$323,IF(AY5=\"y\",Weightings!$X$323)))),0)","v":0},{"$f":"IF(AV5=\"y\",Weightings!$U$325,IF('Post-holder data'!CK5=\"y\",IF(AW5=\"y\",Weightings!$V$325,IF(AX5=\"y\",Weightings!$W$325,IF(AY5=\"y\",Weightings!$X$325))),0))","v":0.5},{"$f":"(((1+LARGE(EK5:EM5,1))*SUM(Calculations!L5:T5)*SUM(Calculations!E5:I5))+LARGE(EN5:ER5,1))*SUM(X5:AB5)*IF(AV5=\"y\",Weightings!$U$338,IF(AW5=\"y\",Weightings!$V$338,IF(AX5=\"y\",Weightings!$W$338,IF(AY5=\"y\",Weightings!$X$338))))","v":9},{"$f":"IF('Post-holder data'!CL5=\"y\",IF(AV5=\"y\",Weightings!$U$344,IF(AW5=\"y\",Weightings!$V$344,IF(AX5=\"y\",Weightings!$W$344,IF(AY5=\"y\",Weightings!$X$344)))),0)","v":0},{"$f":"IF('Post-holder data'!CM5=\"y\",IF(AV5=\"y\",Weightings!$U$346,IF(AW5=\"y\",Weightings!$V$346,IF(AX5=\"y\",Weightings!$W$346,IF(AY5=\"y\",Weightings!$X$346)))),0)","v":0},{"$f":"IF(AV5=\"y\",Weightings!$U$348,IF('Post-holder data'!CN5=\"y\",IF(AW5=\"y\",Weightings!$V$348,IF(AX5=\"y\",Weightings!$W$348,IF(AY5=\"y\",Weightings!$X$348))),0))","v":0.5},{"$f":"IF('Post-holder data'!CO5=\"y\",IF(AV5=\"y\",Weightings!$U$361,IF(AW5=\"y\",Weightings!$V$361,IF(AX5=\"y\",Weightings!$W$361,IF(AY5=\"y\",Weightings!$X$361)))),0)","v":0},{"$f":"IF('Post-holder data'!CP5=\"y\",IF(AV5=\"y\",Weightings!$U$363,IF(AW5=\"y\",Weightings!$V$363,IF(AX5=\"y\",Weightings!$W$363,IF(AY5=\"y\",Weightings!$X$363)))),0)","v":0},{"$f":"IF('Post-holder data'!CQ5=\"y\",IF(AV5=\"y\",Weightings!$U$365,IF(AW5=\"y\",Weightings!$V$365,IF(AX5=\"y\",Weightings!$W$365,IF(AY5=\"y\",Weightings!$X$365)))),0)","v":0},{"$f":"IF('Post-holder data'!CR5=\"y\",IF(AV5=\"y\",Weightings!$U$367,IF(AW5=\"y\",Weightings!$V$367,IF(AX5=\"y\",Weightings!$W$367,IF(AY5=\"y\",Weightings!$X$367)))),0)","v":0},{"$f":"IF('Post-holder data'!CS5=\"y\",IF(AV5=\"y\",Weightings!$U$369,IF(AW5=\"y\",Weightings!$V$369,IF(AX5=\"y\",Weightings!$W$369,IF(AY5=\"y\",Weightings!$X$369)))),0)","v":0},{"$f":"(1+LARGE(ET5:EV5,1))*SUM(Calculations!L5:T5)*SUM(Calculations!E5:I5)*IF(AV5=\"y\",Weightings!$U$373,IF(AW5=\"y\",Weightings!$V$373,IF(AX5=\"y\",Weightings!$W$373,IF(AY5=\"y\",Weightings!$X$373))))","v":12},{"$f":"IF('Post-holder data'!CT5=\"y\",IF(AV5=\"y\",Weightings!$U$377,IF(AW5=\"y\",Weightings!$V$377,IF(AX5=\"y\",Weightings!$W$377,IF(AY5=\"y\",Weightings!$X$377)))),0)","v":0},{"$f":"IF('Post-holder data'!CU5=\"y\",IF(AV5=\"y\",Weightings!$U$379,IF(AW5=\"y\",Weightings!$V$379,IF(AX5=\"y\",Weightings!$W$379,IF(AY5=\"y\",Weightings!$X$379)))),0)","v":0},{"$f":"IF(AV5=\"y\",Weightings!$U$381,IF('Post-holder data'!CV5=\"y\",IF(AW5=\"y\",Weightings!$V$381,IF(AX5=\"y\",Weightings!$W$381,IF(AY5=\"y\",Weightings!$X$381))),0))","v":0.5},{"$f":"ROUND(+EX5+FA5+FD5,0)","v":33},{"$f":"(1+LARGE(EY5:EZ5,1))*SUM(Calculations!L5:T5)*SUM(Calculations!E5:I5)*IF(AV5=\"y\",Weightings!$U$399,IF(AW5=\"y\",Weightings!$V$399,IF(AX5=\"y\",Weightings!$W$399,IF(AY5=\"y\",Weightings!$X$399))))","v":12},{"$f":"IF('Post-holder data'!CW5=\"y\",IF(AV5=\"y\",Weightings!$U$406,IF(AW5=\"y\",Weightings!$V$406,IF(AX5=\"y\",Weightings!$W$406,IF(AY5=\"y\",Weightings!$X$406)))),0)","v":0},{"$f":"IF(AV5=\"y\",Weightings!$U$408,IF('Post-holder data'!CX5=\"y\",IF(AW5=\"y\",Weightings!$V$408,IF(AX5=\"y\",Weightings!$W$408,IF(AY5=\"y\",Weightings!$X$408))),0))","v":0.5},{"$f":"(1+LARGE(FB5:FC5,1))*SUM(Calculations!L5:T5)*SUM(Calculations!E5:I5)*IF(AV5=\"y\",Weightings!$U$419,IF(AW5=\"y\",Weightings!$V$419,IF(AX5=\"y\",Weightings!$W$419,IF(AY5=\"y\",Weightings!$X$419))))","v":12},{"$f":"IF('Post-holder data'!CY5=\"y\",IF(AV5=\"y\",Weightings!$U$424,IF(AW5=\"y\",Weightings!$V$424,IF(AX5=\"y\",Weightings!$W$424,IF(AY5=\"y\",Weightings!$X$424)))),0)","v":0},{"$f":"IF(AV5=\"y\",Weightings!$U$426,IF('Post-holder data'!CZ5=\"y\",IF(AW5=\"y\",Weightings!$V$426,IF(AX5=\"y\",Weightings!$W$426,IF(AY5=\"y\",Weightings!$X$426))),0))","v":0.5},{"$f":"(1+LARGE(FE5:FG5,1))*SUM(Calculations!L5:T5)*SUM(Calculations!E5:I5)*SUM(X5:AB5)*IF(AV5=\"y\",Weightings!$U$437,IF(AW5=\"y\",Weightings!$V$437,IF(AX5=\"y\",Weightings!$W$437,IF(AY5=\"y\",Weightings!$X$437))))","v":9},{"$f":"IF('Post-holder data'!DA5=\"y\",IF(AV5=\"y\",Weightings!$U$443,IF(AW5=\"y\",Weightings!$V$443,IF(AX5=\"y\",Weightings!$W$443,IF(AY5=\"y\",Weightings!$X$443)))),0)","v":0},{"$f":"IF(AV5=\"y\",Weightings!$U$445,IF('Post-holder data'!DB5=\"y\",IF(AW5=\"y\",Weightings!$V$445,IF(AX5=\"y\",Weightings!$W$445,IF(AY5=\"y\",Weightings!$X$445))),0))","v":0.5},{"$f":"IF('Post-holder data'!DC5=\"y\",IF(AV5=\"y\",Weightings!$U$447,IF(AW5=\"y\",Weightings!$V$447,IF(AX5=\"y\",Weightings!$W$447,IF(AY5=\"y\",Weightings!$X$447)))),0)","v":0},{"$f":"+EW5+EF5+CQ5+BD5","v":100},{"$f":"IF(ISNUMBER(E5),\"P\",IF(ISNUMBER(F5),\"S\",IF(ISNUMBER(G5),\"Sp\",IF(ISNUMBER(H5),\"JHS\",IF(ISNUMBER(I5),\"O\")))))","v":"P"},{"$f":"IF(AV5=\"Y\",\"HT\",IF(AW5=\"Y\",\"Formal Depute\",IF(AX5=\"y\",\"Other SMT\",IF(AY5=\"y\",\"PT\"))))","v":"HT"},{"$f":"IF(ISNUMBER(L5),\"Up to 50\",IF(ISNUMBER(M5),\"51 to 100\",IF(ISNUMBER(N5),\"101 to 250\",IF(ISNUMBER(O5),\"251 to 500\",IF(ISNUMBER(P5),\"501 to 750\",IF(ISNUMBER(Q5),\"751 to 1000\",IF(ISNUMBER(R5),\"1001 to 1250\",+FN5)))))))","v":"Up to 50"},{"$f":"IF('Post-holder data'!G5=\"Y\",VLOOKUP(FH5,'Allocation to scales'!C38:F45,4),VLOOKUP(FH5,'Allocation to scales'!C10:F28,4))","v":35500},{"$f":"IF('Post-holder data'!G5=\"Y\",\"PT \"&VLOOKUP(FH5,'Allocation to scales'!C38:F45,3),\"HT/DHT \"&VLOOKUP(FH5,'Allocation to scales'!C10:F28,3))","v":"HT/DHT 1"},{"$f":"IF(ISNUMBER(S5),\"1250 to 1500\",\"Over1500\")","v":"Over1500"}]

{"sheet":"Section 1","index":2,"n_rows":585,"n_cols":11,"rows_kept":585,"cut":false,"hidden":false,"merged":[[337,4,340,11],[16,6,16,9],[83,4,85,7],[278,5,278,6],[17,6,17,9],[19,6,20,11],[115,5,115,6],[186,5,186,6],[64,2,67,11],[17,10,17,11],[322,4,323,11],[325,4,326,11],[328,4,329,11],[331,4,332,11],[165,5,165,6],[289,4,290,11],[312,3,313,9],[14,6,14,11],[145,6,145,7],[120,5,120,6],[122,5,122,6],[124,5,124,6],[56,5,56,10],[58,5,58,10],[33,3,34,9],[69,6,69,11],[16,10,16,11],[141,5,141,6],[255,4,258,11],[225,4,228,11],[301,4,304,11],[586,4,589,11],[476,4,479,11],[521,4,524,11],[545,4,548,11],[540,4,541,10],[555,4,557,10],[559,4,560,10],[574,4,576,10],[578,4,579,10],[564,4,567,11],[581,4,582,10],[537,4,538,10],[353,5,353,7],[352,5,352,7],[354,5,354,7],[355,5,355,7],[356,5,356,7],[357,5,357,7],[358,5,358,7],[359,5,359,7],[376,3,378,4],[417,4,420,11],[360,5,360,7],[373,3,375,4],[373,5,375,5],[376,5,378,5],[368,9,372,9],[373,10,375,12],[376,10,378,12],[452,4,455,11],[379,3,381,4],[382,3,384,4],[385,10,387,12],[388,10,390,12],[379,5,381,5],[382,5,384,5],[385,5,387,5],[388,5,390,5],[385,3,387,4],[388,3,390,4],[388,6,390,7],[385,6,387,7],[379,10,381,12],[382,10,384,12],[382,2,384,2],[368,3,372,4],[368,6,372,7],[368,5,372,5],[368,8,372,8],[385,2,387,2],[388,2,390,2],[385,8,387,8],[388,8,390,8],[373,9,375,9],[376,9,378,9],[379,9,381,9],[382,9,384,9],[385,9,387,9],[388,9,390,9],[373,6,381,8],[382,6,384,7],[382,8,384,8],[376,2,378,2],[373,2,375,2],[379,2,381,2]]}
[null,"Local authority",null,null,{"$f":"+Calculations!A5","v":0},"Job size"]
[null,"Coordinators",null,null,{"$f":"CONCATENATE(+G17,\" , \",G18)","v":" , "},"2. Leadership and good management",null,null,null,{"$f":"+Calculations!BD5","v":5}]
[null,"School",null,null,{"$f":"+G20","v":0},"3. Curriculum development and quality assurance",null,null,null,{"$f":"+Calculations!CQ5","v":32}]
[null,"Type of post",null,null,{"$f":"+Calculations!FJ5","v":"HT"},"4. Whole school policy and implementation",null,null,null,{"$f":"+Calculations!EF5","v":30}]
[null,"Name of post",null,null,{"$f":"+F57","v":0},"5. Working with partners",null,null,null,{"$f":"+Calculations!EW5","v":33}]
[null,"Post holder",null,null,{"$f":"+F59","v":0},"Total",null,null,null,{"$f":"+Calculations!FH5","v":100}]
[null,"Reference",null,null,{"$f":"+G70","v":0}]
[null,"Date ",null,null,{"$f":"NOW()","v":"2026-04-01T17:01:00.250"},"Salary point",null,null,null,{"$f":"+Calculations!FM5","v":"HT/DHT 1"}]
[null,{"$f":"IF(ISTEXT(G146),\"You have entered text, please enter a number\",\"\")","v":""}]
[]
[null,null,"SECTION 1: WHOLE SCHOOL INFORMATION"]
[]
[null,null,"Questions 1.1. to 1.7 should be completed for all posts."]
[]
[null,null,"1.1 Name of Council"]
[]
[null,null,"1.2 Names of Job Sizing Co-ordinators",null,null,null,null,null,null,null,"Management"]
[null,null,null,null,null,null,null,null,null,null,"Teacher Union"]
[]
[null,null,"1.3 Name(s) of school(s)/Service"]
[]
[]
[null,null,"1.4 Type of Post"]
[null,null,null,"● Please indicate which applies."]
[]
[]
[null,null,null,null,"Headteacher (HT)"]
[]
[null,null,null,null,"Depute Headteacher (DHT)"]
[null,null,null,null,{"$f":"IF('Post-holder data'!F5=\"y\",IF(OR('Post-holder data'!L5=\"y\",'Post-holder data'!M5=\"y\"),\"\",\"Please also tick for being an SMT member or formal depute\"),\"\")","v":""}]
[null,null,null,null,"Principal Teacher (PT)"]
[]
[]
[null,null,null,"● Please tick any box which applies and provide information where requested."]
[]
[]
[null,null,null,null,"The responsibility of the post relate to more than one school"]
[]
[null,null,null,null,"Enter the number of schools",null,null,null,{"$f":"IF(ISTEXT(H39),\"You have entered text, please enter a number\",\"\")","v":""}]
[]
[null,null,null,null,"The post is a part time post"]
[]
[null,null,null,null,"Enter the number of contracted hours per week",null,null,null,{"$f":"IF(ISTEXT(H43),\"You have entered text, please enter a number\",\"\")","v":""}]
[null,null,null,null,"(35 hours equals full time)"]
[]
[null,null,null,"● Please tick any box which applies and provide information where requested."]
[]
[null,null,null,null,"The post is an established part of the Senior Leadership Team (SLT)"]
[]
[null,null,null,null,"The post is the only post with responsibility for formal deputising for the HT (i.e. sole DHT)"]
[]
[null,null,null,null,"The post is part of an SLT that does not include a formal depute"]
[]
[null,null,null,null,"If the SLT does not include a formal depute, enter the number of established SLT "]
[null,null,null,null,"posts in the school (excluding the HT)"]
[]
[null,null,"1.5 Title of Post"]
[]
[null,null,"1.6 Name of post holder"]
[null,null,"(Resizing applications only)"]
[]
[null,null,"1.7 Gender of post holder",null,null,"Male",null,"Female"]
[null,null,"(Rezing applications only)"]
[]
[null,null,"Questions 1.8 to 1.14 will be completed by the job sizing co-ordinators.  Post holders must not complete these questions."]
[]
[]
[]
[]
[null,null,"1.8 Payroll Reference/Post Number (If required) "]
[]
[null,null,"1.9 Type of establishment"]
[null,null,null,"● Please indicate the type of establishment in which the post is located.  If other is indicated, give details."]
[]
[null,null,null,null,"Primary"]
[]
[null,null,null,null,"Secondary",{"$f":"IF(G78>1,\"Please only tick one type of school\",\"\")","v":""}]
[]
[null,null,null,null,"Special"]
[]
[null,null,null,null,"ECC"]
[]
[null,null,null,null,"Other (give details)"]
[]
[]
[]
[]
[null,null,null,"● Please tick to indicate if the school includes either/both of the following."]
[]
[null,null,null,null,"Early Education and Childcare unit or classes (except in an Early Education and Childcare Establishment)"]
[]
[null,null,null,null,"Additional Support for Learning (ASL) unit or classes (except in an ASL School/Establishment)"]
[]
[null,null,"1.10 School Roll (taken from the most recently published Scottish Government census data)"]
[null,null,null,"● Please indicate the school roll."]
[]
[null,null,null,null,"Up to 50"]
[]
[null,null,null,null,"51 to 100"]
[]
[null,null,null,null,"101 to 250"]
[]
[null,null,null,null,"251 to 500"]
[]
[null,null,null,null,"501 to 750"]
[]
[null,null,null,null,"751 to 1,000"]
[]
[null,null,null,null,"1,001 to 1,250"]
[]
[null,null,null,null,"1,251 to 1,500"]
[]
[null,null,null,null,"Over 1,500"]
[]
[]
[null,null,null,"● Enter actual school roll"]
[]
[null,null,"1.11 Numbers of staff"]
[null,null,null,"● Please state the authorised (CORE) Full Time Equivalent of staff in each category. (Temporarily funded staff should be excluded)"]
[]
[null,null,null,"Promoted teaching staff",null,null,null,{"$f":"IF(ISTEXT(F121),\"You have entered text, please enter a number\",\"\")","v":""}]
[]
[null,null,null,"Other teaching staff",null,null,null,{"$f":"IF(ISTEXT(F123),\"You have entered text, please enter a number\",\"\")","v":""}]
[]
[null,null,null,"Other staff",null,null,null,{"$f":"IF(ISTEXT(F125),\"You have entered text, please enter a number\",\"\")","v":""}]
[]
[]
[null,null,"1.12 Percentage of children registered for School Clothing Grant"]
[null,null,null,"● Please indicate the percentage of children registered."]
[]
[null,null,null,null,"0% to 10%"]
[]
[null,null,null,null,"11% to 25%"]
[]
[null,null,null,null,"26% to 50%"]
[]
[null,null,null,null,"51% to 75%"]
[]
[null,null,null,null,"76% to 100%"]
[]
[]
[null,null,null,"● Enter actual percentage",null,null,null,"%"]
[]
[null,null,"1.13 Size of school budget "]
[]
[null,null,null,"Please state the size of the total",null,"£",null,null,null,{"$f":"IF(ISTEXT(G146),\"You have entered text, please enter a number\",\"\")","v":""}]
[null,null,null,"budget for the school"]
[]
[null,null,null,"● Please tick to indicate the actual budget for which the HT is responsible, excluding permanent staff costs, amounts related to property management,"]
[null,null,null,"and any budget that is temporary in nature.This claim will align with the budget allocated in accordance with the provisions of the Council’s published DSM document."]
[]
[]
[null,null,null,null,"None"]
[]
[null,null,null,null,"Up to £100,000"]
[]
[null,null,null,null,"£100,001 to £250,000"]
[]
[null,null,null,null,"£250,001 to £500,000"]
[]
[null,null,null,null,"£500,001 to £750,000"]
[]
[null,null,null,null,"Over £750,000"]
[]
[]
[null,null,null,"● Enter actual amount              £"]
[null," "]
[null,null,"1.14 Physical nature of the school"]
[]
[null,null,null,"● Please tick to indicate the number of pupils for whom dedicated transport is provided for which the school has responsibility."]
[]
[]
[]
[null,null,null,null,"Up to 100"]
[]
[null,null,null,null,"101 to 200"]
[]
[null,null,null,null,"201 to 300"]
[]
[null,null,null,null,"301 to 400"]
[]
[null,null,null,null,"401 to 500"]
[]
[null,null,null,null,"Over 500"]
[]
[]
[null,null,null,"● Enter actual number of pupils"]
[]
[null,null,null,"● Please tick this box if the school is a multi-site school"]
[]
[]
[null,null,"SECTION 2: RESPONSIBILITY FOR THE LEADERSHIP, GOOD MANAGEMENT AND STRATEGIC DIRECTION"]
[null,null,"OF COLLEAGUES"]
[]
[null,null,"Questions 2.1 to 2.3 should be completed for DHT and PT posts only."]
[]
[null,null,"2.1 Direct line management responsibility for CORE teaching staff. Staff that are funded from an external funding source are to be excluded due to the temporary nature of the funding"]
[]
[null,null,null,"● Indicate in the left column the total number of teaching staff for"]
[null,null,null,"   which the post has line management responsibility."]
[]
[null,null,null,"● Indicate in the right column the total FTE of staff to reflect any part time staff"]
[null,null,null,"   or those staff who are line managed by the post on a pro rata basis."]
[]
[null,null,null,null,"Total Number of",null,"FTE"]
[null,null,null,null,"Teaching Staff"]
[]
[null,null,null,null,"None",null,"None"]
[]
[null,null,null,null,1,null,1]
[]
[null,null,null,null,"2 to 5",null,"2 to 5"]
[]
[null,null,null,null,"6 to 10",null,"6 to 10"]
[]
[null,null,null,null,"11 to 25",null,"11 to 25"]
[]
[null,null,null,null,"26 to 50",null,"26 to 50"]
[]
[null,null,null,null,"Over 50",null,"Over 50"]
[]
[]
[null,null,null,null,null,"● Enter number of staff and FTE"]
[null,null,null,"DETAILS:"]
[]
[]
[]
[]
[]
[]
[]
[null,null,"2.2 Direct line management responsibility for other CORE staff. Staff that are funded from an external funding source are to be excluded due to the temporary nature of the funding."]
[]
[null,null,null,"● Indicate in the left column the total number of support staff for which"]
[null,null,null,"   the post has line management responsibility."]
[]
[null,null,null,"● Indicate in the right column the total FTE to reflect any part time staff"]
[null,null,null,"   or those staff who are line managed on a pro rata basis."]
[]
[null,null,null,null,"Total Number of Staff",null,"FTE"]
[]
[null,null,null,null,"None",null,"None"]
[]
[null,null,null,null,1,null,1]
[]
[null,null,null,null,"2 to 10",null,"2 to 10"]
[]
[null,null,null,null,"11 to 25",null,"11 to 25"]
[]
[null,null,null,null,"Over 25",null,"Over 25"]
[]
[]
[null,null,null,null,null,"● Enter number of staff and FTE"]
[null,null,null,"DETAILS:"]
[]
[]
[]
[]
[]
[]
[]
[null,null,"2.3 Accountability for budgets"]
[]
[null,null,null,"● Indicate the amount of regular annual budget for which the post is accountable."]
[]
[null,null,null,null,"None"]
[]
[null,null,null,null,"Up to £1,000"]
[]
[null,null,null,null,"£1,001 to £5,000"]
[]
[null,null,null,null,"£5,001 to £10,000"]
[]
[null,null,null,null,"£10,001 to £25,000"]
[]
[null,null,null,null,"Over £25,000"]
[]
[]
[null,null,null,null,"● Enter actual budget  £"]
[]
[null,null,"2.4 Responsibility for health and safety, and health and wellbeing"]
[]
[null,null,null,"This question applies to all posts.  HTs may tick the 4th box but only where"]
[null,null,null,"the HT post has responsibility as the school's Health and Safety Officer."]
[]
[null,null,null,"● Tick the relevant box below for the curricular area or category for"]
[null,null,null,"   which the post has overall health and safety responsibility:"]
[]
[]
[null,null,null,null,"Direct curricular responsibility for Craft, Design and Technology; Physical Education (including outdoor activities); Chemistry; Physics; Biology; Home Economics; Art and Design or Music/Music Technology"]
[]
[]
[null,null,null,null,"Other direct curricular responsibilities"]
[]
[null,null,null,null,"Year groups and / or specialist sections of the school or whole school responsibility for health & wellbeing "]
[]
[null,null,null,null,"The whole school (i.e. school's Health and Safety Officer or equivalent)"]
[]
[]
[null,null,null,"DETAILS:"]
[]
[]
[]
[]
[]
[]
[]
[null,null,"SECTION 3: RESPONSIBILITY FOR CURRICULUM DEVELOPMENT AND QUALITY ASSURANCE"]
[]
[]
[null,null,"3.1 To review the Career Long Professional Learning (CLPL) needs, career development and performance of colleagues."]
[]
[null,null,null,"A score is automatically awarded for this responsibility based on the entries made in questions 2.1 and 2.2.  There is no need to enter any further data."]
[]
[]
[null,null,"3.2 To produce and implement the school improvement plan and responsibility for whole school policies."]
[]
[null,null,null,"This question should be completed for DHT and PT posts only."]
[]
[null,null,null,"● Please tick as many boxes as apply and add details in the text box below."]
[]
[]
[null,null,null,null,"Responsible for producing and leading some or all of a curricular, departmental, subject or faculty improvement plan each year"]
[]
[]
[null,null,null,null,"Responsible for producing and leading some or all of an improvement plan relating to pupil guidance, pupil support or pupil welfare each year"]
[]
[]
[null,null,null,null,"Responsible for producing and leading some or all of an improvement plan relating to specified stages, year groups, other specified groups of pupils, or other specific responsibilities each year"]
[]
[]
[null,null,null,null,"Responsible for producing and leading the whole-school improvement plan, and/or sole responsibility for specified whole school policies each year, whether or not under review in the improvement plan"]
[]
[]
[]
[null,null,null,"DETAILS:"]
[]
[]
[]
[]
[]
[]
[null,null,"3.3 To develop the curriculum and monitor learning and teaching"]
[]
[null,null,null,"This question applies to all posts."]
[]
[null,null,null,"No details of curricular areas or national qualifications are required for Early Education and Childcare and Primary sectors."]
[null,null,null,"Note: The total number of classes entered across all promoted post holders in a school must not exceed the agreed classification for the school."]
[null,null,null,"the number of classes in the school."]
[]
[null,null,null,"● Please enter number of classes:"]
[]
[null,null,null,null,"Stage or Year Group","Number of Timetabled Classes"]
[null,null,null,null,"EEC",null,null,null,{"$f":"IF(ISTEXT($F354),\"You have entered text, please enter a number\",\"\")","v":""}]
[null,null,null,null,"P1",null,null,null,""]
[null,null,null,null,"P2",null,null,null,""]
[null,null,null,null,"P3",null,null,null,""]
[null,null,null,null,"P4",null,null,null,""]
[null,null,null,null,"P5",null,null,null,""]
[null,null,null,null,"P6",null,null,null,""]
[null,null,null,null,"P7",null,null,null,""]
[]
[null,null,null,"● Please enter numbers and text below as required:"]
[]
[null,null,null,"Note: In relation to National Qualifications, only national courses (collections of units)"]
[null,null,null," Individual units do not.  Each level should be counted only once and placed against the"]
[null,null,null," year group with the biggest presentation."]
[]
[null,null,null,"Names of Subjects",null,"Number of Subjects","Level of National Qualification (NQ)",null,"Number of NQs","Number of Timetabled Classes"]
[]
[]
[]
[]
[null,null,"S1",null,null,null,"BGE",null,null,null,{"$f":"IF(OR(ISTEXT(I374),ISTEXT(J374),ISTEXT(F374)),\"You have entered text, please enter a number\",\"\")","v":""}]
[]
[]
[null,null,"S2",null,null,null,null,null,null,null,{"$f":"IF(OR(ISTEXT(I377),ISTEXT(J377),ISTEXT(F377)),\"You have entered text, please enter a number\",\"\")","v":""}]
[]
[]
[null,null,"S3",null,null,null,null,null,null,null,{"$f":"IF(OR(ISTEXT(I380),ISTEXT(J380),ISTEXT(F380)),\"You have entered text, please enter a number\",\"\")","v":""}]
[]
[]
[null,null,"S4",null,null,null,null,null,null,null,{"$f":"IF(OR(ISTEXT(I383),ISTEXT(J383),ISTEXT(F383)),\"You have entered text, please enter a number\",\"\")","v":""}]
[]
[]
[null,null,"S5",null,null,null,null,null,null,null,{"$f":"IF(OR(ISTEXT(I386),ISTEXT(J386),ISTEXT(F386)),\"You have entered text, please enter a number\",\"\")","v":""}]
[]
[]
[null,null,"S6",null,null,null,null,null,null,null,{"$f":"IF(OR(ISTEXT(I389),ISTEXT(J389),ISTEXT(F389)),\"You have entered text, please enter a number\",\"\")","v":""}]
[]
[]
[]
[null,null,"3.4 Other formal management responsibilities"]
[]
[null,null,null,"This question should be completed for DHT and PT posts only"]
[]
[null,null,null,"● Please tick to indicate the specific responsibilities of this post and add details in the text box below."]
[]
[]
[null,null,null,null,"Responsible for the whole school timetable in a Secondary school"]
[]
[null,null,null,null,"Responsible for whole school digital learning and innovation to enhance learning & teaching"]
[]
[null,null,null,null,"Responsible for Early Education and Childcare classes in a Primary school"]
[]
[null,null,null,null,"Responsible for learning support or relationship/behavioural support"]
[]
[null,null,null,null,"Responsible for an ASL unit, hub, class or group for which no other promoted postholder is"]
[null,null,null,null,"responsible"]
[]
[null,null,null,null,"Responsible for a guidance caseload and shared whole school responsibility associated with"]
[null,null,null,null,"being a PT Guidance/Pupil Support"]
[]
[null,null,null,null,"Head of the Primary section of a combined school"]
[]
[]
[null,null,null,"DETAILS:"]
[]
[]
[]
[]
[]
[null,null,"3.5 Timetabled teaching time"]
[null,null,null,"This question applies to all posts."]
[]
[null,null,null,"● Please enter, to the nearest hour, the weekly timetabled class teaching commitment which is undertaken"]
[null,null,null,"   as a requirement of the post."]
[]
[null,null,null,null,null,null,"Teaching time",null,null,"hours"]
[]
[]
[null,null,"SECTION 4: RESPONSIBILITY FOR WHOLE SCHOOL POLICY AND IMPLEMENTATION"]
[]
[null,null,"Questions in this section may be completed for DHT and PT posts only."]
[null,null,"For a PT post with curricular responsibility only complete question 4.3 but"]
[null,null,"do not complete questions 4.1 and 4.2."]
[]
[null,null,"4.1. To develop, manage and implement a policy on pupil behaviour management/promoting positive relationships"]
[]
[null,null,null,"● Please tick to indicate the specific responsibilities of the post in relation to pupil behaviour"]
[null,null,null,"   management and provide details below."]
[]
[]
[]
[null,null,null,null,"Responsibilities for behaviour management relating to specific stages or"]
[null,null,null,null,"year group(s) or specialist section(s)"]
[]
[null,null,null,null,"Responsibilities for behaviour management relating to the whole school"]
[]
[]
[null,null,null,"DETAILS:"]
[]
[]
[]
[]
[]
[]
[]
[null,null,"4.2 To develop, manage and implement a policy on guidance, pupil support, pastoral care and pupil welfare"]
[]
[null,null,null,"● Please tick to indicate the specific responsibilities of this post in relation to guidance,"]
[null,null,null,"   pupil support, pastoral care and pupil welfare and give details below."]
[]
[]
[]
[null,null,null,null,"Formal guidance, pupil support, pastoral care responsibilities with an"]
[null,null,null,null,"identified caseload (Secondary schools only)"]
[]
[null,null,null,null,"Responsibilities relating to the guidance, pupil support, pastoral care and"]
[null,null,null,null,"pupil welfare of a year group and/or a specialist section(s) of the school"]
[]
[null,null,null,null,"Responsibility for specified whole school policies on guidance, pupil"]
[null,null,null,null,"support, pastoral care and pupil welfare"]
[]
[null,null,null,"DETAILS:"]
[]
[]
[]
[]
[]
[]
[null,null,null,"Formal guidance/pupil support/pastoral care responsibilities with a caseload (Secondary schools only)"]
[]
[null,null,null,"Please note that, for those posts with a formal guidance/pupil support/pastoral care role, the"]
[null,null,null,"caseload indicated below will also be used to capture the guidance, pupil support and pastoral"]
[null,null,null,"care responsibilities covered in other sections of this questionnaire."]
[]
[]
[null,null,null,null,"None"]
[]
[null,null,null,null,"1 to 50"]
[]
[null,null,null,null,"51 to 100"]
[]
[null,null,null,null,"101 to 200"]
[null,null,null,null,"Caseload should not routinely exceed 200 pupils. Exceptionally, within a school"]
[null,null,null,null,"session, the caseload may increase to accommodate pupils that have registered"]
[null,null,null,null,"after the school year has started."]
[]
[]
[null,null,null,"● Enter actual number of pupils in caseload"]
[]
[]
[null,null,"4.3 To develop, manage and implement a policy on pupil assessment"]
[]
[null,null,null,"● Please tick to indicate the specific responsibilities of this post and add details in the text box below."]
[]
[]
[]
[]
[null,null,null,null,"Responsible for pupil assessment relating to a subject"]
[null,null,null,null,"department or curricular area"]
[]
[null,null,null,null,"Responsible for pupil assessment relating to a year group or"]
[null,null,null,null,"specialist section"]
[]
[null,null,null,null,"Responsible for pupil assessment policy relating to the whole"]
[null,null,null,null,"school"]
[]
[null,null,null,"DETAILS:"]
[]
[]
[]
[]
[]
[]
[]
[null,null,"SECTION 5: RESPONSIBILITY FOR WORKING WITH PARTNERS"]
[]
[null,null,"All questions in this section may be completed for DHT and"]
[null,null,"PT posts only"]
[]
[null,null,"5.1 To work with parents"]
[]
[null,null,null,"● Please tick as many boxes as apply and add details in the text box below."]
[]
[]
[null,null,null,null,"Responsible for remits that involve working with parents on behalf of specified groups of pupils, for example stages, year groups and other identifiable groupings of pupils"]
[]
[]
[null,null,null,null,"Responsible for remits that involve working with parents on behalf of pupils across the whole school"]
[]
[]
[null,null,null,"DETAILS:"]
[]
[]
[]
[]
[]
[]
[null,null,"5.2 To lead or work with colleagues in the same establishment"]
[]
[null,null,null,"● Please tick to indicate the specific responsibilities of this post and add details in the text box below."]
[]
[]
[null,null,null,null,"Responsible for remits that involve leading or working with colleagues in the same establishment on behalf of specified groups of pupils, for example stages, year groups and other identifiable groupings of pupils"]
[]
[]
[]
[null,null,null,null,"Responsible for remits that involve leading or working with colleagues in the same establishment on behalf of pupils across the whole school"]
[]
[]
[null,null,null,"DETAILS:"]
[]
[]
[]
[]
[]
[]
[null,null,"5.3 To work with other establishments or agencies."]
[]
[null,null,null,"● •\tPlease tick to indicate the specific responsibilities of this post and add details in the text box below."]
[]
[]
[null,null,null,null,"Responsible for remits that involve working with other establishments and agencies on behalf of specified groups of pupils, for example stages, year groups and other identifiable groupings of pupils"]
[]
[]
[]
[null,null,null,null,"Responsible for remits that involve working with other establishments and agencies on behalf of pupils across the whole school"]
[]
[]
[null,null,null,null,"Responsible for remits that require applying promoted responsibilities in other establishments or agencies"]
[]
[]
[null,null,null,"DETAILS:"]

{"sheet":"Sheet1","index":3,"n_rows":502,"n_cols":1,"rows_kept":502,"cut":false,"hidden":false,"merged":[[5,0,5,1],[56,0,56,1],[16,0,16,1],[76,0,76,1],[28,0,29,1],[31,0,32,1],[34,0,36,1],[73,0,73,1],[74,0,75,1],[43,0,43,1],[44,0,44,1],[40,0,40,1],[47,0,48,1],[53,0,54,1],[55,0,55,1],[46,0,46,1],[41,0,41,1],[49,0,49,1],[50,0,50,1],[51,0,51,1],[52,0,52,1],[57,0,57,1],[58,0,59,1],[60,0,60,1],[11,0,11,1],[24,0,26,1],[37,0,39,1],[45,0,45,1],[14,0,15,1],[17,0,17,1],[27,0,27,1],[513,0,515,1],[0,0,0,1],[470,0,471,1],[344,0,344,1],[340,0,340,1],[346,0,349,1],[460,0,460,1],[350,0,354,1],[22,0,22,1],[23,0,23,1],[2,0,2,1],[12,0,12,1],[13,0,13,1],[6,0,8,1],[9,0,9,1],[10,0,10,1],[4,0,4,1],[18,0,20,1],[67,0,71,1],[72,0,72,1],[61,0,62,1],[64,0,65,1],[66,0,66,1],[90,0,90,1],[113,0,113,1],[127,0,128,1],[100,0,100,1],[101,0,101,1],[91,0,91,1],[92,0,92,1],[93,0,93,1],[99,0,99,1],[126,0,126,1],[159,0,162,1],[164,0,165,1],[166,0,166,1],[168,0,168,1],[116,0,116,1],[94,0,95,1],[96,0,96,1],[97,0,98,1],[102,0,102,1],[108,0,108,1],[109,0,111,1],[106,0,107,1],[136,0,138,1],[130,0,131,1],[163,0,163,1],[132,0,133,1],[134,0,134,1],[135,0,135,1],[140,0,143,1],[144,0,145,1],[146,0,149,1],[150,0,150,1],[129,0,129,1],[183,0,186,1],[167,0,167,1],[169,0,173,1],[174,0,175,1],[176,0,176,1],[177,0,180,1],[181,0,182,1],[1,0,1,1],[84,0,86,1],[88,0,89,1],[114,0,115,1],[112,0,112,1],[80,0,82,1],[3,0,3,1],[77,0,79,1],[103,0,104,1],[105,0,105,1],[151,0,154,1],[155,0,156,1],[157,0,158,1],[121,0,122,1],[117,0,120,1],[123,0,125,1],[139,0,139,1],[187,0,187,1],[188,0,188,1],[201,0,201,1],[189,0,189,1],[190,0,191,1],[192,0,193,1],[194,0,194,1],[195,0,195,1],[196,0,197,1],[198,0,198,1],[236,0,236,1],[237,0,237,1],[238,0,240,1],[223,0,223,1],[224,0,224,1],[225,0,225,1],[199,0,200,1],[202,0,203,1],[204,0,205,1],[222,0,222,1],[217,0,218,1],[219,0,219,1],[220,0,220,1],[221,0,221,1],[206,0,208,1],[209,0,210,1],[211,0,213,1],[214,0,214,1],[215,0,216,1],[226,0,228,1],[229,0,229,1],[230,0,230,1],[231,0,233,1],[234,0,235,1],[241,0,241,1],[242,0,243,1],[244,0,244,1],[245,0,246,1],[252,0,253,1],[254,0,255,1],[265,0,266,1],[267,0,269,1],[270,0,272,1],[258,0,261,1],[262,0,263,1],[256,0,256,1],[257,0,257,1],[264,0,264,1],[311,0,312,1],[313,0,313,1],[278,0,278,1],[291,0,294,1],[283,0,286,1],[287,0,288,1],[275,0,277,1],[247,0,247,1],[248,0,250,1],[251,0,251,1],[279,0,281,1],[282,0,282,1],[274,0,274,1],[289,0,290,1],[301,0,301,1],[328,0,328,1],[295,0,295,1],[296,0,297,1],[317,0,317,1],[318,0,318,1],[319,0,319,1],[321,0,321,1],[298,0,300,1],[387,0,387,1],[385,0,386,1],[357,0,357,1],[359,0,360,1],[361,0,361,1],[363,0,364,1],[377,0,377,1],[378,0,380,1],[373,0,373,1],[374,0,374,1],[367,0,367,1],[333,0,333,1],[320,0,320,1],[339,0,339,1],[302,0,305,1],[306,0,310,1],[388,0,388,1],[322,0,322,1],[314,0,315,1],[316,0,316,1],[375,0,376,1],[324,0,324,1],[325,0,325,1],[326,0,326,1],[327,0,327,1],[332,0,332,1],[355,0,356,1],[368,0,368,1],[369,0,372,1],[338,0,338,1],[365,0,365,1],[329,0,329,1],[337,0,337,1],[336,0,336,1],[331,0,331,1],[330,0,330,1],[334,0,334,1],[335,0,335,1],[341,0,343,1],[381,0,383,1],[389,0,389,1],[390,0,390,1],[391,0,392,1],[401,0,401,1],[400,0,400,1],[393,0,393,1],[394,0,395,1],[396,0,396,1],[398,0,399,1],[402,0,405,1],[456,0,456,1],[406,0,406,1],[407,0,408,1],[409,0,410,1],[455,0,455,1],[411,0,412,1],[413,0,413,1],[414,0,414,1],[415,0,416,1],[426,0,426,1],[427,0,427,1],[428,0,429,1],[430,0,431,1],[432,0,432,1],[433,0,435,1],[436,0,436,1],[437,0,437,1],[417,0,418,1],[419,0,419,1],[420,0,420,1],[421,0,421,1],[422,0,422,1],[423,0,423,1],[424,0,424,1],[425,0,425,1],[438,0,439,1],[440,0,441,1],[451,0,452,1],[442,0,442,1],[443,0,443,1],[444,0,444,1],[445,0,445,1],[446,0,446,1],[447,0,447,1],[448,0,448,1],[489,0,490,1],[449,0,450,1],[472,0,473,1],[453,0,454,1],[457,0,459,1],[461,0,463,1],[464,0,465,1],[466,0,466,1],[467,0,467,1],[468,0,469,1],[484,0,484,1],[485,0,485,1],[486,0,486,1],[487,0,488,1],[474,0,474,1],[475,0,475,1],[476,0,477,1],[478,0,478,1],[479,0,480,1],[481,0,482,1],[483,0,483,1],[498,0,498,1],[499,0,500,1],[501,0,502,1],[494,0,494,1],[495,0,495,1],[496,0,496,1],[497,0,497,1],[491,0,492,1],[493,0,493,1]]}
["NOTES OF GUIDANCE"]
["SECTION 1. WHOLE SCHOOL INFORMATION"]
["The questions in this section of the questionnaire apply to all posts."]
["1.1 Council"]
["Enter the name of the council in which the post is held."]
["1.2 Names of Job Sizing Co-ordinators"]
["Enter the names of the Job Sizing Co-ordinators responsible for validating and processing the data relating to the post. Job Sizing Co-ordinators are selected from both management and teacher unions and work together, within locally agreed arrangements, to ensure the process is both efficient and fair."]
[]
[]
["1.3 Name of School(s)/Service"]
["Enter the name(s) of the school(s) or Service (eg Sensory Support Service) in which the post is based."]
["1.4 Type of post"]
["Tick the box to indicate the type of post, ie Headteacher (HT), Depute Headteacher (DHT) or Principal Teacher (PT)."]
["Tick the box if the post relates to responsibilities in more than one school, and enter the number of schools."]
["Throughout these notes the title PT Guidance/Pupil Support refers to a PT post in secondary with a pastoral/guidance caseload of pupils."]
[]
["Examples:"]
["A HT who is head of two schools would tick the box and enter 2against the number of schools."]
["A PT who is responsible for Additional Support for Learning (ASfL) services across a group of six schools would tick the box and enter 6against the number of schools.  Please note that the third box of Q5.3 (\"Responsible for remits that require applying promoted responsibilities in other establishments or agencies\") should not be ticked for such a post as Q1.4 captures the responsibility for multiple schools."]
[]
[]
[]
["Tick the box if this is a part time post, and enter the number of hours per week the post holder is contracted to work."]
["A post which is job shared should be treated as a single, full time post. "]
["Tick the 1st box if the responsibilities of the post include being a member of the Senior Management Team (SMT).  PT post holders should not tick that they are members of the SMT.  However, for resizing purposes only, a PT may tick this box if he/she had done so in the previous job sizing questionnaire for this post and if he/she remains part of the SMT. "]
[]
[]
["Tick the 2nd box if the responsibilities include being the only member of the SMT who formally deputises for the HT."]
["Tick the 3rd box if the SMT does not include a formal depute and in the 4th box enter the number of SMT posts who share the task of deputising."]
[]
["Primary Example:"]
["In a school where there is only one DHT post, tick the 1st box indicating that the post holder is a member of the SMT and the 2nd, indicating that he/she is the only member of the SMT who formally deputises for the HT."]
[]
["Secondary Examples:"]
["In a school where there are three DHT posts, one of whom is solely responsible for deputising for the HT, all three should tick the 1st box, and the DHT with deputising responsibility should tick the 2nd.  No-one should tick the 3rd  box or make an entry in the 4th box."]
[]
[]
["In a school where there are four DHT posts which share responsibility for deputising for the HT, all should tick the 1st box, none should tick the 2nd box, and all should tick the third box and enter 4 in the 4th box to indicate the number of SMT members in the school, excluding the HT."]
[]
[]
["1.5 Title of post"]
["Enter the title by which the post is known."]
["Primary Example: "]
["In a large school where PTs have responsibilities at different stages, the post may be known as \"Principal Teacher, Early Years\"."]
["Secondary Examples: "]
["In a school where traditional subject posts exist, the post may be known as \"Principal Teacher of Mathematics\"."]
["In a school where PTs are responsible for groups of subjects, a post may be known as \"Faculty Head - Science\" or similar title."]
["A Principal Teacher with responsibility for the management of the pastoral care of pupils, the post may be known as \"Principal Teacher - Pastoral\" or \"Principal Teacher of Guidance\" or \"Principal Teacher Guidance/Pupil Support\"."]
[]
["1.6 Name of post holder"]
["Enter the name of the post holder in the case of a resizing application.  If the post is vacant, enter Vacancy."]
["1.7 Gender of post holder"]
["Tick the box to indicate the gender of the post holder in the case of a resizing application.  "]
["Questions 1.8 to 1.14 must be completed by the job sizing co-ordinators. Post holders must not complete these questions."]
[]
["1.8 Payroll Reference Number"]
["Any reference required by the council when processing the results will be entered by the Job Sizing Co-ordinators."]
["1.9 Type of Establishment"]
["Tick the box to indicate the type of school in which the post is located.  If the post is in an \"other\" type of school, describe this in the box provided."]
[]
["If the post is in a school where there are pupils from 3 - 18, enter the description which is generally used for the establishment."]
["If the post is in a school (other than a Nursery School) which has a Nursery Unit or classes or in a school (other than a Special School) which has an ASfL unit or classes, tick the appropriate box(es)."]
[]
["Primary Example: "]
["If a Primary school has Nursery class(es), the 1st box should be ticked.  If that school also has an ASfL unit, both boxes should be ticked."]
[]
["1.10 School Roll"]
["Tick the box to show the range into which the number of pupils on the roll falls using the most recent census data submitted.  If the post is vacant and the circumstances in the school will have changed when the appointee takes up post (eg school amalgamations, new nursery classes) the best available estimate should be used.  The actual number of nursery pupils rather than the full time equivalent should be used and the number used should be representative of the number of pupils in the nursery throughout the year. For example, a nursery with a morning class of 50 and an afternoon class of 50, 100 should be taken as the representative head count even if the nursery is not operating at fully 50/50 at all times throughout the year."]
[]
[]
[]
[]
["The actual school roll should be entered in the box provided. This entry is for reference purposes only."]
["1.11 Numbers of Staff"]
["Enter the number of staff that make up the authorised staffing allocation for the school on a Full Time Equivalent (FTE) basis.  The FTE for teachers is based on a 35 hour week."]
[]
["In the 1st box, enter the total FTE of HT, DHT and PT post holders in the school."]
["In the 2nd box, enter the FTE of all other teachers who are managed within the school. Councils should also take due account of their own line management arrangements for teachers who work across schools, eg learning support teams.  This could involve sharing the responsibility between the HT and a central line manager.  "]
[]
[]
["In the 3rd box, enter the FTE of all staff other than teachers who work in the school and who are directly line managed within the school.  FTEs should be calculated based on the number of hours per week that an equivalent full time post would normally be contracted to work. Councils should also take due account of their own line management arrangements for staff who work across schools.  "]
[]
[]
[]
["This would normally include office staff, janitors, classroom assistants, early years officers/nursery nurses, auxiliaries etc, who are managed within the school.  It would exclude facilities staff or other staff not employed by the Council department responsible for the school or managed by outside agencies, for example, catering and cleaning staff. "]
[]
[]
["1.12 Percentage of children registered for free school meals"]
["Tick the box which indicates the percentage of children registered for free school meals at the most recent date on which this calculation was made. "]
[]
["Where there is universal provision of free school meals for P1 to P3 the percentage registered for P4 to P7 should be used."]
["The actual percentage should be entered in the box provided. This entry is for reference purposes only."]
["1.13 Size of school budget"]
["Enter the total budget for the school. "]
["Tick the box which indicates the range into which the total budget for which the HT is accountable falls, taking into account the following parameters:"]
[]
["The following should be excluded:"]
["●Salary costs and other employee costs (eg superannuation and national insurance) relating to permanent staff, and staff on fixed term contracts of more than 1 year"]
[]
["●Costs relating to building maintenance work, including repairs, decoration and improvements, unless devolved"]
["●Budgets for capital expenditure"]
["●Special funding from the Scottish Government/Executive or other sources"]
["●Monies collected from parents"]
["The actual budget for which the HT is accountable for should be entered in the box provided. This entry is for reference purposes only."]
[]
["1.14 The physical nature of the school"]
["Tick the box to indicate the number of pupils for whom transport is provided to school.  This should include all pupils with a transport entitlement for which the school has responsibility for health and safety."]
[]
["The actual number of pupils should be entered in the box provided. This entry is for reference purposes only."]
["Tick the next box if the school has classrooms on more than one site; a school is on more than one site if it is necessary to leave school premises to move from one site to another.  The box should only be ticked if the HT is responsible for more than one site.  Schools that have sports facilities or other specialist facilities on different sites should not be treated as multi-site schools for this purpose."]
[]
[]
["SECTION 2: RESPONSIBILITY FOR THE LEADERSHIP, GOOD MANAGEMENT"]
["AND STRATEGIC DIRECTION OF COLLEAGUES"]
["Throughout this section HTs receive an automatic score based on the whole school data.  All questions in this section should be completed for DHT and PT posts.  For HT posts only question 2.4 may be completed."]
[]
["2.1 Direct line management responsibility for teaching staff"]
["Please include all teaching staff for whom the post has direct line management responsibility.  Line management responsibility means overall responsibility for the work carried out by staff, which may include performance, absence monitoring, discipline, PRD, CPD etc. This does not include management that is limited to supervision of staff in the classroom, or contributing to CPD needs, without having overall responsibility for staff."]
[]
[]
[]
["Where the line management of staff is shared with another promoted post then the number of staff line managed by the post holder, on a pro rata basis (FTE), should be included.  Double counting of staff must be avoided."]
[]
["Part time staff should be calculated based on the number of hours per week that an equivalent full time post would normally be contracted to work (35 hours for teachers) and entered as a proportion of this time.  The same applies to staff who are also line managed by more than one promoted post holder."]
[]
[]
["If the FTE figure falls between the bands, round up to the nearest whole number."]
["If you do not have any direct line management responsibility for teaching staff then you should enter a tick in the 'none' box in both columns."]
[]
["Probationers should be counted as full time teaching staff, ie 1.0 FTE."]
["Visiting music instructors should be included as 'other staff' in question 2.2 below, even though some may possibly be qualified teachers.  "]
[]
["Tick the relevant box in the 1st column for the total number of staff, and then tick a box in the 2nd column for actual FTE in order to reflect any part time staff or those staff who are line managed on a pro rata basis."]
[]
["The actual FTE should be entered in the box provided. This entry is for reference purposes only."]
["Primary Example:"]
["A DHT has responsibility for the infant department where there are 4 classes, 2 of which have job share teachers.  Under \"Total Number of Teaching Staff\" the 6 to 10 box should be ticked (4 job sharers and 2 full time staff) and under \"FTE\" the 2 to 5 box (4 FTE) should be ticked.  "]
[]
[]
["Secondary Examples: "]
["A science teacher working half the time in the Biology department and half the time in the Chemistry department would be taken as 0.5 FTE by both the PT of Biology and the PT of Chemistry.  This is assuming the PTs have overall responsibility for the work carried out by the teacher, which may include performance, absence monitoring, discipline, PRD, CPD etc, when the teacher is working for their department."]
[]
[]
[]
["If a DHT were responsible for 4 PTs, each of whom is responsible for 3 classroom teachers, the total number of staff for whom the DHT has direct line management responsibility would be 4. Each PT would have direct line management responsibility for 3 staff."]
[]
["If a curricular PT has a PT Guidance/Pupil Support working 0.4 FTE in the department as a class teacher and the PT Guidance/Pupil Support also does 0.6 FTE in the Guidance role under the leadership of a DHT, the Department PT would line manage that person for 0.4 FTE and the DHT would line manage that person 0.6 FTE. This is assuming that the DHT and PT have overall responsibility for the work carried out by the PT Guidance/Pupil Support when working for each department."]
[]
[]
[]
["2.2 To manage other staff "]
["As for 2.1 above but with respect to support staff for which the post holder has direct line management responsibility. 'Other staff' includes all support staff, for example, pupil support assistants, classroom assistants, auxiliaries, janitors, clerical/administrative staff, etc. Only those staff who are line managed by a promoted post holder in the school and are employed by the council service running the school should be counted."]
[]
[]
[]
["FTE of support assistants (and other school support staff) should be calculated based on the number of hours per week that an equivalent full time post would normally be contracted to work and entered as a proportion of this time."]
[]
["Management of learning support staff or classroom assistants or pupil support assistants when they are working in the classroom should not be counted as ‘line management’ unless there is overall responsibility for managing them."]
[]
["Posts such as music instructors, technicians and librarians, may be managed partly by a promoted post holder within a school and partly by a centrally-based manager or co-ordinator.  Job sizing co-ordinators should be informed of how this sharing operates and the percentages or decimal fractions to be allocated to post holders for this responsibility.  Within some councils such arrangements may have been agreed within the LNCT.  Where this is not the case the LNCT must be notified of the arrangements for shared management."]
[]
[]
[]
["Only when the total FTE figure falls between the bands, should the FTE be rounded up to the nearest whole number."]
["Tick the relevant box in the 1st column for the total number of other staff, and then tick a box in the 2nd column for actual FTE in order to reflect any part time staff or those staff who are line managed on a pro-rata basis."]
[]
["The actual FTE should be entered in the box provided. This entry is for reference purposes only."]
["Note: All examples are dependent on arrangements existing in councils."]
["Primary Examples: "]
["A DHT in a Primary school has responsibility for 1 violin instructor and 2 guitar instructors working in the school for 7 hours each per week, total number of hours is 21/0.6 FTE.  This figure may be allocated proportionately.  For example, if a person from the council has 60% line management responsibility for Music Instructors then 40% of the FTE of the time worked in the school may be allocated to the DHT.  Therefore, under \"Total Number of Staff\" column, the 2 to 10 box should be ticked (3 people) and under \"FTE\" the 2nd box should be ticked (0.6 FTE @ 40% = 0.24 FTE, rounded up to the nearest whole number = 1).  This example may also apply in the Secondary sector."]
[]
[]
[]
[]
["A PT has responsibility for 1 Clerical Assistant (35 hours) and 5 Support Assistants (25 hours/0.71 FTE each). Under \"Total Number of Staff\" the 2 to 10 box should be ticked (6 staff) and under \"FTE\" the 2 to 10 box (4.55 FTE).  "]
[]
["Secondary Examples: "]
["PT Science has 3 Technicians working in the department.  The PT shares the responsibility for line management of them with a council manager on a basis of 40% managed by the PT Science and 60% managed by the council manager.  Therefore, under the \"Total Number of Staff” column the 2 to 10 box should be ticked (3 people) and under “FTE” the 2 to 10 box should be ticked (3 FTE @ 40% = 1.2 FTE, which is rounded up to 2 FTE as it falls between bandings).  Where a council manager has full line management responsibility for Technicians, the ‘None’ box should be ticked."]
[]
[]
[]
["A PT Pupil Guidance/Pupil Support has responsibility for 7 Support Assistants (25 hours/0.71 FTE each). Under \"Total Number of Staff\" the 2 to 10 box should be ticked (7 staff) and under \"FTE\" the 2 to 10 box (4.97 FTE) should be ticked."]
[]
["A DHT is responsible for 2 Music Instructors with a combined FTE of 0.4 in the school, and also for a full time Clerical Assistant working 35 hours (1.0 FTE).  There are 3 members of staff so under the \"Total Number of Staff\" column the 2 to 10 box should be ticked.  The FTE of the 3 staff is 1.4. This falls between the 1 option and the 2 to 10 option.  Under \"FTE\" the 2 to 10 box should be ticked. Rounding up only applies if the total FTE that is calculated falls between options or bandings."]
[]
[]
[]
["Note: All FTEs in examples are based on a 35 hour week."]
["2.3    Accountability for budgets"]
["Tick the relevant box for the amount of regular annual budget for which the post is accountable. "]
["HTs are accountable for the whole school budget and the HT may delegate parts of this budget to other promoted post holders.  It is not possible for more than one other promoted post holder to be responsible for the same monies."]
[]
["Budgets for capital expenditure or special one-off funding from the Scottish Government or other sources should not be included.  Monies collected from parents and other special funding arrangements should also be excluded."]
[]
["The actual budget should be entered in the box provided. This entry is for reference purposes only."]
["Primary Example: "]
["The HT may delegate some budget to DHT or PT post holders, eg for the year groups / curricular areas that they manage.  In a small school, the DHT may be given responsibility for some or all subject-related budgets."]
[]
["Secondary Example: "]
["The HT may delegate some budget to a DHT, eg for ICT or CPD.  The HT may also delegate some budget to PTs to make them accountable for the budgets for their respective departments / subjects."]
[]
["2.4    Responsibility for health and safety "]
["All promoted post holders have responsibility for health and safety and a base score has already been awarded for this from the information provided in Section 1."]
[]
["Tick the 1st box if the post has direct curricular responsibility for any of the subjects listed. This will most likely be the subject PT post, but it could be a DHT post in a smaller school or PT post in a Primary school.  This box cannot be ticked for a HT post. "]
[]
["Tick the 2nd box if the post has other direct curricular responsibilities for health and safety, ie PT posts for subjects not listed at the 1st box.   PT posts with whole school responsibility for a subject will tick one of the first two boxes. This box cannot be ticked for a HT post. "]
[]
[]
["Tick the 3rd box if the post has health and safety responsibilities for year groups and / or specialist sections of the school. This box cannot be ticked for a HT post."]
[]
["Tick the 4th box if the post has overall responsibility for health and safety for the whole school.  If the HT post has responsibility as the school's Health & Safety Officer, and this responsibility has not been delegated to another promoted post, then this box should be ticked.  This is the only box that can be ticked for HT posts.  This box can only apply to one promoted post in the school."]
[]
[]
["Primary Examples: "]
["A DHT / PT in a Primary school with curricular responsibility for environmental studies would have direct curricular responsibility for health and safety for that subject and would enter a tick in the 2nd box."]
[]
["A DHT or PT post holder who is head of P1 and P2 in a Primary school would enter a tick in the 3rd box as being responsible for health and safety for these year groups."]
[]
["Secondary Examples: "]
["For a PT Biology post the 1st box may be ticked.  "]
["For a PT English post the 2nd box may be ticked. "]
["For a DHT post with health and safety responsibilities for S3 and S4 the 3rd box may be ticked."]
["SECTION 3: RESPONSIBILITY FOR CURRICULUM DEVELOPMENT"]
["AND QUALITY ASSURANCE"]
["3.1 To review the CPD needs, career development and performance of colleagues"]
["There is no need to enter any information for this item as a score will be calculated automatically based on the number of staff directly line managed by this post and entered in 2.1 and 2.2.  Other responsibility for CPD (eg, a school's CPD Co-ordinator) should be recorded in 5.2."]
[]
[]
["3.2 To produce and implement the school improvement plan and responsibility for whole school policies"]
["This question is for DHT and PT posts only.  For HT posts, this responsibility is scored automatically based on whole school data."]
["You can make an entry in this question if you have sole responsibility to produce and lead the implementation of an improvement plan or a section of one, and also if you have sole responsibility for producing, leading and reviewing certain whole school policies, whether or not they are under review in the improvement plan (4th box)."]
[]
[]
["Tick the box/boxes to indicate the area on which the plan will have impact.  More than one tick is possible, depending on the remit for the post."]
[]
["Give details of the specific responsibilities in relation to this post in the text box."]
["Example:"]
["For a DHT post in any sector with sole responsibility for pastoral care and also for the production of the whole plan, tick the 2nd and 4th boxes.  If the DHT post is also in charge of certain whole school policies, then this is already covered by the tick placed in the 4th box."]
[]
[]
["Primary Example: "]
["For a DHT post with sole responsibility for the curricular areas of maths across all stages and also for the entire curriculum of P6 and P7, tick the 1st box and the 3rd box."]
[]
["Secondary Examples:"]
["For a science faculty PT post solely responsible for the improvement plan in biology, chemistry, physics and science, tick the 1st box."]
[]
["For a PT or DHT post with sole responsibility for an improvement plan for support for learning, tick the 3rd box."]
["For a PT Guidance/Pupil Support post with sole responsibility for a section of the improvement plan dealing with an aspect of pupil support, tick the 2nd box.  If, in addition, the PT has sole responsibility to develop, lead and review the whole school policy on health, then the 4th box should also be ticked."]
[]
[]
["3.3 To develop the curriculum and monitor learning and teaching"]
["This question may be answered for HT, DHT or PT posts, provided the post has direct responsibility for the curriculum of the classes shown and for monitoring learning and teaching in these classes."]
[]
["For PT Support for Learning the number of timetabled classes box must not be completed, instead an entry should be made in question 3.4 in the 5th box. However, entries may be made for subjects and qualifications, see example below."]
[]
["Primary"]
["Enter the number of timetabled classes for which the post has direct responsibility."]
["There is no facility to enter subjects or qualifications, only the number of classes. Some classes may be composite.  If this is so, decimals should be used to show the proportion at each stage. Some posts may be responsible for the entire curriculum at certain stages.  However, other posts may be responsible for a curricular area for all or some stages.  In such cases, decimals should be used to reflect the proportion of the curriculum involved.  In all cases, including the use of decimals, the total across all promoted posts must be equal to the number of classes in the school."]
[]
[]
[]
["In Pre-5 a morning group is treated as 1 class, and an afternoon group also as 1 class. For a nursery with both a morning and afternoon group, enter 2 classes."]
[]
["Primary Examples:"]
["For a PT post responsible for the entire curriculum of P1-3 in a school with 2 x P1 classes, a P2 class, P2/3 composite (one third P2 and two thirds P3), and a P3 class, enter P1 - 2, P2 - 1.3, P3 - 1.7 (total 5 classes)."]
[]
["A DHT responsible for language and expressive arts across all stages in a school where language is reckoned to account for 25% of the curriculum and expressive arts for 15%, is in charge of 40% of the curriculum.  The total shown should amount to 0.4 of the total number of classes in the school, spread appropriately over all stages and being the equivalent of 0.4 per class.  "]
[]
[]
["In a school with a class structure of 2 x P1, 1 x P2, 1 x P2/3 (half P2, half P3), 2 x P3, P4, P5, 1 x P6 and 1 x P7, the entries should be: P1 - 0.8, P2 - 0.6 (0.4 for the straight P2 plus 0.2 for half of the P2/3), P3 - 1.0 (0.4 for each straight P3 plus 0.2 for half of the P2/3), P4 - 0.8, P5 - 0.8, P6 - 0.4, P7 - 0.4.  The total is 4.8.  It can be checked by taking 0.4 of the school's total of 12 classes (=4.8)."]
[]
[]
[]
["The following example illustrates an alternative approach to calculating curricular responsibility which avoids the use of decimals:"]
["In a primary school of 16 classes, the HT post is reckoned to have direct curricular responsibility for about half of the curriculum and the DHT post for about a quarter, with the remainder split equally between two PTs.  If the HT post is being sized the figure 8 should be entered (against any stage).  The entry for the DHT post would be 4, and that for each PT post would be 2."]
[]
[]
["Secondary"]
["The curriculum is likely to be directly managed by PTs, and only rarely by DHTs or HTs.  Entries should be made under 5 headings: Names of Subjects; Number of Subjects; Level of National Qualification; Number of National Qualifications (NQs) and Number of timetabled classes."]
[]
[]
["Subjects"]
["A subject is a separate, recognisable course of study.  It may be made up of individual units or topics, but these individual parts are not themselves considered subjects.  If in doubt, reference can be made to the SQA catalogue (or similar publication) of national courses, national certificates and standard grades.  Subjects not included in the SQA catalogue may also be counted.  For example, ASDAN and Duke of Edinburgh should each be counted as one subject as long as they are timetabled within the school day. "]
[]
[]
[]
["Certain subjects in S1 and possibly S2, for example science and technical, should be considered to be 1 subject, even if they comprise units from different parts of the curricular area.  After that, the number of subjects may be counted separately."]
[]
["Some subjects, for example, RME and PE, have a general course (for all pupils) as well as specialist courses beyond S1/2.  Even so, they should be considered to be offering only 1 subject for each year group."]
[]
["Give the names of the subjects and the number of subjects taught in each year group.  Count S5 and S6 together if these pupils are timetabled together. For example, if 3 subjects are taught to mixed classes of S5 and S6, then record 3 subjects against either S5 or S6, but not both.  Use decimals to show shared responsibility.  For example, if responsibility for an S1/2 course in science is shared equally amongst a PT Biology, a PT Chemistry and a PT Physics, then show this as 0.33 under number of subjects, along with the number of classes."]
[]
[]
[]
["National Qualifications (NQs)"]
["Only national courses (collections of units), national certificates and standard grades count in this column.  Individual units do not. Each level should be counted only once and placed against the year group with the biggest presentation."]
[]
["Give the name of each national course, certificate or standard grade and a total number at each stage, counting each level only once.  Access 1, Access 2, Access 3, Standard Grade (not subdivided into F, G and C), ASDAN (not subdivided), Intermediate 1, Intermediate 2, Higher and Advanced Higher are all recognised levels."]
[]
[]
["Timetabled classes"]
["Enter the number of separately identifiable class groups appearing on the school or departmental timetable in each year. In a school with 8 classes in S1 taking 3 subjects within the same faculty, the entry would be 8, not 24.   This is because the same group of pupils takes all 3 subjects.  After subject choices have been made, the pupil groupings are likely to be different for the 3 subjects and should be counted separately."]
[]
[]
[]
["Responsibility for some classes may be shared.  For example, 3 PTs may share a science course in S1.  The number to be entered in this column will depend on how the sharing is done.  If 12 classes are organised on a rotational basis attending Biology for 3 months, Chemistry for 3 months and Physics for 3 months, then the entry would be 4 (with a corresponding entry of 1 in the subject column) as the subject is taught to 4 classes at any one time.  However, if the classes are following an integrated science course with no rotation involved and each PT is responsible for one third of the course, then the entry would be 12 but the subject column would only show 0.33."]
[]
[]
[]
[]
["Mixed classes of S5 and S6 are common.  Simply count the total number of classes across S5 and S6 in the curricular areas concerned.  They can be divided between S5 and S6 if so desired without affecting the score."]
[]
["Secondary Examples: "]
["A PT of RME post is responsible for: S1 - 7 classes; S2 - 8 classes; S3 - 8 core RE classes and 2 Standard Grade classes; S4 - 7 core RE classes and 2 Standard Grade classes; S5/6 - 1 Higher class and 1 Intermediate 2 class.  This would be entered as:"]
[]
["     S1 - subjects 1 / national qualifications 0 / classes 7 (1/0/7)"]
["     S2 - 1/0/8"]
["     S3 - 1/0/10"]
["     S4 - 1/1/9"]
["     S5 - 1/2/2"]
["     S6 - 0/0/0 (included in S5 figures)"]
["The subject names and NQ levels names should also be entered in the appropriate columns."]
[]
["A PT post covering both Biology and Chemistry has the following responsibilities:"]
["     S1 - shared responsibility with another PT for an integrated science course for 12 classes;"]
["     S2 - shared responsibility with another PT for an integrated science course for 12 classes;"]
["     S3 - 3 biology and 2 chemistry classes, with both subjects offered at Standard Grade and Int1;"]
["     S4 - 4 biology and 3 chemistry classes, with both subjects being offered at Standard Grade and Int1;"]
["     S5/6 - 2 mixed S5/6 classes in H biology, 1 mixed S5/6 class in Int2 biology, and 1 mixed S5/6 class in Int1 biology, plus in"]
["     chemistry 1 mixed S5/6 classes at Higher and 1 mixed S5/6 composite Int1/Int2 class;"]
["     S6 - 1 class in either Advanced Higher Biology or Chemistry."]
["This information would be recorded as:"]
["     S1 - subjects 0.5 / national qualifications 0 / classes 12 (0.5/0/12)"]
["     S2 - 0.5/0/12"]
["     S3 - 2/0/5"]
["     S4 - 2/4/7"]
["     S5 - 2/4/6"]
["     S6 - 1/1/1"]
["The subject names and NQ levels names should also be entered in the appropriate columns."]
[]
["A school timetables the 3 social subjects in S1 and S2 on a rotational basis.  Each social subject has its own PT.  There are 9 classes in S1 and in S2.  In each year group, the PT History post has responsibility for 3 classes at any one time for one third of the school year.  The numerical entries to be made in the table for S1 and for S2 would be:"]
[]
[]
["Subjects 1 / NQs 0 / Classes 3."]
[]
["In a school there are 10 PT Guidance/Pupil Support and each contributes a 4 week unit (10% of the course) to the PSHE course for each year group.  There are 10 classes in each of S1 to S5/6 (combined).  In the number of subjects column 1 should be entered, for S1 to S5, and in the number of timetabled classes column, for S1 to S5, 1 class should be entered, representing 10% of the total number of classes in each year group."]
[]
[]
[]
["If a PT Support for Learning has sole responsibility for the curricular materials and quality of learning and teaching for a separately timetabled group of pupils in S1 to S4 leading to presentation for English at Access 1 and Access 2 then a 1 should be entered in the subject column for both S3 and S4 (where the responsibility for the subject is not shared with a PT English) and a 2 should be entered in the national qualifications column either against S3 or S4 (but not both). No entry should be made in column for number of timetabled classes.  The class responsibility is covered in question 3.4 and the box \"Responsible for an ASfL unit, class or group for which no other promoted postholder is responsible\" should be ticked."]
[]
[]
[]
[]
["If a PT post has sole responsibility for 1 class in S3 being presented for ASDAN Bronze Award the numerical entries in the questionnaire would be:"]
[]
["Subjects 1 / NQs 1 / Classes 1."]
[]
["If a PT post has sole responsibility for 1 class in S3 following an ASDAN short course the numerical entries in the questionnaire would be:"]
[]
["Subjects 1 / NQs 0 / Classes 1."]
[]
["If a PT post has sole responsibility for 1 class in S3 undertaking Duke of Edinburgh the numerical entries in the questionnaire would be:"]
[]
["Subjects 1 / NQs 0 / Classes 1."]
[]
["3.4 Other formal management responsibilities"]
["This question is only for DHT and PT posts.  It is likely to apply mostly to DHT posts.  "]
["A list of formal management responsibilities is given, mostly on a whole school basis.  Any boxes applying to a post should be ticked if the post carries sole responsibility for the area described.  In other words, for each responsibility given, only one post can receive credit for it.  The only exception is the item on learning and behaviour support where two posts may be credited, one for learning support and the other for behaviour support.  It is possible that no boxes will be ticked in this section, particularly for PT posts."]
[]
[]
[]
["Give details of the specific responsibilities in relation to this post in the text box."]
["Primary Example:"]
["A DHT post has responsibility for a group of pupils for whom English is not their first language.  For this post the box \"Responsible for other identifiable whole school groups of pupils for which no other promoted post holder is responsible\" should be ticked."]
[]
["Secondary Example:"]
["A DHT post has responsibility for the attainment of \"at risk\" pupils in the lowest 20% attainment band.  For this post the box \"Responsible for other identifiable whole school groups of pupils for which no other promoted post holder is responsible\" should be ticked. "]
[]
[]
["Where responsibility for the overall management and strategic direction of support for learning sits with a DHT post this post would be credited by a tick against the box \"Responsible for learning and/or behaviour support\".  In this situation a PT post's responsibility will be recognised by a tick against the box \"Responsible for an ASfL unit, class or group for which no other promoted post holder is responsible\"."]
[]
[]
[]
["Where responsibility for the overall management and strategic direction of support for learning sits with a PT post this post would be credited by a tick against the box \"Responsible for learning and/or behaviour support\"."]
[]
["3.5 Timetabled teaching time"]
["This question may be answered for HT, DHT and PT posts."]
["Enter, to the nearest hour, the weekly timetabled class teaching commitment which is undertaken as a requirement of the post."]
["A PT Support for Learning may be in class supporting pupils for 18 hours a week and it would be appropriate to enter this. "]
["Teaching blocks or periods should be converted into hours. In many cases, the actual class commitment will vary year to year.  A typical or average figure should be entered if this is the case."]
[]
["A post which is held on a job share basis should include the combined class teaching commitment of both job share post holders."]
["HTs should not make an entry here if the staffing standard of the school does not compel them to be class teachers but they choose to do some teaching.  "]
[]
["SECTION 4: RESPONSIBILITY FOR WHOLE SCHOOL POLICY"]
["AND IMPLEMENTATION"]
["All promoted posts have a responsibility for whole school policy and its implementation.  All posts are awarded a base score for this which is calculated from the whole school data."]
[]
["All questions in this section may be completed for DHT and PT posts only. "]
["4.1 To develop, manage and implement a policy on pupil behaviour management"]
["This question should be completed for a DHT or PT post with specific responsibility for the behaviour management of the whole school or for a year group or specialist section of the school.   It should not be completed for PT posts with only curricular responsibility.  For posts of PT Guidance/Pupil Support this question will not normally be completed except where there are specific whole school responsibilities in the remit for the post."]
[]
[]
[]
["Examples: "]
["For a DHT or PT post with responsibility for the whole school pupil behaviour management policy and disciplinary procedures, the 2nd box should be ticked."]
[]
["For a DHT post with responsibility for behaviour management of a specific stage, year group or section of the school, the 1st box should be ticked."]
[]
["For a PT post with specific responsibilities for behaviour management of pupils within a specialist section of the school or year group, the 1st box should be ticked but not if the responsibilities are exclusively curricular."]
[]
["Give details of the specific responsibilities in relation to this post in the text box."]
["4.2 To develop, manage and implement a policy on guidance, pupil support, pastoral care and pupil welfare"]
["This question should be completed for a DHT post with responsibility for developing, managing and implementing specified whole school policies in this area, or in relation to a year group or section of the school.  "]
[]
["This question should be completed for a PT post with responsibility for a formal guidance/pastoral caseload or for policies related to pastoral care and pupil welfare for a specialist section of the school. "]
[]
["The \"formal guidance\" caseload is applicable only to Secondary guidance/pupil support/pastoral posts."]
["The guidance caseload box cannot be ticked for a DHT post if already counted for a PT post in the same school."]
["This section should not be completed for PT subject /curriculum posts. "]
["Give details of the specific responsibilities in relation to this post in the text box."]
["The actual number of pupils in the caseload should be entered in the box provided. This entry is for reference purposes only."]
["Example: "]
["For a DHT post with specific responsibilities for whole school policies in this area, the 3rd box should be ticked."]
["Secondary Examples:"]
["For a formal PT Guidance/Pupil Support/Pastoral post, the 1st box should be ticked."]
["For a PT Support for Learning (or Additional Support Needs) post which carries with it full guidance and pastoral care responsibilities for specific pupils, the 1st box should be ticked."]
[]
["For a DHT or PT post with specific responsibilities in this area for a year group or specialist section of the school, the 2nd box should be ticked. "]
[]
["4.3 To develop, manage and implement a policy on pupil assessment"]
["This question should be completed for a DHT post with whole school responsibilities for pupil assessment or a DHT or PT post with responsibilities for pupil assessment within a department or curricular area or in relation to a year group or specialist section of the school."]
[]
[]
["Give details of the specific responsibilities in relation to this post in the text box."]
["Examples:"]
["For a PT Subject/Curriculum post with lead responsibilities for pupil assessment within a subject department or specific curricular area, the 1st box should be ticked."]
[]
["For a DHT or PT post with lead responsibilities for assessment for a year group, stage or specialist section of the school, the 2nd box should be ticked."]
[]
["For a DHT post with SQA Co-ordinator responsibilities (Secondary), the 3rd box should be ticked."]
["SECTION 5: RESPONSIBILITY FOR WORKING WITH PARTNERS"]
["All promoted posts have a responsibility for working with partners."]
["All posts are awarded a base score for this which is calculated from the whole school data.  "]
["All questions in this section may be completed for DHT and PT posts only. "]
["5.1 To work with parents"]
["Only complete this item if the post carries responsibilities not captured by other questions."]
["Tick the 1st box if the post has sole responsibility for a remit not captured elsewhere that involves working with parents on behalf of groups of pupils, but not across the whole school."]
[]
["Tick the 2nd box if the post has sole responsibility for a remit not captured elsewhere that involves working with parents across the whole school."]
[]
["Tick both boxes if some remits involve the parents of groups of pupils, and other remits involve working with parents across the school."]
[]
["Give details of the specific responsibilities in relation to this post in the text box."]
["Primary Example:"]
["For a Primary DHT post with responsibility for P4-7, the 1st box should be ticked.  This accounts for all contact with parents of P4-7 pupils not covered by other questions.  If, in addition, this post has responsibility for working with parents across the whole school, for example, through enterprise activities, then the 2nd box should also be ticked."]
[]
[]
["Secondary Examples:"]
["For a DHT post with responsibility for S3 and S4, the 1st box should be ticked.  This accounts for all contact with parents of S3 and S4 pupils not covered by other questions.  If, in addition, this post has responsibility for working with parents across the whole school, for example, on health issues, then the 2nd box should also be ticked."]
[]
[]
["A PT Pupil Guidance/Pupil Support post carries a responsibility to co-ordinate the issue of careers across the whole school and is required to work with parents on this basis.  As this responsibility is not captured by other questions, the 2nd box should be ticked."]
[]
["5.2 To lead or work with colleagues in the same establishment"]
["Only complete this item if the post carries responsibilities not captured by other questions.  "]
["Tick the 1st box if the post has sole responsibility for a remit not captured elsewhere that involves leading or working with colleagues on behalf of groups of pupils, but not across the whole school."]
[]
["Tick the 2nd box if the post has sole responsibility for a remit not captured elsewhere that involves leading and working with colleagues across the whole school."]
[]
["Tick both boxes if some remits involve leading and working with colleagues on behalf of groups of pupils, and other remits involve leading and working with colleagues across the school."]
[]
["Give details of the specific responsibilities in relation to this post in the text box."]
["Example:"]
["For a PT post in any sector with a remit in raising achievement across the whole school, the 2nd box should be ticked (if responsibility is not captured elsewhere)."]
[]
["Primary Examples: "]
["For a DHT post which includes the Staff Development Co-ordinator role where the remit is likely to involve working with staff across the whole school, the 2nd box should be ticked."]
[]
["A DHT post with responsibility for literacy across the school is required to lead and work with all staff on this issue would merit a tick in the 2nd box."]
[]
["Secondary Example: "]
["A PT post with a permanent role in leading staff groups for specific purposes (eg workshops) would merit a tick in the 1st box."]
["5.3 To work with other establishments and agencies"]
["Only complete this item if the post carries responsibilities not captured by other questions."]
["Tick the 1st box if the post has sole responsibility for a remit that involves working with other establishments and agencies on behalf of groups of pupils, but not across the whole school."]
[]
["Tick the 2nd box if the post has sole responsibility for a remit that involves working with other establishments and agencies on behalf of pupils across the whole school."]
[]
["Tick the 1st and 2nd boxes if some remits involve working with other establishments and agencies on behalf of groups of pupils and if other remits involve working with other establishments and agencies on behalf of pupils across the school."]
[]
["Tick the 3rd box if the post carries promoted responsibilities that impact on other establishments or agencies."]
["Give details of the specific responsibilities in relation to this post in the text box."]
["Primary Example: "]
["For a DHT post with responsibility for Primary - Secondary transfer, tick the 1st box."]
["Secondary Examples: "]
["For a PT post responsible for Education for Work in all year groups, tick the 2nd box."]
["A PT Guidance/Pupil Support post has responsibility for health issues across the school and is required to liaise with a range of health agencies, tick the 2nd box."]
[]
["For a DHT given responsibility to co-ordinate support for learning across the whole Council, tick the 3rd box as the responsibility for the service applies within the other establishments. "]

{"sheet":"Post-holder data","index":4,"n_rows":12,"n_cols":109,"rows_kept":12,"cut":false,"hidden":false,"merged":[[2,41,3,41],[2,42,3,42],[2,17,2,23],[1,31,1,40],[2,24,2,30],[1,9,3,9],[2,81,3,81],[2,1,3,1],[0,17,0,50],[1,2,1,3],[2,2,3,2],[2,3,3,3],[2,4,3,4],[2,31,2,35],[2,36,2,40],[1,14,3,14],[1,17,1,30],[2,5,3,5],[2,6,3,6],[1,10,3,10],[1,13,3,13],[0,1,0,16],[0,100,0,106],[1,4,1,6],[1,15,1,16],[1,41,1,46],[1,51,1,54],[1,86,3,86],[2,97,2,99],[0,51,0,86],[1,55,1,78],[1,7,3,7],[1,8,3,8],[2,43,3,43],[2,44,3,44],[1,11,3,11],[1,12,3,12],[0,87,0,99],[1,87,1,88],[1,89,1,96],[1,79,1,85],[2,87,2,88],[2,92,2,96],[2,80,3,80],[2,85,3,85],[2,82,3,82],[2,83,3,83],[2,84,3,84],[2,79,3,79],[2,89,2,91],[1,47,1,50],[2,49,3,49],[2,50,3,50],[2,48,3,48],[2,47,3,47],[1,102,1,103],[1,104,1,106],[1,97,1,99],[1,100,1,101],[2,104,2,106],[2,100,2,101],[2,102,2,103],[2,51,2,54],[2,55,2,60],[2,65,2,78],[2,45,3,45],[2,46,3,46],[2,61,2,64]]}
[null,"1. WHOLE-SCHOOL INFORMATION",null,null,null,null,null,null,null,null,null,null,null,null,null,null,null,"2. RESPONSIBILITY FOR THE LEADERSHIP, GOOD MANAGEMENT & STRATEGIC DIRECTION OF COLLEAGUES",null,null,null,null,null,null,null,null,null,null,null,null,null,null,null,null,null,null,null,null,null,null,null,null,null,null,null,null,null,null,null,null,null,"3. RESPONSIBILITY FOR CURRICULUM DEVELOPMENT & QUALITY ASSURANCE",null,null,null,null,null,null,null,null,null,null,null,null,null,null,null,null,null,null,null,null,null,null,null,null,null,null,null,null,null,null,null,null,null,null,null,"4. RESPONSIBILITY FOR WHOLE-SCHOOL POLICY & IMPLEMENTATION",null,null,null,null,null,null,null,null,null,null,null,null,"5. RESPONSIBILITY FOR WORKING WITH PARTNERS"]
[null,"Local Authority","School Name and reference",null,"Current post",null,null,"More than one school?","Total no. of schools","Part Time","Hours Per Week","Member of SMT","Formal depute role?","Title of post","Name of post holder","Gender",null,"2.1 No. of teaching staff managed",null,null,null,null,null,null,null,null,null,null,null,null,null,"2.2 No. of other staff managed",null,null,null,null,null,null,null,null,null,"2.3 Amount of budget managed",null,null,null,null,null,"2.4 Health & safety",null,null,null,"3.2 Development plan",null,null,null,"3.3 To develop and monitor the curriculum",null,null,null,null,null,null,null,null,null,null,null,null,null,null,null,null,null,null,null,null,null,null,null,"3.4 Other formal curricular / management responsibilities",null,null,null,null,null,null,"3.5 Teaching time (hours)","4.1 Pupil behaviour management",null,"4.2 Guidance, pastoral care & pupil welfare",null,null,null,null,null,null,null,"4.3 Pupil assessment",null,null,"5.1 To work with parents",null,"5.2 To work with colleagues in the same establishment",null,"5.3 To work with other establishments and agencies"]
[null,"Name","Ref. (as in Whole School Data Sheet)","Name","HT","DHT / AHT","PT",null,null,null,null,null,null,null,null,"Male","Female","Number of staff",null,null,null,null,null,null,"FTEs",null,null,null,null,null,null,"Number of staff",null,null,null,null,"FTEs",null,null,null,null,"None","Up to £1000","£1001 to £5000","£5001 to £10000","£10001 to £25000","Over £25000","High risk subject(s)","Other subgect(s) ","Year groups and specialist sections","Whole Scool","With impact on:",null,null,null,"Developing subjects",null,null,null,null,null,"National Qualifications",null,null,null,"Monitoring (no. of classes)",null,null,null,null,null,null,null,null,null,null,null,null,null,"Whole-school timetabling","Whole-school responsibility for ICT","Early years / nursery classes","Learning and / or behvioural support","A special needs unit / classes","Other specialist sections such as English as a second language","Primary section of combined school",null,"Leading with impact on:",null,"With impact on:",null,null,"Guidance case load",null,null,null,null,"With impact on:",null,null,"With impact on:",null,"With impact on:",null,"With impact on:"]
[null,null,null,null,null,null,null,null,null,null,null,null,null,null,null,null,null,"None",1,"2 to 5","6 to 10","11 to 25","26 to 50","50+","None",1,"2 to 5","6 to 10","11 to 25","26 to 50","50+","None",1,"2 to 10","11 to 25","25+","None",1,"2 to 10","11 to 25","25+",null,null,null,null,null,null,null,null,null,null,"Departments / subjects","Guidance & pastoral care","Year groups and specialist sections","Whole School","S1","S2","S3","S4","S5","S6","S3","S4","S5","S6","Nursery","P1","P2","P3","P4","P5","P6","P7","S1","S2","S3","S4","S5","S6",null,null,null,null,null,null,null,null,"Year groups and specialist sections","Whole School","Guidance & pastoral care","Year groups and specialist sections","Whole School","None","1 to 50","51 to 100","101 to 200","Over 200","Departments / subgects","Year groups and specialist sections","Whole School","Year groups and specialist sections","Whole School","Year groups and specialist sections","Whole School","Year groups and specialist sections","Whole School","Other establishments / agencies","No depute","Number of deputes"]
[1,{"$f":"IF(B9=0,B10,IF(B9=1,B11,B12))","v":0},"School",{"$f":"IF(D9=0,D10,IF(D9=1,D11,D12))","v":0},{"$f":"IF(E9=0,E10,IF(E9=1,E11,E12))","v":"y"},{"$f":"IF(F9=0,F10,IF(F9=1,F11,F12))","v":""},{"$f":"IF(G9=0,G10,IF(G9=1,G11,G12))","v":""},{"$f":"IF(H9=0,H10,IF(H9=1,H11,H12))","v":""},{"$f":"+'Section 1'!H39","v":0},{"$f":"IF(J9=0,J10,IF(J9=1,J11,J12))","v":""},{"$f":"+'Section 1'!H43","v":0},{"$f":"IF(L9=0,L10,IF(L9=1,L11,L12))","v":""},{"$f":"IF(M9=0,M10,IF(M9=1,M11,M12))","v":""},{"$f":"+'Section 1'!F57","v":0},{"$f":"+'Section 1'!F59","v":0},{"$f":"IF(P9=0,P10,IF(P9=1,P11,P12))","v":""},"y","y","","","","","","","y","","","","","","","y","","","","","y","","","","","y","","","","","",{"$f":"IF(AV9=0,AV10,IF(AV9=1,AV11,AV12))","v":""},"","","","","","","",0,0,0,0,0,0,0,0,0,0,0,0,0,0,0,0,0,0,0,0,0,0,0,0,{"$f":"IF(CB9=0,CB10,IF(CB9=1,CB11,CB12))","v":""},"","","","","","",0,"","","","","","y","","","","","","","","","","","","","","",{"$f":"IF('Key Ranges - Post holder '!P27=TRUE,\"y\",\"\")","v":""},{"$f":"IF('Post-holder data'!DD5=\"y\",'Section 1'!K54,0)","v":0}]
["Radio Nos.",1,1,1,1,2,3,1,1,1,1,1,1,null,1,1,2,1,2,3,4,5,6,7,1,2,3,4,5,6,7,1,2,3,4,5,1,2,3,4,5,1,2,3,4,5,6,1,2,3,4,1,2,3,4,1,2,3,4,5,6,1,2,3,4,1,2,3,4,5,6,7,8,9,10,11,12,13,14,1,2,3,4,5,6,7,1,1,2,1,2,3,1,2,3,4,5,1,2,3,1,2,1,2,1,2,3]
["Named Range","one_1",null,"one_3","one_4","one_4","one_4","one_4i","one_4ii","one_4iii","one_4iv","one_4v","one_4vi",null,"one_6","one_7","one_7","two_1i","two_1i","two_1i","two_1i","two_1i","two_1i","two_1i","two_1ii","two_1ii","two_1ii","two_1ii","two_1ii","two_1ii","two_1ii","two_2i","two_2i","two_2i","two_2i","two_2i","two_2ii","two_2ii","two_2ii","two_2ii","two_2ii","two_3","two_3","two_3","two_3","two_3","two_3","two_4","two_4","two_4","two_4","three_2","three_2","three_2","three_2","three_3i","three_3i","three_3i","three_3i","three_3i","three_3i","three_3ii","three_3ii","three_3ii","three_3ii","three_3iii","three_3iii","three_3iii","three_3iii","three_3iii","three_3iii","three_3iii","three_3iii","three_3iii","three_3iii","three_3iii","three_3iii","three_3iii","three_3iii","three_4","three_4","three_4","three_4","three_4","three_4","three_4","three_5","four_1","four_1","four_2i","four_2i","four_2i","four_2ii","four_2ii","four_2ii","four_2ii","four_2ii","four_3","four_3","four_3","five_1","five_1","five_2","five_2","five_3","five_3","five_3"]
["Link Cell Name",null,null,null,"linkone_4","linkone_4","linkone_4",null,null,null,null,null,null,null,null,"linkone_7","linkone_7","linktwo_1i","linktwo_1i","linktwo_1i","linktwo_1i","linktwo_1i","linktwo_1i","linktwo_1i","linktwo_1ii","linktwo_1ii","linktwo_1ii","linktwo_1ii","linktwo_1ii","linktwo_1ii","linktwo_1ii","linktwo_2i","linktwo_2i","linktwo_2i","linktwo_2i","linktwo_2i","linktwo_2ii","linktwo_2ii","linktwo_2ii","linktwo_2ii","linktwo_2ii","linktwo_3","linktwo_3","linktwo_3","linktwo_3","linktwo_3","linktwo_3",null,null,null,null,null,null,null,null,null,null,null,null,null,null,null,null,null,null,null,null,null,null,null,null,null,null,null,null,null,null,null,null,null,null,null,null,null,null,null,null,null,null,null,null,null,"linkfour_2ii","linkfour_2ii","linkfour_2ii","linkfour_2ii","linkfour_2ii"]
["What input? (Radio=0, Check box = 1, Direct input =2?)",2,null,2,0,0,0,1,2,1,2,1,1,null,2,0,0,0,0,0,0,0,0,0,0,0,0,0,0,0,0,0,0,0,0,0,0,0,0,0,0,0,0,0,0,0,0,1,1,1,1,1,1,1,1,2,2,2,2,2,2,2,2,2,2,2,2,2,2,2,2,2,2,2,2,2,2,2,2,1,1,1,1,1,1,1,2,1,1,1,1,1,0,0,0,0,0,1,1,1,1,1,1,1,1,1,1]
["Formula for Radio",{"$f":"IF(ISERROR(IF(OR(B8=\"\",INDIRECT(B8)=B6),VLOOKUP(B6,INDIRECT(B7),2,FALSE),\"\")),\"\",IF(OR(B8=\"\",INDIRECT(B8)=B6),VLOOKUP(B6,INDIRECT(B7),2,FALSE),\"\"))","v":""},{"$f":"IF(ISERROR(IF(OR(C8=\"\",INDIRECT(C8)=C6),VLOOKUP(C6,INDIRECT(C7),2,FALSE),\"\")),\"\",IF(OR(C8=\"\",INDIRECT(C8)=C6),VLOOKUP(C6,INDIRECT(C7),2,FALSE),\"\"))","v":""},"","y","","","","","","","","",null,"","","y","y","","","","","","","y","","","","","","","y","","","","","y","","","","","y","","","","","","","","","","","","","","","","","","","","","","","","",{"$f":"IF(ISERROR(IF(OR(BO8=\"\",INDIRECT(BO8)=BO6),VLOOKUP(BO6,INDIRECT(BO7),2,FALSE),\"\")),\"\",IF(OR(BO8=\"\",INDIRECT(BO8)=BO6),VLOOKUP(BO6,INDIRECT(BO7),2,FALSE),\"\"))","v":""},"","","","","","","","","","","","","","","","","","","","","","","","","","y","","","","","","","","","","","","","",""]
["Formula for Check box",{"$f":"IF(VLOOKUP(B6,INDIRECT(B7),2,FALSE)=1,\"y\",\"\")","v":""},null,{"$f":"IF(VLOOKUP(D6,INDIRECT(D7),2,FALSE)=1,\"y\",\"\")","v":""},{"$f":"IF(VLOOKUP(E6,INDIRECT(E7),2,FALSE)=1,\"y\",\"\")","v":""},"","","","","","","","",null,"","","","","","","","","","","","","","","","","","","","","","","","","","","","","","","","","","","","","","","","","","","","","","","","","","","","","","",{"$f":"IF(VLOOKUP(BQ6,INDIRECT(BQ7),2,FALSE)=1,\"y\",\"\")","v":""},"","","","","","","","","","","","","","","","","","","","","","","","","","","","","","","","","","","","","",""]
["Formula for Direct input",{"$f":"VLOOKUP(B6,INDIRECT(B7),2,FALSE)","v":0},null,{"$f":"VLOOKUP(D6,INDIRECT(D7),2,FALSE)","v":0},{"$f":"VLOOKUP(E6,INDIRECT(E7),2,FALSE)","v":"y"},"y","y",0,0,0,0,0,0,null,0,"y","y","y","y","y","y","y","y","y","y","y","y","y","y","y","y","y","y","y","y","y","y","y","y","y","y","y","y","y","y","y","y",0,0,0,0,0,0,0,0,0,0,0,0,0,0,0,0,0,0,0,0,0,{"$f":"VLOOKUP(BQ6,INDIRECT(BQ7),2,FALSE)","v":0},0,0,0,0,0,0,0,0,0,0,0,0,0,0,0,0,0,0,0,0,0,0,0,"y","y","y","y","y",0,0,0,0,0,0,0,0,0,0]

{"sheet":"Key Ranges - Post holder ","index":5,"n_rows":51,"n_cols":20,"rows_kept":51,"cut":false,"hidden":false,"merged":[]}
["Key",null,null,null,null,null,null,null,null,null,null,null,null,null,"N/B: False  = 0 and True = 1"]
[]
[1.1000000000000001,null,"Link cells",null,null,"2.1i",null,null,null,3.2,null,null,null,4.0999999999999996,null,null,null,5.0999999999999996]
[1,{"$f":"'Section 1'!G15","v":0},null,null,null,1,"y",1,null,1,{"$f":"IF(L4=FALSE,0,1)","v":0},false,null,1,{"$f":"IF(P4=FALSE,0,1)","v":0},false,null,1,{"$f":"IF(T4=FALSE,0,1)","v":0},false]
[null,null,null,null,null,2,"y",null,null,2,{"$f":"IF(L5=FALSE,0,1)","v":0},false,null,2,{"$f":"IF(P5=FALSE,0,1)","v":0},false,null,2,{"$f":"IF(T5=FALSE,0,1)","v":0},false]
[1.3,null,null,null,null,3,"y",null,null,3,{"$f":"IF(L6=FALSE,0,1)","v":0},false]
[1,{"$f":"'Section 1'!G20","v":0},null,null,null,4,"y",null,null,4,{"$f":"IF(L7=FALSE,0,1)","v":0},false,null,"4.2i",null,null,null,5.2]
[null,null,null,null,null,5,"y",null,null,null,null,null,null,1,{"$f":"IF(P8=FALSE,0,1)","v":0},false,null,1,{"$f":"IF(T8=FALSE,0,1)","v":0},false]
[1.4,null,null,null,null,6,"y",null,null,null,null,null,null,2,{"$f":"IF(P9=FALSE,0,1)","v":0},false,null,2,{"$f":"IF(T9=FALSE,0,1)","v":0},false]
[1,"y",1,null,null,7,"y",null,null,"3.3i",null,null,null,3,{"$f":"IF(P10=FALSE,0,1)","v":0},false]
[2,"y",null,null,null,null,null,null,null,1,{"$f":"'Section 1'!F374","v":0}]
[3,"y",null,null,null,"2.1ii",null,null,null,2,{"$f":"'Section 1'!F377","v":0},null,null,"4.2ii",null,null,null,5.3]
[null,null,null,null,null,1,"y",1,null,3,{"$f":"'Section 1'!F380","v":0},null,null,1,"y",1,null,1,{"$f":"IF(T13=FALSE,0,1)","v":0},false]
["1.4i",null,null,null,null,2,"y",null,null,4,{"$f":"'Section 1'!F383","v":0},null,null,2,"y",null,null,2,{"$f":"IF(T14=FALSE,0,1)","v":0},false]
[1,{"$f":"IF(C15=FALSE,0,1)","v":0},false,null,null,3,"y",null,null,5,{"$f":"'Section 1'!F386","v":0},null,null,3,"y",null,null,3,{"$f":"IF(T15=FALSE,0,1)","v":0},false]
[null,null,null,null,null,4,"y",null,null,6,{"$f":"'Section 1'!F389","v":0},null,null,4,"y"]
["1.4ii",null,null,null,null,5,"y",null,null,null,null,null,null,5,"y"]
[1,{"$f":"+'Section 1'!H39","v":0},null,null,null,6,"y",null,null,"3.3ii"]
[null,null,null,null,null,7,"y",null,null,1,{"$f":"'Section 1'!I380","v":0},null,null,4.3]
["1.4iii",null,null,null,null,null,null,null,null,2,{"$f":"'Section 1'!I383","v":0},null,null,1,{"$f":"IF(P20=FALSE,0,1)","v":0},false]
[1,{"$f":"IF(C21=FALSE,0,1)","v":0},false,null,null,"2.2i",null,null,null,3,{"$f":"'Section 1'!I386","v":0},null,null,2,{"$f":"IF(P21=FALSE,0,1)","v":0},false]
[null,null,null,null,null,1,"y",1,null,4,{"$f":"'Section 1'!I389","v":0},null,null,3,{"$f":"IF(P22=FALSE,0,1)","v":0},false]
["1.4iv",null,null,null,null,2,"y"]
[1,{"$f":"+'Section 1'!H43","v":0},null,null,null,3,"y",null,null,"3.3iii"]
[null,null,null,null,null,4,"y",null,null,1,{"$f":"'Section 1'!F354","v":0},null,null,"1.4new"]
["1.4v",null,null,null,null,5,"y",null,null,2,{"$f":"'Section 1'!F355","v":0},null,null,1,{"$f":"IF(P26=FALSE,0,1)","v":0},false]
[1,{"$f":"IF(C27=FALSE,0,1)","v":0},false,null,null,null,null,null,null,3,{"$f":"'Section 1'!F356","v":0},null,null,null,null,{"$f":"+P26","v":false}]
[null,null,null,null,null,"2.2ii",null,null,null,4,{"$f":"'Section 1'!F357","v":0}]
["1.4vi",null,null,null,null,1,"y",1,null,5,{"$f":"'Section 1'!F358","v":0}]
[1,{"$f":"IF(C30=FALSE,0,1)","v":0},false,null,null,2,"y",null,null,6,{"$f":"'Section 1'!F359","v":0}]
[null,null,null,null,null,3,"y",null,null,7,{"$f":"'Section 1'!F360","v":0}]
[1.5,null,null,null,null,4,"y",null,null,8,{"$f":"'Section 1'!F361","v":0},null,null,null,null,{"$f":"IF(P27=\"false\",1,2)","v":2}]
[1,{"$f":"'Section 1'!G57","v":0},null,null,null,5,"y",null,null,9,{"$f":"'Section 1'!J374","v":0}]
[null,null,null,null,null,null,null,null,null,10,{"$f":"'Section 1'!J377","v":0}]
[1.6,null,null,null,null,2.2999999999999998,null,null,null,11,{"$f":"'Section 1'!J380","v":0}]
[1,{"$f":"'Section 1'!G59","v":0},null,null,null,1,"y",1,null,12,{"$f":"'Section 1'!J383","v":0}]
[null,null,null,null,null,2,"y",null,null,13,{"$f":"'Section 1'!J386","v":0}]
[null,null,null,null,null,3,"y",null,null,14,{"$f":"'Section 1'!J389","v":0}]
[1.7,null,2,null,null,4,"y"]
[1,"y",null,null,null,5,"y",null,null,3.4]
[2,"y",null,null,null,6,"y",null,null,1,{"$f":"IF(L41=FALSE,0,1)","v":0},false]
[null,null,null,null,null,null,null,null,null,2,0,false]
[null,null,null,null,null,2.4,null,null,null,3,0,false]
[null,null,null,null,null,1,{"$f":"IF(H44=FALSE,0,1)","v":0},false,null,4,0,false]
[null,null,null,null,null,2,{"$f":"IF(H45=FALSE,0,1)","v":0},false,null,5,0,false]
[null,null,null,null,null,3,{"$f":"IF(H46=FALSE,0,1)","v":0},false,null,6,0,false]
[null,null,null,null,null,4,{"$f":"IF(H47=FALSE,0,1)","v":0},false,null,7,0,false]
[]
[null,null,null,null,null,null,null,null,null,3.5]
[null,null,null,null,null,null,null,null,null,1,{"$f":"'Section 1'!I429","v":0}]
[{"$f":"CELL(\"filename\")","v":"https://theeis-my.sharepoint.com/personal/landerson_eis_org_uk/Documents/Microsoft Teams Chat Files/[JS TOOLKIT 2026.xlsm]Section 1"}]

{"sheet":"Whole-school data","index":6,"n_rows":10,"n_cols":42,"rows_kept":10,"cut":false,"hidden":false,"merged":[[0,41,1,41],[0,1,1,1],[0,3,1,3],[0,28,0,34],[0,20,0,22],[0,23,0,27],[0,0,1,0],[0,2,1,2],[0,4,0,10],[0,11,0,19],[0,35,0,40]]}
["Local Authority","SEED REFERENCE","School Reference","School Name","1.9 Type of establishment",null,null,null,null,null,null,"1.10 School Roll",null,null,null,null,null,null,null,null,"1.11 Numbers of staff",null,null,"1.12 FME %",null,null,null,null,"1.13 Budget £",null,null,null,null,null,null,"1.14 No. of children with transport to school",null,null,null,null,null,"Multi-site?"]
[null,null,null,null,"Primary","Secondary","Special","Junior High School","Other","Includes nursery unit","Includes SEN unit","Up to 50","51 to 100","101 to 250","251 to 500","501 to 750","751 to 1000","1001 to 1250","1251 to 1500","Over 1500","Promoted posts","Other teaching staff","Other staff","0% to 10%","11% to 25%","26% to 50%","51% to 75%","76% to 100%","Total Budget £","None","Up to 10000","10001 to 50000","50001 to 100000","100001 to 250000","Over 250000","0 to 50","51 to 100","101 to 200","201 to 300","301 to 400","Over 400"]
["Radio Nos.",null,null,1,1,2,3,4,5,1,2,1,2,3,4,5,6,7,8,9,1,2,3,1,2,3,4,5,null,1,2,3,4,5,6,1,2,3,4,5,6,1]
["Named Range",null,null,"one_3","one_9","one_9","one_9","one_9","one_9","one_9i","one_9i","one_10","one_10","one_10","one_10","one_10","one_10","one_10","one_10","one_10","one_11","one_11","one_11","one_12","one_12","one_12","one_12","one_12",null,"one_13ii","one_13ii","one_13ii","one_13ii","one_13ii","one_13ii","one_14","one_14","one_14","one_14","one_14","one_14","one_14i"]
["Link Cell Name",null,null,null,"Linkone_9","Linkone_9","Linkone_9","Linkone_9","Linkone_9",null,null,"Linkone_10","Linkone_10","Linkone_10","Linkone_10","Linkone_10","Linkone_10","Linkone_10","Linkone_10","Linkone_10",null,null,null,"Linkone_12","Linkone_12","Linkone_12","Linkone_12","Linkone_12",null,"Linkone_13ii","Linkone_13ii","Linkone_13ii","Linkone_13ii","Linkone_13ii","Linkone_13ii","Linkone_14","Linkone_14","Linkone_14","Linkone_14","Linkone_14","Linkone_14"]
["What input? (Radio=0, Check box = 1, Direct input =2?)",null,null,2,0,0,0,0,0,1,1,0,0,0,0,0,0,0,0,0,2,2,2,0,0,0,0,0,null,0,0,0,0,0,0,0,0,0,0,0,0,1]
["Formula for Radio",null,null,{"$f":"IF(ISERROR(IF(OR(D5=\"\",INDIRECT(D5)=D3),VLOOKUP(D3,INDIRECT(D4),2,FALSE),\"\")),\"\",IF(OR(D5=\"\",INDIRECT(D5)=D3),VLOOKUP(D3,INDIRECT(D4),2,FALSE),\"\"))","v":""},"y","","","","",{"$f":"IF(ISERROR(IF(OR(J5=\"\",INDIRECT(J5)=J3),VLOOKUP(J3,INDIRECT(J4),2,FALSE),\"\")),\"\",IF(OR(J5=\"\",INDIRECT(J5)=J3),VLOOKUP(J3,INDIRECT(J4),2,FALSE),\"\"))","v":""},"","y","","","","","","","","","","","","y","","","","",null,"y","","","","","","y","","","","","",""]
["Formula for Check box",null,null,{"$f":"IF(VLOOKUP(D3,INDIRECT(D4),2,FALSE)=1,\"y\",\"\")","v":""},"","","","","","",{"$f":"IF(VLOOKUP(K3,INDIRECT(K4),2,FALSE)=1,\"y\",\"\")","v":""},"","","","","","","","","",{"$f":"IF(VLOOKUP(U3,INDIRECT(U4),2,FALSE)=1,\"y\",\"\")","v":""},{"$f":"IF(VLOOKUP(V3,INDIRECT(V4),2,FALSE)=1,\"y\",\"\")","v":""},{"$f":"IF(VLOOKUP(W3,INDIRECT(W4),2,FALSE)=1,\"y\",\"\")","v":""},"","","","","",null,"","","","","","","","","","","","",{"$f":"IF(VLOOKUP(AP3,INDIRECT(AP4),2,FALSE)=1,\"y\",\"\")","v":""}]
["Formula for Direct input",null,null,{"$f":"VLOOKUP(D3,INDIRECT(D4),2,FALSE)","v":0},"y","y","y","y","y",{"$f":"VLOOKUP(J3,INDIRECT(J4),2,FALSE)","v":0},0,"y","y","y","y","y","y","y","y","y",0,0,0,"y","y","y","y","y",null,"y","y","y","y","y","y","y","y","y","y","y","y",0]
[null,null,"School",{"$f":"IF(D6=0,D7,IF(D6=1,D8,D9))","v":0},"y","","","","",{"$f":"IF(J6=0,J7,IF(J6=1,J8,J9))","v":""},"","y","","","","","","","","",0,0,0,"y","","","","",{"$f":"+'Section 1'!G146","v":0},"y","","","","","","y","","","","","",""]

{"sheet":"Key ranges - Whole school","index":7,"n_rows":37,"n_cols":7,"rows_kept":37,"cut":false,"hidden":false,"merged":[]}
[]
[1.9,null,null,null,"1.13ii"]
[1,"y",1,null,1,"y",1]
[2,"y",null,null,2,"y"]
[3,"y",null,null,3,"y"]
[4,"y",null,null,4,"y"]
[5,"y",null,null,5,"y"]
[null,null,null,null,6,"y"]
["1.9i"]
[1,{"$f":"IF(C10=FALSE,0,1)","v":0},false]
[2,{"$f":"IF(C11=FALSE,0,1)","v":0},false,null,1.1399999999999999]
[null,null,null,null,1,"y",1]
[1.1000000000000001,null,null,null,2,"y"]
[1,"y",1,null,3,"y"]
[2,"y",null,null,4,"y"]
[3,"y",null,null,5,"y"]
[4,"y",null,null,6,"y"]
[5,"y"]
[6,"y",null,null,"1.14i"]
[7,"y",null,null,1,{"$f":"IF(G20=FALSE,0,1)","v":0},false]
[8,"y"]
[9,"y"]
[]
[1.1100000000000001]
[1,{"$f":"+'Section 1'!F121","v":0}]
[2,{"$f":"+'Section 1'!F123","v":0}]
[3,{"$f":"+'Section 1'!F125","v":0}]
[]
[1.1200000000000001]
[1,"y",1]
[2,"y"]
[3,"y"]
[4,"y"]
[5,"y"]
[]
["1.13i"]
[1,{"$f":"'Section 1'!#REF!","v":{"$error":"#REF!"}}]

{"sheet":"Allocation to scales","index":8,"n_rows":45,"n_cols":6,"rows_kept":45,"cut":false,"hidden":false,"merged":[[0,7,1,7],[0,8,1,8],[0,9,1,9],[0,2,0,4],[51,2,51,3],[0,5,1,5],[0,6,1,6],[30,0,30,2],[2,0,2,2],[31,0,31,1],[32,0,32,1],[3,0,3,1],[4,0,4,1],[33,0,33,1],[5,0,5,1]]}
[null,null,"Job Size",null,null,"Headteachers / depute Headteachers"]
[]
["Headteacher and deputes"]
[]
[]
[]
[null,null,"Lower","Upper","Point","Salary"]
[]
[]
[null,null,0,128,1,35500]
[null,null,129,142,2,36600]
[null,null,143,157,3,37800]
[null,null,158,174,4,39099]
[null,null,175,191,5,40401]
[null,null,192,205,6,41499]
[null,null,206,220,7,42699]
[null,null,221,235,8,43899]
[null,null,236,250,9,45099]
[null,null,251,266,10,46299]
[null,null,267,291,11,48300]
[null,null,292,317,12,50301]
[null,null,318,342,13,52299]
[null,null,343,368,14,54300]
[null,null,369,406,15,57300]
[null,null,407,444,16,60300]
[null,null,445,483,17,63300]
[null,null,484,521,18,66300]
[null,null,522,null,19,69300]
[]
[]
["Principal teachers"]
[]
[]
[]
[]
[null,null,"Lower","Upper","Point","Salary"]
[]
[null,null,0,82,1,31299]
[null,null,83,96,2,32601]
[null,null,97,110,3,33900]
[null,null,111,126,4,35199]
[null,null,127,142,5,36501]
[null,null,143,159,6,37800]
[null,null,160,177,7,39099]
[null,null,178,null,8,40401]